Workbook

Sheet Info
B1: Combining Measures for Claims
B2: 2018-02-23
B4: This workbook demonstrates a method of determing the weighted useful life, net-to-gross ratio and measure cost values of a claim when the claim represents a combination of individual measures.
B6: The process of combining measures with differing useful life periods necessarily compromises the determination of cost effectiveness values.
B7: * If measures with different EUL and/or NTG values are combined into a single weighted measure, the TRC and PAC values determined by the cost-effectiveness calculator will not be
B8: the same as the sum of those values when analyzed as individual measures. The results of the weighted measures may be higher or lower than the sum of the individual measures.
B9: * If measures with both electric and gas savings are combined into a single weighted measure, correct values for first year and lifetime energy savings cannot be assured.
B10: * If measures with different EUL values are combined, the first year electric demand savings can match the sum of the demand savings for the individual measures, but the
B11: lifetime demand savings cannot be correct.
B13: The method presented in this workbook attempts to minimize the errors in the cost effectiveness calculations introduced by combining measures that have differing EUL and/or NTG values.
B14: * Two separate claim measures are created, one for the gas savings and one for the electric savings.
B15: * The weighted NTG and EUL values are determined so that the first year gross and net energy values are correct and the lifetime net energy values are correct.
B16: * The measure cost is allocated based on the individual measure's specified Primary Fuel or, if the primary fuel is both electric and gas, based on the source energy savings associated
B17: with each fuel type.
B19: This workbook currently allows combining measures where each measure has a single period for measure savings.
B20: * The period of savings can be the EUL of the measure or the RUL of the measure (depending on the specified measure type).
B21: * Early-retirement measures cannot be combined using this workbook.
B24: Project Components Tab - Section 1: User Inputs
B26: Project and individual measure information is entered in section 1.
B27: Note: to help assure that all of the entered data are valid, validation rules are applied to many of the entries. Some of these validation rules, such as the list
B28: of valid NTG_ID values, change based on previous selections. When a previous selection is changed, a current entry may no longer be valid. To check if all
B29: current entries are valid, press the [Circle Invalid Data] button at the top of the page.
B31: The results of calculation performed on the user input data supplied on this tab are shown as Claim values for the weighted measures
B33: User Inputs | C33: Description | D33: Rules
B34: Program Administrator | C34: The standard code for the program administrator | D34: Select from the available list
B35: Program ID | C35: The program ID under which this project was implemented | D35: Select from the list, based on the selected Program Administrator
B36: Project ID | C36: Program administrator assigned identifying code for this project
B37: Project Description | C37: Brief description of this project identifying overall project objective and implementation
B38: Submission Date | C38: Date that the form is submitted
B39: Form Completed By | C39: Name of person completing this form
B40: Project Type | C40: The overall project type | D40: Select from list: Building or Process
B41: Calculation type | C41: The calculation type associated with this project, determines how EUL value is specified | D41: Select from list: Deemed, Custom or NMEC. Deemed projects must select an EUL_ID from the EUL table, Custom and NMEC projects can specify measure-specific EUL values.
B42: Claim Date Range | C42: The date range that the claim will be submitted. | D42: Some NTG IDs have multiple records that depend on their Start and Expiry dates. The date ranges specified will allow the correct NTG record and corresponding NTG values to be retrieved. When a specified NTG_ID is not compatible with the specified date range, the NTG_ID will be highlighted.
B43: Measure Description | C43: A description of the project component
B44: Energy Savings: elec kWh | C44: the first year gross electric savings of the project component in kWh | D44: as reported in a Claims record if this were a stand-alone meaure
B45: Energy Savings: elec kW | C45: the first year gross demand savings of the project component
B46: Energy Savings: gas therm | C46: the first year gross gas savings of the project component in therms
B47: Measure Cost | C47: the measure cost of the component
B48: Primary Fuel | C48: select the primary fuel type for the measure from a list of Electric, Nat'l Gas, or Both | D48: Individual measure costs are assigned to the weighted electric or gas measure based on the Primary Fuel. If the Primary Fuel is "Both", the measure cost is allocated based on the lifetime source energy savings associated with each fuel type. The Primary Fuel selection is also used to retieve either the NTGR_kwh or the NTGR_therm value from the NTG table.
B49: EUL_ID | C49: The estimated useful life code, from the DEER EUL table. | D49: Specify one of the applicable EUL_IDs from the DEER EUL table, the list of valid entries varies based on selected Calculation Type. This is a required input if the Calculation Type is Deemed, optional if the Calculation Type is Custom or NMEC.
B50: EUL/RUL Value | C50: The EUL or RUL value to be used in the life savings calculations | D50: Can be input if the Calculation Type is Custom or NMEC. If both an EUL_ID and an EUL value are specified, the EUL_ID will be used.
B51: Building Type | C51: The building type associated with this measure component, used to select the proper hours-of-use in the EUL table | D51: Required for EULs that depend on building type, select from list of applicable building types based on selected EUL_ID. This entry is not used when an EUL value is specified instead of an EUL_ID.
B52: Measure Type | C52: The category of measure type, either Add-on Equipment (AOE) or Replace on Burnout/New Construction/Normal Replacement (ROB/NC/NR) | D52: Determines whether EUL or RUL value is used for measure component life-time savings calculations.
B53: NTG_ID | C53: The Net-to-Gross ratio code, from the DEER NTG table | D53: Select from list of all applicable NTG_IDs, the list varies depending on the Calculation Type.
B57: Project Components Tab - Section 2: User Input Documentation & Verification
B59: This section pulls together the descriptions and classification fields for each of the specified EUL and NTG records.
B60: The classification fields are formatted to call attention to any incompatabilities between the EUL and NTG records for the same measure component.
B63: Project Components Tab - Section 3: Determination of weighted EUL, NTG and Measure Cost values
B65: This section calculates the weighted useful life period and net-to-gross values under a variety of scenarios.
B66: For each scenario, the first-year and lifetime energy savings values are highlighted to show when:
C67: the values match the sum of the individual components
C68: the values are greater than the sum of the individual components
C69: the values are less than the sum of the individual components
B70: For the example given, there is no scenario using a single weighted measure (rows 20 - 27) where the reported first year gross savings are correct and the lifetime net savings values are correct.
B71: When the individual measures are weighted to create two new measures, one with the electric savings and one with the gas savings, a useful life period and a net-to-gross value can be calculated
B72: for each measure such that the first-year energy savings values are correct and the net lifetime savings values are correct (see rows 34 and 41). In these cases, the gross lifetime savings values
B73: may not be correct, as with the example given.
B75: This section also calculates the measure cost allocated to the electric and gas weighted measures.

Sheet Project Components
B2: Section 1: User Input | P2: Section 2: User Input Documentation & Verification | AB2: Section 3: Determination of weighted EUL, NTG and Measure Cost values
AE4: First Year Savings | AI4: Lifetime Savings | AQ4: Determination of EUL when a function of Building Type
B5: Program Administrator: | C5: PGE | G5: Program Name: | H5: =VLOOKUP(C6,'2017 EE Programs List'!$B$4:$D$408,2,FALSE) -> Residential Energy Advisor | S5: NTG classification | X5: NTG | Y5: Measure | AE5: Gross | AG5: Net | AI5: Gross | AK5: Net | AN5: kWh | AO5: therm | AS5: HOU_Cat | AT5: Bldg Type | AU5: validation reference
B6: Program ID: | C6: PGE21001 | G6: Main Sector: | H6: =VLOOKUP(C6,'2017 EE Programs List'!$B$4:$D$408,3,FALSE) -> Residential | P6: Measure | Q6: NTG_ID | R6: NTG Description | S6: Sector | T6: UseCategory | U6: UseSubCategory | V6: TechGroup | W6: TechType | X6: Qualifier | Y6: Delivery | AB6: Measure | AC6: EUL/RUL | AD6: NTG | AE6: kWh | AF6: therms | AG6: kWh | AH6: therms | AI6: kWh | AJ6: therms | AK6: kWh | AL6: therms | AM6: Cost | AN6: Cost | AO6: Cost | AQ6: HOU_Cat | AR6: HOU_Cat_LU | AS6: Basis | AT6: EUL_hou | AU6: col | AV6: num rows
B7: Project ID: | C7: PGE1234567 | O7: 1 | P7: =IF(ISBLANK(B14),"",B14) -> Window upgrade | Q7: =IF(ISBLANK(L14),"",L14) -> Res-Default>2 | R7: =IFERROR(VLOOKUP($L14,NTG!$B$7:$Q$106,5,FALSE),"") -> All other EEM with no evaluated NTGR; existing EEM with same delivery mechanism for more than 2 years | S7: =IFERROR(VLOOKUP($L14,NTG!$B$7:$Q$106,12,FALSE),"") -> Res | T7: =IFERROR(VLOOKUP($L14,NTG!$B$7:$Q$106,13,FALSE),"") -> 0 | U7: =IFERROR(VLOOKUP($L14,NTG!$B$7:$Q$106,14,FALSE),"") -> 0 | V7: =IFERROR(VLOOKUP($L14,NTG!$B$7:$Q$106,15,FALSE),"") -> 0 | W7: =IFERROR(VLOOKUP($L14,NTG!$B$7:$Q$106,16,FALSE),"") -> 0 | X7: =IFERROR(VLOOKUP($L14,NTG!$B$7:$Q$106,10,FALSE),"") -> None | Y7: =IFERROR(VLOOKUP($L14,NTG!$B$7:$Q$106,11,FALSE),"") -> Any | AB7: =+B14 -> Window upgrade | AC7: =IF(ISBLANK(H14),I14,IF(AR7="NA",IFERROR(VLOOKUP(H14,EUL_basis!$A$3:$I$415,7+MATCH(K14,lookup!$AB$4:$AB$5,0),FALSE),0),IFERROR(AS7/AT7,"NotFound"))) -> 20 | AD7: =IFERROR(VLOOKUP(INDEX(NTG_by_Date!$M$4:$M$330,M14),NTG!$A$7:$I$106,VLOOKUP(G14,lookup!$Q$4:$S$6,3,FALSE),FALSE),0) -> 0.55 | AE7: =+C14 -> 200 | AF7: =+E14 -> 2 | AG7: =+AE7*AD7 -> 110 | AH7: =+AF7*AD7 -> 1.1 | AI7: =+AE7*$AC7 -> 4000 | AJ7: 40 | AK7: 2200 | AL7: 22 | AM7: =+F14 -> 500 | AN7: =IF(G14="Electric",F14,IF(G14="Nat'l Gas",0,IFERROR(ROUND(AM7*(AK7*3413/elecS2S)/((AL7*100000/gasS2S)+(AK7*3413/elecS2S)),2),0))) -> 441.87 | AO7: =AM7-AN7 -> 58.13 | AQ7: =IFERROR(VLOOKUP($H14,EUL_basis!$A$3:$P$415,3,FALSE),"") -> None | AR7: =IF(OR(AQ7="None",AQ7=""),"NA",AQ7&J14) -> NA | AS7: =IFERROR(VLOOKUP($H14,EUL_basis!$A$3:$T$415,20,FALSE),0) -> 0 | AT7: =IFERROR(INDEX(EUL_hou!$I$4:$I$102,MATCH(AR7,EUL_hou!$L$4:$L$102,0)),0) -> 0 | AU7: =IFERROR(MATCH(AQ7,EUL_hou!$Q$4:$AA$4,0),1) -> 1 | AV7: =INDEX(EUL_hou!$Q$6:$AA$6,AU7) -> 1
B8: Project Description: | C8: Residential whole house upgrade | G8: Project Type: | H8: Building | O8: =+O7+1 -> 2 | P8: Furace upgrade | Q8: Res-sAll-mHVAC-Pkg-dn | R8: =IFERROR(VLOOKUP($L15,NTG!$B$7:$Q$106,5,FALSE),"") -> All package HVAC AC and HP replacements with downstream incentives | S8: =IFERROR(VLOOKUP($L15,NTG!$B$7:$Q$106,12,FALSE),"") -> Res | T8: =IFERROR(VLOOKUP($L15,NTG!$B$7:$Q$106,13,FALSE),"") -> HVAC | U8: =IFERROR(VLOOKUP($L15,NTG!$B$7:$Q$106,14,FALSE),"") -> 0 | V8: =IFERROR(VLOOKUP($L15,NTG!$B$7:$Q$106,15,FALSE),"") -> 0 | W8: =IFERROR(VLOOKUP($L15,NTG!$B$7:$Q$106,16,FALSE),"") -> 0 | X8: =IFERROR(VLOOKUP($L15,NTG!$B$7:$Q$106,10,FALSE),"") -> Any | Y8: =IFERROR(VLOOKUP($L15,NTG!$B$7:$Q$106,11,FALSE),"") -> Any | AA8: 1 | AB8: Furace upgrade | AC8: =IF(ISBLANK(H15),I15,IF(AR8="NA",IFERROR(VLOOKUP(H15,EUL_basis!$A$3:$I$415,7+MATCH(K15,lookup!$AB$4:$AB$5,0),FALSE),0),IFERROR(AS8/AT8,"NotFound"))) -> 20 | AD8: =IFERROR(VLOOKUP(INDEX(NTG_by_Date!$M$4:$M$330,M15),NTG!$A$7:$I$106,VLOOKUP(G15,lookup!$Q$4:$S$6,3,FALSE),FALSE),0) -> 0.6 | AE8: 0 | AF8: 20 | AG8: 0 | AH8: =+AF8*AD8 -> 12 | AI8: 0 | AJ8: 400 | AK8: 0 | AL8: 240 | AM8: =+F15 -> 300 | AN8: 0 | AO8: =AM8-AN8 -> 300 | AQ8: =IFERROR(VLOOKUP($H15,EUL_basis!$A$3:$P$415,3,FALSE),"") -> None | AR8: NA | AS8: =IFERROR(VLOOKUP($H15,EUL_basis!$A$3:$T$415,20,FALSE),0) -> 0 | AT8: =IFERROR(INDEX(EUL_hou!$I$4:$I$102,MATCH(AR8,EUL_hou!$L$4:$L$102,0)),0) -> 0 | AU8: =IFERROR(MATCH(AQ8,EUL_hou!$Q$4:$AA$4,0),1) -> 1 | AV8: =INDEX(EUL_hou!$Q$6:$AA$6,AU8) -> 1
B9: Submission Date: | C9: 2018-01-01 | G9: Calculation type: | H9: Deemed | O9: =+O8+1 -> 3 | P9: Air-conditioner upgrade | Q9: Res-sAll-mHVAC-Pkg-dn | R9: =IFERROR(VLOOKUP($L16,NTG!$B$7:$Q$106,5,FALSE),"") -> All package HVAC AC and HP replacements with downstream incentives | S9: =IFERROR(VLOOKUP($L16,NTG!$B$7:$Q$106,12,FALSE),"") -> Res | T9: =IFERROR(VLOOKUP($L16,NTG!$B$7:$Q$106,13,FALSE),"") -> HVAC | U9: =IFERROR(VLOOKUP($L16,NTG!$B$7:$Q$106,14,FALSE),"") -> 0 | V9: =IFERROR(VLOOKUP($L16,NTG!$B$7:$Q$106,15,FALSE),"") -> 0 | W9: =IFERROR(VLOOKUP($L16,NTG!$B$7:$Q$106,16,FALSE),"") -> 0 | X9: =IFERROR(VLOOKUP($L16,NTG!$B$7:$Q$106,10,FALSE),"") -> Any | Y9: =IFERROR(VLOOKUP($L16,NTG!$B$7:$Q$106,11,FALSE),"") -> Any | AA9: =+AA8+1 -> 2 | AB9: Air-conditioner upgrade | AC9: =IF(ISBLANK(H16),I16,IF(AR9="NA",IFERROR(VLOOKUP(H16,EUL_basis!$A$3:$I$415,7+MATCH(K16,lookup!$AB$4:$AB$5,0),FALSE),0),IFERROR(AS9/AT9,"NotFound"))) -> 15 | AD9: =IFERROR(VLOOKUP(INDEX(NTG_by_Date!$M$4:$M$330,M16),NTG!$A$7:$I$106,VLOOKUP(G16,lookup!$Q$4:$S$6,3,FALSE),FALSE),0) -> 0.6 | AE9: 320 | AF9: 0 | AG9: 192 | AH9: 0 | AI9: 4800 | AJ9: 0 | AK9: 2880 | AL9: 0 | AM9: 1200 | AN9: 1200 | AO9: 0 | AQ9: =IFERROR(VLOOKUP($H16,EUL_basis!$A$3:$P$415,3,FALSE),"") -> None | AR9: NA | AS9: =IFERROR(VLOOKUP($H16,EUL_basis!$A$3:$T$415,20,FALSE),0) -> 0 | AT9: =IFERROR(INDEX(EUL_hou!$I$4:$I$102,MATCH(AR9,EUL_hou!$L$4:$L$102,0)),0) -> 0 | AU9: =IFERROR(MATCH(AQ9,EUL_hou!$Q$4:$AA$4,0),1) -> 1 | AV9: =INDEX(EUL_hou!$Q$6:$AA$6,AU9) -> 1
B10: Form Completed By: | C10: Joe Q. Implementer | G10: Claim Date Range: | H10: after 2018 | O10: 4 | P10: DHW upgrade | Q10: Res-sAll-mDHWgt62 | R10: =IFERROR(VLOOKUP($L17,NTG!$B$7:$Q$106,5,FALSE),"") -> Water Heater EF >0.62<0.65, Cap>30 gal. | S10: =IFERROR(VLOOKUP($L17,NTG!$B$7:$Q$106,12,FALSE),"") -> Res | T10: =IFERROR(VLOOKUP($L17,NTG!$B$7:$Q$106,13,FALSE),"") -> SHW | U10: =IFERROR(VLOOKUP($L17,NTG!$B$7:$Q$106,14,FALSE),"") -> Heating | V10: =IFERROR(VLOOKUP($L17,NTG!$B$7:$Q$106,15,FALSE),"") -> WaterHtg_eq | W10: =IFERROR(VLOOKUP($L17,NTG!$B$7:$Q$106,16,FALSE),"") -> Stor_EF | X10: =IFERROR(VLOOKUP($L17,NTG!$B$7:$Q$106,10,FALSE),"") -> None | Y10: =IFERROR(VLOOKUP($L17,NTG!$B$7:$Q$106,11,FALSE),"") -> PreRebDown | AA10: =+AA9+1 -> 3 | AB10: DHW upgrade | AC10: =IF(ISBLANK(H17),I17,IF(AR10="NA",IFERROR(VLOOKUP(H17,EUL_basis!$A$3:$I$415,7+MATCH(K17,lookup!$AB$4:$AB$5,0),FALSE),0),IFERROR(AS10/AT10,"NotFound"))) -> 11 | AD10: =IFERROR(VLOOKUP(INDEX(NTG_by_Date!$M$4:$M$330,M17),NTG!$A$7:$I$106,VLOOKUP(G17,lookup!$Q$4:$S$6,3,FALSE),FALSE),0) -> 0.23 | AE10: 0 | AF10: 35 | AG10: 0 | AH10: 8.05 | AI10: 0 | AJ10: 385 | AK10: 0 | AL10: 88.55 | AM10: 60 | AN10: 0 | AO10: 60 | AQ10: =IFERROR(VLOOKUP($H17,EUL_basis!$A$3:$P$415,3,FALSE),"") -> None | AR10: NA | AS10: =IFERROR(VLOOKUP($H17,EUL_basis!$A$3:$T$415,20,FALSE),0) -> 0 | AT10: =IFERROR(INDEX(EUL_hou!$I$4:$I$102,MATCH(AR10,EUL_hou!$L$4:$L$102,0)),0) -> 0 | AU10: =IFERROR(MATCH(AQ10,EUL_hou!$Q$4:$AA$4,0),1) -> 1 | AV10: =INDEX(EUL_hou!$Q$6:$AA$6,AU10) -> 1
O11: 5 | P11: LED Lighting | Q11: Res-sAll-mLEDARefl | R11: =IFERROR(VLOOKUP($L18,NTG!$B$7:$Q$106,5,FALSE),"") -> Residential LED A-lamp and screw-in reflector, all delivery mechanisms | S11: =IFERROR(VLOOKUP($L18,NTG!$B$7:$Q$106,12,FALSE),"") -> Res | T11: =IFERROR(VLOOKUP($L18,NTG!$B$7:$Q$106,13,FALSE),"") -> Lighting | U11: =IFERROR(VLOOKUP($L18,NTG!$B$7:$Q$106,14,FALSE),"") -> Any | V11: =IFERROR(VLOOKUP($L18,NTG!$B$7:$Q$106,15,FALSE),"") -> Ltg_Lamp | W11: =IFERROR(VLOOKUP($L18,NTG!$B$7:$Q$106,16,FALSE),"") -> LED_Lamp | X11: =IFERROR(VLOOKUP($L18,NTG!$B$7:$Q$106,10,FALSE),"") -> None | Y11: =IFERROR(VLOOKUP($L18,NTG!$B$7:$Q$106,11,FALSE),"") -> Any | AA11: 4 | AB11: LED Lighting | AC11: =IF(ISBLANK(H18),I18,IF(AR11="NA",IFERROR(VLOOKUP(H18,EUL_basis!$A$3:$I$415,7+MATCH(K18,lookup!$AB$4:$AB$5,0),FALSE),0),IFERROR(AS11/AT11,"NotFound"))) -> 16.04278075 | AD11: =IFERROR(VLOOKUP(INDEX(NTG_by_Date!$M$4:$M$330,M18),NTG!$A$7:$I$106,VLOOKUP(G18,lookup!$Q$4:$S$6,3,FALSE),FALSE),0) -> 0.91 | AE11: 50 | AF11: 0 | AG11: 45.5 | AH11: 0 | AI11: 802.1390374 | AJ11: 0 | AK11: 729.9465241 | AL11: 0 | AM11: 50 | AN11: 50 | AO11: 0 | AQ11: =IFERROR(VLOOKUP($H18,EUL_basis!$A$3:$P$415,3,FALSE),"") -> Res_OutGen-LED | AR11: Res_OutGen-LEDAny | AS11: =IFERROR(VLOOKUP($H18,EUL_basis!$A$3:$T$415,20,FALSE),0) -> 15000 | AT11: =IFERROR(INDEX(EUL_hou!$I$4:$I$102,MATCH(AR11,EUL_hou!$L$4:$L$102,0)),0) -> 935 | AU11: =IFERROR(MATCH(AQ11,EUL_hou!$Q$4:$AA$4,0),1) -> 11 | AV11: =INDEX(EUL_hou!$Q$6:$AA$6,AU11) -> 1
B12: Project Components | C12: Energy Savings | F12: Measure | G12: Primary | I12: EUL/RUL | K12: Measure | O12: 6 | R12: =IFERROR(VLOOKUP($L19,NTG!$B$7:$Q$106,5,FALSE),"") ->  | S12: =IFERROR(VLOOKUP($L19,NTG!$B$7:$Q$106,12,FALSE),"") ->  | T12: =IFERROR(VLOOKUP($L19,NTG!$B$7:$Q$106,13,FALSE),"") ->  | U12: =IFERROR(VLOOKUP($L19,NTG!$B$7:$Q$106,14,FALSE),"") ->  | V12: =IFERROR(VLOOKUP($L19,NTG!$B$7:$Q$106,15,FALSE),"") ->  | W12: =IFERROR(VLOOKUP($L19,NTG!$B$7:$Q$106,16,FALSE),"") ->  | X12: =IFERROR(VLOOKUP($L19,NTG!$B$7:$Q$106,10,FALSE),"") ->  | Y12: =IFERROR(VLOOKUP($L19,NTG!$B$7:$Q$106,11,FALSE),"") ->  | AA12: 5 | AB12: 0 | AC12: =IF(ISBLANK(H19),I19,IF(AR12="NA",IFERROR(VLOOKUP(H19,EUL_basis!$A$3:$I$415,7+MATCH(K19,lookup!$AB$4:$AB$5,0),FALSE),0),IFERROR(AS12/AT12,"NotFound"))) -> 0 | AD12: =IFERROR(VLOOKUP(INDEX(NTG_by_Date!$M$4:$M$330,M19),NTG!$A$7:$I$106,VLOOKUP(G19,lookup!$Q$4:$S$6,3,FALSE),FALSE),0) -> 0 | AE12: 0 | AF12: 0 | AG12: 0 | AH12: 0 | AI12: 0 | AJ12: 0 | AK12: 0 | AL12: 0 | AM12: 0 | AN12: 0 | AO12: 0 | AQ12: =IFERROR(VLOOKUP($H19,EUL_basis!$A$3:$P$415,3,FALSE),"") ->  | AR12: NA | AS12: =IFERROR(VLOOKUP($H19,EUL_basis!$A$3:$T$415,20,FALSE),0) -> 0 | AT12: =IFERROR(INDEX(EUL_hou!$I$4:$I$102,MATCH(AR12,EUL_hou!$L$4:$L$102,0)),0) -> 0 | AU12: =IFERROR(MATCH(AQ12,EUL_hou!$Q$4:$AA$4,0),1) -> 1 | AV12: =INDEX(EUL_hou!$Q$6:$AA$6,AU12) -> 1
B13: Measure Description | C13: elec kWh | D13: elec kW | E13: gas therm | F13: Cost | G13: Fuel | H13: EUL_ID | I13: Value | J13: Building Type | K13: Type | L13: NTG_ID | M13: NTG match | O13: 7 | R13: =IFERROR(VLOOKUP($L20,NTG!$B$7:$Q$106,5,FALSE),"") ->  | S13: =IFERROR(VLOOKUP($L20,NTG!$B$7:$Q$106,12,FALSE),"") ->  | T13: =IFERROR(VLOOKUP($L20,NTG!$B$7:$Q$106,13,FALSE),"") ->  | U13: =IFERROR(VLOOKUP($L20,NTG!$B$7:$Q$106,14,FALSE),"") ->  | V13: =IFERROR(VLOOKUP($L20,NTG!$B$7:$Q$106,15,FALSE),"") ->  | W13: =IFERROR(VLOOKUP($L20,NTG!$B$7:$Q$106,16,FALSE),"") ->  | X13: =IFERROR(VLOOKUP($L20,NTG!$B$7:$Q$106,10,FALSE),"") ->  | Y13: =IFERROR(VLOOKUP($L20,NTG!$B$7:$Q$106,11,FALSE),"") ->  | AA13: 6 | AB13: 0 | AC13: =IF(ISBLANK(H20),I20,IF(AR13="NA",IFERROR(VLOOKUP(H20,EUL_basis!$A$3:$I$415,7+MATCH(K20,lookup!$AB$4:$AB$5,0),FALSE),0),IFERROR(AS13/AT13,"NotFound"))) -> 0 | AD13: =IFERROR(VLOOKUP(INDEX(NTG_by_Date!$M$4:$M$330,M20),NTG!$A$7:$I$106,VLOOKUP(G20,lookup!$Q$4:$S$6,3,FALSE),FALSE),0) -> 0 | AE13: 0 | AF13: 0 | AG13: 0 | AH13: 0 | AI13: 0 | AJ13: 0 | AK13: 0 | AL13: 0 | AM13: 0 | AN13: 0 | AO13: 0 | AQ13: =IFERROR(VLOOKUP($H20,EUL_basis!$A$3:$P$415,3,FALSE),"") ->  | AR13: NA | AS13: =IFERROR(VLOOKUP($H20,EUL_basis!$A$3:$T$415,20,FALSE),0) -> 0 | AT13: =IFERROR(INDEX(EUL_hou!$I$4:$I$102,MATCH(AR13,EUL_hou!$L$4:$L$102,0)),0) -> 0 | AU13: =IFERROR(MATCH(AQ13,EUL_hou!$Q$4:$AA$4,0),1) -> 1 | AV13: =INDEX(EUL_hou!$Q$6:$AA$6,AU13) -> 1
A14: 1 | B14: Window upgrade | C14: 200 | D14: 0 | E14: 2 | F14: 500 | G14: Both | H14: BS-Win | J14: n/a | K14: ROB/NC/NR | L14: Res-Default>2 | M14: =IF(ISBLANK(L14),"",MATCH(L14&"_"&MATCH($H$10,lookup!$AE$4:$AE$8,0),NTG_by_Date!$L$4:$L$330,0)) -> 236 | O14: 8 | R14: =IFERROR(VLOOKUP($L21,NTG!$B$7:$Q$106,5,FALSE),"") ->  | S14: =IFERROR(VLOOKUP($L21,NTG!$B$7:$Q$106,12,FALSE),"") ->  | T14: =IFERROR(VLOOKUP($L21,NTG!$B$7:$Q$106,13,FALSE),"") ->  | U14: =IFERROR(VLOOKUP($L21,NTG!$B$7:$Q$106,14,FALSE),"") ->  | V14: =IFERROR(VLOOKUP($L21,NTG!$B$7:$Q$106,15,FALSE),"") ->  | W14: =IFERROR(VLOOKUP($L21,NTG!$B$7:$Q$106,16,FALSE),"") ->  | X14: =IFERROR(VLOOKUP($L21,NTG!$B$7:$Q$106,10,FALSE),"") ->  | Y14: =IFERROR(VLOOKUP($L21,NTG!$B$7:$Q$106,11,FALSE),"") ->  | AA14: 7 | AB14: 0 | AC14: =IF(ISBLANK(H21),I21,IF(AR14="NA",IFERROR(VLOOKUP(H21,EUL_basis!$A$3:$I$415,7+MATCH(K21,lookup!$AB$4:$AB$5,0),FALSE),0),IFERROR(AS14/AT14,"NotFound"))) -> 0 | AD14: =IFERROR(VLOOKUP(INDEX(NTG_by_Date!$M$4:$M$330,M21),NTG!$A$7:$I$106,VLOOKUP(G21,lookup!$Q$4:$S$6,3,FALSE),FALSE),0) -> 0 | AE14: 0 | AF14: 0 | AG14: 0 | AH14: 0 | AI14: 0 | AJ14: 0 | AK14: 0 | AL14: 0 | AM14: 0 | AN14: 0 | AO14: 0 | AQ14: =IFERROR(VLOOKUP($H21,EUL_basis!$A$3:$P$415,3,FALSE),"") ->  | AR14: NA | AS14: =IFERROR(VLOOKUP($H21,EUL_basis!$A$3:$T$415,20,FALSE),0) -> 0 | AT14: =IFERROR(INDEX(EUL_hou!$I$4:$I$102,MATCH(AR14,EUL_hou!$L$4:$L$102,0)),0) -> 0 | AU14: =IFERROR(MATCH(AQ14,EUL_hou!$Q$4:$AA$4,0),1) -> 1 | AV14: =INDEX(EUL_hou!$Q$6:$AA$6,AU14) -> 1
A15: =+A14+1 -> 2 | B15: Furace upgrade | C15: 0 | D15: 0 | E15: 20 | F15: 300 | G15: Nat'l Gas | H15: HV-EffFurn | J15: n/a | K15: ROB/NC/NR | L15: Res-sAll-mHVAC-Pkg-dn | M15: =IF(ISBLANK(L15),"",MATCH(L15&"_"&MATCH($H$10,lookup!$AE$4:$AE$8,0),NTG_by_Date!$L$4:$L$330,0)) -> 292 | AA15: 8 | AD15: total: | AE15: =SUM(AE7:AE14) -> 570 | AF15: =SUM(AF7:AF14) -> 57 | AG15: 347.5 | AH15: 21.15 | AI15: 9602.139037 | AJ15: 825 | AK15: 5809.946524 | AL15: 350.55 | AM15: 2110 | AN15: 1691.87 | AO15: 418.13
A16: =+A15+1 -> 3 | B16: Air-conditioner upgrade | C16: 320 | D16: 0 | E16: 0 | F16: 1200 | G16: Electric | H16: HV-ResAC | J16: n/a | K16: ROB/NC/NR | L16: Res-sAll-mHVAC-Pkg-dn | M16: =IF(ISBLANK(L16),"",MATCH(L16&"_"&MATCH($H$10,lookup!$AE$4:$AE$8,0),NTG_by_Date!$L$4:$L$330,0)) -> 292 | S16: EUL classification | AR16: electric source-to-site efficiency: | AS16: =ROUND(3413/7755,2) -> 0.44
A17: 4 | B17: DHW upgrade | C17: 0 | D17: 0 | E17: 35 | F17: 60 | G17: Nat'l Gas | H17: WtrHt-Res-Gas | J17: n/a | K17: ROB/NC/NR | L17: Res-sAll-mDHWgt62 | M17: =IF(ISBLANK(L17),"",MATCH(L17&"_"&MATCH($H$10,lookup!$AE$4:$AE$8,0),NTG_by_Date!$L$4:$L$330,0)) -> 269 | P17: Measure | Q17: EUL_ID | R17: EUL Description | S17: Sector | T17: UseCategory | U17: UseSubCategory | V17: TechGroup | W17: TechType | AB17: For Electric and Gas Savings (single claim measure) | AE17: First Year Savings | AI17: Lifetime Savings | AR17: gas source-to-site efficiency: | AS17: 0.98
A18: 5 | B18: LED Lighting | C18: 50 | D18: 0.02 | E18: 0 | F18: 50 | G18: Electric | H18: OLtg-Res-LED-15000hr | J18: Any | K18: ROB/NC/NR | L18: Res-sAll-mLEDARefl | M18: =IF(ISBLANK(L18),"",MATCH(L18&"_"&MATCH($H$10,lookup!$AE$4:$AE$8,0),NTG_by_Date!$L$4:$L$330,0)) -> 304 | O18: 1 | P18: =IF(ISBLANK(B14),"",B14) -> Window upgrade | Q18: =IF(ISBLANK(H14),"",H14) -> BS-Win | R18: =IFERROR(VLOOKUP($H14,EUL_basis!$A$3:$P$415,2,FALSE),"") -> High Performance Windows | S18: =IFERROR(VLOOKUP($H14,EUL_basis!$A$3:$P$415,10,FALSE),"") -> Res | T18: =IFERROR(VLOOKUP($H14,EUL_basis!$A$3:$P$415,13,FALSE),"") -> BldgEnv | U18: =IFERROR(VLOOKUP($H14,EUL_basis!$A$3:$P$415,14,FALSE),"") -> Fenestration | V18: =IFERROR(VLOOKUP($H14,EUL_basis!$A$3:$P$415,15,FALSE),"") -> Fenest | W18: =IFERROR(VLOOKUP($H14,EUL_basis!$A$3:$P$415,16,FALSE),"") -> 0 | AE18: Gross | AG18: Net | AI18: Gross | AK18: Net
A19: 6 | M19: =IF(ISBLANK(L19),"",MATCH(L19&"_"&MATCH($H$10,lookup!$AE$4:$AE$8,0),NTG_by_Date!$L$4:$L$330,0)) ->  | O19: =+O18+1 -> 2 | P19: Furace upgrade | Q19: HV-EffFurn | R19: =IFERROR(VLOOKUP($H15,EUL_basis!$A$3:$P$415,2,FALSE),"") -> High Efficiency Furnace | S19: =IFERROR(VLOOKUP($H15,EUL_basis!$A$3:$P$415,10,FALSE),"") -> Res | T19: =IFERROR(VLOOKUP($H15,EUL_basis!$A$3:$P$415,13,FALSE),"") -> HVAC | U19: =IFERROR(VLOOKUP($H15,EUL_basis!$A$3:$P$415,14,FALSE),"") -> SpaceHeat | V19: =IFERROR(VLOOKUP($H15,EUL_basis!$A$3:$P$415,15,FALSE),"") -> SpaceHtg_eq | W19: =IFERROR(VLOOKUP($H15,EUL_basis!$A$3:$P$415,16,FALSE),"") -> GasFurnace | AB19: Determination of weighted EUL and NTG | AC19: EUL | AD19: NTG | AE19: kWh | AF19: therms | AG19: kWh | AH19: therms | AI19: kWh | AJ19: therms | AK19: kWh | AL19: therms
A20: 7 | M20: =IF(ISBLANK(L20),"",MATCH(L20&"_"&MATCH($H$10,lookup!$AE$4:$AE$8,0),NTG_by_Date!$L$4:$L$330,0)) ->  | O20: =+O19+1 -> 3 | P20: Air-conditioner upgrade | Q20: HV-ResAC | R20: =IFERROR(VLOOKUP($H16,EUL_basis!$A$3:$P$415,2,FALSE),"") -> High Efficiency Air Conditioner (package and split systems) | S20: =IFERROR(VLOOKUP($H16,EUL_basis!$A$3:$P$415,10,FALSE),"") -> Res | T20: =IFERROR(VLOOKUP($H16,EUL_basis!$A$3:$P$415,13,FALSE),"") -> HVAC | U20: =IFERROR(VLOOKUP($H16,EUL_basis!$A$3:$P$415,14,FALSE),"") -> SpaceCool | V20: =IFERROR(VLOOKUP($H16,EUL_basis!$A$3:$P$415,15,FALSE),"") -> dxAC_equip | W20: =IFERROR(VLOOKUP($H16,EUL_basis!$A$3:$P$415,16,FALSE),"") -> 0 | AB20: based on correct first year net kWh & therm and net lifetime kWh: | AC20: =+AK15/AG15 -> 16.71927057 | AD20: =+AK15/AI15 -> 0.6050679439 | AE20: =+AG20/AD20 -> 574.3156674 | AF20: =+AH20/AD20 -> 34.95475213 | AG20: =+AG15 -> 347.5 | AH20: =+AH15 -> 21.15 | AI20: =+AE20*$AC20 -> 9602.139037 | AJ20: 584.4179587 | AK20: 5809.946524 | AL20: 353.6125726
A21: 8 | M21: =IF(ISBLANK(L21),"",MATCH(L21&"_"&MATCH($H$10,lookup!$AE$4:$AE$8,0),NTG_by_Date!$L$4:$L$330,0)) ->  | O21: 4 | P21: DHW upgrade | Q21: WtrHt-Res-Gas | R21: =IFERROR(VLOOKUP($H17,EUL_basis!$A$3:$P$415,2,FALSE),"") -> Residential Gas Water Heater | S21: =IFERROR(VLOOKUP($H17,EUL_basis!$A$3:$P$415,10,FALSE),"") -> Res | T21: =IFERROR(VLOOKUP($H17,EUL_basis!$A$3:$P$415,13,FALSE),"") -> SHW | U21: =IFERROR(VLOOKUP($H17,EUL_basis!$A$3:$P$415,14,FALSE),"") -> Heating | V21: =IFERROR(VLOOKUP($H17,EUL_basis!$A$3:$P$415,15,FALSE),"") -> WaterHtg_eq | W21: =IFERROR(VLOOKUP($H17,EUL_basis!$A$3:$P$415,16,FALSE),"") -> 0 | AB21: based on correct first year net kWh & therm and net lifetime therm: | AC21: =+AL15/AH15 -> 16.57446809 | AD21: =+AL15/AJ15 -> 0.4249090909 | AE21: =+AG21/AD21 -> 817.821994 | AF21: =+AH21/AD21 -> 49.77535302 | AG21: =+AG15 -> 347.5 | AH21: =+AH15 -> 21.15 | AI21: 13554.96454 | AJ21: 825 | AK21: 5759.62766 | AL21: 350.55
B22: component totals: | C22: =SUM(C14:C21) -> 570 | D22: =SUM(D14:D21) -> 0.02 | E22: 57 | F22: 2110 | O22: 5 | P22: LED Lighting | Q22: OLtg-Res-LED-15000hr | R22: =IFERROR(VLOOKUP($H18,EUL_basis!$A$3:$P$415,2,FALSE),"") -> LED lamp - Outdoor- Residential - Small wattage Globe, Any Candle shape | S22: =IFERROR(VLOOKUP($H18,EUL_basis!$A$3:$P$415,10,FALSE),"") -> Res | T22: =IFERROR(VLOOKUP($H18,EUL_basis!$A$3:$P$415,13,FALSE),"") -> Lighting | U22: =IFERROR(VLOOKUP($H18,EUL_basis!$A$3:$P$415,14,FALSE),"") -> OutGen | V22: =IFERROR(VLOOKUP($H18,EUL_basis!$A$3:$P$415,15,FALSE),"") -> Ltg_Lamp | W22: =IFERROR(VLOOKUP($H18,EUL_basis!$A$3:$P$415,16,FALSE),"") -> LED_lamp | AB22: based on correct first year net kWh and lifetime net kWh and therm: | AC22: =+AK15/AG15 -> 16.71927057 | AD22: =+AG15/AE15 -> 0.6096491228 | AE22: =+AG22/AD22 -> 570 | AF22: =AL15/AC22/AD22 -> 34.39162463 | AG22: =+AG15 -> 347.5 | AH22: =+AF22*AD22 -> 20.96682379 | AI22: 9529.984227 | AJ22: 575.0028777 | AK22: 5809.946524 | AL22: 350.55
O23: 6 | R23: =IFERROR(VLOOKUP($H19,EUL_basis!$A$3:$P$415,2,FALSE),"") ->  | S23: =IFERROR(VLOOKUP($H19,EUL_basis!$A$3:$P$415,10,FALSE),"") ->  | T23: =IFERROR(VLOOKUP($H19,EUL_basis!$A$3:$P$415,13,FALSE),"") ->  | U23: =IFERROR(VLOOKUP($H19,EUL_basis!$A$3:$P$415,14,FALSE),"") ->  | V23: =IFERROR(VLOOKUP($H19,EUL_basis!$A$3:$P$415,15,FALSE),"") ->  | W23: =IFERROR(VLOOKUP($H19,EUL_basis!$A$3:$P$415,16,FALSE),"") ->  | AB23: based on correct first year net therm and lifetime net kWh and therm: | AC23: =+AL15/AH15 -> 16.57446809 | AD23: =+AH15/AF15 -> 0.3710526316 | AE23: =AG23/AD23 -> 944.7067519 | AF23: =+AH23/AD23 -> 57 | AG23: =+AK15/AC23 -> 350.5359264 | AH23: =+AH15 -> 21.15 | AI23: 15658.01191 | AJ23: 944.7446809 | AK23: 5809.946524 | AL23: 350.55
O24: 7 | R24: =IFERROR(VLOOKUP($H20,EUL_basis!$A$3:$P$415,2,FALSE),"") ->  | S24: =IFERROR(VLOOKUP($H20,EUL_basis!$A$3:$P$415,10,FALSE),"") ->  | T24: =IFERROR(VLOOKUP($H20,EUL_basis!$A$3:$P$415,13,FALSE),"") ->  | U24: =IFERROR(VLOOKUP($H20,EUL_basis!$A$3:$P$415,14,FALSE),"") ->  | V24: =IFERROR(VLOOKUP($H20,EUL_basis!$A$3:$P$415,15,FALSE),"") ->  | W24: =IFERROR(VLOOKUP($H20,EUL_basis!$A$3:$P$415,16,FALSE),"") ->  | AB24: based on correct first year gross and net lifetime kWh: | AC24: =+AI15/AE15 -> 16.84585796 | AD24: =+AK15/AI15 -> 0.6050679439 | AE24: =+AE15 -> 570 | AF24: =+AF15 -> 57 | AG24: =+AE24*AD24 -> 344.888728 | AH24: =+AF24*AD24 -> 34.4888728 | AI24: 9602.139037 | AJ24: 960.2139037 | AK24: 5809.946524 | AL24: 580.9946524
B25: Claim values for the weighted measures: | O25: 8 | R25: =IFERROR(VLOOKUP($H21,EUL_basis!$A$3:$P$415,2,FALSE),"") ->  | S25: =IFERROR(VLOOKUP($H21,EUL_basis!$A$3:$P$415,10,FALSE),"") ->  | T25: =IFERROR(VLOOKUP($H21,EUL_basis!$A$3:$P$415,13,FALSE),"") ->  | U25: =IFERROR(VLOOKUP($H21,EUL_basis!$A$3:$P$415,14,FALSE),"") ->  | V25: =IFERROR(VLOOKUP($H21,EUL_basis!$A$3:$P$415,15,FALSE),"") ->  | W25: =IFERROR(VLOOKUP($H21,EUL_basis!$A$3:$P$415,16,FALSE),"") ->  | AB25: based on correct first year gross and net lifetime therm: | AC25: =+AJ15/AF15 -> 14.47368421 | AD25: =+AL15/AJ15 -> 0.4249090909 | AE25: =+AE15 -> 570 | AF25: =+AF15 -> 57 | AG25: =+AE25*AD25 -> 242.1981818 | AH25: =+AF25*AD25 -> 24.21981818 | AI25: 8250 | AJ25: 825 | AK25: 3505.5 | AL25: 350.55
C26: Gross, First-year Energy Savings | J26: Key: | K26: grey background: user input | AB26: based on correct first year gross kWh and lifetime net kWh and therm: | AC26: =+AI15/AE15 -> 16.84585796 | AD26: =+AK15/AI15 -> 0.6050679439 | AE26: =+AE15 -> 570 | AF26: =AL15/AC26/AD26 -> 34.39162463 | AG26: =+AE26*AD26 -> 344.888728 | AH26: =+AF26*AD26 -> 20.8092696 | AI26: 9602.139037 | AJ26: 579.3564236 | AK26: 5809.946524 | AL26: 350.55
B27: Project Component Measure | C27: elec kWh | D27: elec kW | E27: gas therm | F27: EUL Value | G27: NTG Value | H27: Measure Cost | K27: Orange font: user input from list | AB27: based on correct first year gross therm and lifetime net kWh and therm: | AC27: =+AC25 -> 14.47368421 | AD27: =+AL15/AJ15 -> 0.4249090909 | AE27: =+AK15/AC27/AD27 -> 944.7067519 | AF27: =+AF15 -> 57 | AG27: =+AE27*AD27 -> 401.4144871 | AH27: =+AF27*AD27 -> 24.21981818 | AI27: 13673.3872 | AJ27: 825 | AK27: 5809.946524 | AL27: 350.55
B28: =C7&"_Elec" -> PGE1234567_Elec | C28: =+AE34 -> 570 | D28: =+D22 -> 0.02 | E28: 0 | F28: =+AC34 -> 16.71927057 | G28: =+AD34 -> 0.6096491228 | H28: =+AN15 -> 1691.87 | K28: Yellow background: automatic lookup
B29: =C7&"_Gas" -> PGE1234567_Gas | C29: 0 | D29: 0 | E29: =+AF41 -> 57 | F29: =+AC41 -> 16.57446809 | G29: =+AD41 -> 0.3710526316 | H29: =+AO15 -> 418.13 | K29: green background: calculated claim values | AB29: For Electric (kWh) Savings Only (dual claim measures) | AE29: First Year Savings | AI29: Lifetime Savings
K30: Red Background : Invalid Input | AE30: Gross | AG30: Net | AI30: Gross | AK30: Net
AB31: Determination of weighted EUL and NTG | AC31: EUL | AD31: NTG | AE31: kWh | AG31: kWh | AI31: kWh | AK31: kWh
AB32: based on correct first year net kWh & therm and net lifetime kWh: | AC32: =+AK15/AG15 -> 16.71927057 | AD32: =+AK15/AI15 -> 0.6050679439 | AE32: =+AG32/AD32 -> 574.3156674 | AG32: =+AG15 -> 347.5 | AI32: =+AE32*$AC32 -> 9602.139037 | AK32: =+AG32*$AC32 -> 5809.946524
AB33: based on correct first year gross and net lifetime kWh: | AC33: =+AI15/AE15 -> 16.84585796 | AD33: =+AK15/AI15 -> 0.6050679439 | AE33: =+AE15 -> 570 | AG33: =+AE33*AD33 -> 344.888728 | AI33: =+AE33*$AC33 -> 9602.139037 | AK33: =+AG33*$AC33 -> 5809.946524
AB34: based on correct first year (net & gross) kWh and net lifetime kWh: | AC34: =+AK15/AG15 -> 16.71927057 | AD34: =+AG15/AE15 -> 0.6096491228 | AE34: =+AG34/AD34 -> 570 | AG34: =+AG15 -> 347.5 | AI34: =+AE34*$AC34 -> 9529.984227 | AK34: =+AG34*$AC34 -> 5809.946524
AB36: For Gas (therm) Savings Only (dual claim measures) | AE36: First Year Savings | AI36: Lifetime Savings
AE37: Gross | AG37: Net | AI37: Gross | AK37: Net
AB38: Determination of weighted EUL and NTG | AC38: EUL | AD38: NTG | AF38: therms | AH38: therms | AJ38: therms | AL38: therms
AB39: based on correct first year net therm and net lifetime therm: | AC39: =+AL15/AH15 -> 16.57446809 | AD39: =+AL15/AJ15 -> 0.4249090909 | AF39: =+AH39/AD39 -> 49.77535302 | AH39: =+AH15 -> 21.15 | AJ39: =+AF39*$AC39 -> 825 | AL39: =+AH39*$AC39 -> 350.55
AB40: based on correct first year gross and net lifetime therm: | AC40: =+AJ15/AF15 -> 14.47368421 | AD40: =+AL15/AJ15 -> 0.4249090909 | AF40: =+AF15 -> 57 | AH40: =+AF40*AD40 -> 24.21981818 | AJ40: =+AF40*$AC40 -> 825 | AL40: =+AH40*$AC40 -> 350.55
AB41: based on correct first year (net & gross) therm and net lifetime therm: | AC41: =+AL15/AH15 -> 16.57446809 | AD41: =+AH15/AF15 -> 0.3710526316 | AF41: =+AH41/AD41 -> 57 | AH41: =+AH15 -> 21.15 | AJ41: =+AF41*$AC41 -> 944.7446809 | AL41: =+AH41*$AC41 -> 350.55
AB43: key: | AC43: red | AD43: Values above component accurate values
AC44: blue | AD44: Values below component accurate values
AC45: gr back | AD45: Values match component accurate values

Sheet EUL_basis
A1: EUL_basis table downloaded from READI:
A3: EUL_ID | B3: Description | C3: HOU_cat | D3: StartDate | E3: ExpiryDate | F3: BldgType | G3: BldgLoc | H3: EUL_Yrs | I3: RUL_Yrs | J3: Sector | K3: Version | L3: VersionSource | M3: UseCategory | N3: UseSubCategory | O3: TechGroup | P3: TechType | Q3: MeasType | R3: HOU | S3: BasisType | T3: BasisValue | U3: BasisDegFactor | V3: EUL_Max_Yrs | W3: Status | X3: Comment
A4: Agr-DripIrr | B4: Sprinkler to Drip/Micro Irrigation | C4: None | D4: 2013-01-01 | F4: Any | G4: Any | H4: 20 | I4: 6.7 | J4: Ag | K4: DEER2014 | L4: D08 v2.05 | M4: Irrigate | N4: FarmIrrig | O4: Irrigation | Q4: Other | S4: rated years | W4: Standard
A5: Agr-GHC | B5: Greenhouse Heat Curtain | C5: None | D5: 2013-01-01 | F5: Any | G5: Any | H5: 5 | I5: 1.7 | J5: Ag | K5: DEER2014 | L5: D08 v2.05 | M5: ProcHeat | N5: EvapSepDehyd | O5: SpaceHtg_eq | Q5: Gas | S5: rated years | W5: Standard
A6: Agr-Irfilm | B6: Infrared Film for Greenhouses | C6: None | D6: 2013-01-01 | F6: Any | G6: Any | H6: 5 | I6: 1.7 | J6: Ag | K6: DEER2014 | L6: D08 v2.05 | M6: BldgEnv | N6: Fenestration | O6: Fenest | P6: WinFilm | Q6: GasElec | S6: rated years | W6: Standard
A7: Agr-LPSNperm | B7: Low Pressure Sprinkler Nozzles (permanent) | C7: None | D7: 2013-01-01 | F7: Any | G7: Any | H7: 5 | I7: 1.7 | J7: Ag | K7: DEER2014 | L7: D08 v2.05 | M7: Irrigate | N7: FarmIrrig | O7: Irrigation | S7: rated years | W7: Standard
A8: Agr-LPSNport | B8: Low Pressure Sprinkler Nozzles (portable) | C8: None | D8: 2013-01-01 | F8: Any | G8: Any | H8: 3 | I8: 1 | J8: Ag | K8: DEER2014 | L8: D08 v2.05 | M8: Irrigate | N8: FarmIrrig | O8: Irrigation | S8: rated years | W8: Standard
A9: Agr-MilkPreCool | B9: Milk Pre-Cooler | C9: None | D9: 2013-01-01 | F9: Any | G9: Any | H9: 15 | I9: 5 | J9: Ag | K9: DEER2014 | L9: D08 v2.05 | M9: ProcRefrig | N9: ProdChill | S9: rated years | W9: Standard
A10: Agr-VSDmilkTrnsfr | B10: Milk Transfer Pump Variable Speed Drive | C10: None | D10: 2013-01-01 | F10: Any | G10: Any | H10: 15 | I10: 5 | J10: Ag | K10: DEER2014 | L10: D08 v2.05 | M10: ProcDist | N10: Pumping | O10: Motor_Spd | P10: ASD | Q10: Electric | S10: rated years | W10: Standard
A11: Agr-VSDmilkVcm | B11: Milking Vacuum Pump Variable Speed Drive | C11: None | D11: 2013-01-01 | F11: Any | G11: Any | H11: 15 | I11: 5 | J11: Ag | K11: DEER2014 | L11: D08 v2.05 | M11: ProcDist | N11: Pumping | O11: Motor_Spd | P11: ASD | Q11: Electric | S11: rated years | W11: Standard
A12: Agr-VSDWellPmp | B12: Well Pump Variable Speed Drive | C12: None | D12: 2013-01-01 | F12: Any | G12: Any | H12: 10 | I12: 3.3 | J12: Ag | K12: DEER2014 | L12: D08 v2.05 | M12: Irrigate | N12: FarmIrrig | O12: Motor_Spd | P12: ASD | Q12: Electric | S12: rated years | W12: Standard
A13: Agr-WineTnkIns | B13: Wine Tank Insulation | C13: None | D13: 2013-01-01 | F13: Any | G13: Any | H13: 15 | I13: 5 | J13: Ag | K13: DEER2014 | L13: D08 v2.05 | M13: ProcRefrig | N13: ProdChill | O13: Chiller | P13: TankIns | Q13: Electric | S13: rated years | W13: Standard
A14: Appl-DW-Dtu | B14: Commercial Door-type dishwasher | C14: None | D14: 2016-01-01 | F14: Any | G14: Any | H14: 15 | I14: 5 | J14: Com | K14: ExAnte2015 | L14: PA workpaper | M14: AppPlug | N14: KitchenApp | O14: Clean_equip | P14: Dishwash | Q14: Electric | S14: rated years | W14: Standard | X14: PGECOFST126
A15: Appl-EffCD | B15: Clothes Dryer | C15: None | D15: 2013-01-01 | F15: Any | G15: Any | H15: 12 | I15: 4 | J15: Res | K15: ExAnte2016 | L15: PA workpaper | M15: AppPlug | N15: Laundry | O15: Clean_equip | P15: ClothesWash | Q15: Electric | S15: rated years | W15: Proposed | X15: PGECOAPP128 Revision 0
A16: Appl-EffCW | B16: High Efficiency Clothes Washer | C16: None | D16: 2013-01-01 | F16: Any | G16: Any | H16: 11 | I16: 3.7 | J16: Res | K16: DEER2014 | L16: D08 v2.05 | M16: AppPlug | N16: Laundry | O16: Clean_equip | P16: ClothesWash | Q16: Electric | S16: rated years | W16: Standard
A17: Appl-EffDW | B17: High Efficiency Dishwasher | C17: None | D17: 2013-01-01 | F17: Any | G17: Any | H17: 11 | I17: 3.7 | J17: Res | K17: DEER2014 | L17: D08 v2.05 | M17: AppPlug | N17: KitchenApp | O17: Clean_equip | P17: DishWash | Q17: Electric | S17: rated years | W17: Standard
A18: Appl-ESFrzr | B18: High Efficiency Freezer | C18: None | D18: 2013-01-01 | F18: Any | G18: Any | H18: 11 | I18: 3.7 | J18: Res | K18: DEER2014 | L18: D08 v2.05 | M18: AppPlug | N18: KitchenApp | O18: Ref_Storage | P18: Freezer | Q18: Electric | S18: rated years | W18: Standard
A19: Appl-ESRefg | B19: High Efficiency Refrigerator | C19: None | D19: 2013-01-01 | F19: Any | G19: Any | H19: 14 | I19: 4.7 | J19: Res | K19: DEER2014 | L19: D08 v2.05 | M19: AppPlug | N19: KitchenApp | O19: Ref_Storage | P19: Refrig | Q19: Electric | S19: rated years | W19: Standard
A20: Appl-RecFrzr | B20: Freezer Recycling (RUL) | C20: None | D20: 2013-01-01 | F20: Any | G20: Any | I20: 4 | J20: Res | K20: DEER2014 | L20: D08 v2.05 | M20: AppPlug | N20: KitchenApp | O20: Ref_Storage | P20: Freezer | Q20: Electric | S20: rated years | W20: Standard
A21: Appl-RecRef | B21: Refrigerator Recycling (RUL) | C21: None | D21: 2013-01-01 | F21: Any | G21: Any | I21: 5 | J21: Res | K21: DEER2014 | L21: D08 v2.05 | M21: AppPlug | N21: KitchenApp | O21: Ref_Storage | P21: Refrig | Q21: Electric | S21: rated years | W21: Standard
A22: AppPlug-AllEquip-Audio | B22: Energy Star Audio Equipment | C22: None | D22: 2013-01-01 | F22: Any | G22: Any | H22: 3 | I22: 1 | J22: Res | K22: DEER2014 | L22: PA workpaper | M22: AppPlug | N22: Electronics | O22: Electronics | P22: AllEquip | Q22: Electric | S22: evaluated years | W22: Proposed | X22: Source: See work paper SCE13CS008. Source is Energy Star Consumer Electronics Calculator.
A23: AppPlug-AllEquip-BRDVD | B23: Energy Star Blu-Ray/DVD Equipment | C23: None | D23: 2013-01-01 | F23: Any | G23: Any | H23: 3 | I23: 1 | J23: Res | K23: DEER2014 | L23: PA workpaper | M23: AppPlug | N23: Electronics | O23: Electronics | P23: AllEquip | Q23: Electric | S23: evaluated years | W23: Proposed | X23: Source: See work paper SCE13CS008. Source is Energy Star Consumer Electronics Calculator.
A24: AppPlug-DesktopComp | B24: Residential Desktop Computers | C24: None | D24: 2013-01-01 | F24: Any | G24: Any | H24: 5 | I24: 1.67 | J24: Res | K24: DEER2014 | L24: PA workpaper | M24: AppPlug | N24: Electronics | O24: Electronics | P24: DesktopComp | Q24: Electric | S24: evaluated years | W24: Proposed | X24: Source: See work paper SCE13OE003. Internal Revenue Service - IRS website for depreciation rates and useful life calculations, FAQ page for Publication 946. 2009. < http://www.irs.gov/faqs/faq/0,,id=199619,00.html
A25: AppPlug-TV | B25: Residential Use Energy Efficient TV | C25: None | D25: 2013-01-01 | F25: Any | G25: Any | H25: 10 | I25: 3.33 | J25: Res | K25: DEER2014 | L25: PA workpaper | M25: AppPlug | N25: Electronics | O25: Electronics | P25: TV | Q25: Electric | S25: evaluated years | W25: Proposed | X25: Source: See work paper SCE13OE002. The EUP (Energy Using Products) report for the European Commission analysis assessed sales and stock data and estimated that TV sets are in use for 10 years.
A26: BldgEnv-CoolRoof | B26: Cool Roof - Commercial | C26: None | D26: 2013-01-01 | F26: Any | G26: Any | H26: 15 | I26: 5 | J26: Com | K26: DEER2014 | L26: D08 v2.05 | M26: BldgEnv | N26: Opaque | O26: BldgShell | P26: CoolRoof | Q26: Electric | S26: rated years | W26: Standard
A27: BldgEnv-FlrIns | B27: Floor Insulation - Commercial | C27: None | D27: 2013-01-01 | F27: Any | G27: Any | H27: 20 | I27: 6.7 | J27: Com | K27: DEER2014 | L27: D08 v2.05 | M27: BldgEnv | N27: Opaque | O27: BldgShell | P27: FloorIns | Q27: GasElec | S27: rated years | W27: Standard
A28: BldgEnv-RoofIns | B28: Roof/Ceiling Insulation - Commercial | C28: None | D28: 2013-01-01 | F28: Any | G28: Any | H28: 20 | I28: 6.7 | J28: Com | K28: DEER2014 | L28: D08 v2.05 | M28: BldgEnv | N28: Opaque | O28: BldgShell | Q28: GasElec | S28: rated years | W28: Standard
A29: BlrTuneup | B29: Boiler Tune-up | C29: None | D29: 2013-01-01 | F29: Any | G29: Any | H29: 5 | I29: 1.7 | J29: Com | K29: ExAnte2013 | L29: IOU Workpaper | M29: Service | N29: Maintenance | S29: rated years | W29: Standard | X29: proposed in PGECOPRO107
A30: BS-BlowInIns | B30: Wall Insulation (blown-in) | C30: None | D30: 2013-01-01 | F30: Any | G30: Any | H30: 20 | I30: 6.7 | J30: Res | K30: DEER2014 | L30: D08 v2.05 | M30: BldgEnv | N30: Opaque | O30: BldgShell | P30: WallBlowIns | S30: rated years | W30: Standard
A31: BS-CeilIns | B31: Roof/Ceiling Insulation - Residential | C31: None | D31: 2013-01-01 | F31: Any | G31: Any | H31: 20 | I31: 6.7 | J31: Res | K31: DEER2014 | L31: D08 v2.05 | M31: BldgEnv | N31: Opaque | O31: BldgShell | S31: rated years | W31: Standard
A32: BS-CoolAttic | B32: Cool Attic | C32: None | D32: 2013-01-01 | F32: Any | G32: Any | H32: 20 | I32: 6.7 | J32: Res | K32: DEER2014 | L32: D08 v2.05 | M32: BldgEnv | N32: Opaque | O32: BldgShell | S32: rated years | W32: Standard
A33: BS-FlrIns | B33: Floor Insulation - Residential | C33: None | D33: 2013-01-01 | F33: Any | G33: Any | H33: 20 | I33: 6.7 | J33: Res | K33: DEER2014 | L33: D08 v2.05 | M33: BldgEnv | N33: Opaque | O33: BldgShell | P33: FloorIns | S33: rated years | W33: Standard
A34: BS-LtRoof | B34: Cool Roof - Residential | C34: None | D34: 2013-01-01 | F34: Any | G34: Any | H34: 15 | I34: 5 | J34: Res | K34: DEER2014 | L34: D08 v2.05 | M34: BldgEnv | N34: Opaque | O34: BldgShell | P34: CoolRoof | S34: rated years | W34: Standard
A35: BS-LtWalls | B35: Light Colored Exterior Walls | C35: None | D35: 2013-01-01 | F35: Any | G35: Any | H35: 6 | I35: 2 | J35: Res | K35: DEER2014 | L35: D08 v2.05 | M35: BldgEnv | N35: Opaque | O35: BldgShell | S35: rated years | W35: Standard
A36: BS-WallIns | B36: Wall Insulation | C36: None | D36: 2013-01-01 | F36: Any | G36: Any | H36: 20 | I36: 6.7 | J36: Res | K36: DEER2014 | L36: D08 v2.05 | M36: BldgEnv | N36: Opaque | O36: BldgShell | S36: rated years | W36: Standard
A37: BS-Win | B37: High Performance Windows | C37: None | D37: 2013-01-01 | F37: Any | G37: Any | H37: 20 | I37: 6.7 | J37: Res | K37: DEER2014 | L37: D08 v2.05 | M37: BldgEnv | N37: Fenestration | O37: Fenest | S37: rated years | W37: Standard
A38: BS-WinFilm | B38: Reflective Window Films & Sunscreens - Residential | C38: None | D38: 2013-01-01 | F38: Any | G38: Any | H38: 10 | I38: 3.3 | J38: Res | K38: DEER2014 | L38: D08 v2.05 | M38: BldgEnv | N38: Fenestration | O38: Fenest | P38: WinFilm | S38: rated years | W38: Standard
A39: BS-Wthr | B39: Low-Income Weatherization | C39: None | D39: 2013-01-01 | F39: Any | G39: Any | H39: 11 | I39: 3.7 | J39: Res | K39: DEER2014 | L39: D08 v2.05 | M39: Service | N39: Diagnostic | S39: rated years | W39: Standard
A40: BS-WthrEvap | B40: Low-Income Weatherization w/Evaporative Cooler | C40: None | D40: 2013-01-01 | F40: Any | G40: Any | H40: 11 | I40: 3.7 | J40: Res | K40: DEER2014 | L40: D08 v2.05 | M40: Service | N40: Diagnostic | S40: rated years | W40: Standard
A41: ComLau-EffCW | B41: High Efficiency Clothes Washer (CEE Tiers 1,2,3) | C41: None | D41: 2013-01-01 | F41: Any | G41: Any | H41: 11 | I41: 3.7 | J41: Com | K41: DEER2014 | L41: D08 v2.05 | M41: AppPlug | N41: Laundry | O41: Clean_equip | P41: ClothesWash | S41: rated years | W41: Standard
A42: CompAir-CycAirDryr | B42: Compressed Air System - Cycling-Air Dryer | C42: None | D42: 2013-01-01 | F42: Any | G42: Any | H42: 1 | I42: 1 | J42: Com | K42: DEER2014 | L42: PA workpaper | M42: CompAir | N42: ManufDryAir | O42: AirComp | P42: CycAirDryr | S42: rated years | T42: 1 | W42: Proposed | X42: referenced in SCE13PR007.2, values are proxy for now
A43: CompAir-Screw-VSD | B43: Variable Speed Drive on Air Compressor Control | C43: None | D43: 2013-01-01 | F43: Any | G43: Any | H43: 13 | I43: 4.33 | J43: Any | K43: DEER2014 | L43: PA workpaper | M43: CompAir | O43: Motor_Spd | P43: ASD | S43: evaluated years | W43: Proposed | X43: Source: See work paper SCE13PR005. Reference to The Connecticut Light and Power Company and The United Illuminating Company.
A44: CompAir-ZeroLossCondDrn | B44: Zero Air Loss Condensate Drains for Compressed Air Systems | C44: None | D44: 2013-01-01 | F44: Any | G44: Any | H44: 10 | I44: 3.33 | J44: Any | K44: DEER2014 | L44: PA workpaper | M44: CompAir | S44: evaluated years | W44: Proposed | X44: Source: See work paper SCE13PR009. Reference to The Connecticut Light and Power Company and The United Illuminating Company.
A45: Cook-ElecCombOven | B45: Combination Oven - Electric | C45: None | D45: 2013-01-01 | F45: Any | G45: Any | H45: 12 | I45: 4 | J45: Com | K45: DEER2014 | L45: D08 v2.05 | M45: FoodServ | N45: Cooking | O45: Cook_Equip | P45: OvenComb | S45: rated years | W45: Standard
A46: Cook-ElecConvOven | B46: Convection Oven - Electric | C46: None | D46: 2013-01-01 | F46: Any | G46: Any | H46: 12 | I46: 4 | J46: Com | K46: DEER2014 | L46: D08 v2.05 | M46: FoodServ | N46: Cooking | O46: Cook_Equip | P46: OvenConv | S46: rated years | W46: Standard
A47: Cook-ElecFryer | B47: Electric Fryer | C47: None | D47: 2013-01-01 | F47: Any | G47: Any | H47: 12 | I47: 4 | J47: Com | K47: DEER2014 | L47: D08 v2.05 | M47: FoodServ | N47: Cooking | O47: Cook_Equip | P47: Fryer | S47: rated years | W47: Standard
A48: Cook-ElecGriddle | B48: Griddle - Electric | C48: None | D48: 2013-01-01 | F48: Any | G48: Any | H48: 12 | I48: 4 | J48: Com | K48: DEER2014 | L48: D08 v2.05 | M48: FoodServ | N48: Cooking | O48: Cook_Equip | P48: Griddle | S48: rated years | W48: Standard
A49: Cook-ElecStmCooker | B49: Steam Cooker (electric) | C49: None | D49: 2013-01-01 | F49: Any | G49: Any | H49: 12 | I49: 4 | J49: Com | K49: DEER2014 | L49: D08 v2.05 | M49: FoodServ | N49: Cooking | O49: Cook_Equip | P49: Steamer | S49: rated years | W49: Standard
A50: Cook-GasCombOVen | B50: Combination Oven - Gas | C50: None | D50: 2013-01-01 | F50: Any | G50: Any | H50: 12 | I50: 4 | J50: Com | K50: DEER2014 | L50: D08 v2.05 | M50: FoodServ | N50: Cooking | O50: Cook_Equip | P50: OvenComb | Q50: Gas | S50: rated years | W50: Standard
A51: Cook-GasConvOven | B51: Convection Ovens - Gas | C51: None | D51: 2013-01-01 | F51: Any | G51: Any | H51: 12 | I51: 4 | J51: Com | K51: DEER2014 | L51: D08 v2.05 | M51: FoodServ | N51: Cooking | O51: Cook_Equip | P51: OvenConv | Q51: Gas | S51: rated years | W51: Standard
A52: Cook-GasFryer | B52: Gas Fryer | C52: None | D52: 2013-01-01 | F52: Any | G52: Any | H52: 12 | I52: 4 | J52: Com | K52: DEER2014 | L52: D08 v2.05 | M52: FoodServ | N52: Cooking | O52: Cook_Equip | P52: Fryer | Q52: Gas | S52: rated years | W52: Standard
A53: Cook-GasGriddle | B53: Griddle - Gas | C53: None | D53: 2013-01-01 | F53: Any | G53: Any | H53: 12 | I53: 4 | J53: Com | K53: DEER2014 | L53: D08 v2.05 | M53: FoodServ | N53: Cooking | O53: Cook_Equip | P53: Griddle | Q53: Gas | S53: rated years | W53: Standard
A54: Cook-GasRackOven | B54: Commercial Gas Rack Ovens | C54: None | D54: 2013-01-01 | F54: Any | G54: Any | H54: 12 | I54: 4 | J54: Com | K54: DEER2014 | L54: D08 v2.05 | M54: FoodServ | N54: Cooking | O54: Cook_Equip | P54: OvenConv | Q54: Gas | S54: rated years | W54: Standard
A55: Cook-GasStmCooker | B55: Steam Cooker (gas) | C55: None | D55: 2013-01-01 | F55: Any | G55: Any | H55: 12 | I55: 4 | J55: Com | K55: DEER2014 | L55: D08 v2.05 | M55: FoodServ | N55: Cooking | O55: Cook_Equip | P55: Steamer | Q55: Gas | S55: rated years | W55: Standard
A56: Cook-GDRef | B56: Commercial Reach-In Refrigerator / Freezer | C56: None | D56: 2013-01-01 | F56: Any | G56: Any | H56: 12 | I56: 4 | J56: Com | K56: DEER2014 | L56: D08 v2.05 | M56: ComRefrig | N56: Storage | O56: Ref_Storage | P56: ReachIn | Q56: Electric | S56: rated years | W56: Standard
A57: Cook-HoldCab | B57: Commercial Insulated Holding Cabinet | C57: None | D57: 2013-01-01 | F57: Any | G57: Any | H57: 12 | I57: 4 | J57: Com | K57: DEER2014 | L57: D08 v2.05 | M57: FoodServ | N57: Cooking | O57: FoodService | P57: HoldBin | Q57: Electric | S57: rated years | W57: Standard
A58: Cook-IceMach | B58: Ice Machine | C58: None | D58: 2013-01-01 | F58: Any | G58: Any | H58: 10 | I58: 3.3 | J58: Com | K58: DEER2014 | L58: D08 v2.05 | M58: ComRefrig | N58: Equipment | O58: Ref_SelfCon | P58: IceMach | Q58: Electric | S58: rated years | W58: Standard
A59: Cook-LowPreRinse | B59: Low flow Pre-rinse valve - description update required | C59: None | D59: 2016-04-01 | F59: Any | G59: Any | H59: 5 | I59: 1.7 | J59: Com | K59: ExAnte2016 | L59: PA workpaper | M59: SHW | N59: PointOfUse | O59: WaterFixt | Q59: GasElec | S59: rated years | W59: Standard | X59: PGECOFST125 v1
A60: Cook-SDFreez | B60: Commercial Reach-In Refrigerator / Freezer | C60: None | D60: 2013-01-01 | F60: Any | G60: Any | H60: 12 | I60: 4 | J60: Com | K60: DEER2014 | L60: D08 v2.05 | M60: ComRefrig | N60: Equipment | O60: Ref_Storage | P60: ReachIn | Q60: Electric | S60: rated years | W60: Standard
A61: Cook-SDRef | B61: Commercial Reach-In Refrigerator / Freezer | C61: None | D61: 2013-01-01 | F61: Any | G61: Any | H61: 12 | I61: 4 | J61: Com | K61: DEER2014 | L61: D08 v2.05 | M61: ComRefrig | N61: Equipment | O61: Ref_Storage | P61: ReachIn | S61: rated years | W61: Standard
A62: Cook-StockPot | B62: Fin bottomed stock pot | C62: None | D62: 2013-01-01 | F62: Any | G62: Any | H62: 3 | I62: 1 | J62: Com | K62: ExAnte2013 | L62: IOU Workpaper | M62: FoodServ | N62: Cooking | O62: Cook_equip | S62: rated years | W62: Standard | X62: proposed in PGECOFST122
A63: Cook-VatFryer | B63: Vat Fryer | C63: None | D63: 2013-01-01 | F63: Any | G63: Any | H63: 12 | I63: 4 | J63: Com | K63: DEER2014 | L63: D08 v2.05 | M63: FoodServ | N63: Cooking | O63: Cook_Equip | P63: Fryer | S63: rated years | W63: Standard
A64: EnergyPolicyManual-Min | B64: Energy Policy Manual minimum requirements | C64: None | D64: 2013-01-01 | F64: Any | G64: Any | H64: 3 | I64: 1 | J64: CC | K64: ExAnte2013 | L64: IOU Workpaper | S64: rated years | W64: Proposed | X64: proposed in PGECOALL102r3
A65: EUC_3.7 | B65: EUL for PGE Energy Upgrade Calififornia program - description update required | C65: None | D65: 2016-04-01 | F65: Any | G65: Any | H65: 11.1 | I65: 3.7 | J65: Res | K65: ExAnte2016 | L65: PA workpaper | M65: WhlBldg | N65: WBUpgrade | O65: WhlBldg | P65: WBRetPkg | S65: rated years | W65: Standard | X65: PGECOALL109 v2
A66: EUC_3.8 | B66: EUL for PGE Energy Upgrade Calififornia program - description update required | C66: None | D66: 2016-04-01 | F66: Any | G66: Any | H66: 11.4 | I66: 3.8 | J66: Res | K66: ExAnte2016 | L66: PA workpaper | M66: WhlBldg | N66: WBUpgrade | O66: WhlBldg | P66: WBRetPkg | S66: rated years | W66: Standard | X66: PGECOALL109 v2
A67: EUC_3.9 | B67: EUL for PGE Energy Upgrade Calififornia program - description update required | C67: None | D67: 2016-04-01 | F67: Any | G67: Any | H67: 11.7 | I67: 3.9 | J67: Res | K67: ExAnte2016 | L67: PA workpaper | M67: WhlBldg | N67: WBUpgrade | O67: WhlBldg | P67: WBRetPkg | S67: rated years | W67: Standard | X67: PGECOALL109 v2
A68: EUC_4 | B68: EUL for PGE Energy Upgrade Calififornia program - description update required | C68: None | D68: 2016-04-01 | F68: Any | G68: Any | H68: 12 | I68: 4 | J68: Res | K68: ExAnte2016 | L68: PA workpaper | M68: WhlBldg | N68: WBUpgrade | O68: WhlBldg | P68: WBRetPkg | S68: rated years | W68: Standard | X68: PGECOALL109 v2
A69: EUC_4.1 | B69: EUL for PGE Energy Upgrade Calififornia program - description update required | C69: None | D69: 2016-04-01 | F69: Any | G69: Any | H69: 12.3 | I69: 4.1 | J69: Res | K69: ExAnte2016 | L69: PA workpaper | M69: WhlBldg | N69: WBUpgrade | O69: WhlBldg | P69: WBRetPkg | S69: rated years | W69: Standard | X69: PGECOALL109 v2
A70: EUC_4.2 | B70: EUL for PGE Energy Upgrade Calififornia program - description update required | C70: None | D70: 2016-04-01 | F70: Any | G70: Any | H70: 12.6 | I70: 4.2 | J70: Res | K70: ExAnte2016 | L70: PA workpaper | M70: WhlBldg | N70: WBUpgrade | O70: WhlBldg | P70: WBRetPkg | S70: rated years | W70: Standard | X70: PGECOALL109 v2
A71: EUC_4.3 | B71: EUL for PGE Energy Upgrade Calififornia program - description update required | C71: None | D71: 2016-04-01 | F71: Any | G71: Any | H71: 12.9 | I71: 4.3 | J71: Res | K71: ExAnte2016 | L71: PA workpaper | M71: WhlBldg | N71: WBUpgrade | O71: WhlBldg | P71: WBRetPkg | S71: rated years | W71: Standard | X71: PGECOALL109 v2
A72: EUC_4.4 | B72: EUL for PGE Energy Upgrade Calififornia program - description update required | C72: None | D72: 2016-04-01 | F72: Any | G72: Any | H72: 13.2 | I72: 4.4 | J72: Res | K72: ExAnte2016 | L72: PA workpaper | M72: WhlBldg | N72: WBUpgrade | O72: WhlBldg | P72: WBRetPkg | S72: rated years | W72: Standard | X72: PGECOALL109 v2
A73: EUC_4.5 | B73: EUL for PGE Energy Upgrade Calififornia program - description update required | C73: None | D73: 2016-04-01 | F73: Any | G73: Any | H73: 13.5 | I73: 4.5 | J73: Res | K73: ExAnte2016 | L73: PA workpaper | M73: WhlBldg | N73: WBUpgrade | O73: WhlBldg | P73: WBRetPkg | S73: rated years | W73: Standard | X73: PGECOALL109 v2
A74: EUC_4.6 | B74: EUL for PGE Energy Upgrade Calififornia program - description update required | C74: None | D74: 2016-04-01 | F74: Any | G74: Any | H74: 13.8 | I74: 4.6 | J74: Res | K74: ExAnte2016 | L74: PA workpaper | M74: WhlBldg | N74: WBUpgrade | O74: WhlBldg | P74: WBRetPkg | S74: rated years | W74: Standard | X74: PGECOALL109 v2
A75: EUC_4.7 | B75: EUL for PGE Energy Upgrade Calififornia program - description update required | C75: None | D75: 2016-04-01 | F75: Any | G75: Any | H75: 14.1 | I75: 4.7 | J75: Res | K75: ExAnte2016 | L75: PA workpaper | M75: WhlBldg | N75: WBUpgrade | O75: WhlBldg | P75: WBRetPkg | S75: rated years | W75: Standard | X75: PGECOALL109 v2
A76: EUC_4.8 | B76: EUL for PGE Energy Upgrade Calififornia program - description update required | C76: None | D76: 2016-04-01 | F76: Any | G76: Any | H76: 14.4 | I76: 4.8 | J76: Res | K76: ExAnte2016 | L76: PA workpaper | M76: WhlBldg | N76: WBUpgrade | O76: WhlBldg | P76: WBRetPkg | S76: rated years | W76: Standard | X76: PGECOALL109 v2
A77: EUC_4.9 | B77: EUL for PGE Energy Upgrade Calififornia program - description update required | C77: None | D77: 2016-04-01 | F77: Any | G77: Any | H77: 14.7 | I77: 4.9 | J77: Res | K77: ExAnte2016 | L77: PA workpaper | M77: WhlBldg | N77: WBUpgrade | O77: WhlBldg | P77: WBRetPkg | S77: rated years | W77: Standard | X77: PGECOALL109 v2
A78: EUC_5 | B78: EUL for PGE Energy Upgrade Calififornia program - description update required | C78: None | D78: 2016-04-01 | F78: Any | G78: Any | H78: 15 | I78: 5 | J78: Res | K78: ExAnte2016 | L78: PA workpaper | M78: WhlBldg | N78: WBUpgrade | O78: WhlBldg | P78: WBRetPkg | S78: rated years | W78: Standard | X78: PGECOALL109 v2
A79: EUC_5.1 | B79: EUL for PGE Energy Upgrade Calififornia program - description update required | C79: None | D79: 2016-04-01 | F79: Any | G79: Any | H79: 15.3 | I79: 5.1 | J79: Res | K79: ExAnte2016 | L79: PA workpaper | M79: WhlBldg | N79: WBUpgrade | O79: WhlBldg | P79: WBRetPkg | S79: rated years | W79: Standard | X79: PGECOALL109 v2
A80: EUC_5.2 | B80: EUL for PGE Energy Upgrade Calififornia program - description update required | C80: None | D80: 2016-04-01 | F80: Any | G80: Any | H80: 15.6 | I80: 5.2 | J80: Res | K80: ExAnte2016 | L80: PA workpaper | M80: WhlBldg | N80: WBUpgrade | O80: WhlBldg | P80: WBRetPkg | S80: rated years | W80: Standard | X80: PGECOALL109 v2
A81: EUC_5.3 | B81: EUL for PGE Energy Upgrade Calififornia program - description update required | C81: None | D81: 2016-04-01 | F81: Any | G81: Any | H81: 15.9 | I81: 5.3 | J81: Res | K81: ExAnte2016 | L81: PA workpaper | M81: WhlBldg | N81: WBUpgrade | O81: WhlBldg | P81: WBRetPkg | S81: rated years | W81: Standard | X81: PGECOALL109 v2
A82: EUC_5.4 | B82: EUL for PGE Energy Upgrade Calififornia program - description update required | C82: None | D82: 2016-04-01 | F82: Any | G82: Any | H82: 16.2 | I82: 5.4 | J82: Res | K82: ExAnte2016 | L82: PA workpaper | M82: WhlBldg | N82: WBUpgrade | O82: WhlBldg | P82: WBRetPkg | S82: rated years | W82: Standard | X82: PGECOALL109 v2
A83: EUC_5.5 | B83: EUL for PGE Energy Upgrade Calififornia program - description update required | C83: None | D83: 2016-04-01 | F83: Any | G83: Any | H83: 16.5 | I83: 5.5 | J83: Res | K83: ExAnte2016 | L83: PA workpaper | M83: WhlBldg | N83: WBUpgrade | O83: WhlBldg | P83: WBRetPkg | S83: rated years | W83: Standard | X83: PGECOALL109 v2
A84: EUC_5.6 | B84: EUL for PGE Energy Upgrade Calififornia program - description update required | C84: None | D84: 2016-04-01 | F84: Any | G84: Any | H84: 16.8 | I84: 5.6 | J84: Res | K84: ExAnte2016 | L84: PA workpaper | M84: WhlBldg | N84: WBUpgrade | O84: WhlBldg | P84: WBRetPkg | S84: rated years | W84: Standard | X84: PGECOALL109 v2
A85: EUC_5.7 | B85: EUL for PGE Energy Upgrade Calififornia program - description update required | C85: None | D85: 2016-04-01 | F85: Any | G85: Any | H85: 17.1 | I85: 5.7 | J85: Res | K85: ExAnte2016 | L85: PA workpaper | M85: WhlBldg | N85: WBUpgrade | O85: WhlBldg | P85: WBRetPkg | S85: rated years | W85: Standard | X85: PGECOALL109 v2
A86: EUC_5.8 | B86: EUL for PGE Energy Upgrade Calififornia program - description update required | C86: None | D86: 2016-04-01 | F86: Any | G86: Any | H86: 17.4 | I86: 5.8 | J86: Res | K86: ExAnte2016 | L86: PA workpaper | M86: WhlBldg | N86: WBUpgrade | O86: WhlBldg | P86: WBRetPkg | S86: rated years | W86: Standard | X86: PGECOALL109 v2
A87: EUC_5.9 | B87: EUL for PGE Energy Upgrade Calififornia program - description update required | C87: None | D87: 2016-04-01 | F87: Any | G87: Any | H87: 17.7 | I87: 5.9 | J87: Res | K87: ExAnte2016 | L87: PA workpaper | M87: WhlBldg | N87: WBUpgrade | O87: WhlBldg | P87: WBRetPkg | S87: rated years | W87: Standard | X87: PGECOALL109 v2
A88: EUC_6 | B88: EUL for PGE Energy Upgrade Calififornia program - description update required | C88: None | D88: 2016-04-01 | F88: Any | G88: Any | H88: 18 | I88: 6 | J88: Res | K88: ExAnte2016 | L88: PA workpaper | M88: WhlBldg | N88: WBUpgrade | O88: WhlBldg | P88: WBRetPkg | S88: rated years | W88: Standard | X88: PGECOALL109 v2
A89: EUC_6.1 | C89: None | D89: 2016-04-01 | F89: Any | G89: Any | H89: 18.3 | I89: 6.1 | J89: Res | K89: ExAnte2016 | L89: PA workpaper | M89: WhlBldg | N89: WBUpgrade | O89: WhlBldg | P89: WBRetPkg | S89: rated years | W89: Standard | X89: PGECOALL109 v2
A90: EUC_6.2 | C90: None | D90: 2016-04-01 | F90: Any | G90: Any | H90: 18.6 | I90: 6.2 | J90: Res | K90: ExAnte2016 | L90: PA workpaper | M90: WhlBldg | N90: WBUpgrade | O90: WhlBldg | P90: WBRetPkg | S90: rated years | W90: Standard | X90: PGECOALL109 v2
A91: EUC_6.3 | C91: None | D91: 2016-04-01 | F91: Any | G91: Any | H91: 18.9 | I91: 6.3 | J91: Res | K91: ExAnte2016 | L91: PA workpaper | M91: WhlBldg | N91: WBUpgrade | O91: WhlBldg | P91: WBRetPkg | S91: rated years | W91: Standard | X91: PGECOALL109 v2
A92: EUC_6.4 | B92: EUL for PGE Energy Upgrade Calififornia program - description update required | C92: None | D92: 2016-04-01 | F92: Any | G92: Any | H92: 19.2 | I92: 6.4 | J92: Res | K92: ExAnte2016 | L92: PA workpaper | M92: WhlBldg | N92: WBUpgrade | O92: WhlBldg | P92: WBRetPkg | S92: rated years | W92: Standard | X92: PGECOALL109 v2
A93: EUC_6.5 | B93: EUL for PGE Energy Upgrade Calififornia program - description update required | C93: None | D93: 2016-04-01 | F93: Any | G93: Any | H93: 19.5 | I93: 6.5 | J93: Res | K93: ExAnte2016 | L93: PA workpaper | M93: WhlBldg | N93: WBUpgrade | O93: WhlBldg | P93: WBRetPkg | S93: rated years | W93: Standard | X93: PGECOALL109 v2
A94: EUC_6.6 | B94: EUL for PGE Energy Upgrade Calififornia program - description update required | C94: None | D94: 2016-04-01 | F94: Any | G94: Any | H94: 19.8 | I94: 6.6 | J94: Res | K94: ExAnte2016 | L94: PA workpaper | M94: WhlBldg | N94: WBUpgrade | O94: WhlBldg | P94: WBRetPkg | S94: rated years | W94: Standard | X94: PGECOALL109 v2
A95: FoodHandWrap | B95: Hand wrapping machine used in food service | C95: None | D95: 2013-01-01 | F95: Any | G95: Any | H95: 10 | I95: 3.33 | J95: Com | K95: DEER2014 | L95: PA workpaper | M95: FoodServ | N95: Packaging | O95: FoodService | P95: HandWrap | S95: evaluated years | W95: Proposed | X95: requested by SCE to support WP submittal
A96: GlazDaylt-Dayltg | B96: Daylighting - controls | C96: None | D96: 2013-01-01 | F96: Any | G96: Any | H96: 8 | I96: 2.7 | J96: Com | K96: DEER2014 | L96: D08 v2.05 | M96: Lighting | N96: Controls | O96: Ltg_Controls | P96: LtSensor | S96: rated years | W96: Standard
A97: GlazDaylt-HPWinDaylt | B97: High Performance Windows for Daylighting | C97: None | D97: 2013-01-01 | F97: Any | G97: Any | H97: 20 | I97: 6.7 | J97: Com | K97: DEER2014 | L97: D08 v2.05 | M97: BldgEnv | N97: Fenestration | O97: Fenest | S97: rated years | W97: Standard
A98: GlazDaylt-LoSHGC | B98: Low Solar Heat Gain Coefficient Windows | C98: None | D98: 2013-01-01 | F98: Any | G98: Any | H98: 20 | I98: 6.7 | J98: Com | K98: DEER2014 | L98: D08 v2.05 | M98: BldgEnv | N98: Fenestration | O98: Fenest | S98: rated years | W98: Standard
A99: GlazDaylt-WinFilm | B99: Reflective Window Films & Sunscreens - Commercial | C99: None | D99: 2013-01-01 | F99: Any | G99: Any | H99: 10 | I99: 3.3 | J99: Com | K99: DEER2014 | L99: D08 v2.05 | M99: BldgEnv | N99: Fenestration | O99: Fenest | P99: WinFilm | S99: rated years | W99: Standard
A100: GrocDisp-ASH | B100: Anti-Sweat Heat (ASH) Controls | C100: None | D100: 2013-01-01 | F100: Any | G100: Any | H100: 12 | I100: 4 | J100: Com | K100: DEER2014 | L100: D08 v2.05 | M100: ComRefrig | N100: Display | O100: Ref_Storage | S100: rated years | W100: Standard
A101: GrocDisp-DispCvrs | B101: Night Covers for vertical and horizontal refrigerated display cases | C101: None | D101: 2013-01-01 | F101: Any | G101: Any | H101: 5 | I101: 1.7 | J101: Com | K101: DEER2014 | L101: D08 v2.05 | M101: ComRefrig | N101: Display | O101: Ref_Storage | S101: rated years | W101: Standard
A102: GrocDisp-DispLtgCtrl | B102: Display Case Lighting Control | C102: None | D102: 2013-01-01 | F102: Any | G102: Any | H102: 8 | I102: 2.7 | J102: Com | K102: DEER2014 | L102: D08 v2.05 | M102: Lighting | N102: RefDisplay | O102: Ref_Storage | P102: RefrigLtg | S102: rated years | W102: Standard
A103: GrocDisp-FEvapFanMtr | B103: High Efficiency Evaporator Fan Motors | C103: None | D103: 2013-01-01 | F103: Any | G103: Any | H103: 15 | I103: 5 | J103: Com | K103: DEER2014 | L103: D08 v2.05 | M103: ComRefrig | N103: Equipment | O103: Ref_Storage | P103: EvapFan | S103: rated years | W103: Standard
A104: GrocDisp-FixtDoors | B104: New case with Doors | C104: None | D104: 2013-01-01 | F104: Any | G104: Any | H104: 12 | I104: 4 | J104: Com | K104: DEER2014 | L104: D08 v2.05 | M104: ComRefrig | N104: Display | O104: Ref_Storage | S104: rated years | W104: Standard
A105: GrocDisp-FixtDrGask | B105: Door Gaskets on Cooler/Freezer Doors | C105: None | D105: 2013-01-01 | F105: Any | G105: Any | H105: 4 | I105: 1.3 | J105: Com | K105: DEER2014 | L105: D08 v2.05 | M105: ComRefrig | N105: Display | O105: Ref_Storage | P105: Gasket | S105: rated years | W105: Standard
A106: GrocDisp-FixtLtg-LED | B106: Display Case Lighting LED Lighting | C106: None | D106: 2013-01-01 | F106: Any | G106: Any | H106: 16 | I106: 5.3 | J106: Com | K106: DEER2014 | L106: D08 v2.05 | M106: Lighting | N106: RefDisplay | O106: Ref_Storage | P106: RefrigLtg | S106: rated years | W106: Standard
A107: GrocDisp-ZeroHtDrs | B107: Zero Heat Reach-in Glass Doors | C107: None | D107: 2013-01-01 | F107: Any | G107: Any | H107: 12 | I107: 4 | J107: Com | K107: DEER2014 | L107: D08 v2.05 | M107: ComRefrig | N107: Display | O107: Ref_Storage | S107: rated years | W107: Standard
A108: GrocSys-Cndsr | B108: Refrigeration Upgrades (Condenser) - Grocery | C108: None | D108: 2013-01-01 | F108: Any | G108: Any | H108: 15 | I108: 5 | J108: Com | K108: DEER2014 | L108: D08 v2.05 | M108: ComRefrig | N108: Equipment | O108: Ref_Storage | P108: Refrig_sys | S108: rated years | W108: Standard
A109: GrocSys-FltHdPres | B109: Refrigeration Upgrades (Head Pressure) - Grocery | C109: None | D109: 2013-01-01 | F109: Any | G109: Any | H109: 15 | I109: 5 | J109: Com | K109: DEER2014 | L109: D08 v2.05 | M109: ComRefrig | N109: Equipment | O109: Ref_Storage | P109: Refrig_sys | S109: rated years | W109: Standard
A110: GrocSys-FltSucPres | B110: Refrigeration Upgrades (Suction Pressure) - Grocery | C110: None | D110: 2013-01-01 | F110: Any | G110: Any | H110: 15 | I110: 5 | J110: Com | K110: DEER2014 | L110: D08 v2.05 | M110: ComRefrig | N110: Equipment | O110: Ref_Storage | P110: Refrig_sys | S110: rated years | W110: Standard
A111: GrocSys-HtRecov | B111: Heat Recovery from Central Refrigeration System | C111: None | D111: 2013-01-01 | F111: Any | G111: Any | H111: 10 | I111: 3.3 | J111: Com | K111: DEER2014 | L111: D08 v2.05 | M111: ComRefrig | N111: Equipment | O111: Ref_Storage | P111: Refrig_sys | S111: rated years | W111: Standard
A112: GrocSys-MechSubcl | B112: Refrigeration Upgrades (Subcooling) - Grocery | C112: None | D112: 2013-01-01 | F112: Any | G112: Any | H112: 15 | I112: 5 | J112: Com | K112: DEER2014 | L112: D08 v2.05 | M112: ComRefrig | N112: Equipment | O112: Ref_Storage | P112: Refrig_sys | S112: rated years | W112: Standard
A113: GrocSys-Retro | B113: Refrigeration Retrocommissioning - Grocery | C113: None | D113: 2013-01-01 | F113: Any | G113: Any | H113: 10 | I113: 3.3 | J113: Com | K113: DEER2014 | L113: D08 v2.05 | M113: Service | N113: Diagnostic | S113: rated years | W113: Standard
A114: GrocWlkIn-DrClsr | B114: Auto-Closer for Walk-In Cooler/Freezer Doors | C114: None | D114: 2013-01-01 | F114: Any | G114: Any | H114: 8 | I114: 2.7 | J114: Com | K114: DEER2014 | L114: D08 v2.05 | M114: ComRefrig | N114: Storage | O114: Ref_Storage | S114: rated years | W114: Standard
A115: GrocWlkIn-StripCrtn | B115: Strip Curtains for Walk-Ins | C115: None | D115: 2013-01-01 | F115: Any | G115: Any | H115: 4 | I115: 1.3 | J115: Com | K115: DEER2014 | L115: D08 v2.05 | M115: ComRefrig | N115: Storage | O115: Ref_Storage | P115: StripCurt | S115: rated years | W115: Standard
A116: GrocWlkIn-WDrGask | B116: Door Gaskets on Cooler/Freezer Doors | C116: None | D116: 2013-01-01 | F116: Any | G116: Any | H116: 4 | I116: 1.3 | J116: Com | K116: DEER2014 | L116: D08 v2.05 | M116: ComRefrig | N116: Storage | O116: Ref_Storage | P116: Gasket | S116: rated years | W116: Standard
A117: GrocWlkIn-WEvapFanMtr | B117: High Efficiency Evaporator Fan Motors | C117: None | D117: 2013-01-01 | F117: Any | G117: Any | H117: 15 | I117: 5 | J117: Com | K117: DEER2014 | L117: D08 v2.05 | M117: ComRefrig | N117: Storage | O117: Ref_Storage | S117: rated years | W117: Standard
A118: GrocWlkIn-WEvapFMtrCtrl | B118: Evaporator Fan Controller for Walk-In Coolers | C118: None | D118: 2013-01-01 | F118: Any | G118: Any | H118: 16 | I118: 5.3 | J118: Com | K118: DEER2014 | L118: D08 v2.05 | M118: ComRefrig | N118: Storage | O118: Ref_Storage | S118: rated years | W118: Standard
A119: HVAC-2Spd | B119: Two-Speed Fan | C119: None | D119: 2013-01-01 | F119: Any | G119: Any | H119: 15 | I119: 5 | J119: Com | K119: DEER2014 | L119: D08 v2.05 | M119: HVAC | N119: VentAirDist | O119: HV_AirDist | S119: rated years | W119: Standard
A120: HVAC-addEcono | B120: Add Economizer | C120: None | D120: 2013-01-01 | F120: Any | G120: Any | H120: 10 | I120: 3.3 | J120: Com | K120: DEER2014 | L120: D08 v2.05 | M120: HVAC | N120: SpaceCool | O120: HV_AirDist | P120: AirEcono | S120: rated years | W120: Standard
A121: HVAC-airAC | B121: Air Conditioners (air-cooled, split and unitary) | C121: None | D121: 2013-01-01 | F121: Any | G121: Any | H121: 15 | I121: 5 | J121: Com | K121: DEER2014 | L121: D08 v2.05 | M121: HVAC | N121: SpaceCool | O121: dxAC_equip | S121: rated years | W121: Standard
A122: HVAC-airHP | B122: Heat Pumps (air-cooled, split and unitary) | C122: None | D122: 2013-01-01 | F122: Any | G122: Any | H122: 15 | I122: 5 | J122: Com | K122: DEER2014 | L122: D08 v2.05 | M122: HVAC | N122: HeatCool | O122: dxHP_equip | S122: rated years | W122: Standard
A123: HVAC-AtoAHtExchng | B123: Air To Air Heat Exchanger | C123: None | D123: 2013-01-01 | F123: Any | G123: Any | H123: 14 | I123: 4.7 | J123: Com | K123: DEER2014 | L123: D08 v2.05 | M123: HVAC | N123: HeatCool | O123: HV_AirDist | P123: HeatRecov | S123: rated years | W123: Standard
A124: HVAC-Blr | B124: High Efficiency Boiler | C124: None | D124: 2013-01-01 | F124: Any | G124: Any | H124: 20 | I124: 6.7 | J124: Com | K124: DEER2014 | L124: D08 v2.05 | M124: HVAC | N124: SpaceHeat | O124: SpaceHtg_eq | S124: rated years | W124: Standard
A125: HVAC-Blr-Res | B125: High Efficiency Boiler | C125: None | D125: 2013-01-01 | F125: Any | G125: Any | H125: 20 | I125: 6.7 | J125: Res | K125: ExAnte2013 | L125: IOU Workpaper | M125: HVAC | N125: SpaceHeat | O125: WaterHtg_eq | S125: rated years | W125: Standard | X125: proposed for PGECODHW114 - need Res Use category
A126: HVAC-Chlr | B126: High Efficiency Chillers | C126: None | D126: 2013-01-01 | F126: Any | G126: Any | H126: 20 | I126: 6.7 | J126: Com | K126: DEER2014 | L126: D08 v2.05 | M126: HVAC | N126: SpaceCool | O126: Chiller | S126: rated years | W126: Standard
A127: HVAC-ChlrComp | B127: Compressor Heat Recovery (w/electric water heating) | C127: None | D127: 2013-01-01 | F127: Any | G127: Any | H127: 14 | I127: 4.7 | J127: Com | K127: DEER2014 | L127: D08 v2.05 | M127: SHW | O127: WaterHtg_eq | S127: rated years | W127: Standard
A128: HVAC-ChlrComp-Ag | B128: Compressor Heat Recovery (w/electric water heating) | C128: None | D128: 2013-01-01 | F128: Any | G128: Any | H128: 14 | I128: 4.7 | J128: Ag | K128: ExAnte2013 | L128: IOU Workpaper | M128: ProcHeat | O128: LiquidCirc | S128: rated years | W128: Proposed | X128: proposed in PGE3PAGR115
A129: HVAC-ClnCondCoils | B129: Clean Condenser Coils - Commercial | C129: None | D129: 2013-01-01 | F129: Any | G129: Any | H129: 3 | I129: 1 | J129: Com | K129: DEER2014 | L129: D08 v2.05 | M129: Service | N129: Maintenance | O129: HeatReject | S129: rated years | W129: Standard
A130: HVAC-ClnEvapCoils | B130: Clean Evaporator Coils | C130: None | D130: 2013-01-01 | F130: Any | G130: Any | H130: 3 | I130: 1 | J130: Com | K130: ExAnte2013 | L130: IOU Workpaper | M130: Service | N130: Maintenance | S130: rated years | W130: Standard | X130: Proposed in PGE3PHVC158
A131: HVAC-ClTwrPkgSys | B131: Cooling Tower for Packaged System | C131: None | D131: 2013-01-01 | F131: Any | G131: Any | H131: 15 | I131: 5 | J131: Com | K131: DEER2014 | L131: D08 v2.05 | M131: HVAC | N131: HtRej | O131: HeatReject | S131: rated years | W131: Standard
A132: HVAC-DuctInsul | B132: Duct Insulation Material | C132: None | D132: 2013-01-01 | F132: Any | G132: Any | H132: 20 | I132: 6.7 | J132: Com | K132: DEER2014 | L132: D08 v2.05 | M132: HVAC | N132: VentAirDist | O132: HV_AirDist | P132: DuctInsC | S132: rated years | W132: Standard
A133: HVAC-DuctSeal | B133: Duct Sealing - Single Zone Package System | C133: None | D133: 2013-01-01 | F133: Any | G133: Any | H133: 18 | I133: 6 | J133: Com | K133: DEER2014 | L133: D08 v2.05 | M133: HVAC | N133: VentAirDist | O133: HV_AirDist | P133: DuctSysC | S133: rated years | W133: Standard
A134: HVAC-EMS | B134: Energy Management System | C134: None | D134: 2013-01-01 | F134: Any | G134: Any | H134: 15 | I134: 5 | J134: Com | K134: DEER2014 | L134: D08 v2.05 | M134: HVAC | N134: EnvCtrl | O134: HV_Tech | P134: EMS | S134: rated years | W134: Standard
A135: HVAC-evapAC | B135: Air Conditioners (evaporatively-cooled, split and unitary) | C135: None | D135: 2013-01-01 | F135: Any | G135: Any | H135: 15 | I135: 5 | J135: Com | K135: DEER2014 | L135: D08 v2.05 | M135: HVAC | N135: SpaceCool | O135: dxAC_equip | S135: rated years | W135: Standard
A136: HVAC-EvapCool | B136: Evap Cool Indirect | C136: None | D136: 2013-01-01 | F136: Any | G136: Any | H136: 15 | I136: 5 | J136: Com | K136: DEER2014 | L136: D08 v2.05 | M136: HVAC | N136: SpaceCool | O136: EvapCool_eq | P136: ComEvap | S136: rated years | W136: Standard
A137: HVAC-FanPwrdMix | B137: Fan Powered Mixing Boxes | C137: None | D137: 2013-01-01 | F137: Any | G137: Any | H137: 10 | I137: 3.3 | J137: Com | K137: DEER2014 | L137: D08 v2.05 | M137: HVAC | N137: VentAirDist | O137: HV_AirDist | S137: rated years | W137: Standard
A138: HVAC-FlowCtrl-AirFiltCtrls | B138: Air Filter Alarm | C138: None | D138: 2013-01-01 | F138: Any | G138: Any | H138: 5 | I138: 1.67 | J138: Res | K138: DEER2014 | L138: PA workpaper | M138: HVAC | N138: VentAirDist | S138: evaluated years | W138: Proposed | X138: Source: See work paper SCE13HC011. Source is manufacturer's warranty information for "Dirty Air Filter Alarm for HVAC System".
A139: HVAC-Frnc | B139: High Efficiency Furnace | C139: None | D139: 2013-01-01 | F139: Any | G139: Any | H139: 20 | I139: 6.7 | J139: Com | K139: DEER2014 | L139: D08 v2.05 | M139: HVAC | N139: SpaceHeat | O139: SpaceHtg_eq | P139: GasFurnace | S139: rated years | W139: Standard
A140: HVAC-HydHPVarFlow | B140: Hydronic Heat Pump Var Flow Valve | C140: None | D140: 2013-01-01 | F140: Any | G140: Any | H140: 10 | I140: 3.3 | J140: Com | K140: DEER2014 | L140: D08 v2.05 | M140: HVAC | N140: SpaceCool | O140: dxHP_equip | S140: rated years | W140: Standard
A141: HVAC-ProgTStats | B141: Setback Programmable Thermostats | C141: None | D141: 2013-01-01 | F141: Any | G141: Any | H141: 11 | I141: 3.7 | J141: Com | K141: DEER2014 | L141: D08 v2.05 | M141: HVAC | N141: EnvCtrl | O141: HV_Tech | P141: Tstat | S141: rated years | W141: Standard
A142: HVAC-PTAC | B142: Air Conditioners (packaged terminal AC) | C142: None | D142: 2013-01-01 | F142: Any | G142: Any | H142: 15 | I142: 5 | J142: Com | K142: DEER2014 | L142: D08 v2.05 | M142: HVAC | N142: SpaceCool | O142: dxAC_equip | S142: rated years | W142: Standard
A143: HVAC-PTACCtrl | B143: Package Terminal AC - Controller | C143: None | D143: 2013-01-01 | F143: Gst | G143: Any | H143: 15 | I143: 5 | J143: Com | K143: ExAnte2010 | L143: IOU Workpaper | M143: HVAC | N143: SpaceCool | O143: HV_Tech | P143: TStat | S143: rated years | W143: Proposed
A144: HVAC-PTACCtrl | B144: Package Terminal AC - Controller | C144: None | D144: 2013-01-01 | F144: Htl | G144: Any | H144: 15 | I144: 5 | J144: Com | K144: ExAnte2010 | L144: IOU Workpaper | M144: HVAC | N144: SpaceCool | O144: HV_Tech | P144: TStat | S144: rated years | W144: Proposed
A145: HVAC-PTACCtrl | B145: Package Terminal AC - Controller | C145: None | D145: 2013-01-01 | F145: Mtl | G145: Any | H145: 15 | I145: 5 | J145: Com | K145: ExAnte2010 | L145: IOU Workpaper | M145: HVAC | N145: SpaceCool | O145: HV_Tech | P145: TStat | S145: rated years | W145: Proposed
A146: HVAC-PTHP | B146: Heat Pumps (packaged terminal) | C146: None | D146: 2013-01-01 | F146: Any | G146: Any | H146: 15 | I146: 5 | J146: Com | K146: DEER2014 | L146: D08 v2.05 | M146: HVAC | N146: HeatCool | O146: dxHP_equip | S146: rated years | W146: Standard
A147: HVAC-QMPkg | B147: Quality Maintenance | C147: None | D147: 2013-01-01 | F147: Any | G147: Any | H147: 3 | I147: 3 | J147: CC | K147: DEER2014 | L147: PA workpaper | M147: HVAC | N147: SpaceCool | O147: HV_Tech | P147: pkgEER | S147: rated years | T147: 3 | W147: Proposed | X147: referenced in SCE13HC037.3
A148: HVAC-RedcOverVent | B148: Reducing Overventilation | C148: None | D148: 2013-01-01 | F148: Any | G148: Any | H148: 10 | I148: 3.3 | J148: Com | K148: DEER2014 | L148: D08 v2.05 | M148: HVAC | N148: VentAirDist | O148: HV_AirDist | S148: rated years | W148: Standard
A149: HVAC-RefChg | B149: Refrigerant Charge - Commercial | C149: None | D149: 2013-01-01 | F149: Any | G149: Any | H149: 10 | I149: 3.3 | J149: Com | K149: DEER2014 | L149: D08 v2.05 | M149: HVAC | N149: HeatCool | O149: dxAC_equip | P149: refrig | S149: rated years | W149: Standard
A150: HVAC-RepEcono | B150: Repair Economizer | C150: None | D150: 2013-01-01 | F150: Any | G150: Any | H150: 5 | I150: 1.7 | J150: Com | K150: DEER2014 | L150: D08 v2.05 | M150: HVAC | N150: SpaceCool | O150: HV_AirDist | P150: AirEcono | S150: rated years | W150: Standard
A151: HVAC-Reset | B151: Water Loop Reset | C151: None | D151: 2013-01-01 | F151: Any | G151: Any | H151: 10 | I151: 3.3 | J151: Com | K151: DEER2014 | L151: D08 v2.05 | M151: HVAC | N151: EnvCtrl | O151: LiquidCirc | P151: TempReset | S151: rated years | W151: Standard
A152: HVAC-RotHtRecov | B152: Rotary Heat Recovery | C152: None | D152: 2013-01-01 | F152: Any | G152: Any | H152: 14 | I152: 4.7 | J152: Com | K152: DEER2014 | L152: D08 v2.05 | M152: HVAC | N152: HeatCool | O152: HV_AirDist | P152: HeatRecov | S152: rated years | W152: Standard
A153: HVAC-StmTrp | B153: Steam Traps - Space Heating | C153: None | D153: 2013-01-01 | F153: Any | G153: Any | H153: 6 | I153: 2 | J153: Com | K153: DEER2014 | L153: D08 v2.05 | M153: HVAC | N153: SpaceHeat | O153: SteamCirc | P153: SteamTrap | S153: rated years | W153: Standard
A154: HVAC-Timeclocks | B154: Time Clocks (heating/cooling) | C154: None | D154: 2013-01-01 | F154: Any | G154: Any | H154: 11 | I154: 3.7 | J154: Com | K154: DEER2014 | L154: D08 v2.05 | M154: HVAC | N154: EnvCtrl | O154: HV_Tech | P154: Timer | S154: rated years | W154: Standard
A155: HVAC-VarFlow | B155: Hydronic Heat Pump Var Flow Valve | C155: None | D155: 2013-01-01 | F155: Any | G155: Any | H155: 10 | I155: 3.3 | J155: Com | K155: DEER2014 | L155: D08 v2.05 | M155: HVAC | N155: HeatCool | O155: LiquidCirc | P155: FlowTempCtrl | S155: rated years | W155: Standard
A156: HVAC-VAVBox | B156: Variable Air Volume Box, VSD Fan | C156: None | D156: 2013-01-01 | F156: Any | G156: Any | H156: 15 | I156: 5 | J156: Com | K156: DEER2014 | L156: D08 v2.05 | M156: HVAC | N156: VentAirDist | O156: Motor_Spd | P156: ASD | S156: rated years | W156: Standard
A157: HVAC-VSD-DCV | B157: Variable Speed Drive controlled by CO2 sensor | C157: None | D157: 2013-01-01 | F157: Any | G157: Any | H157: 15 | I157: 5 | J157: Com | K157: ExAnte2013 | L157: IOU Workpaper | M157: HVAC | N157: HeatCool | O157: HV_Tech | P157: DCV | S157: rated years | W157: Standard | X157: Proposed in PGECOHVC143
A158: HVAC-VSD-fan | B158: Variable Air Volume Box, VSD Fan | C158: None | D158: 2013-01-01 | F158: Any | G158: Any | H158: 15 | I158: 5 | J158: Com | K158: DEER2014 | L158: D08 v2.05 | M158: HVAC | N158: VentAirDist | O158: Motor_Spd | P158: ASD | S158: rated years | W158: Standard
A159: HVAC-VSD-pump | B159: Variable Flow Water Loop, VSD Pump | C159: None | D159: 2013-01-01 | F159: Any | G159: Any | H159: 15 | I159: 5 | J159: Com | K159: DEER2014 | L159: D08 v2.05 | M159: HVAC | N159: HeatCool | O159: Motor_Spd | P159: ASD | S159: rated years | W159: Standard
A160: HVAC-VSDSupFan | B160: VSD Supply Fan Motors | C160: None | D160: 2013-01-01 | F160: Any | G160: Any | H160: 15 | I160: 5 | J160: Com | K160: DEER2014 | L160: D08 v2.05 | M160: HVAC | N160: VentAirDist | O160: Motor_Spd | P160: ASD | S160: rated years | W160: Standard
A161: HVAC-WSHP | B161: High Efficiency Water Source Heat Pump | C161: None | D161: 2013-01-01 | F161: Any | G161: Any | H161: 15 | I161: 5 | J161: Com | K161: DEER2014 | L161: D08 v2.05 | M161: HVAC | N161: HeatCool | O161: dxHP_equip | S161: rated years | W161: Standard
A162: HVAC-wtrAC | B162: Air Conditioners (water-cooled, split and unitary) | C162: None | D162: 2013-01-01 | F162: Any | G162: Any | H162: 15 | I162: 5 | J162: Com | K162: DEER2014 | L162: D08 v2.05 | M162: HVAC | N162: SpaceCool | O162: dxAC_equip | S162: rated years | W162: Standard
A163: HVAC-WtrEcon | B163: Water Side Economizer | C163: None | D163: 2013-01-01 | F163: Any | G163: Any | H163: 15 | I163: 5 | J163: Com | K163: DEER2014 | L163: D08 v2.05 | M163: HVAC | N163: SpaceCool | O163: HeatReject | P163: WSEcono | S163: rated years | W163: Standard
A164: HV-CoggedBelt | B164: Cogged Fan Belt | C164: None | D164: 2013-01-01 | F164: Asm | G164: Any | H164: 4.7 | I164: 1.6 | J164: Com | K164: ExAnte2013 | L164: IOU Workpaper | M164: HVAC | N164: VentAirDist | O164: HV_AirDist | P164: VentFanMtr | R164: 5110 | S164: Occupied Hours | T164: 24000 | U164: 1 | V164: 5 | W164: Standard | X164: Proposed in PGECOHVC144
A165: HV-CoggedBelt | B165: Cogged Fan Belt | C165: None | D165: 2013-01-01 | F165: ECC | G165: Any | H165: 5 | I165: 1.7 | J165: Com | K165: ExAnte2013 | L165: IOU Workpaper | M165: HVAC | N165: VentAirDist | O165: HV_AirDist | P165: VentFanMtr | R165: 3828 | S165: Occupied Hours | T165: 24000 | U165: 1 | V165: 5 | W165: Standard | X165: Proposed in PGECOHVC144
A166: HV-CoggedBelt | B166: Cogged Fan Belt | C166: None | D166: 2013-01-01 | F166: EPr | G166: Any | H166: 5 | I166: 1.7 | J166: Com | K166: ExAnte2013 | L166: IOU Workpaper | M166: HVAC | N166: VentAirDist | O166: HV_AirDist | P166: VentFanMtr | R166: 2616 | S166: Occupied Hours | T166: 24000 | U166: 1 | V166: 5 | W166: Standard | X166: Proposed in PGECOHVC144
A167: HV-CoggedBelt | B167: Cogged Fan Belt | C167: None | D167: 2013-01-01 | F167: ESe | G167: Any | H167: 5 | I167: 1.7 | J167: Com | K167: ExAnte2013 | L167: IOU Workpaper | M167: HVAC | N167: VentAirDist | O167: HV_AirDist | P167: VentFanMtr | R167: 2840 | S167: Occupied Hours | T167: 24000 | U167: 1 | V167: 5 | W167: Standard | X167: Proposed in PGECOHVC144
A168: HV-CoggedBelt | B168: Cogged Fan Belt | C168: None | D168: 2013-01-01 | F168: MLI | G168: Any | H168: 5 | I168: 1.7 | J168: Ind | K168: ExAnte2013 | L168: IOU Workpaper | M168: HVAC | N168: VentAirDist | O168: HV_AirDist | P168: VentFanMtr | R168: 3514 | S168: Occupied Hours | T168: 24000 | U168: 1 | V168: 5 | W168: Standard | X168: Proposed in PGECOHVC144
A169: HV-CoggedBelt | B169: Cogged Fan Belt | C169: None | D169: 2013-01-01 | F169: Nrs | G169: Any | H169: 2.7 | I169: 0.9 | J169: Com | K169: ExAnte2013 | L169: IOU Workpaper | M169: HVAC | N169: VentAirDist | O169: HV_AirDist | P169: VentFanMtr | R169: 8760 | S169: Occupied Hours | T169: 24000 | U169: 1 | V169: 5 | W169: Standard | X169: Proposed in PGECOHVC144
A170: HV-CoggedBelt | B170: Cogged Fan Belt | C170: None | D170: 2013-01-01 | F170: OfL | G170: Any | H170: 5 | I170: 1.7 | J170: Com | K170: ExAnte2013 | L170: IOU Workpaper | M170: HVAC | N170: VentAirDist | O170: HV_AirDist | P170: VentFanMtr | R170: 3974 | S170: Occupied Hours | T170: 24000 | U170: 1 | V170: 5 | W170: Standard | X170: Proposed in PGECOHVC144
A171: HV-CoggedBelt | B171: Cogged Fan Belt | C171: None | D171: 2013-01-01 | F171: OfS | G171: Any | H171: 5 | I171: 1.7 | J171: Com | K171: ExAnte2013 | L171: IOU Workpaper | M171: HVAC | N171: VentAirDist | O171: HV_AirDist | P171: VentFanMtr | R171: 3371 | S171: Occupied Hours | T171: 24000 | U171: 1 | V171: 5 | W171: Standard | X171: Proposed in PGECOHVC144
A172: HV-CoggedBelt | B172: Cogged Fan Belt | C172: None | D172: 2013-01-01 | F172: RFF | G172: Any | H172: 3.5 | I172: 1.2 | J172: Com | K172: ExAnte2013 | L172: IOU Workpaper | M172: HVAC | N172: VentAirDist | O172: HV_AirDist | P172: VentFanMtr | R172: 6935 | S172: Occupied Hours | T172: 24000 | U172: 1 | V172: 5 | W172: Standard | X172: Proposed in PGECOHVC144
A173: HV-CoggedBelt | B173: Cogged Fan Belt | C173: None | D173: 2013-01-01 | F173: RSD | G173: Any | H173: 4.7 | I173: 1.6 | J173: Com | K173: ExAnte2013 | L173: IOU Workpaper | M173: HVAC | N173: VentAirDist | O173: HV_AirDist | P173: VentFanMtr | R173: 5110 | S173: Occupied Hours | T173: 24000 | U173: 1 | V173: 5 | W173: Standard | X173: Proposed in PGECOHVC144
A174: HV-CoggedBelt | B174: Cogged Fan Belt | C174: None | D174: 2013-01-01 | F174: Rt3 | G174: Any | H174: 5 | I174: 1.7 | J174: Com | K174: ExAnte2013 | L174: IOU Workpaper | M174: HVAC | N174: VentAirDist | O174: HV_AirDist | P174: VentFanMtr | R174: 4482 | S174: Occupied Hours | T174: 24000 | U174: 1 | V174: 5 | W174: Standard | X174: Proposed in PGECOHVC144
A175: HV-CoggedBelt | B175: Cogged Fan Belt | C175: None | D175: 2013-01-01 | F175: RtL | G175: Any | H175: 4.4 | I175: 1.5 | J175: Com | K175: ExAnte2013 | L175: IOU Workpaper | M175: HVAC | N175: VentAirDist | O175: HV_AirDist | P175: VentFanMtr | R175: 5475 | S175: Occupied Hours | T175: 24000 | U175: 1 | V175: 5 | W175: Standard | X175: Proposed in PGECOHVC144
A176: HV-CoggedBelt | B176: Cogged Fan Belt | C176: None | D176: 2013-01-01 | F176: RtS | G176: Any | H176: 5 | I176: 1.7 | J176: Com | K176: ExAnte2013 | L176: IOU Workpaper | M176: HVAC | N176: VentAirDist | O176: HV_AirDist | P176: VentFanMtr | R176: 4745 | S176: Occupied Hours | T176: 24000 | U176: 1 | V176: 5 | W176: Standard | X176: Proposed in PGECOHVC144
A177: HV-DuctSeal | B177: Duct Sealing | C177: None | D177: 2013-01-01 | F177: Any | G177: Any | H177: 18 | I177: 6 | J177: Res | K177: DEER2014 | L177: D08 v2.05 | M177: HVAC | N177: VentAirDist | O177: HV_AirDist | P177: DuctInsul | S177: rated years | W177: Standard
A178: HV-EffFurn | B178: High Efficiency Furnace | C178: None | D178: 2013-01-01 | F178: Any | G178: Any | H178: 20 | I178: 6.7 | J178: Res | K178: DEER2014 | L178: D08 v2.05 | M178: HVAC | N178: SpaceHeat | O178: SpaceHtg_eq | P178: GasFurnace | S178: rated years | W178: Standard
A179: HV-Evap | B179: Evaporative Cooler | C179: None | D179: 2013-01-01 | F179: Any | G179: Any | H179: 15 | I179: 5 | J179: Res | K179: DEER2014 | L179: D08 v2.05 | M179: HVAC | N179: SpaceCool | O179: EvapCool_eq | P179: ResEvap | S179: rated years | W179: Standard
A180: HV-ProgTstat | B180: Programmable Thermostat | C180: None | D180: 2013-01-01 | F180: Any | G180: Any | H180: 11 | I180: 3.7 | J180: Res | K180: DEER2014 | L180: D08 v2.05 | M180: HVAC | N180: EnvCtrl | O180: HV_Tech | P180: Tstat | S180: rated years | W180: Standard
A181: HV-RAC-ES | B181: Room AC - Energy Star | C181: None | D181: 2013-01-01 | F181: Any | G181: Any | H181: 9 | I181: 3 | J181: Res | K181: DEER2014 | L181: D08 v2.05 | M181: HVAC | N181: SpaceCool | O181: dxAC_equip | S181: rated years | W181: Standard
A182: HV-RAC-RUL | B182: Room AC - Recycling (RUL) | C182: None | D182: 2013-01-01 | F182: Any | G182: Any | I182: 3 | J182: Res | K182: DEER2014 | L182: D08 v2.05 | M182: HVAC | N182: SpaceCool | O182: dxAC_equip | S182: rated years | W182: Standard
A183: HV-RefChrg | B183: Refrigerant Charge - Residential | C183: None | D183: 2013-01-01 | F183: Any | G183: Any | H183: 10 | I183: 3.3 | J183: Res | K183: DEER2014 | L183: D08 v2.05 | M183: HVAC | N183: HeatCool | O183: dxAC_equip | P183: refrig | S183: rated years | W183: Standard
A184: HV-ResAC | B184: High Efficiency Air Conditioner (package and split systems) | C184: None | D184: 2013-01-01 | F184: Any | G184: Any | H184: 15 | I184: 5 | J184: Res | K184: DEER2014 | L184: D08 v2.05 | M184: HVAC | N184: SpaceCool | O184: dxAC_equip | S184: rated years | W184: Standard
A185: HV-ResAC-CleanCoil | B185: Clean Condenser Coils - Residential | C185: None | D185: 2013-01-01 | F185: Any | G185: Any | H185: 3 | I185: 1 | J185: Res | K185: DEER2014 | L185: D08 v2.05 | M185: Service | N185: Maintenance | O185: HeatReject | S185: rated years | W185: Standard
A186: HV-ResEvapAC | B186: High Efficiency Air Conditioner (Evap cooled split systems) | C186: None | D186: 2013-01-01 | F186: Any | G186: Any | H186: 15 | I186: 5 | J186: Res | K186: DEER2014 | L186: D08 v2.05 | M186: HVAC | N186: SpaceCool | O186: EvapCool_eq | P186: ResEvap | S186: rated years | W186: Standard
A187: HV-ResHP | B187: High Efficiency Heat Pump | C187: None | D187: 2013-01-01 | F187: Any | G187: Any | H187: 15 | I187: 5 | J187: Res | K187: DEER2014 | L187: D08 v2.05 | M187: HVAC | N187: HeatCool | O187: dxHP_equip | S187: rated years | W187: Standard
A188: HV-ResRCx | B188: Residential HVAC assessment report & maintenance contract | C188: None | D188: 2013-01-01 | F188: Any | G188: Any | H188: 5 | I188: 1.7 | J188: Res | K188: ExAnte2013 | L188: IOU Workpaper | M188: Service | N188: Diagnostic | S188: rated years | W188: Proposed | X188: 5 years required per Residential HVAC QM dispostion
A189: HV-WHfan | B189: Whole House Fans | C189: None | D189: 2013-01-01 | F189: Any | G189: Any | H189: 20 | I189: 6.7 | J189: Res | K189: DEER2014 | L189: D08 v2.05 | M189: HVAC | N189: VentAirDist | O189: HV_AirDist | S189: rated years | W189: Standard
A190: ILtg-CFL-12000hr-Com | B190: CFL Lamps - Indoor- Commercial - 12,000 Rated Hours | C190: Com_InGen-CFL | D190: 2013-01-01 | J190: Com | K190: DEER2014 | L190: D08 v2.05 | M190: Lighting | N190: InGen | O190: Ltg_Lamp | P190: CFLint_lamp | S190: lamp rated hours | T190: 12000 | U190: 1 | V190: 15 | W190: Available
A191: ILtg-CFL-12000hr-Res | B191: CFL Lamps - Indoor- Residential - 12,000 Rated Hours | C191: Res_InGen | D191: 2013-01-01 | E191: 2015-12-31 | J191: Res | K191: DEER2014 | L191: D08 v2.05 | M191: Lighting | N191: InGen | O191: Ltg_Lamp | P191: CFLint_lamp | S191: lamp rated hours | T191: 12000 | U191: 0.523 | V191: 15 | W191: Available
A192: ILtg-CFL-12000hr-ResCmn | B192: CFL Lamps - Indoor- Residential Common Area- 12,000 Rated Hours | C192: Res_InCmn-Lmp | D192: 2013-01-01 | J192: Res | K192: DEER2014 | L192: Lighting Disposition | M192: Lighting | N192: InCommon | O192: Ltg_Lamp | P192: CFLint_lamp | S192: lamp rated hours | T192: 12000 | U192: 1 | V192: 20 | W192: Available
A193: ILtg-CFL-3Dim-12000hr-Res | B193: CFL Lamps - Indoor- Residential - 12,000 Rated Hours | C193: Res_InGen-3Dim | D193: 2013-01-01 | E193: 2015-12-31 | J193: Res | K193: DEER2014 | L193: D08 v2.05 | M193: Lighting | N193: InGen | O193: Ltg_Lamp | P193: CFLint_lamp | S193: lamp rated hours | T193: 12000 | U193: 0.523 | V193: 15 | W193: Available
A194: ILtg-CFL-3Dim-6000hr-Res | B194: CFL Lamps - Indoor- Residential - 6,000 Rated Hours | C194: Res_InGen-3Dim | D194: 2013-01-01 | E194: 2015-12-31 | J194: Res | K194: DEER2014 | L194: D08 v2.05 | M194: Lighting | N194: InGen | O194: Ltg_Lamp | P194: CFLint_lamp | S194: lamp rated hours | T194: 6000 | U194: 0.523 | V194: 15 | W194: Available
A195: ILtg-CFL-3Dim-8000hr-Res | B195: CFL Lamps - Indoor- Residential - 8,000 Rated Hours | C195: Res_InGen-3Dim | D195: 2013-01-01 | E195: 2015-12-31 | J195: Res | K195: DEER2014 | L195: D08 v2.05 | M195: Lighting | N195: InGen | O195: Ltg_Lamp | P195: CFLint_lamp | S195: lamp rated hours | T195: 8000 | U195: 0.523 | V195: 20 | W195: Available
A196: ILtg-CFL-3Dim-Res | B196: CFL Lamps - Indoor- Residential - 10,000 Rated Hours | C196: Res_InGen-3Dim | D196: 2013-01-01 | E196: 2015-12-31 | J196: Res | K196: DEER2014 | L196: D08 v2.05 | M196: Lighting | N196: InGen | O196: Ltg_Lamp | P196: CFLint_lamp | S196: lamp rated hours | T196: 10000 | U196: 0.523 | V196: 20 | W196: Available | X196: fixed typo in ID (3Diim)
A197: ILtg-CFL-6000hr-Com | B197: CFL Lamps - Indoor- Commercial - 6,000 Rated Hours | C197: Com_InGen-CFL | D197: 2013-01-01 | J197: Com | K197: DEER2014 | L197: D08 v2.05 | M197: Lighting | N197: InGen | O197: Ltg_Lamp | P197: CFLint_lamp | S197: lamp rated hours | T197: 6000 | U197: 1 | V197: 15 | W197: Available
A198: ILtg-CFL-6000hr-Res | B198: CFL Lamps - Indoor- Residential - 6,000 Rated Hours | C198: Res_InGen | D198: 2013-01-01 | E198: 2015-12-31 | J198: Res | K198: DEER2014 | L198: D08 v2.05 | M198: Lighting | N198: InGen | O198: Ltg_Lamp | P198: CFLint_lamp | S198: lamp rated hours | T198: 6000 | U198: 0.523 | V198: 15 | W198: Available
A199: ILtg-CFL-6000hr-ResCmn | B199: CFL Lamps - Indoor- Residential Common Area- 6,000 Rated Hours | C199: Res_InCmn-Lmp | D199: 2013-01-01 | J199: Res | K199: DEER2014 | L199: Lighting Disposition | M199: Lighting | N199: InCommon | O199: Ltg_Lamp | P199: CFLint_lamp | S199: lamp rated hours | T199: 6000 | U199: 1 | V199: 20 | W199: Available
A200: ILtg-CFL-8000hr-Com | B200: CFL Lamps - Indoor- Commercial - 8,000 Rated Hours | C200: Com_InGen-CFL | D200: 2013-01-01 | J200: Com | K200: DEER2014 | L200: D08 v2.05 | M200: Lighting | N200: InGen | O200: Ltg_Lamp | P200: CFLint_lamp | S200: lamp rated hours | T200: 8000 | U200: 1 | V200: 15 | W200: Available
A201: ILtg-CFL-8000hr-Res | B201: CFL Lamps - Indoor- Residential - 8,000 Rated Hours | C201: Res_InGen | D201: 2013-01-01 | E201: 2015-12-31 | J201: Res | K201: DEER2014 | L201: D08 v2.05 | M201: Lighting | N201: InGen | O201: Ltg_Lamp | P201: CFLint_lamp | S201: lamp rated hours | T201: 8000 | U201: 0.523 | V201: 20 | W201: Available
... 214 more rows

Sheet EUL_hou
A1: EUL_hou table downloaded from READI:
A3: HOU_cat | B3: StartDate | C3: ExpiryDate | D3: Sector | E3: UseCategory | F3: UseSubCategory | G3: BldgType | H3: BldgLoc | I3: HOU | J3: Comment | L3: lookup | P3: Valid Building Types for each EUL_ID that has an hours-of-use category (HOU_cat)
A4: Com_InGen-CFL | B4: 2016-01-01 | D4: Com | E4: Lighting | F4: InGen-CFL | G4: Asm | H4: Any | I4: 1160 | L4: =A4&G4 -> Com_InGen-CFLAsm | P4: HOU_cat => | Q4: None | R4: Com_InGen-CFL | S4: Res_InCmn-Lmp | T4: Com_InGen-HB | U4: Res_InCmn-Fixt | V4: Com_InGen-LF | W4: Com_OutGen | X4: Res_OutCmn-Lmp | Y4: Res_OutGen-Fixt | Z4: Res_OutCmn-Fixt | AA4: Res_OutGen-LED
A5: Com_InGen-CFL | B5: 2016-01-01 | D5: Com | E5: Lighting | F5: InGen-CFL | G5: Com | H5: Any | I5: 2130 | L5: Com_InGen-CFLCom | P5: start row | Q5: 1 | R5: =MATCH(R4,$A$4:$A$102,0) -> 1 | S5: =MATCH(S4,$A$4:$A$102,0) -> 93 | T5: 31 | U5: 92 | V5: 61 | W5: 91 | X5: 96 | Y5: 98 | Z5: 95 | AA5: 99
A6: Com_InGen-CFL | B6: 2016-01-01 | D6: Com | E6: Lighting | F6: InGen-CFL | G6: ECC | H6: Any | I6: 1460 | L6: Com_InGen-CFLECC | P6: num rows | Q6: 1 | R6: =COUNTIF($A$4:$A$102,R4) -> 30 | S6: =COUNTIF($A$4:$A$102,S4) -> 2 | T6: 30 | U6: 1 | V6: 30 | W6: 1 | X6: 2 | Y6: 1 | Z6: 1 | AA6: 1
A7: Com_InGen-CFL | B7: 2016-01-01 | D7: Com | E7: Lighting | F7: InGen-CFL | G7: EPr | H7: Any | I7: 1150 | L7: Com_InGen-CFLEPr | P7: 0 | Q7: n/a | R7: =IF($P7<R$6,INDEX($G$4:$G$102,R$5+$P7),"") -> Asm | S7: DMo | T7: Asm | U7: Any | V7: Asm | W7: Any | X7: DMo | Y7: Any | Z7: Any | AA7: Any
A8: Com_InGen-CFL | B8: 2016-01-01 | D8: Com | E8: Lighting | F8: InGen-CFL | G8: ERC | H8: Any | I8: 998 | L8: Com_InGen-CFLERC | P8: 1 | Q8: ="" ->  | R8: Com | S8: MFm | T8: Com | V8: Com | X8: MFm
A9: Com_InGen-CFL | B9: 2016-01-01 | D9: Com | E9: Lighting | F9: InGen-CFL | G9: ESe | H9: Any | I9: 1440 | L9: Com_InGen-CFLESe | P9: =+P8+1 -> 2 | R9: ECC | T9: ECC | V9: ECC
A10: Com_InGen-CFL | B10: 2016-01-01 | D10: Com | E10: Lighting | F10: InGen-CFL | G10: EUn | H10: Any | I10: 2020 | L10: Com_InGen-CFLEUn | P10: 3 | R10: EPr | T10: EPr | V10: EPr
A11: Com_InGen-CFL | B11: 2016-01-01 | D11: Com | E11: Lighting | F11: InGen-CFL | G11: Gro | H11: Any | I11: 4850 | L11: Com_InGen-CFLGro | P11: 4 | R11: ERC | T11: ERC | V11: ERC
A12: Com_InGen-CFL | B12: 2016-01-01 | D12: Com | E12: Lighting | F12: InGen-CFL | G12: Hsp | H12: Any | I12: 5340 | L12: Com_InGen-CFLHsp | P12: 5 | R12: ESe | T12: ESe | V12: ESe
A13: Com_InGen-CFL | B13: 2016-01-01 | D13: Com | E13: Lighting | F13: InGen-CFL | G13: Htl | H13: Any | I13: 1590 | L13: Com_InGen-CFLHtl | P13: 6 | R13: EUn | T13: EUn | V13: EUn
A14: Com_InGen-CFL | B14: 2016-01-01 | D14: Com | E14: Lighting | F14: InGen-CFL | G14: MBT | H14: Any | I14: 2000 | L14: Com_InGen-CFLMBT | P14: 7 | R14: Gro | T14: Gro | V14: Gro
A15: Com_InGen-CFL | B15: 2016-01-01 | D15: Com | E15: Lighting | F15: InGen-CFL | G15: MLI | H15: Any | I15: 2260 | L15: Com_InGen-CFLMLI | P15: 8 | R15: Hsp | T15: Hsp | V15: Hsp
A16: Com_InGen-CFL | B16: 2016-01-01 | D16: Com | E16: Lighting | F16: InGen-CFL | G16: Mtl | H16: Any | I16: 940 | L16: Com_InGen-CFLMtl | P16: 9 | R16: Htl | T16: Htl | V16: Htl
A17: Com_InGen-CFL | B17: 2016-01-01 | D17: Com | E17: Lighting | F17: InGen-CFL | G17: Nrs | H17: Any | I17: 3380 | L17: Com_InGen-CFLNrs | P17: 10 | R17: =IF($P17<R$6,INDEX($G$4:$G$102,R$5+$P17),"") -> MBT | T17: MBT | V17: MBT
A18: Com_InGen-CFL | B18: 2016-01-01 | D18: Com | E18: Lighting | F18: InGen-CFL | G18: OfL | H18: Any | I18: 1960 | L18: Com_InGen-CFLOfL | P18: 11 | R18: MLI | T18: MLI | V18: MLI
A19: Com_InGen-CFL | B19: 2016-01-01 | D19: Com | E19: Lighting | F19: InGen-CFL | G19: OfS | H19: Any | I19: 1380 | L19: Com_InGen-CFLOfS | P19: 12 | R19: Mtl | T19: Mtl | V19: Mtl
A20: Com_InGen-CFL | B20: 2016-01-01 | D20: Com | E20: Lighting | F20: InGen-CFL | G20: RFF | H20: Any | I20: 3720 | L20: Com_InGen-CFLRFF | P20: 13 | R20: Nrs | T20: Nrs | V20: Nrs
A21: Com_InGen-CFL | B21: 2016-01-01 | D21: Com | E21: Lighting | F21: InGen-CFL | G21: RSD | H21: Any | I21: 3680 | L21: Com_InGen-CFLRSD | P21: 14 | R21: OfL | T21: OfL | V21: OfL
A22: Com_InGen-CFL | B22: 2016-01-01 | D22: Com | E22: Lighting | F22: InGen-CFL | G22: Rt3 | H22: Any | I22: 1890 | L22: Com_InGen-CFLRt3 | P22: 15 | R22: OfS | T22: OfS | V22: OfS
A23: Com_InGen-CFL | B23: 2016-01-01 | D23: Com | E23: Lighting | F23: InGen-CFL | G23: RtL | H23: Any | I23: 2940 | L23: Com_InGen-CFLRtL | P23: 16 | R23: RFF | T23: RFF | V23: RFF
A24: Com_InGen-CFL | B24: 2016-01-01 | D24: Com | E24: Lighting | F24: InGen-CFL | G24: RtS | H24: Any | I24: 2260 | L24: Com_InGen-CFLRtS | P24: 17 | R24: RSD | T24: RSD | V24: RSD
A25: Com_InGen-CFL | B25: 2016-01-01 | D25: Com | E25: Lighting | F25: InGen-CFL | G25: s_Agr | H25: Any | I25: 2080 | L25: Com_InGen-CFLs_Agr | P25: 18 | R25: Rt3 | T25: Rt3 | V25: Rt3
A26: Com_InGen-CFL | B26: 2016-01-01 | D26: Com | E26: Lighting | F26: InGen-CFL | G26: s_Cli | H26: Any | I26: 2380 | L26: Com_InGen-CFLs_Cli | P26: 19 | R26: RtL | T26: RtL | V26: RtL
A27: Com_InGen-CFL | B27: 2016-01-01 | D27: Com | E27: Lighting | F27: InGen-CFL | G27: s_FSt | H27: Any | I27: 3560 | L27: Com_InGen-CFLs_FSt | P27: 20 | R27: =IF($P27<R$6,INDEX($G$4:$G$102,R$5+$P27),"") -> RtS | T27: RtS | V27: RtS
A28: Com_InGen-CFL | B28: 2016-01-01 | D28: Com | E28: Lighting | F28: InGen-CFL | G28: s_Ind | H28: Any | I28: 2130 | L28: Com_InGen-CFLs_Ind | P28: 21 | R28: s_Agr | T28: s_Agr | V28: s_Agr
A29: Com_InGen-CFL | B29: 2016-01-01 | D29: Com | E29: Lighting | F29: InGen-CFL | G29: s_MiC | H29: Any | I29: 2440 | L29: Com_InGen-CFLs_MiC | P29: 22 | R29: s_Cli | T29: s_Cli | V29: s_Cli
A30: Com_InGen-CFL | B30: 2016-01-01 | D30: Com | E30: Lighting | F30: InGen-CFL | G30: s_TCU | H30: Any | I30: 1790 | L30: Com_InGen-CFLs_TCU | P30: 23 | R30: s_FSt | T30: s_FSt | V30: s_FSt
A31: Com_InGen-CFL | B31: 2016-01-01 | D31: Com | E31: Lighting | F31: InGen-CFL | G31: SCn | H31: Any | I31: 2010 | L31: Com_InGen-CFLSCn | P31: 24 | R31: s_Ind | T31: s_Ind | V31: s_Ind
A32: Com_InGen-CFL | B32: 2016-01-01 | D32: Com | E32: Lighting | F32: InGen-CFL | G32: SUn | H32: Any | I32: 1340 | L32: Com_InGen-CFLSUn | P32: 25 | R32: s_MiC | T32: s_MiC | V32: s_MiC
A33: Com_InGen-CFL | B33: 2016-01-01 | D33: Com | E33: Lighting | F33: InGen-CFL | G33: WRf | H33: Any | I33: 4640 | L33: Com_InGen-CFLWRf | P33: 26 | R33: s_TCU | T33: s_TCU | V33: s_TCU
A34: Com_InGen-HB | B34: 2016-01-01 | D34: Com | E34: Lighting | F34: InGen-HB | G34: Asm | H34: Any | I34: 1620 | L34: Com_InGen-HBAsm | P34: 27 | R34: SCn | T34: SCn | V34: SCn
A35: Com_InGen-HB | B35: 2016-01-01 | D35: Com | E35: Lighting | F35: InGen-HB | G35: Com | H35: Any | I35: 3010 | L35: Com_InGen-HBCom | P35: 28 | R35: SUn | T35: SUn | V35: SUn
A36: Com_InGen-HB | B36: 2016-01-01 | D36: Com | E36: Lighting | F36: InGen-HB | G36: ECC | H36: Any | I36: 2320 | L36: Com_InGen-HBECC | P36: 29 | R36: WRf | T36: WRf | V36: WRf
A37: Com_InGen-HB | B37: 2016-01-01 | D37: Com | E37: Lighting | F37: InGen-HB | G37: EPr | H37: Any | I37: 2090 | L37: =A37&G37 -> Com_InGen-HBEPr
A38: Com_InGen-HB | B38: 2016-01-01 | D38: Com | E38: Lighting | F38: InGen-HB | G38: ERC | H38: Any | I38: 957 | L38: Com_InGen-HBERC
A39: Com_InGen-HB | B39: 2016-01-01 | D39: Com | E39: Lighting | F39: InGen-HB | G39: ESe | H39: Any | I39: 2190 | L39: Com_InGen-HBESe
A40: Com_InGen-HB | B40: 2016-01-01 | D40: Com | E40: Lighting | F40: InGen-HB | G40: EUn | H40: Any | I40: 2480 | L40: Com_InGen-HBEUn
A41: Com_InGen-HB | B41: 2016-01-01 | D41: Com | E41: Lighting | F41: InGen-HB | G41: Gro | H41: Any | I41: 5390 | L41: Com_InGen-HBGro
A42: Com_InGen-HB | B42: 2016-01-01 | D42: Com | E42: Lighting | F42: InGen-HB | G42: Hsp | H42: Any | I42: 5840 | L42: Com_InGen-HBHsp
A43: Com_InGen-HB | B43: 2016-01-01 | D43: Com | E43: Lighting | F43: InGen-HB | G43: Htl | H43: Any | I43: 5240 | L43: Com_InGen-HBHtl
A44: Com_InGen-HB | B44: 2016-01-01 | D44: Com | E44: Lighting | F44: InGen-HB | G44: MBT | H44: Any | I44: 2720 | L44: Com_InGen-HBMBT
A45: Com_InGen-HB | B45: 2016-01-01 | D45: Com | E45: Lighting | F45: InGen-HB | G45: MLI | H45: Any | I45: 2910 | L45: Com_InGen-HBMLI
A46: Com_InGen-HB | B46: 2016-01-01 | D46: Com | E46: Lighting | F46: InGen-HB | G46: Mtl | H46: Any | I46: 4060 | L46: Com_InGen-HBMtl
A47: Com_InGen-HB | B47: 2016-01-01 | D47: Com | E47: Lighting | F47: InGen-HB | G47: Nrs | H47: Any | I47: 3740 | L47: Com_InGen-HBNrs
A48: Com_InGen-HB | B48: 2016-01-01 | D48: Com | E48: Lighting | F48: InGen-HB | G48: OfL | H48: Any | I48: 2700 | L48: Com_InGen-HBOfL
A49: Com_InGen-HB | B49: 2016-01-01 | D49: Com | E49: Lighting | F49: InGen-HB | G49: OfS | H49: Any | I49: 1830 | L49: Com_InGen-HBOfS
A50: Com_InGen-HB | B50: 2016-01-01 | D50: Com | E50: Lighting | F50: InGen-HB | G50: RFF | H50: Any | I50: 3400 | L50: Com_InGen-HBRFF
A51: Com_InGen-HB | B51: 2016-01-01 | D51: Com | E51: Lighting | F51: InGen-HB | G51: RSD | H51: Any | I51: 3820 | L51: Com_InGen-HBRSD
A52: Com_InGen-HB | B52: 2016-01-01 | D52: Com | E52: Lighting | F52: InGen-HB | G52: Rt3 | H52: Any | I52: 5580 | L52: Com_InGen-HBRt3
A53: Com_InGen-HB | B53: 2016-01-01 | D53: Com | E53: Lighting | F53: InGen-HB | G53: RtL | H53: Any | I53: 4050 | L53: Com_InGen-HBRtL
A54: Com_InGen-HB | B54: 2016-01-01 | D54: Com | E54: Lighting | F54: InGen-HB | G54: RtS | H54: Any | I54: 2290 | L54: Com_InGen-HBRtS
A55: Com_InGen-HB | B55: 2016-01-01 | D55: Com | E55: Lighting | F55: InGen-HB | G55: s_Agr | H55: Any | I55: 2690 | L55: Com_InGen-HBs_Agr
A56: Com_InGen-HB | B56: 2016-01-01 | D56: Com | E56: Lighting | F56: InGen-HB | G56: s_Cli | H56: Any | I56: 2790 | L56: Com_InGen-HBs_Cli
A57: Com_InGen-HB | B57: 2016-01-01 | D57: Com | E57: Lighting | F57: InGen-HB | G57: s_FSt | H57: Any | I57: 3840 | L57: Com_InGen-HBs_FSt
A58: Com_InGen-HB | B58: 2016-01-01 | D58: Com | E58: Lighting | F58: InGen-HB | G58: s_Ind | H58: Any | I58: 2820 | L58: Com_InGen-HBs_Ind
A59: Com_InGen-HB | B59: 2016-01-01 | D59: Com | E59: Lighting | F59: InGen-HB | G59: s_MiC | H59: Any | I59: 2650 | L59: Com_InGen-HBs_MiC
A60: Com_InGen-HB | B60: 2016-01-01 | D60: Com | E60: Lighting | F60: InGen-HB | G60: s_TCU | H60: Any | I60: 2380 | L60: Com_InGen-HBs_TCU
A61: Com_InGen-HB | B61: 2016-01-01 | D61: Com | E61: Lighting | F61: InGen-HB | G61: SCn | H61: Any | I61: 2290 | L61: Com_InGen-HBSCn
A62: Com_InGen-HB | B62: 2016-01-01 | D62: Com | E62: Lighting | F62: InGen-HB | G62: SUn | H62: Any | I62: 2160 | L62: Com_InGen-HBSUn
A63: Com_InGen-HB | B63: 2016-01-01 | D63: Com | E63: Lighting | F63: InGen-HB | G63: WRf | H63: Any | I63: 4590 | L63: Com_InGen-HBWRf
A64: Com_InGen-LF | B64: 2016-01-01 | D64: Com | E64: Lighting | F64: InGen-LF | G64: Asm | H64: Any | I64: 1130 | L64: Com_InGen-LFAsm
A65: Com_InGen-LF | B65: 2016-01-01 | D65: Com | E65: Lighting | F65: InGen-LF | G65: Com | H65: Any | I65: 2430 | L65: Com_InGen-LFCom
A66: Com_InGen-LF | B66: 2016-01-01 | D66: Com | E66: Lighting | F66: InGen-LF | G66: ECC | H66: Any | I66: 2160 | L66: Com_InGen-LFECC
A67: Com_InGen-LF | B67: 2016-01-01 | D67: Com | E67: Lighting | F67: InGen-LF | G67: EPr | H67: Any | I67: 1170 | L67: Com_InGen-LFEPr
A68: Com_InGen-LF | B68: 2016-01-01 | D68: Com | E68: Lighting | F68: InGen-LF | G68: ERC | H68: Any | I68: 957 | L68: Com_InGen-LFERC
A69: Com_InGen-LF | B69: 2016-01-01 | D69: Com | E69: Lighting | F69: InGen-LF | G69: ESe | H69: Any | I69: 1590 | L69: Com_InGen-LFESe
A70: Com_InGen-LF | B70: 2016-01-01 | D70: Com | E70: Lighting | F70: InGen-LF | G70: EUn | H70: Any | I70: 1980 | L70: Com_InGen-LFEUn
A71: Com_InGen-LF | B71: 2016-01-01 | D71: Com | E71: Lighting | F71: InGen-LF | G71: Gro | H71: Any | I71: 4710 | L71: Com_InGen-LFGro
A72: Com_InGen-LF | B72: 2016-01-01 | D72: Com | E72: Lighting | F72: InGen-LF | G72: Hsp | H72: Any | I72: 5080 | L72: Com_InGen-LFHsp
A73: Com_InGen-LF | B73: 2016-01-01 | D73: Com | E73: Lighting | F73: InGen-LF | G73: Htl | H73: Any | I73: 1210 | L73: Com_InGen-LFHtl
A74: Com_InGen-LF | B74: 2016-01-01 | D74: Com | E74: Lighting | F74: InGen-LF | G74: MBT | H74: Any | I74: 2220 | L74: Com_InGen-LFMBT
A75: Com_InGen-LF | B75: 2016-01-01 | D75: Com | E75: Lighting | F75: InGen-LF | G75: MLI | H75: Any | I75: 2320 | L75: Com_InGen-LFMLI
A76: Com_InGen-LF | B76: 2016-01-01 | D76: Com | E76: Lighting | F76: InGen-LF | G76: Mtl | H76: Any | I76: 1000 | L76: Com_InGen-LFMtl
A77: Com_InGen-LF | B77: 2016-01-01 | D77: Com | E77: Lighting | F77: InGen-LF | G77: Nrs | H77: Any | I77: 3960 | L77: Com_InGen-LFNrs
A78: Com_InGen-LF | B78: 2016-01-01 | D78: Com | E78: Lighting | F78: InGen-LF | G78: OfL | H78: Any | I78: 2070 | L78: Com_InGen-LFOfL
A79: Com_InGen-LF | B79: 2016-01-01 | D79: Com | E79: Lighting | F79: InGen-LF | G79: OfS | H79: Any | I79: 1530 | L79: Com_InGen-LFOfS
A80: Com_InGen-LF | B80: 2016-01-01 | D80: Com | E80: Lighting | F80: InGen-LF | G80: RFF | H80: Any | I80: 3880 | L80: Com_InGen-LFRFF
A81: Com_InGen-LF | B81: 2016-01-01 | D81: Com | E81: Lighting | F81: InGen-LF | G81: RSD | H81: Any | I81: 3120 | L81: Com_InGen-LFRSD
A82: Com_InGen-LF | B82: 2016-01-01 | D82: Com | E82: Lighting | F82: InGen-LF | G82: Rt3 | H82: Any | I82: 5250 | L82: Com_InGen-LFRt3
A83: Com_InGen-LF | B83: 2016-01-01 | D83: Com | E83: Lighting | F83: InGen-LF | G83: RtL | H83: Any | I83: 3050 | L83: Com_InGen-LFRtL
A84: Com_InGen-LF | B84: 2016-01-01 | D84: Com | E84: Lighting | F84: InGen-LF | G84: RtS | H84: Any | I84: 2740 | L84: Com_InGen-LFRtS
A85: Com_InGen-LF | B85: 2016-01-01 | D85: Com | E85: Lighting | F85: InGen-LF | G85: s_Agr | H85: Any | I85: 2160 | L85: Com_InGen-LFs_Agr
A86: Com_InGen-LF | B86: 2016-01-01 | D86: Com | E86: Lighting | F86: InGen-LF | G86: s_Cli | H86: Any | I86: 2750 | L86: Com_InGen-LFs_Cli
A87: Com_InGen-LF | B87: 2016-01-01 | D87: Com | E87: Lighting | F87: InGen-LF | G87: s_FSt | H87: Any | I87: 3730 | L87: Com_InGen-LFs_FSt
A88: Com_InGen-LF | B88: 2016-01-01 | D88: Com | E88: Lighting | F88: InGen-LF | G88: s_Ind | H88: Any | I88: 2270 | L88: Com_InGen-LFs_Ind
A89: Com_InGen-LF | B89: 2016-01-01 | D89: Com | E89: Lighting | F89: InGen-LF | G89: s_MiC | H89: Any | I89: 2460 | L89: Com_InGen-LFs_MiC
A90: Com_InGen-LF | B90: 2016-01-01 | D90: Com | E90: Lighting | F90: InGen-LF | G90: s_TCU | H90: Any | I90: 1960 | L90: Com_InGen-LFs_TCU
A91: Com_InGen-LF | B91: 2016-01-01 | D91: Com | E91: Lighting | F91: InGen-LF | G91: SCn | H91: Any | I91: 2030 | L91: Com_InGen-LFSCn
A92: Com_InGen-LF | B92: 2016-01-01 | D92: Com | E92: Lighting | F92: InGen-LF | G92: SUn | H92: Any | I92: 1870 | L92: Com_InGen-LFSUn
A93: Com_InGen-LF | B93: 2016-01-01 | D93: Com | E93: Lighting | F93: InGen-LF | G93: WRf | H93: Any | I93: 4470 | L93: Com_InGen-LFWRf
A94: Com_OutGen | B94: 2013-01-01 | D94: Com | E94: Lighting | F94: OutGen | G94: Any | H94: Any | I94: 4100 | L94: Com_OutGenAny
A95: Res_InCmn-Fixt | B95: 2013-01-01 | D95: Res | E95: Lighting | F95: InCommon | G95: Any | H95: Any | I95: 4340 | J95: All other technologies not listed for Res_InCmn-Lmp | L95: Res_InCmn-FixtAny
A96: Res_InCmn-Lmp | B96: 2013-01-01 | D96: Res | E96: Lighting | F96: InCommon | G96: DMo | H96: Any | I96: 6142 | J96: from Guidance doc: Screw-in CFL, screw-in LED, pin-based CFL, MR-16 | L96: Res_InCmn-LmpDMo
A97: Res_InCmn-Lmp | B97: 2013-01-01 | D97: Res | E97: Lighting | F97: InCommon | G97: MFm | H97: Any | I97: 6142 | J97: from Guidance doc: Screw-in CFL, screw-in LED, pin-based CFL, MR-16 | L97: Res_InCmn-LmpMFm
A98: Res_OutCmn-Fixt | B98: 2013-01-01 | D98: Res | E98: Lighting | F98: OutCommon | G98: Any | H98: Any | I98: 4340 | J98: All other technologies not listed for Res_OutCmn-Lmp | L98: Res_OutCmn-FixtAny
A99: Res_OutCmn-Lmp | B99: 2013-01-01 | D99: Res | E99: Lighting | F99: OutCommon | G99: DMo | H99: Any | I99: 3390 | J99: from Guidance doc: Screw-in CFL, screw-in LED, pin-based CFL, MR-16 | L99: Res_OutCmn-LmpDMo
A100: Res_OutCmn-Lmp | B100: 2013-01-01 | D100: Res | E100: Lighting | F100: OutCommon | G100: MFm | H100: Any | I100: 3390 | J100: from Guidance doc: Screw-in CFL, screw-in LED, pin-based CFL, MR-16 | L100: Res_OutCmn-LmpMFm
A101: Res_OutGen-Fixt | B101: 2013-01-01 | D101: Res | E101: Lighting | F101: OutGen | G101: Any | H101: Any | I101: 4100 | L101: =A101&G101 -> Res_OutGen-FixtAny
A102: Res_OutGen-LED | B102: 2016-01-01 | D102: Res | E102: Lighting | F102: OutGen | G102: Any | H102: Any | I102: 935 | L102: Res_OutGen-LEDAny
A105: HOU_cat | B105: StartDate | C105: ExpiryDate | D105: Sector | E105: UseCategory | F105: UseSubCategory | G105: BldgType | H105: BldgLoc | I105: HOU | J105: Comment
A106: Com_InGen-CFL | B106: 2013-01-01 | C106: 2015-12-31 | D106: Com | E106: Lighting | F106: InGen-CFL | G106: Asm | H106: Any | I106: 2250
A107: Com_InGen-CFL | B107: 2016-01-01 | D107: Com | E107: Lighting | F107: InGen-CFL | G107: Asm | H107: Any | I107: 1160
A108: Com_InGen-CFL | B108: 2013-01-01 | C108: 2015-12-31 | D108: Com | E108: Lighting | F108: InGen-CFL | G108: Com | H108: Any | I108: 3000
A109: Com_InGen-CFL | B109: 2016-01-01 | D109: Com | E109: Lighting | F109: InGen-CFL | G109: Com | H109: Any | I109: 2130
A110: Com_InGen-CFL | B110: 2013-01-01 | C110: 2015-12-31 | D110: Com | E110: Lighting | F110: InGen-CFL | G110: ECC | H110: Any | I110: 2310
A111: Com_InGen-CFL | B111: 2016-01-01 | D111: Com | E111: Lighting | F111: InGen-CFL | G111: ECC | H111: Any | I111: 1460
A112: Com_InGen-CFL | B112: 2013-01-01 | C112: 2015-12-31 | D112: Com | E112: Lighting | F112: InGen-CFL | G112: EPr | H112: Any | I112: 2110
A113: Com_InGen-CFL | B113: 2016-01-01 | D113: Com | E113: Lighting | F113: InGen-CFL | G113: EPr | H113: Any | I113: 1150
A114: Com_InGen-CFL | B114: 2013-01-01 | C114: 2015-12-31 | D114: Com | E114: Lighting | F114: InGen-CFL | G114: ERC | H114: Any | I114: 2390
A115: Com_InGen-CFL | B115: 2016-01-01 | D115: Com | E115: Lighting | F115: InGen-CFL | G115: ERC | H115: Any | I115: 998
A116: Com_InGen-CFL | B116: 2013-01-01 | C116: 2015-12-31 | D116: Com | E116: Lighting | F116: InGen-CFL | G116: ESe | H116: Any | I116: 2210
A117: Com_InGen-CFL | B117: 2016-01-01 | D117: Com | E117: Lighting | F117: InGen-CFL | G117: ESe | H117: Any | I117: 1440
A118: Com_InGen-CFL | B118: 2013-01-01 | C118: 2015-12-31 | D118: Com | E118: Lighting | F118: InGen-CFL | G118: EUn | H118: Any | I118: 2260
A119: Com_InGen-CFL | B119: 2016-01-01 | D119: Com | E119: Lighting | F119: InGen-CFL | G119: EUn | H119: Any | I119: 2020
A120: Com_InGen-CFL | B120: 2013-01-01 | C120: 2015-12-31 | D120: Com | E120: Lighting | F120: InGen-CFL | G120: Gro | H120: Any | I120: 3850
A121: Com_InGen-CFL | B121: 2016-01-01 | D121: Com | E121: Lighting | F121: InGen-CFL | G121: Gro | H121: Any | I121: 4850
A122: Com_InGen-CFL | B122: 2013-01-01 | C122: 2015-12-31 | D122: Com | E122: Lighting | F122: InGen-CFL | G122: Hsp | H122: Any | I122: 4180
A123: Com_InGen-CFL | B123: 2016-01-01 | D123: Com | E123: Lighting | F123: InGen-CFL | G123: Hsp | H123: Any | I123: 5340
A124: Com_InGen-CFL | B124: 2013-01-01 | C124: 2015-12-31 | D124: Com | E124: Lighting | F124: InGen-CFL | G124: Htl | H124: Any | I124: 1650
A125: Com_InGen-CFL | B125: 2016-01-01 | D125: Com | E125: Lighting | F125: InGen-CFL | G125: Htl | H125: Any | I125: 1590
A126: Com_InGen-CFL | B126: 2013-01-01 | C126: 2015-12-31 | D126: Com | E126: Lighting | F126: InGen-CFL | G126: MBT | H126: Any | I126: 3040
A127: Com_InGen-CFL | B127: 2016-01-01 | D127: Com | E127: Lighting | F127: InGen-CFL | G127: MBT | H127: Any | I127: 2000
A128: Com_InGen-CFL | B128: 2013-01-01 | C128: 2015-12-31 | D128: Com | E128: Lighting | F128: InGen-CFL | G128: MLI | H128: Any | I128: 2580
A129: Com_InGen-CFL | B129: 2016-01-01 | D129: Com | E129: Lighting | F129: InGen-CFL | G129: MLI | H129: Any | I129: 2260
A130: Com_InGen-CFL | B130: 2013-01-01 | C130: 2015-12-31 | D130: Com | E130: Lighting | F130: InGen-CFL | G130: Mtl | H130: Any | I130: 1330
A131: Com_InGen-CFL | B131: 2016-01-01 | D131: Com | E131: Lighting | F131: InGen-CFL | G131: Mtl | H131: Any | I131: 940
A132: Com_InGen-CFL | B132: 2013-01-01 | C132: 2015-12-31 | D132: Com | E132: Lighting | F132: InGen-CFL | G132: Nrs | H132: Any | I132: 3520
A133: Com_InGen-CFL | B133: 2016-01-01 | D133: Com | E133: Lighting | F133: InGen-CFL | G133: Nrs | H133: Any | I133: 3380
A134: Com_InGen-CFL | B134: 2013-01-01 | C134: 2015-12-31 | D134: Com | E134: Lighting | F134: InGen-CFL | G134: OfL | H134: Any | I134: 2880
A135: Com_InGen-CFL | B135: 2016-01-01 | D135: Com | E135: Lighting | F135: InGen-CFL | G135: OfL | H135: Any | I135: 1960
A136: Com_InGen-CFL | B136: 2013-01-01 | C136: 2015-12-31 | D136: Com | E136: Lighting | F136: InGen-CFL | G136: OfS | H136: Any | I136: 2720
A137: Com_InGen-CFL | B137: 2016-01-01 | D137: Com | E137: Lighting | F137: InGen-CFL | G137: OfS | H137: Any | I137: 1380
A138: Com_InGen-CFL | B138: 2013-01-01 | C138: 2015-12-31 | D138: Com | E138: Lighting | F138: InGen-CFL | G138: RFF | H138: Any | I138: 4810
A139: Com_InGen-CFL | B139: 2016-01-01 | D139: Com | E139: Lighting | F139: InGen-CFL | G139: RFF | H139: Any | I139: 3720
A140: Com_InGen-CFL | B140: 2013-01-01 | C140: 2015-12-31 | D140: Com | E140: Lighting | F140: InGen-CFL | G140: RSD | H140: Any | I140: 4830
A141: Com_InGen-CFL | B141: 2016-01-01 | D141: Com | E141: Lighting | F141: InGen-CFL | G141: RSD | H141: Any | I141: 3680
A142: Com_InGen-CFL | B142: 2013-01-01 | C142: 2015-12-31 | D142: Com | E142: Lighting | F142: InGen-CFL | G142: Rt3 | H142: Any | I142: 3710
A143: Com_InGen-CFL | B143: 2016-01-01 | D143: Com | E143: Lighting | F143: InGen-CFL | G143: Rt3 | H143: Any | I143: 1890
A144: Com_InGen-CFL | B144: 2013-01-01 | C144: 2015-12-31 | D144: Com | E144: Lighting | F144: InGen-CFL | G144: RtL | H144: Any | I144: 4350
A145: Com_InGen-CFL | B145: 2016-01-01 | D145: Com | E145: Lighting | F145: InGen-CFL | G145: RtL | H145: Any | I145: 2940
A146: Com_InGen-CFL | B146: 2013-01-01 | C146: 2015-12-31 | D146: Com | E146: Lighting | F146: InGen-CFL | G146: RtS | H146: Any | I146: 4010
A147: Com_InGen-CFL | B147: 2016-01-01 | D147: Com | E147: Lighting | F147: InGen-CFL | G147: RtS | H147: Any | I147: 2260
A148: Com_InGen-CFL | B148: 2013-01-01 | C148: 2015-12-31 | D148: Com | E148: Lighting | F148: InGen-CFL | G148: s_Agr | H148: Any | I148: 2610
A149: Com_InGen-CFL | B149: 2016-01-01 | D149: Com | E149: Lighting | F149: InGen-CFL | G149: s_Agr | H149: Any | I149: 2080
A150: Com_InGen-CFL | B150: 2013-01-01 | C150: 2015-12-31 | D150: Com | E150: Lighting | F150: InGen-CFL | G150: s_Cli | H150: Any | I150: 3120
A151: Com_InGen-CFL | B151: 2016-01-01 | D151: Com | E151: Lighting | F151: InGen-CFL | G151: s_Cli | H151: Any | I151: 2380
A152: Com_InGen-CFL | B152: 2013-01-01 | C152: 2015-12-31 | D152: Com | E152: Lighting | F152: InGen-CFL | G152: SCn | H152: Any | I152: 2740
A153: Com_InGen-CFL | B153: 2016-01-01 | D153: Com | E153: Lighting | F153: InGen-CFL | G153: SCn | H153: Any | I153: 2010
A154: Com_InGen-CFL | B154: 2013-01-01 | C154: 2015-12-31 | D154: Com | E154: Lighting | F154: InGen-CFL | G154: s_FSt | H154: Any | I154: 3930
A155: Com_InGen-CFL | B155: 2016-01-01 | D155: Com | E155: Lighting | F155: InGen-CFL | G155: s_FSt | H155: Any | I155: 3560
A156: Com_InGen-CFL | B156: 2013-01-01 | C156: 2015-12-31 | D156: Com | E156: Lighting | F156: InGen-CFL | G156: s_Ind | H156: Any | I156: 2810
A157: Com_InGen-CFL | B157: 2016-01-01 | D157: Com | E157: Lighting | F157: InGen-CFL | G157: s_Ind | H157: Any | I157: 2130
A158: Com_InGen-CFL | B158: 2013-01-01 | C158: 2015-12-31 | D158: Com | E158: Lighting | F158: InGen-CFL | G158: s_MiC | H158: Any | I158: 3850
A159: Com_InGen-CFL | B159: 2016-01-01 | D159: Com | E159: Lighting | F159: InGen-CFL | G159: s_MiC | H159: Any | I159: 2440
A160: Com_InGen-CFL | B160: 2013-01-01 | C160: 2015-12-31 | D160: Com | E160: Lighting | F160: InGen-CFL | G160: s_TCU | H160: Any | I160: 2730
A161: Com_InGen-CFL | B161: 2016-01-01 | D161: Com | E161: Lighting | F161: InGen-CFL | G161: s_TCU | H161: Any | I161: 1790
A162: Com_InGen-CFL | B162: 2013-01-01 | C162: 2015-12-31 | D162: Com | E162: Lighting | F162: InGen-CFL | G162: SUn | H162: Any | I162: 2740
A163: Com_InGen-CFL | B163: 2016-01-01 | D163: Com | E163: Lighting | F163: InGen-CFL | G163: SUn | H163: Any | I163: 1340
A164: Com_InGen-CFL | B164: 2013-01-01 | C164: 2015-12-31 | D164: Com | E164: Lighting | F164: InGen-CFL | G164: WRf | H164: Any | I164: 4660
A165: Com_InGen-CFL | B165: 2016-01-01 | D165: Com | E165: Lighting | F165: InGen-CFL | G165: WRf | H165: Any | I165: 4640
A166: Com_InGen-HB | B166: 2013-01-01 | C166: 2015-12-31 | D166: Com | E166: Lighting | F166: InGen-HB | G166: Asm | H166: Any | I166: 2530
A167: Com_InGen-HB | B167: 2016-01-01 | D167: Com | E167: Lighting | F167: InGen-HB | G167: Asm | H167: Any | I167: 1620
A168: Com_InGen-HB | B168: 2013-01-01 | C168: 2015-12-31 | D168: Com | E168: Lighting | F168: InGen-HB | G168: Com | H168: Any | I168: 3090
A169: Com_InGen-HB | B169: 2016-01-01 | D169: Com | E169: Lighting | F169: InGen-HB | G169: Com | H169: Any | I169: 3010
A170: Com_InGen-HB | B170: 2013-01-01 | C170: 2015-12-31 | D170: Com | E170: Lighting | F170: InGen-HB | G170: ECC | H170: Any | I170: 2270
A171: Com_InGen-HB | B171: 2016-01-01 | D171: Com | E171: Lighting | F171: InGen-HB | G171: ECC | H171: Any | I171: 2320
A172: Com_InGen-HB | B172: 2013-01-01 | C172: 2015-12-31 | D172: Com | E172: Lighting | F172: InGen-HB | G172: EPr | H172: Any | I172: 1950
A173: Com_InGen-HB | B173: 2016-01-01 | D173: Com | E173: Lighting | F173: InGen-HB | G173: EPr | H173: Any | I173: 2090
A174: Com_InGen-HB | B174: 2013-01-01 | C174: 2015-12-31 | D174: Com | E174: Lighting | F174: InGen-HB | G174: ERC | H174: Any | I174: 2190
A175: Com_InGen-HB | B175: 2016-01-01 | D175: Com | E175: Lighting | F175: InGen-HB | G175: ERC | H175: Any | I175: 957
A176: Com_InGen-HB | B176: 2013-01-01 | C176: 2015-12-31 | D176: Com | E176: Lighting | F176: InGen-HB | G176: ESe | H176: Any | I176: 2110
A177: Com_InGen-HB | B177: 2016-01-01 | D177: Com | E177: Lighting | F177: InGen-HB | G177: ESe | H177: Any | I177: 2190
A178: Com_InGen-HB | B178: 2013-01-01 | C178: 2015-12-31 | D178: Com | E178: Lighting | F178: InGen-HB | G178: EUn | H178: Any | I178: 2200
A179: Com_InGen-HB | B179: 2016-01-01 | D179: Com | E179: Lighting | F179: InGen-HB | G179: EUn | H179: Any | I179: 2480
A180: Com_InGen-HB | B180: 2013-01-01 | C180: 2015-12-31 | D180: Com | E180: Lighting | F180: InGen-HB | G180: Gro | H180: Any | I180: 4850
A181: Com_InGen-HB | B181: 2016-01-01 | D181: Com | E181: Lighting | F181: InGen-HB | G181: Gro | H181: Any | I181: 5390
A182: Com_InGen-HB | B182: 2013-01-01 | C182: 2015-12-31 | D182: Com | E182: Lighting | F182: InGen-HB | G182: Hsp | H182: Any | I182: 5240
A183: Com_InGen-HB | B183: 2016-01-01 | D183: Com | E183: Lighting | F183: InGen-HB | G183: Hsp | H183: Any | I183: 5840
A184: Com_InGen-HB | B184: 2013-01-01 | C184: 2015-12-31 | D184: Com | E184: Lighting | F184: InGen-HB | G184: Htl | H184: Any | I184: 1910
A185: Com_InGen-HB | B185: 2016-01-01 | D185: Com | E185: Lighting | F185: InGen-HB | G185: Htl | H185: Any | I185: 5240
A186: Com_InGen-HB | B186: 2013-01-01 | C186: 2015-12-31 | D186: Com | E186: Lighting | F186: InGen-HB | G186: MBT | H186: Any | I186: 3420
A187: Com_InGen-HB | B187: 2016-01-01 | D187: Com | E187: Lighting | F187: InGen-HB | G187: MBT | H187: Any | I187: 2720
A188: Com_InGen-HB | B188: 2013-01-01 | C188: 2015-12-31 | D188: Com | E188: Lighting | F188: InGen-HB | G188: MLI | H188: Any | I188: 3210
A189: Com_InGen-HB | B189: 2016-01-01 | D189: Com | E189: Lighting | F189: InGen-HB | G189: MLI | H189: Any | I189: 2910
A190: Com_InGen-HB | B190: 2013-01-01 | C190: 2015-12-31 | D190: Com | E190: Lighting | F190: InGen-HB | G190: Mtl | H190: Any | I190: 1500
A191: Com_InGen-HB | B191: 2016-01-01 | D191: Com | E191: Lighting | F191: InGen-HB | G191: Mtl | H191: Any | I191: 4060
A192: Com_InGen-HB | B192: 2013-01-01 | C192: 2015-12-31 | D192: Com | E192: Lighting | F192: InGen-HB | G192: Nrs | H192: Any | I192: 4080
A193: Com_InGen-HB | B193: 2016-01-01 | D193: Com | E193: Lighting | F193: InGen-HB | G193: Nrs | H193: Any | I193: 3740
A194: Com_InGen-HB | B194: 2013-01-01 | C194: 2015-12-31 | D194: Com | E194: Lighting | F194: InGen-HB | G194: OfL | H194: Any | I194: 2490
A195: Com_InGen-HB | B195: 2016-01-01 | D195: Com | E195: Lighting | F195: InGen-HB | G195: OfL | H195: Any | I195: 2700
A196: Com_InGen-HB | B196: 2013-01-01 | C196: 2015-12-31 | D196: Com | E196: Lighting | F196: InGen-HB | G196: OfS | H196: Any | I196: 2250
A197: Com_InGen-HB | B197: 2016-01-01 | D197: Com | E197: Lighting | F197: InGen-HB | G197: OfS | H197: Any | I197: 1830
A198: Com_InGen-HB | B198: 2013-01-01 | C198: 2015-12-31 | D198: Com | E198: Lighting | F198: InGen-HB | G198: RFF | H198: Any | I198: 4840
A199: Com_InGen-HB | B199: 2016-01-01 | D199: Com | E199: Lighting | F199: InGen-HB | G199: RFF | H199: Any | I199: 3400
A200: Com_InGen-HB | B200: 2013-01-01 | C200: 2015-12-31 | D200: Com | E200: Lighting | F200: InGen-HB | G200: RSD | H200: Any | I200: 4830
A201: Com_InGen-HB | B201: 2016-01-01 | D201: Com | E201: Lighting | F201: InGen-HB | G201: RSD | H201: Any | I201: 3820
A202: Com_InGen-HB | B202: 2013-01-01 | C202: 2015-12-31 | D202: Com | E202: Lighting | F202: InGen-HB | G202: Rt3 | H202: Any | I202: 3370
A203: Com_InGen-HB | B203: 2016-01-01 | D203: Com | E203: Lighting | F203: InGen-HB | G203: Rt3 | H203: Any | I203: 5580
... 97 more rows

Sheet NTG
A1: Ex Ante database Support Table Export
A2: Support Table Group: cpCostEff
A3: Support Table: NTG | AA3: Calc Type Index: | AB3: =MATCH('Project Components'!H9,lookup!U4:U6,0) -> 1
A4: This file created on 2/9/2018 8:42:28 PM while connected to AmazonWS-RDS as sptviewer. | AA4: NTG selection table height | AB4: =INDEX(AA6:AC6,CTind) -> 80
A5: Program/Database Description: READI v.2.4.7 (Current Ex Ante data) options: include Non-DEER data; 1/1/2013 - 12/31/2025
S6: Date Dependency | AA6: =COUNTA(AA8:AA106) -> 80 | AB6: =COUNTA(AB8:AB106) -> 19 | AC6: 3 | AD6: 80
A7: Lookup | B7: NTG | C7: Version | D7: StartDate | E7: ExpiryDate | F7: NTG_Measure_Type | G7: NTGR_kWh | H7: NTGR_therm | I7: BldgType | J7: BldgVint | K7: NTG_Qualifier | L7: Measure_Delivery | M7: Sector | N7: UseCategory | O7: UseSubCategory | P7: TechGroup | Q7: TechType | R7: Documentation | S7: before 2016 | T7: Jan2016 - Dec2016 | U7: Jan2017 - Jun2017 | V7: Jul2017 - Dec2018 | W7: after 2018 | Z7: ALL NTG | AA7: Deemed | AB7: Custom | AC7: NMEC | AD7: Current Selection
A8: =B8&C8 -> Agric-Default>2yrsDEER2014 | B8: Agric-Default>2yrs | C8: DEER2014 | D8: 2013-01-01 | F8: All other EEMs with no evaluated NTGR; existing EEM in programs with same delivery mechanism for more than 2 years | G8: 0.6 | H8: 0.6 | I8: Any | J8: Any | K8: None | L8: Any | M8: Ag | R8: 2011 DEER Update Report - Section 15 Table 15-3 | S8: TRUE | T8: TRUE | U8: TRUE | V8: TRUE | W8: TRUE | Z8: Agric-Default>2yrs | AA8: Agric-Default>2yrs | AB8: NonRes-sAg-mCust-ci | AC8: NonRes-sAll-mCust | AD8: =IF(ISBLANK(INDEX(AA8:AC8,$AB$3)),"",INDEX(AA8:AC8,$AB$3)) -> Agric-Default>2yrs
A9: Agric-Sprklr-AllDEER2016 | B9: Agric-Sprklr-All | C9: DEER2016 | D9: 2016-01-01 | E9: 2018-12-31 | F9: Agricultural water conserving sprinkler technologies; deemed; all delivery mechanisms except upstream | G9: 0.4 | H9: 0.4 | I9: Any | J9: Any | K9: None | L9: NonUpStrm | M9: Ag | R9: 2013 ESPI Report: 2013 Sprinkler and Pipe Insulation NTGR Evaluation Report Table 1-5 | S9: FALSE | T9: TRUE | U9: TRUE | V9: TRUE | W9: FALSE | Z9: Agric-Sprklr-All | AA9: Agric-Sprklr-All | AB9: NonRes-sAll-mCFL-ci | AC9: NonRes-sAll-mCust-Elec | AD9: Agric-Sprklr-All
A10: Agric-Sprklr-AllDEER2019 | B10: Agric-Sprklr-All | C10: DEER2019 | D10: 2019-01-01 | F10: Agricultural water conserving sprinkler technologies; deemed; all delivery mechanisms except upstream | G10: 0.5 | H10: 0.5 | I10: Any | J10: Any | K10: NonUpStrm | L10: NonUpStrm | M10: Ag | R10: June 2017 DEER Update; 2013 ESPI Report: 2013 Sprinkler and Pipe Insulation NTGR Evaluation Report Table 1-5 | S10: FALSE | T10: FALSE | U10: FALSE | V10: FALSE | W10: TRUE | Z10: Agric-Sprklr-All | AA10: Agric-Sprklr-All | AB10: NonRes-sAll-mCust | AC10: NonRes-sAll-mCust-Gas | AD10: Agric-Sprklr-All
A11: Agricult-Default-HTR-diDEER2014 | B11: Agricult-Default-HTR-di | C11: DEER2014 | D11: 2013-01-01 | F11: All other EEM with no evaluated NTGR; direct install to hard-to-reach only. | G11: 0.85 | H11: 0.85 | I11: Any | J11: Any | K11: HTR | L11: DirInstall | M11: Ag | R11: 2011 DEER Update Report - Section 15 Table 15-3 | S11: TRUE | T11: TRUE | U11: TRUE | V11: TRUE | W11: TRUE | Z11: Agricult-Default-HTR-di | AA11: Agricult-Default-HTR-di | AB11: NonRes-sAll-mCust-Elec | AD11: Agricult-Default-HTR-di
A12: All-Default<=2yrsDEER2014 | B12: All-Default<=2yrs | C12: DEER2014 | D12: 2013-01-01 | F12: All other EEM with no evaluated NTGR; new technology in program for 2 or fewer years | G12: 0.7 | H12: 0.7 | I12: Any | J12: Any | K12: None | L12: Any | M12: Any | S12: TRUE | T12: TRUE | U12: TRUE | V12: TRUE | W12: TRUE | Z12: All-Default<=2yrs | AA12: All-Default<=2yrs | AB12: NonRes-sAll-mCustElec-bd | AD12: All-Default<=2yrs
A13: Com-Default>2yrsDEER2014 | B13: Com-Default>2yrs | C13: DEER2014 | D13: 2013-01-01 | F13: All other EEMs with no evaluated NTGR; existing EEM in programs with same delivery mechanism for more than 2 years | G13: 0.6 | H13: 0.6 | I13: Any | J13: Any | K13: None | L13: Any | M13: Com | R13: 2011 DEER Update Report - Section 15 Table 15-3 | S13: TRUE | T13: TRUE | U13: TRUE | V13: TRUE | W13: TRUE | Z13: Com-Default>2yrs | AA13: Com-Default>2yrs | AB13: NonRes-sAll-mCust-Gas | AD13: Com-Default>2yrs
A14: Com-Default-HTR-diDEER2014 | B14: Com-Default-HTR-di | C14: DEER2014 | D14: 2013-01-01 | F14: All other EEM with no evaluated NTGR; direct install to hard-to-reach only. | G14: 0.85 | H14: 0.85 | I14: Any | J14: Any | K14: HTR | L14: DirInstall | M14: Com | R14: 2011 DEER Update Report - Section 15 Table 15-3 | S14: TRUE | T14: TRUE | U14: TRUE | V14: TRUE | W14: TRUE | Z14: Com-Default-HTR-di | AA14: Com-Default-HTR-di | AB14: NonRes-sAll-mHVAC-Chiller | AD14: Com-Default-HTR-di
A15: ConstrainedAreaProgramDEER2015 | B15: ConstrainedAreaProgram | C15: DEER2015 | D15: 2015-01-01 | F15: All programs targeting local T&D or generation constrained area | G15: 0.85 | H15: 0.85 | I15: Any | J15: Any | K15: None | L15: Any | M15: Any | R15: CPUC (Decision) D.14-10-046 | S15: TRUE | T15: TRUE | U15: TRUE | V15: TRUE | W15: TRUE | Z15: ConstrainedAreaProgram | AA15: ConstrainedAreaProgram | AB15: NonRes-sAll-mLtg-ci | AD15: ConstrainedAreaProgram
A16: ET-DefaultDEER2014 | B16: ET-Default | C16: DEER2014 | D16: 2013-01-01 | F16: Emerging Technologies approved by ED through work paper review | G16: 0.85 | H16: 0.85 | I16: Any | J16: Any | K16: None | L16: Any | M16: Any | S16: TRUE | T16: TRUE | U16: TRUE | V16: TRUE | W16: TRUE | Z16: ET-Default | AA16: ET-Default | AB16: NonRes-sAll-mLtg-ci | AD16: ET-Default
A17: EUC-DefaultDEER2014 | B17: EUC-Default | C17: DEER2014 | D17: 2013-01-01 | E17: 2015-12-31 | F17: Energy Upgrade California | G17: 0.85 | H17: 0.85 | I17: Any | J17: Any | K17: None | L17: Any | M17: Res | S17: TRUE | T17: FALSE | U17: FALSE | V17: FALSE | W17: FALSE | Z17: EUC-Default | AA17: EUC-Default | AB17: NonRes-sAll-mPipeIns | AD17: EUC-Default
A18: EUC-DefaultDEER2016 | B18: EUC-Default | C18: DEER2016 | D18: 2016-01-01 | F18: Energy Upgrade California | G18: 0.7 | H18: 0.7 | I18: Any | J18: Any | K18: None | L18: Any | M18: Res | R18: 2013 ESPI MEMO Energy Upgrade California (EUC) Review | S18: FALSE | T18: TRUE | U18: TRUE | V18: TRUE | W18: TRUE | Z18: EUC-Default | AA18: EUC-Default | AB18: NonRes-sAll-mPipeIns-ci | AD18: EUC-Default
A19: Ind-Default>2yrsDEER2014 | B19: Ind-Default>2yrs | C19: DEER2014 | D19: 2013-01-01 | F19: All other EEMs with no evaluated NTGR; existing EEM in programs with same delivery mechanism for more than 2 years | G19: 0.6 | H19: 0.6 | I19: Any | J19: Any | K19: None | L19: Any | M19: Ind | R19: 2011 DEER Update Report - Section 15 Table 15-3 | S19: TRUE | T19: TRUE | U19: TRUE | V19: TRUE | W19: TRUE | Z19: Ind-Default>2yrs | AA19: Ind-Default>2yrs | AB19: NonRes-sAll-mPipeIns-ci | AD19: Ind-Default>2yrs
A20: Ind-Default-HTR-diDEER2014 | B20: Ind-Default-HTR-di | C20: DEER2014 | D20: 2013-01-01 | F20: All other EEM with no evaluated NTGR; direct install to hard-to-reach only. | G20: 0.85 | H20: 0.85 | I20: Any | J20: Any | K20: HTR | L20: DirInstall | M20: Ind | R20: 2011 DEER Update Report - Section 15 Table 15-3 | S20: TRUE | T20: TRUE | U20: TRUE | V20: TRUE | W20: TRUE | Z20: Ind-Default-HTR-di | AA20: Ind-Default-HTR-di | AB20: NonRes-sAll-mPOC | AD20: Ind-Default-HTR-di
A21: K-12School-ComCollegeDEER2015 | B21: K-12School-ComCollege | C21: DEER2015 | D21: 2015-01-01 | F21: All K-12 and community college projects | G21: 0.85 | H21: 0.85 | I21: ECC | J21: Any | K21: None | L21: Any | M21: Com | R21: CPUC (Decision) D.14-10-046 | S21: TRUE | T21: TRUE | U21: TRUE | V21: TRUE | W21: TRUE | Z21: K-12School-ComCollege | AA21: K-12School-ComCollege | AB21: NonRes-sAll-mRCx-ci | AD21: K-12School-ComCollege
A22: K-12School-ComCollegeDEER2015 | B22: K-12School-ComCollege | C22: DEER2015 | D22: 2015-01-01 | F22: All K-12 and community college projects | G22: 0.85 | H22: 0.85 | I22: EPr | J22: Any | K22: None | L22: Any | M22: Com | R22: CPUC (Decision) D.14-10-046 | S22: TRUE | T22: TRUE | U22: TRUE | V22: TRUE | W22: TRUE | Z22: K-12School-ComCollege | AA22: K-12School-ComCollege | AB22: NonRes-sAll-mStmTrp-ci | AD22: K-12School-ComCollege
A23: K-12School-ComCollegeDEER2015 | B23: K-12School-ComCollege | C23: DEER2015 | D23: 2015-01-01 | F23: All K-12 and community college projects | G23: 0.85 | H23: 0.85 | I23: ERC | J23: Any | K23: None | L23: Any | M23: Com | R23: CPUC (Decision) D.14-10-046 | S23: TRUE | T23: TRUE | U23: TRUE | V23: TRUE | W23: TRUE | Z23: K-12School-ComCollege | AA23: K-12School-ComCollege | AB23: NonRes-sAll-mT5T8-ci | AD23: K-12School-ComCollege
A24: K-12School-ComCollegeDEER2015 | B24: K-12School-ComCollege | C24: DEER2015 | D24: 2015-01-01 | F24: All K-12 and community college projects | G24: 0.85 | H24: 0.85 | I24: ESe | J24: Any | K24: None | L24: Any | M24: Com | R24: CPUC (Decision) D.14-10-046 | S24: TRUE | T24: TRUE | U24: TRUE | V24: TRUE | W24: TRUE | Z24: K-12School-ComCollege | AA24: K-12School-ComCollege | AB24: NonRes-sAll-NC | AD24: K-12School-ComCollege
A25: NonRes-sAg-mCust-ciDEER2014 | B25: NonRes-sAg-mCust-ci | C25: DEER2014 | D25: 2013-01-01 | F25: All other custom either electric or natural gas measures | G25: 0.7 | H25: 0.7 | I25: Any | J25: Any | K25: None | L25: CustIncentDown | M25: Ag | R25: 2011 DEER Update Report - Section 9 Table 9-5 | S25: TRUE | T25: TRUE | U25: TRUE | V25: TRUE | W25: TRUE | Z25: NonRes-sAg-mCust-ci | AA25: NonRes-sAll-mCFL | AB25: NonRes-sGHS-mHtCrtn-ci | AD25: NonRes-sAll-mCFL
A26: NonRes-sAll-mCFLDEER2014 | B26: NonRes-sAll-mCFL | C26: DEER2014 | D26: 2013-01-01 | E26: 2017-06-30 | F26: CFL-screw in, All. | G26: 0.54 | H26: 0.54 | I26: Any | J26: Any | K26: None | L26: PreRebUp | M26: Com | N26: Lighting | O26: InGen | P26: Ltg_Lamp | Q26: CFLint_lamp | R26: 2011 DEER Update Report - Section 8, Table 8-1 | S26: TRUE | T26: TRUE | U26: TRUE | V26: FALSE | W26: FALSE | Z26: NonRes-sAll-mCFL | AA26: NonRes-sAll-mCFL | AB26: NonRes-sGHS-mIRF-ci | AD26: NonRes-sAll-mCFL
A27: NonRes-sAll-mCFLExAnte2017 | B27: NonRes-sAll-mCFL | C27: ExAnte2017 | D27: 2017-07-01 | F27: All nonresidential CFLs, all delivery mechanisms | G27: 0.85 | H27: 0.85 | I27: Any | J27: Any | K27: None | L27: PreRebUp | M27: NonRes | N27: Lighting | O27: Any | P27: Ltg_Lamp | Q27: CFLint_lamp | R27: 2017 Phase 1 Screw-in lamp disposition, Table 4 | S27: FALSE | T27: FALSE | U27: FALSE | V27: TRUE | W27: TRUE | Z27: NonRes-sAll-mCFL | AA27: NonRes-sAll-mCFL-All | AD27: NonRes-sAll-mCFL-All
A28: NonRes-sAll-mCFL-AllDEER2016 | B28: NonRes-sAll-mCFL-All | C28: DEER2016 | D28: 2016-01-01 | E28: 2017-06-30 | F28: Nonresidential CFLs: deemed; all delivery mechanisms except upstream | G28: 0.6 | H28: 0.6 | I28: Any | J28: Any | K28: None | L28: NonUpStrm | M28: NonRes | N28: Lighting | O28: Any | R28: 2011 DEER Update Report - Section 7, Table 7-3 | S28: TRUE | T28: TRUE | U28: TRUE | V28: FALSE | W28: FALSE | Z28: NonRes-sAll-mCFL-All | AA28: NonRes-sAll-mCFL-dir | AD28: NonRes-sAll-mCFL-dir
A29: NonRes-sAll-mCFL-ciDEER2014 | B29: NonRes-sAll-mCFL-ci | C29: DEER2014 | D29: 2013-01-01 | E29: 2015-12-31 | F29: CFLs | G29: 0.53 | H29: 0.53 | I29: Any | J29: Any | K29: None | L29: CustIncentDown | M29: Com | N29: Lighting | O29: InGen | R29: 2011 DEER Update Report - Section 7, Table 7-3 | S29: TRUE | T29: FALSE | U29: FALSE | V29: FALSE | W29: FALSE | Z29: NonRes-sAll-mCFL-ci | AA29: NonRes-sAll-mCFL-dn | AD29: NonRes-sAll-mCFL-dn
A30: NonRes-sAll-mCFL-dirDEER2014 | B30: NonRes-sAll-mCFL-dir | C30: DEER2014 | D30: 2013-01-01 | E30: 2015-12-31 | F30: CFLs | G30: 0.8 | H30: 0.8 | I30: Any | J30: Any | K30: HTR | L30: DirInstall | M30: Com | N30: Lighting | O30: InGen | R30: 2011 DEER Update Report - Section 7, Table 7-3 | S30: TRUE | T30: FALSE | U30: FALSE | V30: FALSE | W30: FALSE | Z30: NonRes-sAll-mCFL-dir | AA30: NonRes-sAll-mELtg-DnStrmDeemed | AD30: NonRes-sAll-mELtg-DnStrmDeemed
A31: NonRes-sAll-mCFL-dnDEER2014 | B31: NonRes-sAll-mCFL-dn | C31: DEER2014 | D31: 2013-01-01 | E31: 2015-12-31 | F31: CFLs | G31: 0.53 | H31: 0.53 | I31: Any | J31: Any | K31: None | L31: PreRebDown | M31: Com | N31: Lighting | O31: InGen | R31: 2011 DEER Update Report - Section 7, Table 7-3 | S31: TRUE | T31: FALSE | U31: FALSE | V31: FALSE | W31: FALSE | Z31: NonRes-sAll-mCFL-dn | AA31: NonRes-sAll-mHVAC-DX-up | AD31: NonRes-sAll-mHVAC-DX-up
A32: NonRes-sAll-mCustDEER2014 | B32: NonRes-sAll-mCust | C32: DEER2014 | D32: 2013-01-01 | F32: Custom Mixed Electric and Natural Gas Measures | G32: 0.6 | H32: 0.5 | I32: Any | J32: Any | K32: None | L32: CustIncentDown | M32: NonRes | R32: 2011 DEER Update Report - Section 9 Table 9-5 | S32: TRUE | T32: TRUE | U32: TRUE | V32: TRUE | W32: TRUE | Z32: NonRes-sAll-mCust | AA32: NonRes-sAll-mHVAC-DX-up | AD32: NonRes-sAll-mHVAC-DX-up
A33: NonRes-sAll-mCust-ElecDEER2014 | B33: NonRes-sAll-mCust-Elec | C33: DEER2014 | D33: 2013-01-01 | F33: Custom Electric Measures (that may have natural gas impacts due to the electric measures) | G33: 0.6 | H33: 0.6 | I33: Any | J33: Any | K33: None | L33: CustIncentDown | M33: NonRes | S33: TRUE | T33: TRUE | U33: TRUE | V33: TRUE | W33: TRUE | Z33: NonRes-sAll-mCust-Elec | AA33: NonRes-sAll-mHVAC-Pkg | AD33: NonRes-sAll-mHVAC-Pkg
A34: NonRes-sAll-mCustElec-bdDEER2014 | B34: NonRes-sAll-mCustElec-bd | C34: DEER2014 | D34: 2013-01-01 | E34: 2015-12-31 | F34: Custom Electric Measures, RFP or Bid | G34: 0.7 | H34: 0.7 | I34: Any | J34: Any | K34: None | L34: CustIncent | M34: NonRes | R34: 2011 DEER Update Report - Section 9 Table 9-5 | S34: TRUE | T34: FALSE | U34: FALSE | V34: FALSE | W34: FALSE | Z34: NonRes-sAll-mCustElec-bd | AA34: NonRes-sAll-mHVAC-Pkg | AD34: NonRes-sAll-mHVAC-Pkg
A35: NonRes-sAll-mCust-GasDEER2014 | B35: NonRes-sAll-mCust-Gas | C35: DEER2014 | D35: 2013-01-01 | F35: Custom Natural Gas Measures (that may have electric savings due to the natural gas measures) | G35: 0.5 | H35: 0.5 | I35: Any | J35: Any | K35: None | L35: CustIncentDown | M35: NonRes | S35: TRUE | T35: TRUE | U35: TRUE | V35: TRUE | W35: TRUE | Z35: NonRes-sAll-mCust-Gas | AA35: NonRes-sAll-mHVAC-RCA | AD35: NonRes-sAll-mHVAC-RCA
A36: NonRes-sAll-mELtg-DnStrmDeemedDEER2019 | B36: NonRes-sAll-mELtg-DnStrmDeemed | C36: DEER2019 | D36: 2019-01-01 | F36: LED outdoor lighting fixtures, deemed + downstream | G36: 0.45 | H36: 0.45 | I36: Any | J36: Any | K36: Any | L36: Any | M36: NonRes | N36: Lighting | O36: OutGen | P36: Ltg_Lamp | Q36: LED_Lamp | R36: June 2017 DEER Update; 2015 Nonresidential ESPI Deemed Lighting Impact Evaluation | S36: FALSE | T36: FALSE | U36: FALSE | V36: FALSE | W36: TRUE | Z36: NonRes-sAll-mELtg-DnStrmDeemed | AA36: NonRes-sAll-mLEDARefl | AD36: NonRes-sAll-mLEDARefl
A37: NonRes-sAll-mHVAC-ChillerDEER2014 | B37: NonRes-sAll-mHVAC-Chiller | C37: DEER2014 | D37: 2013-01-01 | F37: All chiller replacements - space cooling applications | G37: 0.58 | H37: 0.58 | I37: Any | J37: Ex | K37: None | L37: CustIncentDown | M37: Com | N37: HVAC | O37: SpaceCool | P37: Chiller | R37: 2011 DEER Update Report - Section 10 Table 10-6 | S37: TRUE | T37: TRUE | U37: TRUE | V37: TRUE | W37: TRUE | Z37: NonRes-sAll-mHVAC-Chiller | AA37: NonRes-sAll-mLEDSpcl | AD37: NonRes-sAll-mLEDSpcl
A38: NonRes-sAll-mHVAC-DX-upDEER2014 | B38: NonRes-sAll-mHVAC-DX-up | C38: DEER2014 | D38: 2013-01-01 | E38: 2015-12-31 | F38: All package and split system AC & HP replacements | G38: 0.85 | H38: 0.85 | I38: Any | J38: Ex | K38: None | L38: PreRebUp | M38: Com | N38: HVAC | O38: SpaceCool | P38: dxAC_equip | R38: 2011 DEER Update Report - Section 10 Table 10-6 | S38: TRUE | T38: FALSE | U38: FALSE | V38: FALSE | W38: FALSE | Z38: NonRes-sAll-mHVAC-DX-up | AA38: NonRes-sAll-mLFDL-Deemed | AD38: NonRes-sAll-mLFDL-Deemed
A39: NonRes-sAll-mHVAC-DX-upDEER2016 | B39: NonRes-sAll-mHVAC-DX-up | C39: DEER2016 | D39: 2016-01-01 | F39: Nonresidential Package HVAC Equipment: deemed; upstream delivery | G39: 0.75 | H39: 0.75 | I39: Any | J39: Ex | K39: None | L39: PreRebUp | M39: Com | N39: HVAC | R39: WO32 HVAC Impact Evaluation Report Table 35 | S39: FALSE | T39: TRUE | U39: TRUE | V39: TRUE | W39: TRUE | Z39: NonRes-sAll-mHVAC-DX-up | AA39: NonRes-sAll-mLFHB-Deemed | AD39: NonRes-sAll-mLFHB-Deemed
A40: =B40&C40 -> NonRes-sAll-mHVAC-PkgDEER2017 | B40: NonRes-sAll-mHVAC-Pkg | C40: DEER2017 | D40: 2017-01-01 | E40: 2018-12-31 | F40: All package HVAC AC and HP replacements with downstream incentives | G40: 0.75 | H40: 0.75 | I40: Any | J40: Any | K40: Any | L40: Any | M40: NonRes | N40: HVAC | R40: June 2017 DEER Update | S40: FALSE | T40: FALSE | U40: TRUE | V40: TRUE | W40: FALSE | Z40: NonRes-sAll-mHVAC-Pkg | AA40: NonRes-sAll-mLFHBT5-Deemed | AD40: =IF(ISBLANK(INDEX(AA40:AC40,$AB$3)),"",INDEX(AA40:AC40,$AB$3)) -> NonRes-sAll-mLFHBT5-Deemed
A41: NonRes-sAll-mHVAC-PkgDEER2019 | B41: NonRes-sAll-mHVAC-Pkg | C41: DEER2019 | D41: 2019-01-01 | F41: All package HVAC AC and HP replacements with downstream incentives | G41: 0.6 | H41: 0.6 | I41: Any | J41: Any | K41: Any | L41: Any | M41: NonRes | N41: HVAC | R41: June 2017 DEER Update | S41: FALSE | T41: FALSE | U41: FALSE | V41: FALSE | W41: TRUE | Z41: NonRes-sAll-mHVAC-Pkg | AA41: NonRes-sAll-mLFOth-Deemed | AD41: NonRes-sAll-mLFOth-Deemed
A42: NonRes-sAll-mHVAC-RCADEER2014 | B42: NonRes-sAll-mHVAC-RCA | C42: DEER2014 | D42: 2013-01-01 | F42: HVAC Maintenance: Refrigerant Charge Adjustment (RCA); all delivery mechanisms except upstream | G42: 0.73 | H42: 0.73 | I42: Any | J42: Ex | K42: None | L42: NonUpStrm | M42: Com | N42: Service | O42: Diagnostic | P42: dxAC_equip | Q42: SpltSEER | R42: 2011 DEER Update Report - Section 10 Table 10-6 | S42: TRUE | T42: TRUE | U42: TRUE | V42: TRUE | W42: TRUE | Z42: NonRes-sAll-mHVAC-RCA | AA42: NonRes-sAll-mLtgCtrl | AD42: NonRes-sAll-mLtgCtrl
A43: NonRes-sAll-mLEDAReflExAnte2017 | B43: NonRes-sAll-mLEDARefl | C43: ExAnte2017 | D43: 2017-07-01 | F43: Nonresidential LED A-lamp and screw-in reflector, all delivery mechanisms | G43: 0.91 | H43: 0.91 | I43: Any | J43: Any | K43: None | L43: Any | M43: NonRes | N43: Lighting | O43: Any | P43: Ltg_Lamp | Q43: LED_Lamp | R43: 2017 Phase 1 Screw-in lamp disposition, Table 4 | S43: FALSE | T43: FALSE | U43: FALSE | V43: TRUE | W43: TRUE | Z43: NonRes-sAll-mLEDARefl | AA43: NonRes-sAll-mLtgCtrl-htr | AD43: NonRes-sAll-mLtgCtrl-htr
A44: NonRes-sAll-mLEDSpclExAnte2017 | B44: NonRes-sAll-mLEDSpcl | C44: ExAnte2017 | D44: 2017-07-01 | F44: All nonresidential specialty LED lamps (other than A-lamp and screw-in reflector) | G44: 0.6 | H44: 0.6 | I44: Any | J44: Any | K44: None | L44: Any | M44: NonRes | N44: Lighting | O44: Any | P44: Ltg_Lamp | Q44: CFLint_Lamp | R44: 2017 Phase 1 Screw-in lamp disposition, Table 4 | S44: FALSE | T44: FALSE | U44: FALSE | V44: TRUE | W44: TRUE | Z44: NonRes-sAll-mLEDSpcl | AA44: NonRes-sAll-MLtgLED-Deemed | AD44: NonRes-sAll-MLtgLED-Deemed
A45: NonRes-sAll-mLFDL-DeemedDEER2016 | B45: NonRes-sAll-mLFDL-Deemed | C45: DEER2016 | D45: 2016-01-01 | F45: Nonresidential Linear Fluorescent: delamping; deemed; all delivery mechanisms except upstream | G45: 0.65 | H45: 0.65 | I45: Any | J45: Any | K45: None | L45: NonUpStrm | M45: NonRes | N45: Lighting | O45: Any | R45: 2013 ESPI Report: 2013 Deemed ESPI Lighting Evaluation Table 3-18 | S45: FALSE | T45: TRUE | U45: TRUE | V45: TRUE | W45: TRUE | Z45: NonRes-sAll-mLFDL-Deemed | AA45: NonRes-sAll-mOccSens | AD45: NonRes-sAll-mOccSens
A46: NonRes-sAll-mLFHB-DeemedDEER2016 | B46: NonRes-sAll-mLFHB-Deemed | C46: DEER2016 | D46: 2016-01-01 | F46: Nonresidential Linear Fluorescent: high bay applications; deemed; all delivery mechanisms | G46: 0.65 | H46: 0.65 | I46: Any | J46: Any | K46: None | L46: Any | M46: NonRes | N46: Lighting | O46: Any | R46: 2013 ESPI Report: 2013 Deemed ESPI Lighting Evaluation Table 3-18 | S46: FALSE | T46: TRUE | U46: TRUE | V46: TRUE | W46: TRUE | Z46: NonRes-sAll-mLFHB-Deemed | AA46: NonRes-sAll-mPipeIns-deemed | AD46: NonRes-sAll-mPipeIns-deemed
A47: NonRes-sAll-mLFHBT5-DeemedDEER2016 | B47: NonRes-sAll-mLFHBT5-Deemed | C47: DEER2016 | D47: 2016-01-01 | F47: Nonresidential Linear Fluorescent: T5 lamps; high bay applications; deemed; all delivery mechanisms | G47: 0.65 | H47: 0.65 | I47: Any | J47: Any | K47: None | L47: Any | M47: NonRes | N47: Lighting | O47: Any | R47: 2013 ESPI Report: 2013 Deemed ESPI Lighting Evaluation Table 3-18 | S47: FALSE | T47: TRUE | U47: TRUE | V47: TRUE | W47: TRUE | Z47: NonRes-sAll-mLFHBT5-Deemed | AA47: NonRes-sAll-mPipeIns-deemed | AD47: NonRes-sAll-mPipeIns-deemed
A48: NonRes-sAll-mLFOth-DeemedDEER2016 | B48: NonRes-sAll-mLFOth-Deemed | C48: DEER2016 | D48: 2016-01-01 | F48: Nonresidential Linear Fluorescent: measures not listed elsewhere; deemed; all delivery mechanisms | G48: 0.6 | H48: 0.6 | I48: Any | J48: Any | K48: None | L48: Any | M48: NonRes | N48: Lighting | O48: Any | S48: FALSE | T48: TRUE | U48: TRUE | V48: TRUE | W48: TRUE | Z48: NonRes-sAll-mLFOth-Deemed | AA48: NonRes-sAll-mPmpTst | AD48: NonRes-sAll-mPmpTst
A49: NonRes-sAll-mLtg-ciDEER2016 | B49: NonRes-sAll-mLtg-ci | C49: DEER2016 | D49: 2016-01-01 | E49: 2018-12-31 | F49: Nonresidential Lighting: all technologies except screw-in lamps; custom; all delivery mechanisms | G49: 0.55 | H49: 0.55 | I49: Any | J49: Any | K49: None | L49: CustIncent | M49: NonRes | N49: Lighting | S49: FALSE | T49: TRUE | U49: TRUE | V49: TRUE | W49: FALSE | Z49: NonRes-sAll-mLtg-ci | AA49: NonRes-sAll-mRCx-dn | AD49: NonRes-sAll-mRCx-dn
A50: NonRes-sAll-mLtg-ciDEER2019 | B50: NonRes-sAll-mLtg-ci | C50: DEER2019 | D50: 2019-01-01 | F50: Nonresidential Lighting: all technologies except screw-in lamps; custom; all delivery mechanisms | G50: 0.5 | H50: 0.5 | I50: Any | J50: Any | K50: CustIncent | L50: CustIncent | M50: NonRes | N50: Lighting | R50: June 2017 DEER Update; 2015 Nonresidential ESPI Custom Lighting Impact Evaluation | S50: FALSE | T50: FALSE | U50: FALSE | V50: FALSE | W50: TRUE | Z50: NonRes-sAll-mLtg-ci | AA50: NonRes-sAll-mRfg-DG | AD50: NonRes-sAll-mRfg-DG
A51: NonRes-sAll-mLtgCtrlDEER2014 | B51: NonRes-sAll-mLtgCtrl | C51: DEER2014 | D51: 2013-01-01 | F51: Lighting controls (not listed elsewhere) | G51: 0.6 | H51: 0.6 | I51: Any | J51: Any | K51: None | L51: PreRebDown | M51: Com | N51: Lighting | P51: Ltg_Controls | R51: 2011 DEER Update Report - Section 7, Table 7-3 | S51: TRUE | T51: TRUE | U51: TRUE | V51: TRUE | W51: TRUE | Z51: NonRes-sAll-mLtgCtrl | AA51: NonRes-sAll-mRfg-SC | AD51: NonRes-sAll-mRfg-SC
A52: NonRes-sAll-mLtgCtrl-htrDEER2014 | B52: NonRes-sAll-mLtgCtrl-htr | C52: DEER2014 | D52: 2013-01-01 | F52: Lighting controls (not listed elsewhere) | G52: 0.89 | H52: 0.89 | I52: Any | J52: Any | K52: HTR | L52: DirInstall | M52: Com | N52: Lighting | P52: Ltg_Controls | R52: 2011 DEER Update Report - Section 7, Table 7-3 | S52: TRUE | T52: TRUE | U52: TRUE | V52: TRUE | W52: TRUE | Z52: NonRes-sAll-mLtgCtrl-htr | AA52: NonRes-sAll-mStmTrp-dn | AD52: NonRes-sAll-mStmTrp-dn
A53: NonRes-sAll-MLtgLED-DeemedDEER2016 | B53: NonRes-sAll-MLtgLED-Deemed | C53: DEER2016 | D53: 2016-01-01 | E53: 2017-06-30 | F53: Nonresidential LED: replacing CFL or incandescent lamps; deemed; all delivery mechanisms except upstream | G53: 0.6 | H53: 0.6 | I53: Any | J53: Any | K53: None | L53: NonUpStrm | M53: NonRes | N53: Lighting | O53: Any | R53: 2013 ESPI Report: 2013 Deemed ESPI Lighting Evaluation Table 3-18 | S53: TRUE | T53: TRUE | U53: TRUE | V53: FALSE | W53: FALSE | Z53: NonRes-sAll-MLtgLED-Deemed | AA53: NonRes-sAll-mT5T8-dn | AD53: NonRes-sAll-mT5T8-dn
A54: NonRes-sAll-mOccSensDEER2014 | B54: NonRes-sAll-mOccSens | C54: DEER2014 | D54: 2013-01-01 | F54: Occupancy Sensors | G54: 0.6 | H54: 0.6 | I54: Any | J54: Any | K54: None | L54: PreRebDown | M54: Com | N54: Lighting | P54: Ltg_Controls | Q54: OccSensor | R54: 2011 DEER Update Report - Section 7, Table 7-3 | S54: TRUE | T54: TRUE | U54: TRUE | V54: TRUE | W54: TRUE | Z54: NonRes-sAll-mOccSens | AA54: NonRes-sAll-mT8-dir | AD54: NonRes-sAll-mT8-dir
A55: NonRes-sAll-mPipeInsDEER2014 | B55: NonRes-sAll-mPipeIns | C55: DEER2014 | D55: 2013-01-01 | E55: 2015-12-31 | F55: Pipe insulation - industrial processes only | G55: 0.71 | H55: 0.71 | I55: Any | J55: Ex | K55: None | L55: CustIncentDown | M55: Ind | N55: ProcDist | Q55: PipeIns | R55: 2011 DEER Update Report - Section 9 Table 9-5 | S55: TRUE | T55: FALSE | U55: FALSE | V55: FALSE | W55: FALSE | Z55: NonRes-sAll-mPipeIns | AA55: NonRes-sGHS-mHtCrtn-dn | AD55: NonRes-sGHS-mHtCrtn-dn
A56: NonRes-sAll-mPipeIns-ciDEER2016 | B56: NonRes-sAll-mPipeIns-ci | C56: DEER2016 | D56: 2016-01-01 | E56: 2018-12-31 | F56: Pipe insulation: non-HVAC or DHW applications; custom; all delivery mechanisms | G56: 0.6 | H56: 0.6 | I56: Any | J56: Ex | K56: None | L56: CustIncent | M56: Ind | N56: ProcDist | Q56: PipeIns | S56: FALSE | T56: TRUE | U56: TRUE | V56: TRUE | W56: FALSE | Z56: NonRes-sAll-mPipeIns-ci | AA56: NonRes-sGHS-mIRF-dn | AD56: NonRes-sGHS-mIRF-dn
A57: NonRes-sAll-mPipeIns-ciDEER2019 | B57: NonRes-sAll-mPipeIns-ci | C57: DEER2019 | D57: 2019-01-01 | F57: Pipe insulation: non-HVAC or DHW applications; custom; all delivery mechanisms | G57: 0.45 | H57: 0.45 | I57: Any | J57: Ex | K57: CustIncent | L57: CustIncent | M57: Ind | N57: ProcDist | Q57: PipeIns | R57: June 2017 DEER Update; 2015 Nonresidential Downstream ESPI Deemed Pipe Insulation Impact Evaluation | S57: FALSE | T57: FALSE | U57: FALSE | V57: FALSE | W57: TRUE | Z57: NonRes-sAll-mPipeIns-ci | AA57: Res-Default>2 | AD57: Res-Default>2
A58: NonRes-sAll-mPipeIns-deemedDEER2016 | B58: NonRes-sAll-mPipeIns-deemed | C58: DEER2016 | D58: 2016-01-01 | E58: 2018-12-31 | F58: Pipe insulation: non-HVAC or DHW applications; deemed; all delivery mechanisms except upstream | G58: 0.6 | H58: 0.6 | I58: Any | J58: Ex | K58: None | L58: NonUpStrm | M58: Ind | N58: ProcDist | Q58: PipeIns | R58: 2013 ESPI Report: 2013 Sprinkler and Pipe Insulation NTGR Evaluation Report Table 1-5 | S58: FALSE | T58: TRUE | U58: TRUE | V58: TRUE | W58: FALSE | Z58: NonRes-sAll-mPipeIns-deemed | AA58: Res-Default-HTR-di | AD58: Res-Default-HTR-di
A59: NonRes-sAll-mPipeIns-deemedDEER2019 | B59: NonRes-sAll-mPipeIns-deemed | C59: DEER2019 | D59: 2019-01-01 | F59: Pipe insulation: non-HVAC or DHW applications; deemed; all delivery mechanisms except upstream | G59: 0.45 | H59: 0.45 | I59: Any | J59: Ex | K59: NonUpStrm | L59: NonUpStrm | M59: Ind | N59: ProcDist | Q59: PipeIns | R59: June 2017 DEER Update; 2015 Nonresidential Downstream ESPI Deemed Pipe Insulation Impact Evaluation | S59: FALSE | T59: FALSE | U59: FALSE | V59: FALSE | W59: TRUE | Z59: NonRes-sAll-mPipeIns-deemed | AA59: Res-mDHWaerator | AD59: Res-mDHWaerator
A60: NonRes-sAll-mPmpTstDEER2014 | B60: NonRes-sAll-mPmpTst | C60: DEER2014 | D60: 2013-01-01 | E60: 2015-12-31 | F60: Pump testing services | G60: 0.63 | H60: 0.63 | I60: Any | J60: Any | K60: None | L60: Any | M60: Ag | N60: Service | O60: Diagnostic | R60: 2011 DEER Update Report - Section 9 Table 9-5 | S60: TRUE | T60: FALSE | U60: FALSE | V60: FALSE | W60: FALSE | Z60: NonRes-sAll-mPmpTst | AA60: Res-mDHWaerator | AD60: Res-mDHWaerator
A61: NonRes-sAll-mPOCDEER2014 | B61: NonRes-sAll-mPOC | C61: DEER2014 | D61: 2013-01-01 | F61: Pump-off controller for existing oil well | G61: 0.45 | H61: 0.45 | I61: Any | J61: Ex | K61: None | L61: CustIncentDown | M61: Ind | N61: ProcDist | O61: Pumping | P61: RodPumps | Q61: PumpCtrl | R61: 2011 DEER Update Report - Section 9 | S61: TRUE | T61: TRUE | U61: TRUE | V61: TRUE | W61: TRUE | Z61: NonRes-sAll-mPOC | AA61: Res-sAll-mCFL | AD61: Res-sAll-mCFL
A62: NonRes-sAll-mRCx-ciDEER2014 | B62: NonRes-sAll-mRCx-ci | C62: DEER2014 | D62: 2013-01-01 | E62: 2015-12-31 | F62: Retro-commissioning services, electric & nat. gas measures | G62: 0.8 | H62: 0.82 | I62: Any | J62: Ex | K62: None | L62: CustIncentDown | M62: Com | N62: Service | O62: RetroComm | R62: 2011 DEER Update Report - Section 10 Table 10-6 | S62: TRUE | T62: FALSE | U62: FALSE | V62: FALSE | W62: FALSE | Z62: NonRes-sAll-mRCx-ci | AA62: Res-sAll-mCFLgt30w-up | AD62: Res-sAll-mCFLgt30w-up
A63: NonRes-sAll-mRCx-dnDEER2014 | B63: NonRes-sAll-mRCx-dn | C63: DEER2014 | D63: 2013-01-01 | E63: 2015-12-31 | F63: Retro-commissioning services, electric & nat. gas measures; all delivery mechanisms except upstream | G63: 0.8 | H63: 0.82 | I63: Any | J63: Ex | K63: None | L63: NonUpStrm | M63: Com | N63: Service | O63: RetroComm | R63: 2011 DEER Update Report - Section 10 Table 10-6 | S63: TRUE | T63: FALSE | U63: FALSE | V63: FALSE | W63: FALSE | Z63: NonRes-sAll-mRCx-dn | AA63: Res-sAll-mCFLlte30w-up | AD63: Res-sAll-mCFLlte30w-up
A64: NonRes-sAll-mRfg-DGDEER2014 | B64: NonRes-sAll-mRfg-DG | C64: DEER2014 | D64: 2013-01-01 | F64: Door Gaskets | G64: 0.19 | H64: 0.19 | I64: Any | J64: Any | K64: None | L64: Any | M64: Com | N64: ComRefrig | O64: Display | P64: Ref_Storage | Q64: Gasket | R64: 2011 DEER Update Report - Section 11 Table 11-3 | S64: TRUE | T64: TRUE | U64: TRUE | V64: TRUE | W64: TRUE | Z64: NonRes-sAll-mRfg-DG | AA64: Res-sAll-mCFL-up | AD64: Res-sAll-mCFL-up
A65: NonRes-sAll-mRfg-SCDEER2014 | B65: NonRes-sAll-mRfg-SC | C65: DEER2014 | D65: 2013-01-01 | F65: Strip Door Curtains | G65: 0.4 | H65: 0.4 | I65: Any | J65: Any | K65: None | L65: PreRebDown | M65: Com | N65: ComRefrig | O65: Storage | P65: Ref_Storage | Q65: StripCurt | R65: 2011 DEER Update Report - Section 11 Table 11-3 | S65: TRUE | T65: TRUE | U65: TRUE | V65: TRUE | W65: TRUE | Z65: NonRes-sAll-mRfg-SC | AA65: Res-sAll-mCFL-up | AD65: Res-sAll-mCFL-up
A66: NonRes-sAll-mStmTrp-ciDEER2014 | B66: NonRes-sAll-mStmTrp-ci | C66: DEER2014 | D66: 2013-01-01 | F66: Steam Traps - industrial non-HVAC application, high & low pressure | G66: 0.52 | H66: 0.52 | I66: Any | J66: Ex | K66: None | L66: CustIncentDown | M66: Ind | N66: ProcHeat | O66: SteamDist | P66: SteamCirc | Q66: SteamTrap | R66: 2011 DEER Update Report - Section 9 Table 9-5 | S66: TRUE | T66: TRUE | U66: TRUE | V66: TRUE | W66: TRUE | Z66: NonRes-sAll-mStmTrp-ci | AA66: Res-sAll-mCW | AD66: Res-sAll-mCW
A67: NonRes-sAll-mStmTrp-dnDEER2014 | B67: NonRes-sAll-mStmTrp-dn | C67: DEER2014 | D67: 2013-01-01 | F67: Steam Traps - small commerical non-HVAC application | G67: 0.68 | H67: 0.68 | I67: Any | J67: Ex | K67: None | L67: PreRebDown | M67: Com | N67: ProcHeat | O67: SteamDist | P67: SteamCirc | Q67: SteamTrap | R67: 2011 DEER Update Report - Section 9 Table 9-1 | S67: TRUE | T67: TRUE | U67: TRUE | V67: TRUE | W67: TRUE | Z67: NonRes-sAll-mStmTrp-dn | AA67: Res-sAll-mDHWgt62 | AD67: Res-sAll-mDHWgt62
A68: NonRes-sAll-mT5T8-ciDEER2014 | B68: NonRes-sAll-mT5T8-ci | C68: DEER2014 | D68: 2013-01-01 | E68: 2015-12-31 | F68: T5 and T8 lamps | G68: 0.7 | H68: 0.7 | I68: Any | J68: Any | K68: None | L68: CustIncentDown | M68: Com | N68: Lighting | O68: InGen | P68: Ltg_Fixture | Q68: LinFluor_fixt | R68: 2011 DEER Update Report - Section 7, Table 7-3 | S68: TRUE | T68: FALSE | U68: FALSE | V68: FALSE | W68: FALSE | Z68: NonRes-sAll-mT5T8-ci | AA68: Res-sAll-mDHWshwr | AD68: Res-sAll-mDHWshwr
A69: NonRes-sAll-mT5T8-dnDEER2014 | B69: NonRes-sAll-mT5T8-dn | C69: DEER2014 | D69: 2013-01-01 | E69: 2015-12-31 | F69: T5 and T8 lamps | G69: 0.7 | H69: 0.7 | I69: Any | J69: Any | K69: None | L69: PreRebDown | M69: Com | N69: Lighting | O69: InGen | P69: Ltg_Fixture | Q69: LinFluor_fixt | R69: 2011 DEER Update Report - Section 7, Table 7-3 | S69: TRUE | T69: FALSE | U69: FALSE | V69: FALSE | W69: FALSE | Z69: NonRes-sAll-mT5T8-dn | AA69: Res-sAll-mDuctSeal | AD69: Res-sAll-mDuctSeal
A70: NonRes-sAll-mT8-dirDEER2014 | B70: NonRes-sAll-mT8-dir | C70: DEER2014 | D70: 2013-01-01 | E70: 2015-12-31 | F70: T8 lamps | G70: 0.89 | H70: 0.89 | I70: Any | J70: Any | K70: HTR | L70: DirInstall | M70: Com | N70: Lighting | O70: InGen | P70: Ltg_Fixture | Q70: LinFluor_fixt | R70: 2011 DEER Update Report - Section 7, Table 7-3 | S70: TRUE | T70: FALSE | U70: FALSE | V70: FALSE | W70: FALSE | Z70: NonRes-sAll-mT8-dir | AA70: Res-sAll-mELtg-DnStrmDeemed | AD70: Res-sAll-mELtg-DnStrmDeemed
A71: NonRes-sAll-NCDEER2016 | B71: NonRes-sAll-NC | C71: DEER2016 | D71: 2016-01-01 | F71: Nonresidential New Construction: all measures; custom; all delivery mechanisms | G71: 0.5 | H71: 0.5 | I71: Any | J71: Any | K71: None | L71: CustIncent | M71: NonRes | R71: 2013 ESPI MEMO NRNC Whole Building Table 1 | S71: FALSE | T71: TRUE | U71: TRUE | V71: TRUE | W71: TRUE | Z71: NonRes-sAll-NC | AA71: Res-sAll-mFrzrRec | AD71: Res-sAll-mFrzrRec
A72: =B72&C72 -> NonRes-sGHS-mHtCrtn-ciDEER2014 | B72: NonRes-sGHS-mHtCrtn-ci | C72: DEER2014 | D72: 2013-01-01 | F72: Greenhouse heat curtain | G72: 0.63 | H72: 0.63 | I72: GHs | J72: Any | K72: None | L72: CustIncentDown | M72: Ag | N72: BldgEnv | P72: BldgShell | Q72: ThermCurtain | R72: 2011 DEER Update Report - Section 9 Table 9-5 | S72: TRUE | T72: TRUE | U72: TRUE | V72: TRUE | W72: TRUE | Z72: NonRes-sGHS-mHtCrtn-ci | AA72: Res-sAll-mFrzrRec | AD72: =IF(ISBLANK(INDEX(AA72:AC72,$AB$3)),"",INDEX(AA72:AC72,$AB$3)) -> Res-sAll-mFrzrRec
A73: NonRes-sGHS-mHtCrtn-dnDEER2014 | B73: NonRes-sGHS-mHtCrtn-dn | C73: DEER2014 | D73: 2013-01-01 | F73: Greenhouse heat curtain | G73: 0.63 | H73: 0.63 | I73: GHs | J73: Any | K73: None | L73: PreRebDown | M73: Ag | N73: BldgEnv | P73: BldgShell | Q73: ThermCurtain | R73: 2011 DEER Update Report - Section 9 Table 9-5 | S73: TRUE | T73: TRUE | U73: TRUE | V73: TRUE | W73: TRUE | Z73: NonRes-sGHS-mHtCrtn-dn | AA73: Res-sAll-mHVAC-DX-up | AD73: Res-sAll-mHVAC-DX-up
A74: NonRes-sGHS-mIRF-ciDEER2014 | B74: NonRes-sGHS-mIRF-ci | C74: DEER2014 | D74: 2013-01-01 | F74: Greenhouse infrared film | G74: 0.46 | H74: 0.46 | I74: GHs | J74: Any | K74: None | L74: CustIncentDown | M74: Ag | N74: BldgEnv | P74: BldgShell | Q74: IRFilm | R74: 2011 DEER Update Report - Section 9 Table 9-5 | S74: TRUE | T74: TRUE | U74: TRUE | V74: TRUE | W74: TRUE | Z74: NonRes-sGHS-mIRF-ci | AA74: Res-sAll-mHVAC-Pkg-dn | AD74: Res-sAll-mHVAC-Pkg-dn
A75: NonRes-sGHS-mIRF-dnDEER2014 | B75: NonRes-sGHS-mIRF-dn | C75: DEER2014 | D75: 2013-01-01 | F75: Greenhouse infrared film | G75: 0.46 | H75: 0.46 | I75: GHs | J75: Any | K75: None | L75: PreRebDown | M75: Ag | N75: BldgEnv | P75: BldgShell | Q75: IRFilm | R75: 2011 DEER Update Report - Section 9 Table 9-5 | S75: TRUE | T75: TRUE | U75: TRUE | V75: TRUE | W75: TRUE | Z75: NonRes-sGHS-mIRF-dn | AA75: Res-sAll-mHVAC-Pkg-dn | AD75: Res-sAll-mHVAC-Pkg-dn
A76: Res-Default>2DEER2014 | B76: Res-Default>2 | C76: DEER2014 | D76: 2013-01-01 | F76: All other EEM with no evaluated NTGR; existing EEM with same delivery mechanism for more than 2 years | G76: 0.55 | H76: 0.55 | I76: Any | J76: Any | K76: None | L76: Any | M76: Res | R76: 2011 DEER Update Report - Section 15 Table 15-3 | S76: TRUE | T76: TRUE | U76: TRUE | V76: TRUE | W76: TRUE | Z76: Res-Default>2 | AA76: Res-sAll-mHVAC-RCA | AD76: Res-sAll-mHVAC-RCA
A77: Res-Default-HTR-diDEER2014 | B77: Res-Default-HTR-di | C77: DEER2014 | D77: 2013-01-01 | F77: All other EEM with no evaluated NTGR; direct install hard-to-reach only. | G77: 0.85 | H77: 0.85 | I77: Any | J77: Any | K77: HTR | L77: DirInstall | M77: Res | R77: 2011 DEER Update Report - Section 15 Table 15-3 | S77: TRUE | T77: TRUE | U77: TRUE | V77: TRUE | W77: TRUE | Z77: Res-Default-HTR-di | AA77: Res-sAll-mHVAC-RmAC-dn | AD77: Res-sAll-mHVAC-RmAC-dn
A78: Res-mDHWaeratorDEER2014 | B78: Res-mDHWaerator | C78: DEER2014 | D78: 2013-01-01 | F78: Faucet aerators | G78: 0.59 | H78: 0.59 | I78: Any | J78: Ex | K78: None | L78: DirInstall | M78: Res | N78: SHW | O78: Distribute | P78: WaterFixt | Q78: FaucetAer | R78: 2011 DEER Update Report - Section 13 Table 13-4 | S78: TRUE | T78: TRUE | U78: TRUE | V78: TRUE | W78: TRUE | Z78: Res-mDHWaerator | AA78: Res-sAll-mLEDARefl | AD78: Res-sAll-mLEDARefl
A79: Res-mDHWaeratorDEER2014 | B79: Res-mDHWaerator | C79: DEER2014 | D79: 2013-01-01 | F79: Faucet aerators | G79: 0.65 | H79: 0.65 | I79: MFm | J79: Ex | K79: None | L79: DirInstall | M79: Res | N79: SHW | O79: Distribute | P79: WaterFixt | Q79: FaucetAer | R79: 2011 DEER Update Report - Section 13 Table 13-4 | S79: TRUE | T79: TRUE | U79: TRUE | V79: TRUE | W79: TRUE | Z79: Res-mDHWaerator | AA79: Res-sAll-mLEDSpcl | AD79: Res-sAll-mLEDSpcl
A80: Res-sAll-mCFLExAnte2017 | B80: Res-sAll-mCFL | C80: ExAnte2017 | D80: 2017-07-01 | F80: All residential CFLs, all delivery mechanisms | G80: 0.85 | H80: 0.85 | I80: Any | J80: Any | K80: None | L80: Any | M80: Res | N80: Lighting | O80: Any | P80: Ltg_Lamp | Q80: CFLint_Lamp | R80: 2017 Phase 1 Screw-in lamp disposition, Table 4 | S80: FALSE | T80: FALSE | U80: FALSE | V80: TRUE | W80: TRUE | Z80: Res-sAll-mCFL | AA80: Res-sAll-MLtgLED-Deemed | AD80: Res-sAll-MLtgLED-Deemed
A81: Res-sAll-mCFLgt30w-upDEER2015 | B81: Res-sAll-mCFLgt30w-up | C81: DEER2015 | D81: 2016-01-01 | E81: 2015-12-31 | F81: CFL-screw in, greater than 30 watts | G81: 0.54 | H81: 0.54 | I81: Any | J81: Any | K81: None | L81: PreRebUp | M81: Res | N81: Lighting | O81: Any | P81: Ltg_Lamp | Q81: CFLint_lamp | S81: TRUE | T81: FALSE | U81: FALSE | V81: FALSE | W81: FALSE | Z81: Res-sAll-mCFLgt30w-up | AA81: Res-sAll-mRefgRec | AD81: Res-sAll-mRefgRec
A82: Res-sAll-mCFLlte30w-upDEER2015 | B82: Res-sAll-mCFLlte30w-up | C82: DEER2015 | D82: 2016-01-01 | E82: 2015-12-31 | F82: CFL-screw in, 30 watts and less | G82: 0.9 | H82: 0.9 | I82: Any | J82: Any | K82: None | L82: PreRebUp | M82: Res | N82: Lighting | O82: Any | P82: Ltg_Lamp | Q82: CFLint_lamp | S82: TRUE | T82: FALSE | U82: FALSE | V82: FALSE | W82: FALSE | Z82: Res-sAll-mCFLlte30w-up | AA82: Res-sAll-mRefgRec | AD82: Res-sAll-mRefgRec
A83: Res-sAll-mCFL-upDEER2014 | B83: Res-sAll-mCFL-up | C83: DEER2014 | D83: 2013-01-01 | E83: 2015-12-31 | F83: CFL-screw in, All. | G83: 0.54 | H83: 0.54 | I83: Any | J83: Any | K83: None | L83: PreRebUp | M83: Res | N83: Lighting | O83: InGen | P83: Ltg_Lamp | Q83: CFLint_lamp | R83: 2011 DEER Update Report - Section 8, Table 8-1 | S83: TRUE | T83: FALSE | U83: FALSE | V83: FALSE | W83: FALSE | Z83: Res-sAll-mCFL-up | AA83: Res-sSF-mACgt14-dn | AD83: Res-sSF-mACgt14-dn
A84: Res-sAll-mCFL-upDEER2016 | B84: Res-sAll-mCFL-up | C84: DEER2016 | D84: 2016-01-01 | E84: 2017-06-30 | F84: CFL-screw in,All. | G84: 0.9 | H84: 0.9 | I84: Any | J84: Any | K84: None | L84: PreRebUp | M84: Res | N84: Lighting | O84: Any | P84: Ltg_Lamp | Q84: CFLint_lamp | S84: TRUE | T84: TRUE | U84: TRUE | V84: FALSE | W84: FALSE | Z84: Res-sAll-mCFL-up | AA84: Res-sSF-mACgt16-dn | AD84: Res-sSF-mACgt16-dn
A85: Res-sAll-mCWDEER2014 | B85: Res-sAll-mCW | C85: DEER2014 | D85: 2013-01-01 | F85: Clothes washer MEF 10% > Energy Star | G85: 0.31 | H85: 0.31 | I85: Any | J85: Any | K85: None | L85: PreRebDown | M85: Res | N85: AppPlug | O85: Laundry | P85: Clean_equip | Q85: ClothesWash | R85: 2011 DEER Update Report - Section 14 Table 14-3 | S85: TRUE | T85: TRUE | U85: TRUE | V85: TRUE | W85: TRUE | Z85: Res-sAll-mCW | AA85: Res-sSF-mHPes | AD85: Res-sSF-mHPes
A86: Res-sAll-mDHWgt62DEER2014 | B86: Res-sAll-mDHWgt62 | C86: DEER2014 | D86: 2013-01-01 | F86: Water Heater EF >0.62<0.65, Cap>30 gal. | G86: 0.23 | H86: 0.23 | I86: Any | J86: Any | K86: None | L86: PreRebDown | M86: Res | N86: SHW | O86: Heating | P86: WaterHtg_eq | Q86: Stor_EF | R86: 2011 DEER Update Report - Section 13 Table 13-4 | S86: TRUE | T86: TRUE | U86: TRUE | V86: TRUE | W86: TRUE | Z86: Res-sAll-mDHWgt62 | AA86: Res-sSF-mShellIns | AD86: Res-sSF-mShellIns
A87: Res-sAll-mDHWshwrDEER2014 | B87: Res-sAll-mDHWshwr | C87: DEER2014 | D87: 2013-01-01 | F87: Low flow showerheads | G87: 0.7 | H87: 0.7 | I87: Any | J87: Ex | K87: None | L87: DirInstall | M87: Res | N87: SHW | O87: Distribute | P87: WaterFixt | Q87: ShowerHd | R87: 2011 DEER Update Report - Section 13 Table 13-4 | S87: TRUE | T87: TRUE | U87: TRUE | V87: TRUE | W87: TRUE | Z87: Res-sAll-mDHWshwr | AA87: TV-UpStream | AD87: TV-UpStream
A88: Res-sAll-mDuctSealDEER2014 | B88: Res-sAll-mDuctSeal | C88: DEER2014 | D88: 2013-01-01 | F88: Duct Sealing | G88: 0.78 | H88: 0.78 | I88: Any | J88: Ex | K88: None | L88: PreReb | M88: Res | N88: HVAC | O88: VentAirDist | P88: HV_AirDist | Q88: DuctInsul | R88: 2011 DEER Update Report - Section 12 Table 12-3 | S88: TRUE | T88: TRUE | U88: TRUE | V88: TRUE | W88: TRUE | Z88: Res-sAll-mDuctSeal
A89: Res-sAll-mELtg-DnStrmDeemedDEER2019 | B89: Res-sAll-mELtg-DnStrmDeemed | C89: DEER2019 | D89: 2019-01-01 | F89: LED outdoor lighting fixtures, deemed + downstream | G89: 0.45 | H89: 0.45 | I89: Any | J89: Any | K89: Any | L89: Any | M89: Res | N89: Lighting | O89: OutGen | P89: Ltg_Lamp | Q89: LED_Lamp | R89: June 2017 DEER Update; 2015 Nonresidential ESPI Deemed Lighting Impact Evaluation | S89: FALSE | T89: FALSE | U89: FALSE | V89: FALSE | W89: TRUE | Z89: Res-sAll-mELtg-DnStrmDeemed
A90: Res-sAll-mFrzrRecDEER2014 | B90: Res-sAll-mFrzrRec | C90: DEER2014 | D90: 2013-01-01 | E90: 2015-12-31 | F90: Freezer, Efficiency characteristics of recycled unit | G90: 0.7 | H90: 0.7 | I90: Any | J90: Any | K90: None | L90: PreRebDI | M90: Res | N90: AppPlug | O90: KitchenApp | P90: Ref_Storage | Q90: Freezer | R90: 2011 DEER Update Report - Section 14 Table 14-3 | S90: TRUE | T90: FALSE | U90: FALSE | V90: FALSE | W90: FALSE | Z90: Res-sAll-mFrzrRec
A91: Res-sAll-mFrzrRecDEER2016 | B91: Res-sAll-mFrzrRec | C91: DEER2016 | D91: 2016-01-01 | F91: Freezer, Efficiency characteristics of recycled unit | G91: 0.95 | H91: 0.8 | I91: Any | J91: Any | K91: None | L91: PreReb | M91: Res | N91: AppPlug | O91: KitchenApp | P91: Ref_Storage | Q91: Freezer | R91: DEER1015 Update - Refrigerator and Freezer Appliance Recyling Measures, Table 10 | S91: FALSE | T91: TRUE | U91: TRUE | V91: TRUE | W91: TRUE | Z91: Res-sAll-mFrzrRec
A92: Res-sAll-mHVAC-DX-upDEER2016 | B92: Res-sAll-mHVAC-DX-up | C92: DEER2016 | D92: 2016-01-01 | F92: Residential Package HVAC Equipment: deemed; upstream delivery | G92: 0.75 | H92: 0.75 | I92: Any | J92: Ex | K92: None | L92: PreRebUp | M92: Res | N92: HVAC | S92: FALSE | T92: TRUE | U92: TRUE | V92: TRUE | W92: TRUE | Z92: Res-sAll-mHVAC-DX-up
A93: Res-sAll-mHVAC-Pkg-dnDEER2017 | B93: Res-sAll-mHVAC-Pkg-dn | C93: DEER2017 | D93: 2017-01-01 | E93: 2018-12-31 | F93: All package HVAC AC and HP replacements with downstream incentives | G93: 0.75 | H93: 0.75 | I93: Any | J93: Any | K93: Any | L93: Any | M93: Res | N93: HVAC | R93: June 2017 DEER Update | S93: FALSE | T93: FALSE | U93: TRUE | V93: TRUE | W93: FALSE | Z93: Res-sAll-mHVAC-Pkg-dn
A94: Res-sAll-mHVAC-Pkg-dnDEER2019 | B94: Res-sAll-mHVAC-Pkg-dn | C94: DEER2019 | D94: 2019-01-01 | F94: All package HVAC AC and HP replacements with downstream incentives | G94: 0.6 | H94: 0.6 | I94: Any | J94: Any | K94: Any | L94: Any | M94: Res | N94: HVAC | R94: June 2017 DEER Update | S94: FALSE | T94: FALSE | U94: FALSE | V94: FALSE | W94: TRUE | Z94: Res-sAll-mHVAC-Pkg-dn
A95: Res-sAll-mHVAC-RCADEER2014 | B95: Res-sAll-mHVAC-RCA | C95: DEER2014 | D95: 2013-01-01 | F95: HVAC Maintenance: Refrigerant Charge Adjustment (RCA) | G95: 0.78 | H95: 0.78 | I95: Any | J95: Ex | K95: None | L95: PreReb | M95: Res | N95: Service | O95: Diagnostic | P95: dxAC_equip | R95: 2011 DEER Update Report - Section 12 Table 12-3 | S95: TRUE | T95: TRUE | U95: TRUE | V95: TRUE | W95: TRUE | Z95: Res-sAll-mHVAC-RCA
A96: Res-sAll-mHVAC-RmAC-dnDEER2014 | B96: Res-sAll-mHVAC-RmAC-dn | C96: DEER2014 | D96: 2013-01-01 | F96: Energy Star Room AC and HP | G96: 0.36 | H96: 0.36 | I96: Any | J96: Ex | K96: None | L96: PreRebDown | M96: Res | N96: HVAC | O96: SpaceCool | R96: 2011 DEER Update Report - Section 12 Table 12-3 | S96: TRUE | T96: TRUE | U96: TRUE | V96: TRUE | W96: TRUE | Z96: Res-sAll-mHVAC-RmAC-dn
A97: Res-sAll-mLEDAReflExAnte2017 | B97: Res-sAll-mLEDARefl | C97: ExAnte2017 | D97: 2017-07-01 | F97: Residential LED A-lamp and screw-in reflector, all delivery mechanisms | G97: 0.91 | H97: 0.91 | I97: Any | J97: Any | K97: None | L97: Any | M97: Res | N97: Lighting | O97: Any | P97: Ltg_Lamp | Q97: LED_Lamp | R97: 2017 Phase 1 Screw-in lamp disposition, Table 4 | S97: FALSE | T97: FALSE | U97: FALSE | V97: TRUE | W97: TRUE | Z97: Res-sAll-mLEDARefl
A98: Res-sAll-mLEDSpclExAnte2017 | B98: Res-sAll-mLEDSpcl | C98: ExAnte2017 | D98: 2017-07-01 | F98: All residential specialty LED lamps (other than A-lamp and screw-in reflector) | G98: 0.6 | H98: 0.6 | I98: Any | J98: Any | K98: None | L98: Any | M98: Res | N98: Lighting | O98: Any | P98: Ltg_Lamp | Q98: LED_Lamp | R98: 2017 Phase 1 Screw-in lamp disposition, Table 4 | S98: FALSE | T98: FALSE | U98: FALSE | V98: TRUE | W98: TRUE | Z98: Res-sAll-mLEDSpcl
A99: Res-sAll-MLtgLED-DeemedDEER2016 | B99: Res-sAll-MLtgLED-Deemed | C99: DEER2016 | D99: 2016-01-01 | E99: 2017-06-30 | F99: Residential LED: replacing CFL or incandescent lamps; deemed; all delivery mechanisms except upstream | G99: 0.6 | H99: 0.6 | I99: Any | J99: Any | K99: None | L99: NonUpStrm | M99: Res | N99: Lighting | O99: Any | S99: TRUE | T99: TRUE | U99: TRUE | V99: FALSE | W99: FALSE | Z99: Res-sAll-MLtgLED-Deemed
A100: Res-sAll-mRefgRecDEER2014 | B100: Res-sAll-mRefgRec | C100: DEER2014 | D100: 2013-01-01 | E100: 2015-12-31 | F100: Refrigerator, Efficiency characteristics of recycled unit | G100: 0.53 | H100: 0.53 | I100: Any | J100: Any | K100: None | L100: PreRebDI | M100: Res | N100: AppPlug | O100: KitchenApp | P100: Ref_Storage | Q100: RefrigFrz | R100: 2011 DEER Update Report - Section 14 Table 14-3 | S100: TRUE | T100: FALSE | U100: FALSE | V100: FALSE | W100: FALSE | Z100: Res-sAll-mRefgRec
A101: Res-sAll-mRefgRecDEER2016 | B101: Res-sAll-mRefgRec | C101: DEER2016 | D101: 2016-01-01 | F101: Refrigerator, Efficiency characteristics of recycled unit | G101: 0.8 | H101: 0.8 | I101: Any | J101: Any | K101: None | L101: PreReb | M101: Res | N101: AppPlug | O101: KitchenApp | P101: Ref_Storage | Q101: RefrigFrz | R101: DEER1015 Update - Refrigerator and Freezer Appliance Recyling Measures, Table 10 | S101: FALSE | T101: TRUE | U101: TRUE | V101: TRUE | W101: TRUE | Z101: Res-sAll-mRefgRec
A102: Res-sSF-mACgt14-dnDEER2014 | B102: Res-sSF-mACgt14-dn | C102: DEER2014 | D102: 2013-01-01 | E102: 2015-12-31 | F102: Central AC>=14 SEER | G102: 0.55 | H102: 0.55 | I102: SFm | J102: Ex | K102: None | L102: PreRebDown | M102: Res | N102: HVAC | O102: SpaceCool | P102: dxAC_equip | Q102: SpltSEER | R102: 2011 DEER Update Report - Section 12 Table 12-3 | S102: TRUE | T102: FALSE | U102: FALSE | V102: FALSE | W102: FALSE | Z102: Res-sSF-mACgt14-dn
A103: Res-sSF-mACgt16-dnDEER2014 | B103: Res-sSF-mACgt16-dn | C103: DEER2014 | D103: 2013-01-01 | E103: 2015-12-31 | F103: Central AC>=16 SEER, EER>=13 | G103: 0.8 | H103: 0.8 | I103: SFm | J103: Ex | K103: None | L103: PreRebDown | M103: Res | N103: HVAC | O103: SpaceCool | P103: dxAC_equip | Q103: SpltSEER | R103: 2011 DEER Update Report - Section 12.4 | S103: TRUE | T103: FALSE | U103: FALSE | V103: FALSE | W103: FALSE | Z103: Res-sSF-mACgt16-dn
A104: =B104&C104 -> Res-sSF-mHPesDEER2014 | B104: Res-sSF-mHPes | C104: DEER2014 | D104: 2013-01-01 | E104: 2015-12-31 | F104: Heat Pump - Energy Star | G104: 0.55 | H104: 0.55 | I104: SFm | J104: Ex | K104: None | L104: PreRebDown | M104: Res | N104: HVAC | O104: HeatCool | P104: dxHP_equip | Q104: SpltSEER | R104: 2011 DEER Update Report - Section 12 Table 12-3 | S104: TRUE | T104: FALSE | U104: FALSE | V104: FALSE | W104: FALSE | Z104: Res-sSF-mHPes
A105: Res-sSF-mShellInsDEER2014 | B105: Res-sSF-mShellIns | C105: DEER2014 | D105: 2013-01-01 | F105: Wall and Ceiling Insulation | G105: 0.28 | H105: 0.28 | I105: SFm | J105: Ex | K105: None | L105: PreRebDown | M105: Res | N105: BldgEnv | O105: Opaque | P105: BldgShell | R105: 2011 DEER Update Report - Section 12 Table 12-3 | S105: TRUE | T105: TRUE | U105: TRUE | V105: TRUE | W105: TRUE | Z105: Res-sSF-mShellIns
A106: TV-UpStreamDEER2015 | B106: TV-UpStream | C106: DEER2015 | D106: 2013-01-01 | F106: Television | G106: 0.1 | H106: 0.1 | I106: Any | J106: Any | K106: None | L106: Any | M106: Any | N106: AppPlug | O106: Electronics | P106: Electronics | Q106: TV | R106: from PGE_tea-ED-10-31-14.xlsx | S106: TRUE | T106: TRUE | U106: TRUE | V106: TRUE | W106: TRUE | Z106: TV-UpStream

Sheet NTG_by_Date
L1: Derived from READI NTG table
B2: NTG Matrix of Date Range Applicability | L2: Sorted list of valid NTG_IDs + DateRange Index with their associated NTG lookup value
A3: NTG_ID | B3: DEERversion | C3: 1 | D3: 2 | E3: 3 | F3: 4 | G3: 5 | I3: NTG & DateRangeIndex | J3: NTG Lookup Value | L3: NTG & DateRangeIndex | M3: NTG Lookup Value
A4: Agric-Default>2yrs | B4: DEER2014 | C4: =IF(VLOOKUP($A4&$B4,NTG!$A$8:$W$106,18+C$3,FALSE),$A4&"_"&C$3,"") -> Agric-Default>2yrs_1 | D4: =IF(VLOOKUP($A4&$B4,NTG!$A$8:$W$106,18+D$3,FALSE),$A4&"_"&D$3,"") -> Agric-Default>2yrs_2 | E4: =IF(VLOOKUP($A4&$B4,NTG!$A$8:$W$106,18+E$3,FALSE),$A4&"_"&E$3,"") -> Agric-Default>2yrs_3 | F4: =IF(VLOOKUP($A4&$B4,NTG!$A$8:$W$106,18+F$3,FALSE),$A4&"_"&F$3,"") -> Agric-Default>2yrs_4 | G4: =IF(VLOOKUP($A4&$B4,NTG!$A$8:$W$106,18+G$3,FALSE),$A4&"_"&G$3,"") -> Agric-Default>2yrs_5 | H4: 1 | I4: =+C4 -> Agric-Default>2yrs_1 | J4: =+A4&B4 -> Agric-Default>2yrsDEER2014 | L4: Agric-Default>2yrs_1 | M4: Agric-Default>2yrsDEER2014
A5: Agric-Sprklr-All | B5: DEER2016 | C5: =IF(VLOOKUP($A5&$B5,NTG!$A$8:$W$106,18+C$3,FALSE),$A5&"_"&C$3,"") ->  | D5: =IF(VLOOKUP($A5&$B5,NTG!$A$8:$W$106,18+D$3,FALSE),$A5&"_"&D$3,"") -> Agric-Sprklr-All_2 | E5: =IF(VLOOKUP($A5&$B5,NTG!$A$8:$W$106,18+E$3,FALSE),$A5&"_"&E$3,"") -> Agric-Sprklr-All_3 | F5: =IF(VLOOKUP($A5&$B5,NTG!$A$8:$W$106,18+F$3,FALSE),$A5&"_"&F$3,"") -> Agric-Sprklr-All_4 | G5: =IF(VLOOKUP($A5&$B5,NTG!$A$8:$W$106,18+G$3,FALSE),$A5&"_"&G$3,"") ->  | H5: =+H4+1 -> 2 | I5: =+C5 ->  | J5: =+A5&B5 -> Agric-Sprklr-AllDEER2016 | L5: Agric-Default>2yrs_2 | M5: Agric-Default>2yrsDEER2014
A6: Agric-Sprklr-All | B6: DEER2019 | C6: =IF(VLOOKUP($A6&$B6,NTG!$A$8:$W$106,18+C$3,FALSE),$A6&"_"&C$3,"") ->  | D6: =IF(VLOOKUP($A6&$B6,NTG!$A$8:$W$106,18+D$3,FALSE),$A6&"_"&D$3,"") ->  | E6: =IF(VLOOKUP($A6&$B6,NTG!$A$8:$W$106,18+E$3,FALSE),$A6&"_"&E$3,"") ->  | F6: =IF(VLOOKUP($A6&$B6,NTG!$A$8:$W$106,18+F$3,FALSE),$A6&"_"&F$3,"") ->  | G6: =IF(VLOOKUP($A6&$B6,NTG!$A$8:$W$106,18+G$3,FALSE),$A6&"_"&G$3,"") -> Agric-Sprklr-All_5 | H6: =+H5+1 -> 3 | J6: Agric-Sprklr-AllDEER2019 | L6: Agric-Default>2yrs_3 | M6: Agric-Default>2yrsDEER2014
A7: Agricult-Default-HTR-di | B7: DEER2014 | C7: =IF(VLOOKUP($A7&$B7,NTG!$A$8:$W$106,18+C$3,FALSE),$A7&"_"&C$3,"") -> Agricult-Default-HTR-di_1 | D7: =IF(VLOOKUP($A7&$B7,NTG!$A$8:$W$106,18+D$3,FALSE),$A7&"_"&D$3,"") -> Agricult-Default-HTR-di_2 | E7: =IF(VLOOKUP($A7&$B7,NTG!$A$8:$W$106,18+E$3,FALSE),$A7&"_"&E$3,"") -> Agricult-Default-HTR-di_3 | F7: =IF(VLOOKUP($A7&$B7,NTG!$A$8:$W$106,18+F$3,FALSE),$A7&"_"&F$3,"") -> Agricult-Default-HTR-di_4 | G7: =IF(VLOOKUP($A7&$B7,NTG!$A$8:$W$106,18+G$3,FALSE),$A7&"_"&G$3,"") -> Agricult-Default-HTR-di_5 | H7: 4 | I7: Agricult-Default-HTR-di_1 | J7: Agricult-Default-HTR-diDEER2014 | L7: Agric-Default>2yrs_4 | M7: Agric-Default>2yrsDEER2014
A8: All-Default<=2yrs | B8: DEER2014 | C8: =IF(VLOOKUP($A8&$B8,NTG!$A$8:$W$106,18+C$3,FALSE),$A8&"_"&C$3,"") -> All-Default<=2yrs_1 | D8: =IF(VLOOKUP($A8&$B8,NTG!$A$8:$W$106,18+D$3,FALSE),$A8&"_"&D$3,"") -> All-Default<=2yrs_2 | E8: =IF(VLOOKUP($A8&$B8,NTG!$A$8:$W$106,18+E$3,FALSE),$A8&"_"&E$3,"") -> All-Default<=2yrs_3 | F8: =IF(VLOOKUP($A8&$B8,NTG!$A$8:$W$106,18+F$3,FALSE),$A8&"_"&F$3,"") -> All-Default<=2yrs_4 | G8: =IF(VLOOKUP($A8&$B8,NTG!$A$8:$W$106,18+G$3,FALSE),$A8&"_"&G$3,"") -> All-Default<=2yrs_5 | H8: 5 | I8: All-Default<=2yrs_1 | J8: All-Default<=2yrsDEER2014 | L8: Agric-Default>2yrs_5 | M8: Agric-Default>2yrsDEER2014
A9: Com-Default>2yrs | B9: DEER2014 | C9: =IF(VLOOKUP($A9&$B9,NTG!$A$8:$W$106,18+C$3,FALSE),$A9&"_"&C$3,"") -> Com-Default>2yrs_1 | D9: =IF(VLOOKUP($A9&$B9,NTG!$A$8:$W$106,18+D$3,FALSE),$A9&"_"&D$3,"") -> Com-Default>2yrs_2 | E9: =IF(VLOOKUP($A9&$B9,NTG!$A$8:$W$106,18+E$3,FALSE),$A9&"_"&E$3,"") -> Com-Default>2yrs_3 | F9: =IF(VLOOKUP($A9&$B9,NTG!$A$8:$W$106,18+F$3,FALSE),$A9&"_"&F$3,"") -> Com-Default>2yrs_4 | G9: =IF(VLOOKUP($A9&$B9,NTG!$A$8:$W$106,18+G$3,FALSE),$A9&"_"&G$3,"") -> Com-Default>2yrs_5 | H9: 6 | I9: Com-Default>2yrs_1 | J9: Com-Default>2yrsDEER2014 | L9: Agric-Sprklr-All_2 | M9: Agric-Sprklr-AllDEER2016
A10: Com-Default-HTR-di | B10: DEER2014 | C10: =IF(VLOOKUP($A10&$B10,NTG!$A$8:$W$106,18+C$3,FALSE),$A10&"_"&C$3,"") -> Com-Default-HTR-di_1 | D10: =IF(VLOOKUP($A10&$B10,NTG!$A$8:$W$106,18+D$3,FALSE),$A10&"_"&D$3,"") -> Com-Default-HTR-di_2 | E10: =IF(VLOOKUP($A10&$B10,NTG!$A$8:$W$106,18+E$3,FALSE),$A10&"_"&E$3,"") -> Com-Default-HTR-di_3 | F10: =IF(VLOOKUP($A10&$B10,NTG!$A$8:$W$106,18+F$3,FALSE),$A10&"_"&F$3,"") -> Com-Default-HTR-di_4 | G10: =IF(VLOOKUP($A10&$B10,NTG!$A$8:$W$106,18+G$3,FALSE),$A10&"_"&G$3,"") -> Com-Default-HTR-di_5 | H10: 7 | I10: Com-Default-HTR-di_1 | J10: Com-Default-HTR-diDEER2014 | L10: Agric-Sprklr-All_3 | M10: Agric-Sprklr-AllDEER2016
A11: ConstrainedAreaProgram | B11: DEER2015 | C11: =IF(VLOOKUP($A11&$B11,NTG!$A$8:$W$106,18+C$3,FALSE),$A11&"_"&C$3,"") -> ConstrainedAreaProgram_1 | D11: =IF(VLOOKUP($A11&$B11,NTG!$A$8:$W$106,18+D$3,FALSE),$A11&"_"&D$3,"") -> ConstrainedAreaProgram_2 | E11: =IF(VLOOKUP($A11&$B11,NTG!$A$8:$W$106,18+E$3,FALSE),$A11&"_"&E$3,"") -> ConstrainedAreaProgram_3 | F11: =IF(VLOOKUP($A11&$B11,NTG!$A$8:$W$106,18+F$3,FALSE),$A11&"_"&F$3,"") -> ConstrainedAreaProgram_4 | G11: =IF(VLOOKUP($A11&$B11,NTG!$A$8:$W$106,18+G$3,FALSE),$A11&"_"&G$3,"") -> ConstrainedAreaProgram_5 | H11: 8 | I11: ConstrainedAreaProgram_1 | J11: ConstrainedAreaProgramDEER2015 | L11: Agric-Sprklr-All_4 | M11: Agric-Sprklr-AllDEER2016
A12: ET-Default | B12: DEER2014 | C12: =IF(VLOOKUP($A12&$B12,NTG!$A$8:$W$106,18+C$3,FALSE),$A12&"_"&C$3,"") -> ET-Default_1 | D12: =IF(VLOOKUP($A12&$B12,NTG!$A$8:$W$106,18+D$3,FALSE),$A12&"_"&D$3,"") -> ET-Default_2 | E12: =IF(VLOOKUP($A12&$B12,NTG!$A$8:$W$106,18+E$3,FALSE),$A12&"_"&E$3,"") -> ET-Default_3 | F12: =IF(VLOOKUP($A12&$B12,NTG!$A$8:$W$106,18+F$3,FALSE),$A12&"_"&F$3,"") -> ET-Default_4 | G12: =IF(VLOOKUP($A12&$B12,NTG!$A$8:$W$106,18+G$3,FALSE),$A12&"_"&G$3,"") -> ET-Default_5 | H12: 9 | I12: ET-Default_1 | J12: ET-DefaultDEER2014 | L12: Agric-Sprklr-All_5 | M12: Agric-Sprklr-AllDEER2019
A13: EUC-Default | B13: DEER2014 | C13: =IF(VLOOKUP($A13&$B13,NTG!$A$8:$W$106,18+C$3,FALSE),$A13&"_"&C$3,"") -> EUC-Default_1 | D13: =IF(VLOOKUP($A13&$B13,NTG!$A$8:$W$106,18+D$3,FALSE),$A13&"_"&D$3,"") ->  | E13: =IF(VLOOKUP($A13&$B13,NTG!$A$8:$W$106,18+E$3,FALSE),$A13&"_"&E$3,"") ->  | F13: =IF(VLOOKUP($A13&$B13,NTG!$A$8:$W$106,18+F$3,FALSE),$A13&"_"&F$3,"") ->  | G13: =IF(VLOOKUP($A13&$B13,NTG!$A$8:$W$106,18+G$3,FALSE),$A13&"_"&G$3,"") ->  | H13: 10 | I13: EUC-Default_1 | J13: EUC-DefaultDEER2014 | L13: Agricult-Default-HTR-di_1 | M13: Agricult-Default-HTR-diDEER2014
A14: EUC-Default | B14: DEER2016 | C14: =IF(VLOOKUP($A14&$B14,NTG!$A$8:$W$106,18+C$3,FALSE),$A14&"_"&C$3,"") ->  | D14: =IF(VLOOKUP($A14&$B14,NTG!$A$8:$W$106,18+D$3,FALSE),$A14&"_"&D$3,"") -> EUC-Default_2 | E14: =IF(VLOOKUP($A14&$B14,NTG!$A$8:$W$106,18+E$3,FALSE),$A14&"_"&E$3,"") -> EUC-Default_3 | F14: =IF(VLOOKUP($A14&$B14,NTG!$A$8:$W$106,18+F$3,FALSE),$A14&"_"&F$3,"") -> EUC-Default_4 | G14: =IF(VLOOKUP($A14&$B14,NTG!$A$8:$W$106,18+G$3,FALSE),$A14&"_"&G$3,"") -> EUC-Default_5 | H14: 11 | J14: EUC-DefaultDEER2016 | L14: Agricult-Default-HTR-di_2 | M14: Agricult-Default-HTR-diDEER2014
A15: Ind-Default>2yrs | B15: DEER2014 | C15: =IF(VLOOKUP($A15&$B15,NTG!$A$8:$W$106,18+C$3,FALSE),$A15&"_"&C$3,"") -> Ind-Default>2yrs_1 | D15: =IF(VLOOKUP($A15&$B15,NTG!$A$8:$W$106,18+D$3,FALSE),$A15&"_"&D$3,"") -> Ind-Default>2yrs_2 | E15: =IF(VLOOKUP($A15&$B15,NTG!$A$8:$W$106,18+E$3,FALSE),$A15&"_"&E$3,"") -> Ind-Default>2yrs_3 | F15: =IF(VLOOKUP($A15&$B15,NTG!$A$8:$W$106,18+F$3,FALSE),$A15&"_"&F$3,"") -> Ind-Default>2yrs_4 | G15: =IF(VLOOKUP($A15&$B15,NTG!$A$8:$W$106,18+G$3,FALSE),$A15&"_"&G$3,"") -> Ind-Default>2yrs_5 | H15: 12 | I15: Ind-Default>2yrs_1 | J15: Ind-Default>2yrsDEER2014 | L15: Agricult-Default-HTR-di_3 | M15: Agricult-Default-HTR-diDEER2014
A16: Ind-Default-HTR-di | B16: DEER2014 | C16: =IF(VLOOKUP($A16&$B16,NTG!$A$8:$W$106,18+C$3,FALSE),$A16&"_"&C$3,"") -> Ind-Default-HTR-di_1 | D16: =IF(VLOOKUP($A16&$B16,NTG!$A$8:$W$106,18+D$3,FALSE),$A16&"_"&D$3,"") -> Ind-Default-HTR-di_2 | E16: =IF(VLOOKUP($A16&$B16,NTG!$A$8:$W$106,18+E$3,FALSE),$A16&"_"&E$3,"") -> Ind-Default-HTR-di_3 | F16: =IF(VLOOKUP($A16&$B16,NTG!$A$8:$W$106,18+F$3,FALSE),$A16&"_"&F$3,"") -> Ind-Default-HTR-di_4 | G16: =IF(VLOOKUP($A16&$B16,NTG!$A$8:$W$106,18+G$3,FALSE),$A16&"_"&G$3,"") -> Ind-Default-HTR-di_5 | H16: 13 | I16: Ind-Default-HTR-di_1 | J16: Ind-Default-HTR-diDEER2014 | L16: Agricult-Default-HTR-di_4 | M16: Agricult-Default-HTR-diDEER2014
A17: K-12School-ComCollege | B17: DEER2015 | C17: =IF(VLOOKUP($A17&$B17,NTG!$A$8:$W$106,18+C$3,FALSE),$A17&"_"&C$3,"") -> K-12School-ComCollege_1 | D17: =IF(VLOOKUP($A17&$B17,NTG!$A$8:$W$106,18+D$3,FALSE),$A17&"_"&D$3,"") -> K-12School-ComCollege_2 | E17: =IF(VLOOKUP($A17&$B17,NTG!$A$8:$W$106,18+E$3,FALSE),$A17&"_"&E$3,"") -> K-12School-ComCollege_3 | F17: =IF(VLOOKUP($A17&$B17,NTG!$A$8:$W$106,18+F$3,FALSE),$A17&"_"&F$3,"") -> K-12School-ComCollege_4 | G17: =IF(VLOOKUP($A17&$B17,NTG!$A$8:$W$106,18+G$3,FALSE),$A17&"_"&G$3,"") -> K-12School-ComCollege_5 | H17: 14 | I17: K-12School-ComCollege_1 | J17: K-12School-ComCollegeDEER2015 | L17: Agricult-Default-HTR-di_5 | M17: Agricult-Default-HTR-diDEER2014
A18: K-12School-ComCollege | B18: DEER2015 | C18: =IF(VLOOKUP($A18&$B18,NTG!$A$8:$W$106,18+C$3,FALSE),$A18&"_"&C$3,"") -> K-12School-ComCollege_1 | D18: =IF(VLOOKUP($A18&$B18,NTG!$A$8:$W$106,18+D$3,FALSE),$A18&"_"&D$3,"") -> K-12School-ComCollege_2 | E18: =IF(VLOOKUP($A18&$B18,NTG!$A$8:$W$106,18+E$3,FALSE),$A18&"_"&E$3,"") -> K-12School-ComCollege_3 | F18: =IF(VLOOKUP($A18&$B18,NTG!$A$8:$W$106,18+F$3,FALSE),$A18&"_"&F$3,"") -> K-12School-ComCollege_4 | G18: =IF(VLOOKUP($A18&$B18,NTG!$A$8:$W$106,18+G$3,FALSE),$A18&"_"&G$3,"") -> K-12School-ComCollege_5 | H18: 15 | I18: K-12School-ComCollege_1 | J18: K-12School-ComCollegeDEER2015 | L18: All-Default<=2yrs_1 | M18: All-Default<=2yrsDEER2014
A19: K-12School-ComCollege | B19: DEER2015 | C19: =IF(VLOOKUP($A19&$B19,NTG!$A$8:$W$106,18+C$3,FALSE),$A19&"_"&C$3,"") -> K-12School-ComCollege_1 | D19: =IF(VLOOKUP($A19&$B19,NTG!$A$8:$W$106,18+D$3,FALSE),$A19&"_"&D$3,"") -> K-12School-ComCollege_2 | E19: =IF(VLOOKUP($A19&$B19,NTG!$A$8:$W$106,18+E$3,FALSE),$A19&"_"&E$3,"") -> K-12School-ComCollege_3 | F19: =IF(VLOOKUP($A19&$B19,NTG!$A$8:$W$106,18+F$3,FALSE),$A19&"_"&F$3,"") -> K-12School-ComCollege_4 | G19: =IF(VLOOKUP($A19&$B19,NTG!$A$8:$W$106,18+G$3,FALSE),$A19&"_"&G$3,"") -> K-12School-ComCollege_5 | H19: 16 | I19: K-12School-ComCollege_1 | J19: K-12School-ComCollegeDEER2015 | L19: All-Default<=2yrs_2 | M19: All-Default<=2yrsDEER2014
A20: K-12School-ComCollege | B20: DEER2015 | C20: =IF(VLOOKUP($A20&$B20,NTG!$A$8:$W$106,18+C$3,FALSE),$A20&"_"&C$3,"") -> K-12School-ComCollege_1 | D20: =IF(VLOOKUP($A20&$B20,NTG!$A$8:$W$106,18+D$3,FALSE),$A20&"_"&D$3,"") -> K-12School-ComCollege_2 | E20: =IF(VLOOKUP($A20&$B20,NTG!$A$8:$W$106,18+E$3,FALSE),$A20&"_"&E$3,"") -> K-12School-ComCollege_3 | F20: =IF(VLOOKUP($A20&$B20,NTG!$A$8:$W$106,18+F$3,FALSE),$A20&"_"&F$3,"") -> K-12School-ComCollege_4 | G20: =IF(VLOOKUP($A20&$B20,NTG!$A$8:$W$106,18+G$3,FALSE),$A20&"_"&G$3,"") -> K-12School-ComCollege_5 | H20: 17 | I20: K-12School-ComCollege_1 | J20: K-12School-ComCollegeDEER2015 | L20: All-Default<=2yrs_3 | M20: All-Default<=2yrsDEER2014
A21: NonRes-sAg-mCust-ci | B21: DEER2014 | C21: =IF(VLOOKUP($A21&$B21,NTG!$A$8:$W$106,18+C$3,FALSE),$A21&"_"&C$3,"") -> NonRes-sAg-mCust-ci_1 | D21: =IF(VLOOKUP($A21&$B21,NTG!$A$8:$W$106,18+D$3,FALSE),$A21&"_"&D$3,"") -> NonRes-sAg-mCust-ci_2 | E21: =IF(VLOOKUP($A21&$B21,NTG!$A$8:$W$106,18+E$3,FALSE),$A21&"_"&E$3,"") -> NonRes-sAg-mCust-ci_3 | F21: =IF(VLOOKUP($A21&$B21,NTG!$A$8:$W$106,18+F$3,FALSE),$A21&"_"&F$3,"") -> NonRes-sAg-mCust-ci_4 | G21: =IF(VLOOKUP($A21&$B21,NTG!$A$8:$W$106,18+G$3,FALSE),$A21&"_"&G$3,"") -> NonRes-sAg-mCust-ci_5 | H21: 18 | I21: NonRes-sAg-mCust-ci_1 | J21: NonRes-sAg-mCust-ciDEER2014 | L21: All-Default<=2yrs_4 | M21: All-Default<=2yrsDEER2014
A22: NonRes-sAll-mCFL | B22: DEER2014 | C22: =IF(VLOOKUP($A22&$B22,NTG!$A$8:$W$106,18+C$3,FALSE),$A22&"_"&C$3,"") -> NonRes-sAll-mCFL_1 | D22: =IF(VLOOKUP($A22&$B22,NTG!$A$8:$W$106,18+D$3,FALSE),$A22&"_"&D$3,"") -> NonRes-sAll-mCFL_2 | E22: =IF(VLOOKUP($A22&$B22,NTG!$A$8:$W$106,18+E$3,FALSE),$A22&"_"&E$3,"") -> NonRes-sAll-mCFL_3 | F22: =IF(VLOOKUP($A22&$B22,NTG!$A$8:$W$106,18+F$3,FALSE),$A22&"_"&F$3,"") ->  | G22: =IF(VLOOKUP($A22&$B22,NTG!$A$8:$W$106,18+G$3,FALSE),$A22&"_"&G$3,"") ->  | H22: 19 | I22: NonRes-sAll-mCFL_1 | J22: NonRes-sAll-mCFLDEER2014 | L22: All-Default<=2yrs_5 | M22: All-Default<=2yrsDEER2014
A23: NonRes-sAll-mCFL | B23: ExAnte2017 | C23: =IF(VLOOKUP($A23&$B23,NTG!$A$8:$W$106,18+C$3,FALSE),$A23&"_"&C$3,"") ->  | D23: =IF(VLOOKUP($A23&$B23,NTG!$A$8:$W$106,18+D$3,FALSE),$A23&"_"&D$3,"") ->  | E23: =IF(VLOOKUP($A23&$B23,NTG!$A$8:$W$106,18+E$3,FALSE),$A23&"_"&E$3,"") ->  | F23: =IF(VLOOKUP($A23&$B23,NTG!$A$8:$W$106,18+F$3,FALSE),$A23&"_"&F$3,"") -> NonRes-sAll-mCFL_4 | G23: =IF(VLOOKUP($A23&$B23,NTG!$A$8:$W$106,18+G$3,FALSE),$A23&"_"&G$3,"") -> NonRes-sAll-mCFL_5 | H23: 20 | J23: NonRes-sAll-mCFLExAnte2017 | L23: Com-Default>2yrs_1 | M23: Com-Default>2yrsDEER2014
A24: NonRes-sAll-mCFL-All | B24: DEER2016 | C24: =IF(VLOOKUP($A24&$B24,NTG!$A$8:$W$106,18+C$3,FALSE),$A24&"_"&C$3,"") -> NonRes-sAll-mCFL-All_1 | D24: =IF(VLOOKUP($A24&$B24,NTG!$A$8:$W$106,18+D$3,FALSE),$A24&"_"&D$3,"") -> NonRes-sAll-mCFL-All_2 | E24: =IF(VLOOKUP($A24&$B24,NTG!$A$8:$W$106,18+E$3,FALSE),$A24&"_"&E$3,"") -> NonRes-sAll-mCFL-All_3 | F24: =IF(VLOOKUP($A24&$B24,NTG!$A$8:$W$106,18+F$3,FALSE),$A24&"_"&F$3,"") ->  | G24: =IF(VLOOKUP($A24&$B24,NTG!$A$8:$W$106,18+G$3,FALSE),$A24&"_"&G$3,"") ->  | H24: 21 | I24: NonRes-sAll-mCFL-All_1 | J24: NonRes-sAll-mCFL-AllDEER2016 | L24: Com-Default>2yrs_2 | M24: Com-Default>2yrsDEER2014
A25: NonRes-sAll-mCFL-ci | B25: DEER2014 | C25: =IF(VLOOKUP($A25&$B25,NTG!$A$8:$W$106,18+C$3,FALSE),$A25&"_"&C$3,"") -> NonRes-sAll-mCFL-ci_1 | D25: =IF(VLOOKUP($A25&$B25,NTG!$A$8:$W$106,18+D$3,FALSE),$A25&"_"&D$3,"") ->  | E25: =IF(VLOOKUP($A25&$B25,NTG!$A$8:$W$106,18+E$3,FALSE),$A25&"_"&E$3,"") ->  | F25: =IF(VLOOKUP($A25&$B25,NTG!$A$8:$W$106,18+F$3,FALSE),$A25&"_"&F$3,"") ->  | G25: =IF(VLOOKUP($A25&$B25,NTG!$A$8:$W$106,18+G$3,FALSE),$A25&"_"&G$3,"") ->  | H25: 22 | I25: NonRes-sAll-mCFL-ci_1 | J25: NonRes-sAll-mCFL-ciDEER2014 | L25: Com-Default>2yrs_3 | M25: Com-Default>2yrsDEER2014
A26: NonRes-sAll-mCFL-dir | B26: DEER2014 | C26: =IF(VLOOKUP($A26&$B26,NTG!$A$8:$W$106,18+C$3,FALSE),$A26&"_"&C$3,"") -> NonRes-sAll-mCFL-dir_1 | D26: =IF(VLOOKUP($A26&$B26,NTG!$A$8:$W$106,18+D$3,FALSE),$A26&"_"&D$3,"") ->  | E26: =IF(VLOOKUP($A26&$B26,NTG!$A$8:$W$106,18+E$3,FALSE),$A26&"_"&E$3,"") ->  | F26: =IF(VLOOKUP($A26&$B26,NTG!$A$8:$W$106,18+F$3,FALSE),$A26&"_"&F$3,"") ->  | G26: =IF(VLOOKUP($A26&$B26,NTG!$A$8:$W$106,18+G$3,FALSE),$A26&"_"&G$3,"") ->  | H26: 23 | I26: NonRes-sAll-mCFL-dir_1 | J26: NonRes-sAll-mCFL-dirDEER2014 | L26: Com-Default>2yrs_4 | M26: Com-Default>2yrsDEER2014
A27: NonRes-sAll-mCFL-dn | B27: DEER2014 | C27: =IF(VLOOKUP($A27&$B27,NTG!$A$8:$W$106,18+C$3,FALSE),$A27&"_"&C$3,"") -> NonRes-sAll-mCFL-dn_1 | D27: =IF(VLOOKUP($A27&$B27,NTG!$A$8:$W$106,18+D$3,FALSE),$A27&"_"&D$3,"") ->  | E27: =IF(VLOOKUP($A27&$B27,NTG!$A$8:$W$106,18+E$3,FALSE),$A27&"_"&E$3,"") ->  | F27: =IF(VLOOKUP($A27&$B27,NTG!$A$8:$W$106,18+F$3,FALSE),$A27&"_"&F$3,"") ->  | G27: =IF(VLOOKUP($A27&$B27,NTG!$A$8:$W$106,18+G$3,FALSE),$A27&"_"&G$3,"") ->  | H27: 24 | I27: NonRes-sAll-mCFL-dn_1 | J27: NonRes-sAll-mCFL-dnDEER2014 | L27: Com-Default>2yrs_5 | M27: Com-Default>2yrsDEER2014
A28: NonRes-sAll-mCust | B28: DEER2014 | C28: =IF(VLOOKUP($A28&$B28,NTG!$A$8:$W$106,18+C$3,FALSE),$A28&"_"&C$3,"") -> NonRes-sAll-mCust_1 | D28: =IF(VLOOKUP($A28&$B28,NTG!$A$8:$W$106,18+D$3,FALSE),$A28&"_"&D$3,"") -> NonRes-sAll-mCust_2 | E28: =IF(VLOOKUP($A28&$B28,NTG!$A$8:$W$106,18+E$3,FALSE),$A28&"_"&E$3,"") -> NonRes-sAll-mCust_3 | F28: =IF(VLOOKUP($A28&$B28,NTG!$A$8:$W$106,18+F$3,FALSE),$A28&"_"&F$3,"") -> NonRes-sAll-mCust_4 | G28: =IF(VLOOKUP($A28&$B28,NTG!$A$8:$W$106,18+G$3,FALSE),$A28&"_"&G$3,"") -> NonRes-sAll-mCust_5 | H28: 25 | I28: NonRes-sAll-mCust_1 | J28: NonRes-sAll-mCustDEER2014 | L28: Com-Default-HTR-di_1 | M28: Com-Default-HTR-diDEER2014
A29: NonRes-sAll-mCust-Elec | B29: DEER2014 | C29: =IF(VLOOKUP($A29&$B29,NTG!$A$8:$W$106,18+C$3,FALSE),$A29&"_"&C$3,"") -> NonRes-sAll-mCust-Elec_1 | D29: =IF(VLOOKUP($A29&$B29,NTG!$A$8:$W$106,18+D$3,FALSE),$A29&"_"&D$3,"") -> NonRes-sAll-mCust-Elec_2 | E29: =IF(VLOOKUP($A29&$B29,NTG!$A$8:$W$106,18+E$3,FALSE),$A29&"_"&E$3,"") -> NonRes-sAll-mCust-Elec_3 | F29: =IF(VLOOKUP($A29&$B29,NTG!$A$8:$W$106,18+F$3,FALSE),$A29&"_"&F$3,"") -> NonRes-sAll-mCust-Elec_4 | G29: =IF(VLOOKUP($A29&$B29,NTG!$A$8:$W$106,18+G$3,FALSE),$A29&"_"&G$3,"") -> NonRes-sAll-mCust-Elec_5 | H29: 26 | I29: NonRes-sAll-mCust-Elec_1 | J29: NonRes-sAll-mCust-ElecDEER2014 | L29: Com-Default-HTR-di_2 | M29: Com-Default-HTR-diDEER2014
A30: NonRes-sAll-mCustElec-bd | B30: DEER2014 | C30: =IF(VLOOKUP($A30&$B30,NTG!$A$8:$W$106,18+C$3,FALSE),$A30&"_"&C$3,"") -> NonRes-sAll-mCustElec-bd_1 | D30: =IF(VLOOKUP($A30&$B30,NTG!$A$8:$W$106,18+D$3,FALSE),$A30&"_"&D$3,"") ->  | E30: =IF(VLOOKUP($A30&$B30,NTG!$A$8:$W$106,18+E$3,FALSE),$A30&"_"&E$3,"") ->  | F30: =IF(VLOOKUP($A30&$B30,NTG!$A$8:$W$106,18+F$3,FALSE),$A30&"_"&F$3,"") ->  | G30: =IF(VLOOKUP($A30&$B30,NTG!$A$8:$W$106,18+G$3,FALSE),$A30&"_"&G$3,"") ->  | H30: 27 | I30: NonRes-sAll-mCustElec-bd_1 | J30: NonRes-sAll-mCustElec-bdDEER2014 | L30: Com-Default-HTR-di_3 | M30: Com-Default-HTR-diDEER2014
A31: NonRes-sAll-mCust-Gas | B31: DEER2014 | C31: =IF(VLOOKUP($A31&$B31,NTG!$A$8:$W$106,18+C$3,FALSE),$A31&"_"&C$3,"") -> NonRes-sAll-mCust-Gas_1 | D31: =IF(VLOOKUP($A31&$B31,NTG!$A$8:$W$106,18+D$3,FALSE),$A31&"_"&D$3,"") -> NonRes-sAll-mCust-Gas_2 | E31: =IF(VLOOKUP($A31&$B31,NTG!$A$8:$W$106,18+E$3,FALSE),$A31&"_"&E$3,"") -> NonRes-sAll-mCust-Gas_3 | F31: =IF(VLOOKUP($A31&$B31,NTG!$A$8:$W$106,18+F$3,FALSE),$A31&"_"&F$3,"") -> NonRes-sAll-mCust-Gas_4 | G31: =IF(VLOOKUP($A31&$B31,NTG!$A$8:$W$106,18+G$3,FALSE),$A31&"_"&G$3,"") -> NonRes-sAll-mCust-Gas_5 | H31: 28 | I31: NonRes-sAll-mCust-Gas_1 | J31: NonRes-sAll-mCust-GasDEER2014 | L31: Com-Default-HTR-di_4 | M31: Com-Default-HTR-diDEER2014
A32: NonRes-sAll-mELtg-DnStrmDeemed | B32: DEER2019 | C32: =IF(VLOOKUP($A32&$B32,NTG!$A$8:$W$106,18+C$3,FALSE),$A32&"_"&C$3,"") ->  | D32: =IF(VLOOKUP($A32&$B32,NTG!$A$8:$W$106,18+D$3,FALSE),$A32&"_"&D$3,"") ->  | E32: =IF(VLOOKUP($A32&$B32,NTG!$A$8:$W$106,18+E$3,FALSE),$A32&"_"&E$3,"") ->  | F32: =IF(VLOOKUP($A32&$B32,NTG!$A$8:$W$106,18+F$3,FALSE),$A32&"_"&F$3,"") ->  | G32: =IF(VLOOKUP($A32&$B32,NTG!$A$8:$W$106,18+G$3,FALSE),$A32&"_"&G$3,"") -> NonRes-sAll-mELtg-DnStrmDeemed_5 | H32: 29 | J32: NonRes-sAll-mELtg-DnStrmDeemedDEER2019 | L32: Com-Default-HTR-di_5 | M32: Com-Default-HTR-diDEER2014
A33: NonRes-sAll-mHVAC-Chiller | B33: DEER2014 | C33: =IF(VLOOKUP($A33&$B33,NTG!$A$8:$W$106,18+C$3,FALSE),$A33&"_"&C$3,"") -> NonRes-sAll-mHVAC-Chiller_1 | D33: =IF(VLOOKUP($A33&$B33,NTG!$A$8:$W$106,18+D$3,FALSE),$A33&"_"&D$3,"") -> NonRes-sAll-mHVAC-Chiller_2 | E33: =IF(VLOOKUP($A33&$B33,NTG!$A$8:$W$106,18+E$3,FALSE),$A33&"_"&E$3,"") -> NonRes-sAll-mHVAC-Chiller_3 | F33: =IF(VLOOKUP($A33&$B33,NTG!$A$8:$W$106,18+F$3,FALSE),$A33&"_"&F$3,"") -> NonRes-sAll-mHVAC-Chiller_4 | G33: =IF(VLOOKUP($A33&$B33,NTG!$A$8:$W$106,18+G$3,FALSE),$A33&"_"&G$3,"") -> NonRes-sAll-mHVAC-Chiller_5 | H33: 30 | I33: NonRes-sAll-mHVAC-Chiller_1 | J33: NonRes-sAll-mHVAC-ChillerDEER2014 | L33: ConstrainedAreaProgram_1 | M33: ConstrainedAreaProgramDEER2015
A34: NonRes-sAll-mHVAC-DX-up | B34: DEER2014 | C34: =IF(VLOOKUP($A34&$B34,NTG!$A$8:$W$106,18+C$3,FALSE),$A34&"_"&C$3,"") -> NonRes-sAll-mHVAC-DX-up_1 | D34: =IF(VLOOKUP($A34&$B34,NTG!$A$8:$W$106,18+D$3,FALSE),$A34&"_"&D$3,"") ->  | E34: =IF(VLOOKUP($A34&$B34,NTG!$A$8:$W$106,18+E$3,FALSE),$A34&"_"&E$3,"") ->  | F34: =IF(VLOOKUP($A34&$B34,NTG!$A$8:$W$106,18+F$3,FALSE),$A34&"_"&F$3,"") ->  | G34: =IF(VLOOKUP($A34&$B34,NTG!$A$8:$W$106,18+G$3,FALSE),$A34&"_"&G$3,"") ->  | H34: 31 | I34: NonRes-sAll-mHVAC-DX-up_1 | J34: NonRes-sAll-mHVAC-DX-upDEER2014 | L34: ConstrainedAreaProgram_2 | M34: ConstrainedAreaProgramDEER2015
A35: NonRes-sAll-mHVAC-DX-up | B35: DEER2016 | C35: =IF(VLOOKUP($A35&$B35,NTG!$A$8:$W$106,18+C$3,FALSE),$A35&"_"&C$3,"") ->  | D35: =IF(VLOOKUP($A35&$B35,NTG!$A$8:$W$106,18+D$3,FALSE),$A35&"_"&D$3,"") -> NonRes-sAll-mHVAC-DX-up_2 | E35: =IF(VLOOKUP($A35&$B35,NTG!$A$8:$W$106,18+E$3,FALSE),$A35&"_"&E$3,"") -> NonRes-sAll-mHVAC-DX-up_3 | F35: =IF(VLOOKUP($A35&$B35,NTG!$A$8:$W$106,18+F$3,FALSE),$A35&"_"&F$3,"") -> NonRes-sAll-mHVAC-DX-up_4 | G35: =IF(VLOOKUP($A35&$B35,NTG!$A$8:$W$106,18+G$3,FALSE),$A35&"_"&G$3,"") -> NonRes-sAll-mHVAC-DX-up_5 | H35: 32 | J35: NonRes-sAll-mHVAC-DX-upDEER2016 | L35: ConstrainedAreaProgram_3 | M35: ConstrainedAreaProgramDEER2015
A36: NonRes-sAll-mHVAC-Pkg | B36: DEER2017 | C36: =IF(VLOOKUP($A36&$B36,NTG!$A$8:$W$106,18+C$3,FALSE),$A36&"_"&C$3,"") ->  | D36: =IF(VLOOKUP($A36&$B36,NTG!$A$8:$W$106,18+D$3,FALSE),$A36&"_"&D$3,"") ->  | E36: =IF(VLOOKUP($A36&$B36,NTG!$A$8:$W$106,18+E$3,FALSE),$A36&"_"&E$3,"") -> NonRes-sAll-mHVAC-Pkg_3 | F36: =IF(VLOOKUP($A36&$B36,NTG!$A$8:$W$106,18+F$3,FALSE),$A36&"_"&F$3,"") -> NonRes-sAll-mHVAC-Pkg_4 | G36: =IF(VLOOKUP($A36&$B36,NTG!$A$8:$W$106,18+G$3,FALSE),$A36&"_"&G$3,"") ->  | H36: 33 | J36: NonRes-sAll-mHVAC-PkgDEER2017 | L36: ConstrainedAreaProgram_4 | M36: ConstrainedAreaProgramDEER2015
A37: NonRes-sAll-mHVAC-Pkg | B37: DEER2019 | C37: =IF(VLOOKUP($A37&$B37,NTG!$A$8:$W$106,18+C$3,FALSE),$A37&"_"&C$3,"") ->  | D37: =IF(VLOOKUP($A37&$B37,NTG!$A$8:$W$106,18+D$3,FALSE),$A37&"_"&D$3,"") ->  | E37: =IF(VLOOKUP($A37&$B37,NTG!$A$8:$W$106,18+E$3,FALSE),$A37&"_"&E$3,"") ->  | F37: =IF(VLOOKUP($A37&$B37,NTG!$A$8:$W$106,18+F$3,FALSE),$A37&"_"&F$3,"") ->  | G37: =IF(VLOOKUP($A37&$B37,NTG!$A$8:$W$106,18+G$3,FALSE),$A37&"_"&G$3,"") -> NonRes-sAll-mHVAC-Pkg_5 | H37: 34 | J37: NonRes-sAll-mHVAC-PkgDEER2019 | L37: ConstrainedAreaProgram_5 | M37: ConstrainedAreaProgramDEER2015
A38: NonRes-sAll-mHVAC-RCA | B38: DEER2014 | C38: =IF(VLOOKUP($A38&$B38,NTG!$A$8:$W$106,18+C$3,FALSE),$A38&"_"&C$3,"") -> NonRes-sAll-mHVAC-RCA_1 | D38: =IF(VLOOKUP($A38&$B38,NTG!$A$8:$W$106,18+D$3,FALSE),$A38&"_"&D$3,"") -> NonRes-sAll-mHVAC-RCA_2 | E38: =IF(VLOOKUP($A38&$B38,NTG!$A$8:$W$106,18+E$3,FALSE),$A38&"_"&E$3,"") -> NonRes-sAll-mHVAC-RCA_3 | F38: =IF(VLOOKUP($A38&$B38,NTG!$A$8:$W$106,18+F$3,FALSE),$A38&"_"&F$3,"") -> NonRes-sAll-mHVAC-RCA_4 | G38: =IF(VLOOKUP($A38&$B38,NTG!$A$8:$W$106,18+G$3,FALSE),$A38&"_"&G$3,"") -> NonRes-sAll-mHVAC-RCA_5 | H38: 35 | I38: NonRes-sAll-mHVAC-RCA_1 | J38: NonRes-sAll-mHVAC-RCADEER2014 | L38: ET-Default_1 | M38: ET-DefaultDEER2014
A39: NonRes-sAll-mLEDARefl | B39: ExAnte2017 | C39: =IF(VLOOKUP($A39&$B39,NTG!$A$8:$W$106,18+C$3,FALSE),$A39&"_"&C$3,"") ->  | D39: =IF(VLOOKUP($A39&$B39,NTG!$A$8:$W$106,18+D$3,FALSE),$A39&"_"&D$3,"") ->  | E39: =IF(VLOOKUP($A39&$B39,NTG!$A$8:$W$106,18+E$3,FALSE),$A39&"_"&E$3,"") ->  | F39: =IF(VLOOKUP($A39&$B39,NTG!$A$8:$W$106,18+F$3,FALSE),$A39&"_"&F$3,"") -> NonRes-sAll-mLEDARefl_4 | G39: =IF(VLOOKUP($A39&$B39,NTG!$A$8:$W$106,18+G$3,FALSE),$A39&"_"&G$3,"") -> NonRes-sAll-mLEDARefl_5 | H39: 36 | J39: NonRes-sAll-mLEDAReflExAnte2017 | L39: ET-Default_2 | M39: ET-DefaultDEER2014
A40: NonRes-sAll-mLEDSpcl | B40: ExAnte2017 | C40: =IF(VLOOKUP($A40&$B40,NTG!$A$8:$W$106,18+C$3,FALSE),$A40&"_"&C$3,"") ->  | D40: =IF(VLOOKUP($A40&$B40,NTG!$A$8:$W$106,18+D$3,FALSE),$A40&"_"&D$3,"") ->  | E40: =IF(VLOOKUP($A40&$B40,NTG!$A$8:$W$106,18+E$3,FALSE),$A40&"_"&E$3,"") ->  | F40: =IF(VLOOKUP($A40&$B40,NTG!$A$8:$W$106,18+F$3,FALSE),$A40&"_"&F$3,"") -> NonRes-sAll-mLEDSpcl_4 | G40: =IF(VLOOKUP($A40&$B40,NTG!$A$8:$W$106,18+G$3,FALSE),$A40&"_"&G$3,"") -> NonRes-sAll-mLEDSpcl_5 | H40: 37 | J40: NonRes-sAll-mLEDSpclExAnte2017 | L40: ET-Default_3 | M40: ET-DefaultDEER2014
A41: NonRes-sAll-mLFDL-Deemed | B41: DEER2016 | C41: =IF(VLOOKUP($A41&$B41,NTG!$A$8:$W$106,18+C$3,FALSE),$A41&"_"&C$3,"") ->  | D41: =IF(VLOOKUP($A41&$B41,NTG!$A$8:$W$106,18+D$3,FALSE),$A41&"_"&D$3,"") -> NonRes-sAll-mLFDL-Deemed_2 | E41: =IF(VLOOKUP($A41&$B41,NTG!$A$8:$W$106,18+E$3,FALSE),$A41&"_"&E$3,"") -> NonRes-sAll-mLFDL-Deemed_3 | F41: =IF(VLOOKUP($A41&$B41,NTG!$A$8:$W$106,18+F$3,FALSE),$A41&"_"&F$3,"") -> NonRes-sAll-mLFDL-Deemed_4 | G41: =IF(VLOOKUP($A41&$B41,NTG!$A$8:$W$106,18+G$3,FALSE),$A41&"_"&G$3,"") -> NonRes-sAll-mLFDL-Deemed_5 | H41: 38 | J41: NonRes-sAll-mLFDL-DeemedDEER2016 | L41: ET-Default_4 | M41: ET-DefaultDEER2014
A42: NonRes-sAll-mLFHB-Deemed | B42: DEER2016 | C42: =IF(VLOOKUP($A42&$B42,NTG!$A$8:$W$106,18+C$3,FALSE),$A42&"_"&C$3,"") ->  | D42: =IF(VLOOKUP($A42&$B42,NTG!$A$8:$W$106,18+D$3,FALSE),$A42&"_"&D$3,"") -> NonRes-sAll-mLFHB-Deemed_2 | E42: =IF(VLOOKUP($A42&$B42,NTG!$A$8:$W$106,18+E$3,FALSE),$A42&"_"&E$3,"") -> NonRes-sAll-mLFHB-Deemed_3 | F42: =IF(VLOOKUP($A42&$B42,NTG!$A$8:$W$106,18+F$3,FALSE),$A42&"_"&F$3,"") -> NonRes-sAll-mLFHB-Deemed_4 | G42: =IF(VLOOKUP($A42&$B42,NTG!$A$8:$W$106,18+G$3,FALSE),$A42&"_"&G$3,"") -> NonRes-sAll-mLFHB-Deemed_5 | H42: 39 | J42: NonRes-sAll-mLFHB-DeemedDEER2016 | L42: ET-Default_5 | M42: ET-DefaultDEER2014
A43: NonRes-sAll-mLFHBT5-Deemed | B43: DEER2016 | C43: =IF(VLOOKUP($A43&$B43,NTG!$A$8:$W$106,18+C$3,FALSE),$A43&"_"&C$3,"") ->  | D43: =IF(VLOOKUP($A43&$B43,NTG!$A$8:$W$106,18+D$3,FALSE),$A43&"_"&D$3,"") -> NonRes-sAll-mLFHBT5-Deemed_2 | E43: =IF(VLOOKUP($A43&$B43,NTG!$A$8:$W$106,18+E$3,FALSE),$A43&"_"&E$3,"") -> NonRes-sAll-mLFHBT5-Deemed_3 | F43: =IF(VLOOKUP($A43&$B43,NTG!$A$8:$W$106,18+F$3,FALSE),$A43&"_"&F$3,"") -> NonRes-sAll-mLFHBT5-Deemed_4 | G43: =IF(VLOOKUP($A43&$B43,NTG!$A$8:$W$106,18+G$3,FALSE),$A43&"_"&G$3,"") -> NonRes-sAll-mLFHBT5-Deemed_5 | H43: 40 | J43: NonRes-sAll-mLFHBT5-DeemedDEER2016 | L43: EUC-Default_1 | M43: EUC-DefaultDEER2014
A44: NonRes-sAll-mLFOth-Deemed | B44: DEER2016 | C44: =IF(VLOOKUP($A44&$B44,NTG!$A$8:$W$106,18+C$3,FALSE),$A44&"_"&C$3,"") ->  | D44: =IF(VLOOKUP($A44&$B44,NTG!$A$8:$W$106,18+D$3,FALSE),$A44&"_"&D$3,"") -> NonRes-sAll-mLFOth-Deemed_2 | E44: =IF(VLOOKUP($A44&$B44,NTG!$A$8:$W$106,18+E$3,FALSE),$A44&"_"&E$3,"") -> NonRes-sAll-mLFOth-Deemed_3 | F44: =IF(VLOOKUP($A44&$B44,NTG!$A$8:$W$106,18+F$3,FALSE),$A44&"_"&F$3,"") -> NonRes-sAll-mLFOth-Deemed_4 | G44: =IF(VLOOKUP($A44&$B44,NTG!$A$8:$W$106,18+G$3,FALSE),$A44&"_"&G$3,"") -> NonRes-sAll-mLFOth-Deemed_5 | H44: 41 | J44: NonRes-sAll-mLFOth-DeemedDEER2016 | L44: EUC-Default_2 | M44: EUC-DefaultDEER2016
A45: NonRes-sAll-mLtg-ci | B45: DEER2016 | C45: =IF(VLOOKUP($A45&$B45,NTG!$A$8:$W$106,18+C$3,FALSE),$A45&"_"&C$3,"") ->  | D45: =IF(VLOOKUP($A45&$B45,NTG!$A$8:$W$106,18+D$3,FALSE),$A45&"_"&D$3,"") -> NonRes-sAll-mLtg-ci_2 | E45: =IF(VLOOKUP($A45&$B45,NTG!$A$8:$W$106,18+E$3,FALSE),$A45&"_"&E$3,"") -> NonRes-sAll-mLtg-ci_3 | F45: =IF(VLOOKUP($A45&$B45,NTG!$A$8:$W$106,18+F$3,FALSE),$A45&"_"&F$3,"") -> NonRes-sAll-mLtg-ci_4 | G45: =IF(VLOOKUP($A45&$B45,NTG!$A$8:$W$106,18+G$3,FALSE),$A45&"_"&G$3,"") ->  | H45: 42 | J45: NonRes-sAll-mLtg-ciDEER2016 | L45: EUC-Default_3 | M45: EUC-DefaultDEER2016
A46: NonRes-sAll-mLtg-ci | B46: DEER2019 | C46: =IF(VLOOKUP($A46&$B46,NTG!$A$8:$W$106,18+C$3,FALSE),$A46&"_"&C$3,"") ->  | D46: =IF(VLOOKUP($A46&$B46,NTG!$A$8:$W$106,18+D$3,FALSE),$A46&"_"&D$3,"") ->  | E46: =IF(VLOOKUP($A46&$B46,NTG!$A$8:$W$106,18+E$3,FALSE),$A46&"_"&E$3,"") ->  | F46: =IF(VLOOKUP($A46&$B46,NTG!$A$8:$W$106,18+F$3,FALSE),$A46&"_"&F$3,"") ->  | G46: =IF(VLOOKUP($A46&$B46,NTG!$A$8:$W$106,18+G$3,FALSE),$A46&"_"&G$3,"") -> NonRes-sAll-mLtg-ci_5 | H46: 43 | J46: NonRes-sAll-mLtg-ciDEER2019 | L46: EUC-Default_4 | M46: EUC-DefaultDEER2016
A47: NonRes-sAll-mLtgCtrl | B47: DEER2014 | C47: =IF(VLOOKUP($A47&$B47,NTG!$A$8:$W$106,18+C$3,FALSE),$A47&"_"&C$3,"") -> NonRes-sAll-mLtgCtrl_1 | D47: =IF(VLOOKUP($A47&$B47,NTG!$A$8:$W$106,18+D$3,FALSE),$A47&"_"&D$3,"") -> NonRes-sAll-mLtgCtrl_2 | E47: =IF(VLOOKUP($A47&$B47,NTG!$A$8:$W$106,18+E$3,FALSE),$A47&"_"&E$3,"") -> NonRes-sAll-mLtgCtrl_3 | F47: =IF(VLOOKUP($A47&$B47,NTG!$A$8:$W$106,18+F$3,FALSE),$A47&"_"&F$3,"") -> NonRes-sAll-mLtgCtrl_4 | G47: =IF(VLOOKUP($A47&$B47,NTG!$A$8:$W$106,18+G$3,FALSE),$A47&"_"&G$3,"") -> NonRes-sAll-mLtgCtrl_5 | H47: 44 | I47: NonRes-sAll-mLtgCtrl_1 | J47: NonRes-sAll-mLtgCtrlDEER2014 | L47: EUC-Default_5 | M47: EUC-DefaultDEER2016
A48: NonRes-sAll-mLtgCtrl-htr | B48: DEER2014 | C48: =IF(VLOOKUP($A48&$B48,NTG!$A$8:$W$106,18+C$3,FALSE),$A48&"_"&C$3,"") -> NonRes-sAll-mLtgCtrl-htr_1 | D48: =IF(VLOOKUP($A48&$B48,NTG!$A$8:$W$106,18+D$3,FALSE),$A48&"_"&D$3,"") -> NonRes-sAll-mLtgCtrl-htr_2 | E48: =IF(VLOOKUP($A48&$B48,NTG!$A$8:$W$106,18+E$3,FALSE),$A48&"_"&E$3,"") -> NonRes-sAll-mLtgCtrl-htr_3 | F48: =IF(VLOOKUP($A48&$B48,NTG!$A$8:$W$106,18+F$3,FALSE),$A48&"_"&F$3,"") -> NonRes-sAll-mLtgCtrl-htr_4 | G48: =IF(VLOOKUP($A48&$B48,NTG!$A$8:$W$106,18+G$3,FALSE),$A48&"_"&G$3,"") -> NonRes-sAll-mLtgCtrl-htr_5 | H48: 45 | I48: NonRes-sAll-mLtgCtrl-htr_1 | J48: NonRes-sAll-mLtgCtrl-htrDEER2014 | L48: Ind-Default>2yrs_1 | M48: Ind-Default>2yrsDEER2014
A49: NonRes-sAll-MLtgLED-Deemed | B49: DEER2016 | C49: =IF(VLOOKUP($A49&$B49,NTG!$A$8:$W$106,18+C$3,FALSE),$A49&"_"&C$3,"") -> NonRes-sAll-MLtgLED-Deemed_1 | D49: =IF(VLOOKUP($A49&$B49,NTG!$A$8:$W$106,18+D$3,FALSE),$A49&"_"&D$3,"") -> NonRes-sAll-MLtgLED-Deemed_2 | E49: =IF(VLOOKUP($A49&$B49,NTG!$A$8:$W$106,18+E$3,FALSE),$A49&"_"&E$3,"") -> NonRes-sAll-MLtgLED-Deemed_3 | F49: =IF(VLOOKUP($A49&$B49,NTG!$A$8:$W$106,18+F$3,FALSE),$A49&"_"&F$3,"") ->  | G49: =IF(VLOOKUP($A49&$B49,NTG!$A$8:$W$106,18+G$3,FALSE),$A49&"_"&G$3,"") ->  | H49: 46 | I49: NonRes-sAll-MLtgLED-Deemed_1 | J49: NonRes-sAll-MLtgLED-DeemedDEER2016 | L49: Ind-Default>2yrs_2 | M49: Ind-Default>2yrsDEER2014
A50: NonRes-sAll-mOccSens | B50: DEER2014 | C50: =IF(VLOOKUP($A50&$B50,NTG!$A$8:$W$106,18+C$3,FALSE),$A50&"_"&C$3,"") -> NonRes-sAll-mOccSens_1 | D50: =IF(VLOOKUP($A50&$B50,NTG!$A$8:$W$106,18+D$3,FALSE),$A50&"_"&D$3,"") -> NonRes-sAll-mOccSens_2 | E50: =IF(VLOOKUP($A50&$B50,NTG!$A$8:$W$106,18+E$3,FALSE),$A50&"_"&E$3,"") -> NonRes-sAll-mOccSens_3 | F50: =IF(VLOOKUP($A50&$B50,NTG!$A$8:$W$106,18+F$3,FALSE),$A50&"_"&F$3,"") -> NonRes-sAll-mOccSens_4 | G50: =IF(VLOOKUP($A50&$B50,NTG!$A$8:$W$106,18+G$3,FALSE),$A50&"_"&G$3,"") -> NonRes-sAll-mOccSens_5 | H50: 47 | I50: NonRes-sAll-mOccSens_1 | J50: NonRes-sAll-mOccSensDEER2014 | L50: Ind-Default>2yrs_3 | M50: Ind-Default>2yrsDEER2014
A51: NonRes-sAll-mPipeIns | B51: DEER2014 | C51: =IF(VLOOKUP($A51&$B51,NTG!$A$8:$W$106,18+C$3,FALSE),$A51&"_"&C$3,"") -> NonRes-sAll-mPipeIns_1 | D51: =IF(VLOOKUP($A51&$B51,NTG!$A$8:$W$106,18+D$3,FALSE),$A51&"_"&D$3,"") ->  | E51: =IF(VLOOKUP($A51&$B51,NTG!$A$8:$W$106,18+E$3,FALSE),$A51&"_"&E$3,"") ->  | F51: =IF(VLOOKUP($A51&$B51,NTG!$A$8:$W$106,18+F$3,FALSE),$A51&"_"&F$3,"") ->  | G51: =IF(VLOOKUP($A51&$B51,NTG!$A$8:$W$106,18+G$3,FALSE),$A51&"_"&G$3,"") ->  | H51: 48 | I51: NonRes-sAll-mPipeIns_1 | J51: NonRes-sAll-mPipeInsDEER2014 | L51: Ind-Default>2yrs_4 | M51: Ind-Default>2yrsDEER2014
A52: NonRes-sAll-mPipeIns-ci | B52: DEER2016 | C52: =IF(VLOOKUP($A52&$B52,NTG!$A$8:$W$106,18+C$3,FALSE),$A52&"_"&C$3,"") ->  | D52: =IF(VLOOKUP($A52&$B52,NTG!$A$8:$W$106,18+D$3,FALSE),$A52&"_"&D$3,"") -> NonRes-sAll-mPipeIns-ci_2 | E52: =IF(VLOOKUP($A52&$B52,NTG!$A$8:$W$106,18+E$3,FALSE),$A52&"_"&E$3,"") -> NonRes-sAll-mPipeIns-ci_3 | F52: =IF(VLOOKUP($A52&$B52,NTG!$A$8:$W$106,18+F$3,FALSE),$A52&"_"&F$3,"") -> NonRes-sAll-mPipeIns-ci_4 | G52: =IF(VLOOKUP($A52&$B52,NTG!$A$8:$W$106,18+G$3,FALSE),$A52&"_"&G$3,"") ->  | H52: 49 | J52: NonRes-sAll-mPipeIns-ciDEER2016 | L52: Ind-Default>2yrs_5 | M52: Ind-Default>2yrsDEER2014
A53: NonRes-sAll-mPipeIns-ci | B53: DEER2019 | C53: =IF(VLOOKUP($A53&$B53,NTG!$A$8:$W$106,18+C$3,FALSE),$A53&"_"&C$3,"") ->  | D53: =IF(VLOOKUP($A53&$B53,NTG!$A$8:$W$106,18+D$3,FALSE),$A53&"_"&D$3,"") ->  | E53: =IF(VLOOKUP($A53&$B53,NTG!$A$8:$W$106,18+E$3,FALSE),$A53&"_"&E$3,"") ->  | F53: =IF(VLOOKUP($A53&$B53,NTG!$A$8:$W$106,18+F$3,FALSE),$A53&"_"&F$3,"") ->  | G53: =IF(VLOOKUP($A53&$B53,NTG!$A$8:$W$106,18+G$3,FALSE),$A53&"_"&G$3,"") -> NonRes-sAll-mPipeIns-ci_5 | H53: 50 | J53: NonRes-sAll-mPipeIns-ciDEER2019 | L53: Ind-Default-HTR-di_1 | M53: Ind-Default-HTR-diDEER2014
A54: NonRes-sAll-mPipeIns-deemed | B54: DEER2016 | C54: =IF(VLOOKUP($A54&$B54,NTG!$A$8:$W$106,18+C$3,FALSE),$A54&"_"&C$3,"") ->  | D54: =IF(VLOOKUP($A54&$B54,NTG!$A$8:$W$106,18+D$3,FALSE),$A54&"_"&D$3,"") -> NonRes-sAll-mPipeIns-deemed_2 | E54: =IF(VLOOKUP($A54&$B54,NTG!$A$8:$W$106,18+E$3,FALSE),$A54&"_"&E$3,"") -> NonRes-sAll-mPipeIns-deemed_3 | F54: =IF(VLOOKUP($A54&$B54,NTG!$A$8:$W$106,18+F$3,FALSE),$A54&"_"&F$3,"") -> NonRes-sAll-mPipeIns-deemed_4 | G54: =IF(VLOOKUP($A54&$B54,NTG!$A$8:$W$106,18+G$3,FALSE),$A54&"_"&G$3,"") ->  | H54: 51 | J54: NonRes-sAll-mPipeIns-deemedDEER2016 | L54: Ind-Default-HTR-di_2 | M54: Ind-Default-HTR-diDEER2014
A55: NonRes-sAll-mPipeIns-deemed | B55: DEER2019 | C55: =IF(VLOOKUP($A55&$B55,NTG!$A$8:$W$106,18+C$3,FALSE),$A55&"_"&C$3,"") ->  | D55: =IF(VLOOKUP($A55&$B55,NTG!$A$8:$W$106,18+D$3,FALSE),$A55&"_"&D$3,"") ->  | E55: =IF(VLOOKUP($A55&$B55,NTG!$A$8:$W$106,18+E$3,FALSE),$A55&"_"&E$3,"") ->  | F55: =IF(VLOOKUP($A55&$B55,NTG!$A$8:$W$106,18+F$3,FALSE),$A55&"_"&F$3,"") ->  | G55: =IF(VLOOKUP($A55&$B55,NTG!$A$8:$W$106,18+G$3,FALSE),$A55&"_"&G$3,"") -> NonRes-sAll-mPipeIns-deemed_5 | H55: 52 | J55: NonRes-sAll-mPipeIns-deemedDEER2019 | L55: Ind-Default-HTR-di_3 | M55: Ind-Default-HTR-diDEER2014
A56: NonRes-sAll-mPmpTst | B56: DEER2014 | C56: =IF(VLOOKUP($A56&$B56,NTG!$A$8:$W$106,18+C$3,FALSE),$A56&"_"&C$3,"") -> NonRes-sAll-mPmpTst_1 | D56: =IF(VLOOKUP($A56&$B56,NTG!$A$8:$W$106,18+D$3,FALSE),$A56&"_"&D$3,"") ->  | E56: =IF(VLOOKUP($A56&$B56,NTG!$A$8:$W$106,18+E$3,FALSE),$A56&"_"&E$3,"") ->  | F56: =IF(VLOOKUP($A56&$B56,NTG!$A$8:$W$106,18+F$3,FALSE),$A56&"_"&F$3,"") ->  | G56: =IF(VLOOKUP($A56&$B56,NTG!$A$8:$W$106,18+G$3,FALSE),$A56&"_"&G$3,"") ->  | H56: 53 | I56: NonRes-sAll-mPmpTst_1 | J56: NonRes-sAll-mPmpTstDEER2014 | L56: Ind-Default-HTR-di_4 | M56: Ind-Default-HTR-diDEER2014
A57: NonRes-sAll-mPOC | B57: DEER2014 | C57: =IF(VLOOKUP($A57&$B57,NTG!$A$8:$W$106,18+C$3,FALSE),$A57&"_"&C$3,"") -> NonRes-sAll-mPOC_1 | D57: =IF(VLOOKUP($A57&$B57,NTG!$A$8:$W$106,18+D$3,FALSE),$A57&"_"&D$3,"") -> NonRes-sAll-mPOC_2 | E57: =IF(VLOOKUP($A57&$B57,NTG!$A$8:$W$106,18+E$3,FALSE),$A57&"_"&E$3,"") -> NonRes-sAll-mPOC_3 | F57: =IF(VLOOKUP($A57&$B57,NTG!$A$8:$W$106,18+F$3,FALSE),$A57&"_"&F$3,"") -> NonRes-sAll-mPOC_4 | G57: =IF(VLOOKUP($A57&$B57,NTG!$A$8:$W$106,18+G$3,FALSE),$A57&"_"&G$3,"") -> NonRes-sAll-mPOC_5 | H57: 54 | I57: NonRes-sAll-mPOC_1 | J57: NonRes-sAll-mPOCDEER2014 | L57: Ind-Default-HTR-di_5 | M57: Ind-Default-HTR-diDEER2014
A58: NonRes-sAll-mRCx-ci | B58: DEER2014 | C58: =IF(VLOOKUP($A58&$B58,NTG!$A$8:$W$106,18+C$3,FALSE),$A58&"_"&C$3,"") -> NonRes-sAll-mRCx-ci_1 | D58: =IF(VLOOKUP($A58&$B58,NTG!$A$8:$W$106,18+D$3,FALSE),$A58&"_"&D$3,"") ->  | E58: =IF(VLOOKUP($A58&$B58,NTG!$A$8:$W$106,18+E$3,FALSE),$A58&"_"&E$3,"") ->  | F58: =IF(VLOOKUP($A58&$B58,NTG!$A$8:$W$106,18+F$3,FALSE),$A58&"_"&F$3,"") ->  | G58: =IF(VLOOKUP($A58&$B58,NTG!$A$8:$W$106,18+G$3,FALSE),$A58&"_"&G$3,"") ->  | H58: 55 | I58: NonRes-sAll-mRCx-ci_1 | J58: NonRes-sAll-mRCx-ciDEER2014 | L58: K-12School-ComCollege_1 | M58: K-12School-ComCollegeDEER2015
A59: NonRes-sAll-mRCx-dn | B59: DEER2014 | C59: =IF(VLOOKUP($A59&$B59,NTG!$A$8:$W$106,18+C$3,FALSE),$A59&"_"&C$3,"") -> NonRes-sAll-mRCx-dn_1 | D59: =IF(VLOOKUP($A59&$B59,NTG!$A$8:$W$106,18+D$3,FALSE),$A59&"_"&D$3,"") ->  | E59: =IF(VLOOKUP($A59&$B59,NTG!$A$8:$W$106,18+E$3,FALSE),$A59&"_"&E$3,"") ->  | F59: =IF(VLOOKUP($A59&$B59,NTG!$A$8:$W$106,18+F$3,FALSE),$A59&"_"&F$3,"") ->  | G59: =IF(VLOOKUP($A59&$B59,NTG!$A$8:$W$106,18+G$3,FALSE),$A59&"_"&G$3,"") ->  | H59: 56 | I59: NonRes-sAll-mRCx-dn_1 | J59: NonRes-sAll-mRCx-dnDEER2014 | L59: K-12School-ComCollege_1 | M59: K-12School-ComCollegeDEER2015
A60: NonRes-sAll-mRfg-DG | B60: DEER2014 | C60: =IF(VLOOKUP($A60&$B60,NTG!$A$8:$W$106,18+C$3,FALSE),$A60&"_"&C$3,"") -> NonRes-sAll-mRfg-DG_1 | D60: =IF(VLOOKUP($A60&$B60,NTG!$A$8:$W$106,18+D$3,FALSE),$A60&"_"&D$3,"") -> NonRes-sAll-mRfg-DG_2 | E60: =IF(VLOOKUP($A60&$B60,NTG!$A$8:$W$106,18+E$3,FALSE),$A60&"_"&E$3,"") -> NonRes-sAll-mRfg-DG_3 | F60: =IF(VLOOKUP($A60&$B60,NTG!$A$8:$W$106,18+F$3,FALSE),$A60&"_"&F$3,"") -> NonRes-sAll-mRfg-DG_4 | G60: =IF(VLOOKUP($A60&$B60,NTG!$A$8:$W$106,18+G$3,FALSE),$A60&"_"&G$3,"") -> NonRes-sAll-mRfg-DG_5 | H60: 57 | I60: NonRes-sAll-mRfg-DG_1 | J60: NonRes-sAll-mRfg-DGDEER2014 | L60: K-12School-ComCollege_1 | M60: K-12School-ComCollegeDEER2015
A61: NonRes-sAll-mRfg-SC | B61: DEER2014 | C61: =IF(VLOOKUP($A61&$B61,NTG!$A$8:$W$106,18+C$3,FALSE),$A61&"_"&C$3,"") -> NonRes-sAll-mRfg-SC_1 | D61: =IF(VLOOKUP($A61&$B61,NTG!$A$8:$W$106,18+D$3,FALSE),$A61&"_"&D$3,"") -> NonRes-sAll-mRfg-SC_2 | E61: =IF(VLOOKUP($A61&$B61,NTG!$A$8:$W$106,18+E$3,FALSE),$A61&"_"&E$3,"") -> NonRes-sAll-mRfg-SC_3 | F61: =IF(VLOOKUP($A61&$B61,NTG!$A$8:$W$106,18+F$3,FALSE),$A61&"_"&F$3,"") -> NonRes-sAll-mRfg-SC_4 | G61: =IF(VLOOKUP($A61&$B61,NTG!$A$8:$W$106,18+G$3,FALSE),$A61&"_"&G$3,"") -> NonRes-sAll-mRfg-SC_5 | H61: 58 | I61: NonRes-sAll-mRfg-SC_1 | J61: NonRes-sAll-mRfg-SCDEER2014 | L61: K-12School-ComCollege_1 | M61: K-12School-ComCollegeDEER2015
A62: NonRes-sAll-mStmTrp-ci | B62: DEER2014 | C62: =IF(VLOOKUP($A62&$B62,NTG!$A$8:$W$106,18+C$3,FALSE),$A62&"_"&C$3,"") -> NonRes-sAll-mStmTrp-ci_1 | D62: =IF(VLOOKUP($A62&$B62,NTG!$A$8:$W$106,18+D$3,FALSE),$A62&"_"&D$3,"") -> NonRes-sAll-mStmTrp-ci_2 | E62: =IF(VLOOKUP($A62&$B62,NTG!$A$8:$W$106,18+E$3,FALSE),$A62&"_"&E$3,"") -> NonRes-sAll-mStmTrp-ci_3 | F62: =IF(VLOOKUP($A62&$B62,NTG!$A$8:$W$106,18+F$3,FALSE),$A62&"_"&F$3,"") -> NonRes-sAll-mStmTrp-ci_4 | G62: =IF(VLOOKUP($A62&$B62,NTG!$A$8:$W$106,18+G$3,FALSE),$A62&"_"&G$3,"") -> NonRes-sAll-mStmTrp-ci_5 | H62: 59 | I62: NonRes-sAll-mStmTrp-ci_1 | J62: NonRes-sAll-mStmTrp-ciDEER2014 | L62: K-12School-ComCollege_2 | M62: K-12School-ComCollegeDEER2015
A63: NonRes-sAll-mStmTrp-dn | B63: DEER2014 | C63: =IF(VLOOKUP($A63&$B63,NTG!$A$8:$W$106,18+C$3,FALSE),$A63&"_"&C$3,"") -> NonRes-sAll-mStmTrp-dn_1 | D63: =IF(VLOOKUP($A63&$B63,NTG!$A$8:$W$106,18+D$3,FALSE),$A63&"_"&D$3,"") -> NonRes-sAll-mStmTrp-dn_2 | E63: =IF(VLOOKUP($A63&$B63,NTG!$A$8:$W$106,18+E$3,FALSE),$A63&"_"&E$3,"") -> NonRes-sAll-mStmTrp-dn_3 | F63: =IF(VLOOKUP($A63&$B63,NTG!$A$8:$W$106,18+F$3,FALSE),$A63&"_"&F$3,"") -> NonRes-sAll-mStmTrp-dn_4 | G63: =IF(VLOOKUP($A63&$B63,NTG!$A$8:$W$106,18+G$3,FALSE),$A63&"_"&G$3,"") -> NonRes-sAll-mStmTrp-dn_5 | H63: 60 | I63: NonRes-sAll-mStmTrp-dn_1 | J63: NonRes-sAll-mStmTrp-dnDEER2014 | L63: K-12School-ComCollege_2 | M63: K-12School-ComCollegeDEER2015
A64: NonRes-sAll-mT5T8-ci | B64: DEER2014 | C64: =IF(VLOOKUP($A64&$B64,NTG!$A$8:$W$106,18+C$3,FALSE),$A64&"_"&C$3,"") -> NonRes-sAll-mT5T8-ci_1 | D64: =IF(VLOOKUP($A64&$B64,NTG!$A$8:$W$106,18+D$3,FALSE),$A64&"_"&D$3,"") ->  | E64: =IF(VLOOKUP($A64&$B64,NTG!$A$8:$W$106,18+E$3,FALSE),$A64&"_"&E$3,"") ->  | F64: =IF(VLOOKUP($A64&$B64,NTG!$A$8:$W$106,18+F$3,FALSE),$A64&"_"&F$3,"") ->  | G64: =IF(VLOOKUP($A64&$B64,NTG!$A$8:$W$106,18+G$3,FALSE),$A64&"_"&G$3,"") ->  | H64: 61 | I64: NonRes-sAll-mT5T8-ci_1 | J64: NonRes-sAll-mT5T8-ciDEER2014 | L64: K-12School-ComCollege_2 | M64: K-12School-ComCollegeDEER2015
A65: NonRes-sAll-mT5T8-dn | B65: DEER2014 | C65: =IF(VLOOKUP($A65&$B65,NTG!$A$8:$W$106,18+C$3,FALSE),$A65&"_"&C$3,"") -> NonRes-sAll-mT5T8-dn_1 | D65: =IF(VLOOKUP($A65&$B65,NTG!$A$8:$W$106,18+D$3,FALSE),$A65&"_"&D$3,"") ->  | E65: =IF(VLOOKUP($A65&$B65,NTG!$A$8:$W$106,18+E$3,FALSE),$A65&"_"&E$3,"") ->  | F65: =IF(VLOOKUP($A65&$B65,NTG!$A$8:$W$106,18+F$3,FALSE),$A65&"_"&F$3,"") ->  | G65: =IF(VLOOKUP($A65&$B65,NTG!$A$8:$W$106,18+G$3,FALSE),$A65&"_"&G$3,"") ->  | H65: 62 | I65: NonRes-sAll-mT5T8-dn_1 | J65: NonRes-sAll-mT5T8-dnDEER2014 | L65: K-12School-ComCollege_2 | M65: K-12School-ComCollegeDEER2015
A66: NonRes-sAll-mT8-dir | B66: DEER2014 | C66: =IF(VLOOKUP($A66&$B66,NTG!$A$8:$W$106,18+C$3,FALSE),$A66&"_"&C$3,"") -> NonRes-sAll-mT8-dir_1 | D66: =IF(VLOOKUP($A66&$B66,NTG!$A$8:$W$106,18+D$3,FALSE),$A66&"_"&D$3,"") ->  | E66: =IF(VLOOKUP($A66&$B66,NTG!$A$8:$W$106,18+E$3,FALSE),$A66&"_"&E$3,"") ->  | F66: =IF(VLOOKUP($A66&$B66,NTG!$A$8:$W$106,18+F$3,FALSE),$A66&"_"&F$3,"") ->  | G66: =IF(VLOOKUP($A66&$B66,NTG!$A$8:$W$106,18+G$3,FALSE),$A66&"_"&G$3,"") ->  | H66: 63 | I66: NonRes-sAll-mT8-dir_1 | J66: NonRes-sAll-mT8-dirDEER2014 | L66: K-12School-ComCollege_3 | M66: K-12School-ComCollegeDEER2015
A67: NonRes-sAll-NC | B67: DEER2016 | C67: =IF(VLOOKUP($A67&$B67,NTG!$A$8:$W$106,18+C$3,FALSE),$A67&"_"&C$3,"") ->  | D67: =IF(VLOOKUP($A67&$B67,NTG!$A$8:$W$106,18+D$3,FALSE),$A67&"_"&D$3,"") -> NonRes-sAll-NC_2 | E67: =IF(VLOOKUP($A67&$B67,NTG!$A$8:$W$106,18+E$3,FALSE),$A67&"_"&E$3,"") -> NonRes-sAll-NC_3 | F67: =IF(VLOOKUP($A67&$B67,NTG!$A$8:$W$106,18+F$3,FALSE),$A67&"_"&F$3,"") -> NonRes-sAll-NC_4 | G67: =IF(VLOOKUP($A67&$B67,NTG!$A$8:$W$106,18+G$3,FALSE),$A67&"_"&G$3,"") -> NonRes-sAll-NC_5 | H67: 64 | J67: NonRes-sAll-NCDEER2016 | L67: K-12School-ComCollege_3 | M67: K-12School-ComCollegeDEER2015
A68: NonRes-sGHS-mHtCrtn-ci | B68: DEER2014 | C68: =IF(VLOOKUP($A68&$B68,NTG!$A$8:$W$106,18+C$3,FALSE),$A68&"_"&C$3,"") -> NonRes-sGHS-mHtCrtn-ci_1 | D68: =IF(VLOOKUP($A68&$B68,NTG!$A$8:$W$106,18+D$3,FALSE),$A68&"_"&D$3,"") -> NonRes-sGHS-mHtCrtn-ci_2 | E68: =IF(VLOOKUP($A68&$B68,NTG!$A$8:$W$106,18+E$3,FALSE),$A68&"_"&E$3,"") -> NonRes-sGHS-mHtCrtn-ci_3 | F68: =IF(VLOOKUP($A68&$B68,NTG!$A$8:$W$106,18+F$3,FALSE),$A68&"_"&F$3,"") -> NonRes-sGHS-mHtCrtn-ci_4 | G68: =IF(VLOOKUP($A68&$B68,NTG!$A$8:$W$106,18+G$3,FALSE),$A68&"_"&G$3,"") -> NonRes-sGHS-mHtCrtn-ci_5 | H68: 65 | I68: NonRes-sGHS-mHtCrtn-ci_1 | J68: NonRes-sGHS-mHtCrtn-ciDEER2014 | L68: K-12School-ComCollege_3 | M68: K-12School-ComCollegeDEER2015
A69: NonRes-sGHS-mHtCrtn-dn | B69: DEER2014 | C69: =IF(VLOOKUP($A69&$B69,NTG!$A$8:$W$106,18+C$3,FALSE),$A69&"_"&C$3,"") -> NonRes-sGHS-mHtCrtn-dn_1 | D69: =IF(VLOOKUP($A69&$B69,NTG!$A$8:$W$106,18+D$3,FALSE),$A69&"_"&D$3,"") -> NonRes-sGHS-mHtCrtn-dn_2 | E69: =IF(VLOOKUP($A69&$B69,NTG!$A$8:$W$106,18+E$3,FALSE),$A69&"_"&E$3,"") -> NonRes-sGHS-mHtCrtn-dn_3 | F69: =IF(VLOOKUP($A69&$B69,NTG!$A$8:$W$106,18+F$3,FALSE),$A69&"_"&F$3,"") -> NonRes-sGHS-mHtCrtn-dn_4 | G69: =IF(VLOOKUP($A69&$B69,NTG!$A$8:$W$106,18+G$3,FALSE),$A69&"_"&G$3,"") -> NonRes-sGHS-mHtCrtn-dn_5 | H69: 66 | I69: =+C69 -> NonRes-sGHS-mHtCrtn-dn_1 | J69: =+A69&B69 -> NonRes-sGHS-mHtCrtn-dnDEER2014 | L69: K-12School-ComCollege_3 | M69: K-12School-ComCollegeDEER2015
A70: NonRes-sGHS-mIRF-ci | B70: DEER2014 | C70: =IF(VLOOKUP($A70&$B70,NTG!$A$8:$W$106,18+C$3,FALSE),$A70&"_"&C$3,"") -> NonRes-sGHS-mIRF-ci_1 | D70: =IF(VLOOKUP($A70&$B70,NTG!$A$8:$W$106,18+D$3,FALSE),$A70&"_"&D$3,"") -> NonRes-sGHS-mIRF-ci_2 | E70: =IF(VLOOKUP($A70&$B70,NTG!$A$8:$W$106,18+E$3,FALSE),$A70&"_"&E$3,"") -> NonRes-sGHS-mIRF-ci_3 | F70: =IF(VLOOKUP($A70&$B70,NTG!$A$8:$W$106,18+F$3,FALSE),$A70&"_"&F$3,"") -> NonRes-sGHS-mIRF-ci_4 | G70: =IF(VLOOKUP($A70&$B70,NTG!$A$8:$W$106,18+G$3,FALSE),$A70&"_"&G$3,"") -> NonRes-sGHS-mIRF-ci_5 | H70: =+H69+1 -> 67 | I70: NonRes-sGHS-mIRF-ci_1 | J70: NonRes-sGHS-mIRF-ciDEER2014 | L70: K-12School-ComCollege_4 | M70: K-12School-ComCollegeDEER2015
A71: NonRes-sGHS-mIRF-dn | B71: DEER2014 | C71: =IF(VLOOKUP($A71&$B71,NTG!$A$8:$W$106,18+C$3,FALSE),$A71&"_"&C$3,"") -> NonRes-sGHS-mIRF-dn_1 | D71: =IF(VLOOKUP($A71&$B71,NTG!$A$8:$W$106,18+D$3,FALSE),$A71&"_"&D$3,"") -> NonRes-sGHS-mIRF-dn_2 | E71: =IF(VLOOKUP($A71&$B71,NTG!$A$8:$W$106,18+E$3,FALSE),$A71&"_"&E$3,"") -> NonRes-sGHS-mIRF-dn_3 | F71: =IF(VLOOKUP($A71&$B71,NTG!$A$8:$W$106,18+F$3,FALSE),$A71&"_"&F$3,"") -> NonRes-sGHS-mIRF-dn_4 | G71: =IF(VLOOKUP($A71&$B71,NTG!$A$8:$W$106,18+G$3,FALSE),$A71&"_"&G$3,"") -> NonRes-sGHS-mIRF-dn_5 | H71: 68 | I71: NonRes-sGHS-mIRF-dn_1 | J71: NonRes-sGHS-mIRF-dnDEER2014 | L71: K-12School-ComCollege_4 | M71: K-12School-ComCollegeDEER2015
A72: Res-Default>2 | B72: DEER2014 | C72: =IF(VLOOKUP($A72&$B72,NTG!$A$8:$W$106,18+C$3,FALSE),$A72&"_"&C$3,"") -> Res-Default>2_1 | D72: =IF(VLOOKUP($A72&$B72,NTG!$A$8:$W$106,18+D$3,FALSE),$A72&"_"&D$3,"") -> Res-Default>2_2 | E72: =IF(VLOOKUP($A72&$B72,NTG!$A$8:$W$106,18+E$3,FALSE),$A72&"_"&E$3,"") -> Res-Default>2_3 | F72: =IF(VLOOKUP($A72&$B72,NTG!$A$8:$W$106,18+F$3,FALSE),$A72&"_"&F$3,"") -> Res-Default>2_4 | G72: =IF(VLOOKUP($A72&$B72,NTG!$A$8:$W$106,18+G$3,FALSE),$A72&"_"&G$3,"") -> Res-Default>2_5 | H72: 69 | I72: Res-Default>2_1 | J72: Res-Default>2DEER2014 | L72: K-12School-ComCollege_4 | M72: K-12School-ComCollegeDEER2015
A73: Res-Default-HTR-di | B73: DEER2014 | C73: =IF(VLOOKUP($A73&$B73,NTG!$A$8:$W$106,18+C$3,FALSE),$A73&"_"&C$3,"") -> Res-Default-HTR-di_1 | D73: =IF(VLOOKUP($A73&$B73,NTG!$A$8:$W$106,18+D$3,FALSE),$A73&"_"&D$3,"") -> Res-Default-HTR-di_2 | E73: =IF(VLOOKUP($A73&$B73,NTG!$A$8:$W$106,18+E$3,FALSE),$A73&"_"&E$3,"") -> Res-Default-HTR-di_3 | F73: =IF(VLOOKUP($A73&$B73,NTG!$A$8:$W$106,18+F$3,FALSE),$A73&"_"&F$3,"") -> Res-Default-HTR-di_4 | G73: =IF(VLOOKUP($A73&$B73,NTG!$A$8:$W$106,18+G$3,FALSE),$A73&"_"&G$3,"") -> Res-Default-HTR-di_5 | H73: 70 | I73: Res-Default-HTR-di_1 | J73: Res-Default-HTR-diDEER2014 | L73: K-12School-ComCollege_4 | M73: K-12School-ComCollegeDEER2015
A74: Res-mDHWaerator | B74: DEER2014 | C74: =IF(VLOOKUP($A74&$B74,NTG!$A$8:$W$106,18+C$3,FALSE),$A74&"_"&C$3,"") -> Res-mDHWaerator_1 | D74: =IF(VLOOKUP($A74&$B74,NTG!$A$8:$W$106,18+D$3,FALSE),$A74&"_"&D$3,"") -> Res-mDHWaerator_2 | E74: =IF(VLOOKUP($A74&$B74,NTG!$A$8:$W$106,18+E$3,FALSE),$A74&"_"&E$3,"") -> Res-mDHWaerator_3 | F74: =IF(VLOOKUP($A74&$B74,NTG!$A$8:$W$106,18+F$3,FALSE),$A74&"_"&F$3,"") -> Res-mDHWaerator_4 | G74: =IF(VLOOKUP($A74&$B74,NTG!$A$8:$W$106,18+G$3,FALSE),$A74&"_"&G$3,"") -> Res-mDHWaerator_5 | H74: 71 | I74: Res-mDHWaerator_1 | J74: Res-mDHWaeratorDEER2014 | L74: K-12School-ComCollege_5 | M74: K-12School-ComCollegeDEER2015
A75: Res-mDHWaerator | B75: DEER2014 | C75: =IF(VLOOKUP($A75&$B75,NTG!$A$8:$W$106,18+C$3,FALSE),$A75&"_"&C$3,"") -> Res-mDHWaerator_1 | D75: =IF(VLOOKUP($A75&$B75,NTG!$A$8:$W$106,18+D$3,FALSE),$A75&"_"&D$3,"") -> Res-mDHWaerator_2 | E75: =IF(VLOOKUP($A75&$B75,NTG!$A$8:$W$106,18+E$3,FALSE),$A75&"_"&E$3,"") -> Res-mDHWaerator_3 | F75: =IF(VLOOKUP($A75&$B75,NTG!$A$8:$W$106,18+F$3,FALSE),$A75&"_"&F$3,"") -> Res-mDHWaerator_4 | G75: =IF(VLOOKUP($A75&$B75,NTG!$A$8:$W$106,18+G$3,FALSE),$A75&"_"&G$3,"") -> Res-mDHWaerator_5 | H75: 72 | I75: Res-mDHWaerator_1 | J75: Res-mDHWaeratorDEER2014 | L75: K-12School-ComCollege_5 | M75: K-12School-ComCollegeDEER2015
A76: Res-sAll-mCFL | B76: ExAnte2017 | C76: =IF(VLOOKUP($A76&$B76,NTG!$A$8:$W$106,18+C$3,FALSE),$A76&"_"&C$3,"") ->  | D76: =IF(VLOOKUP($A76&$B76,NTG!$A$8:$W$106,18+D$3,FALSE),$A76&"_"&D$3,"") ->  | E76: =IF(VLOOKUP($A76&$B76,NTG!$A$8:$W$106,18+E$3,FALSE),$A76&"_"&E$3,"") ->  | F76: =IF(VLOOKUP($A76&$B76,NTG!$A$8:$W$106,18+F$3,FALSE),$A76&"_"&F$3,"") -> Res-sAll-mCFL_4 | G76: =IF(VLOOKUP($A76&$B76,NTG!$A$8:$W$106,18+G$3,FALSE),$A76&"_"&G$3,"") -> Res-sAll-mCFL_5 | H76: 73 | J76: Res-sAll-mCFLExAnte2017 | L76: K-12School-ComCollege_5 | M76: K-12School-ComCollegeDEER2015
A77: Res-sAll-mCFLgt30w-up | B77: DEER2015 | C77: =IF(VLOOKUP($A77&$B77,NTG!$A$8:$W$106,18+C$3,FALSE),$A77&"_"&C$3,"") -> Res-sAll-mCFLgt30w-up_1 | D77: =IF(VLOOKUP($A77&$B77,NTG!$A$8:$W$106,18+D$3,FALSE),$A77&"_"&D$3,"") ->  | E77: =IF(VLOOKUP($A77&$B77,NTG!$A$8:$W$106,18+E$3,FALSE),$A77&"_"&E$3,"") ->  | F77: =IF(VLOOKUP($A77&$B77,NTG!$A$8:$W$106,18+F$3,FALSE),$A77&"_"&F$3,"") ->  | G77: =IF(VLOOKUP($A77&$B77,NTG!$A$8:$W$106,18+G$3,FALSE),$A77&"_"&G$3,"") ->  | H77: 74 | I77: Res-sAll-mCFLgt30w-up_1 | J77: Res-sAll-mCFLgt30w-upDEER2015 | L77: K-12School-ComCollege_5 | M77: K-12School-ComCollegeDEER2015
A78: Res-sAll-mCFLlte30w-up | B78: DEER2015 | C78: =IF(VLOOKUP($A78&$B78,NTG!$A$8:$W$106,18+C$3,FALSE),$A78&"_"&C$3,"") -> Res-sAll-mCFLlte30w-up_1 | D78: =IF(VLOOKUP($A78&$B78,NTG!$A$8:$W$106,18+D$3,FALSE),$A78&"_"&D$3,"") ->  | E78: =IF(VLOOKUP($A78&$B78,NTG!$A$8:$W$106,18+E$3,FALSE),$A78&"_"&E$3,"") ->  | F78: =IF(VLOOKUP($A78&$B78,NTG!$A$8:$W$106,18+F$3,FALSE),$A78&"_"&F$3,"") ->  | G78: =IF(VLOOKUP($A78&$B78,NTG!$A$8:$W$106,18+G$3,FALSE),$A78&"_"&G$3,"") ->  | H78: 75 | I78: Res-sAll-mCFLlte30w-up_1 | J78: Res-sAll-mCFLlte30w-upDEER2015 | L78: NonRes-sAg-mCust-ci_1 | M78: NonRes-sAg-mCust-ciDEER2014
A79: Res-sAll-mCFL-up | B79: DEER2014 | C79: =IF(VLOOKUP($A79&$B79,NTG!$A$8:$W$106,18+C$3,FALSE),$A79&"_"&C$3,"") -> Res-sAll-mCFL-up_1 | D79: =IF(VLOOKUP($A79&$B79,NTG!$A$8:$W$106,18+D$3,FALSE),$A79&"_"&D$3,"") ->  | E79: =IF(VLOOKUP($A79&$B79,NTG!$A$8:$W$106,18+E$3,FALSE),$A79&"_"&E$3,"") ->  | F79: =IF(VLOOKUP($A79&$B79,NTG!$A$8:$W$106,18+F$3,FALSE),$A79&"_"&F$3,"") ->  | G79: =IF(VLOOKUP($A79&$B79,NTG!$A$8:$W$106,18+G$3,FALSE),$A79&"_"&G$3,"") ->  | H79: 76 | I79: Res-sAll-mCFL-up_1 | J79: Res-sAll-mCFL-upDEER2014 | L79: NonRes-sAg-mCust-ci_2 | M79: NonRes-sAg-mCust-ciDEER2014
A80: Res-sAll-mCFL-up | B80: DEER2016 | C80: =IF(VLOOKUP($A80&$B80,NTG!$A$8:$W$106,18+C$3,FALSE),$A80&"_"&C$3,"") -> Res-sAll-mCFL-up_1 | D80: =IF(VLOOKUP($A80&$B80,NTG!$A$8:$W$106,18+D$3,FALSE),$A80&"_"&D$3,"") -> Res-sAll-mCFL-up_2 | E80: =IF(VLOOKUP($A80&$B80,NTG!$A$8:$W$106,18+E$3,FALSE),$A80&"_"&E$3,"") -> Res-sAll-mCFL-up_3 | F80: =IF(VLOOKUP($A80&$B80,NTG!$A$8:$W$106,18+F$3,FALSE),$A80&"_"&F$3,"") ->  | G80: =IF(VLOOKUP($A80&$B80,NTG!$A$8:$W$106,18+G$3,FALSE),$A80&"_"&G$3,"") ->  | H80: 77 | I80: Res-sAll-mCFL-up_1 | J80: Res-sAll-mCFL-upDEER2016 | L80: NonRes-sAg-mCust-ci_3 | M80: NonRes-sAg-mCust-ciDEER2014
A81: Res-sAll-mCW | B81: DEER2014 | C81: =IF(VLOOKUP($A81&$B81,NTG!$A$8:$W$106,18+C$3,FALSE),$A81&"_"&C$3,"") -> Res-sAll-mCW_1 | D81: =IF(VLOOKUP($A81&$B81,NTG!$A$8:$W$106,18+D$3,FALSE),$A81&"_"&D$3,"") -> Res-sAll-mCW_2 | E81: =IF(VLOOKUP($A81&$B81,NTG!$A$8:$W$106,18+E$3,FALSE),$A81&"_"&E$3,"") -> Res-sAll-mCW_3 | F81: =IF(VLOOKUP($A81&$B81,NTG!$A$8:$W$106,18+F$3,FALSE),$A81&"_"&F$3,"") -> Res-sAll-mCW_4 | G81: =IF(VLOOKUP($A81&$B81,NTG!$A$8:$W$106,18+G$3,FALSE),$A81&"_"&G$3,"") -> Res-sAll-mCW_5 | H81: 78 | I81: Res-sAll-mCW_1 | J81: Res-sAll-mCWDEER2014 | L81: NonRes-sAg-mCust-ci_4 | M81: NonRes-sAg-mCust-ciDEER2014
A82: Res-sAll-mDHWgt62 | B82: DEER2014 | C82: =IF(VLOOKUP($A82&$B82,NTG!$A$8:$W$106,18+C$3,FALSE),$A82&"_"&C$3,"") -> Res-sAll-mDHWgt62_1 | D82: =IF(VLOOKUP($A82&$B82,NTG!$A$8:$W$106,18+D$3,FALSE),$A82&"_"&D$3,"") -> Res-sAll-mDHWgt62_2 | E82: =IF(VLOOKUP($A82&$B82,NTG!$A$8:$W$106,18+E$3,FALSE),$A82&"_"&E$3,"") -> Res-sAll-mDHWgt62_3 | F82: =IF(VLOOKUP($A82&$B82,NTG!$A$8:$W$106,18+F$3,FALSE),$A82&"_"&F$3,"") -> Res-sAll-mDHWgt62_4 | G82: =IF(VLOOKUP($A82&$B82,NTG!$A$8:$W$106,18+G$3,FALSE),$A82&"_"&G$3,"") -> Res-sAll-mDHWgt62_5 | H82: 79 | I82: Res-sAll-mDHWgt62_1 | J82: Res-sAll-mDHWgt62DEER2014 | L82: NonRes-sAg-mCust-ci_5 | M82: NonRes-sAg-mCust-ciDEER2014
A83: Res-sAll-mDHWshwr | B83: DEER2014 | C83: =IF(VLOOKUP($A83&$B83,NTG!$A$8:$W$106,18+C$3,FALSE),$A83&"_"&C$3,"") -> Res-sAll-mDHWshwr_1 | D83: =IF(VLOOKUP($A83&$B83,NTG!$A$8:$W$106,18+D$3,FALSE),$A83&"_"&D$3,"") -> Res-sAll-mDHWshwr_2 | E83: =IF(VLOOKUP($A83&$B83,NTG!$A$8:$W$106,18+E$3,FALSE),$A83&"_"&E$3,"") -> Res-sAll-mDHWshwr_3 | F83: =IF(VLOOKUP($A83&$B83,NTG!$A$8:$W$106,18+F$3,FALSE),$A83&"_"&F$3,"") -> Res-sAll-mDHWshwr_4 | G83: =IF(VLOOKUP($A83&$B83,NTG!$A$8:$W$106,18+G$3,FALSE),$A83&"_"&G$3,"") -> Res-sAll-mDHWshwr_5 | H83: 80 | I83: Res-sAll-mDHWshwr_1 | J83: Res-sAll-mDHWshwrDEER2014 | L83: NonRes-sAll-mCFL_1 | M83: NonRes-sAll-mCFLDEER2014
A84: Res-sAll-mDuctSeal | B84: DEER2014 | C84: =IF(VLOOKUP($A84&$B84,NTG!$A$8:$W$106,18+C$3,FALSE),$A84&"_"&C$3,"") -> Res-sAll-mDuctSeal_1 | D84: =IF(VLOOKUP($A84&$B84,NTG!$A$8:$W$106,18+D$3,FALSE),$A84&"_"&D$3,"") -> Res-sAll-mDuctSeal_2 | E84: =IF(VLOOKUP($A84&$B84,NTG!$A$8:$W$106,18+E$3,FALSE),$A84&"_"&E$3,"") -> Res-sAll-mDuctSeal_3 | F84: =IF(VLOOKUP($A84&$B84,NTG!$A$8:$W$106,18+F$3,FALSE),$A84&"_"&F$3,"") -> Res-sAll-mDuctSeal_4 | G84: =IF(VLOOKUP($A84&$B84,NTG!$A$8:$W$106,18+G$3,FALSE),$A84&"_"&G$3,"") -> Res-sAll-mDuctSeal_5 | H84: 81 | I84: Res-sAll-mDuctSeal_1 | J84: Res-sAll-mDuctSealDEER2014 | L84: NonRes-sAll-mCFL_2 | M84: NonRes-sAll-mCFLDEER2014
A85: Res-sAll-mELtg-DnStrmDeemed | B85: DEER2019 | C85: =IF(VLOOKUP($A85&$B85,NTG!$A$8:$W$106,18+C$3,FALSE),$A85&"_"&C$3,"") ->  | D85: =IF(VLOOKUP($A85&$B85,NTG!$A$8:$W$106,18+D$3,FALSE),$A85&"_"&D$3,"") ->  | E85: =IF(VLOOKUP($A85&$B85,NTG!$A$8:$W$106,18+E$3,FALSE),$A85&"_"&E$3,"") ->  | F85: =IF(VLOOKUP($A85&$B85,NTG!$A$8:$W$106,18+F$3,FALSE),$A85&"_"&F$3,"") ->  | G85: =IF(VLOOKUP($A85&$B85,NTG!$A$8:$W$106,18+G$3,FALSE),$A85&"_"&G$3,"") -> Res-sAll-mELtg-DnStrmDeemed_5 | H85: 82 | J85: Res-sAll-mELtg-DnStrmDeemedDEER2019 | L85: NonRes-sAll-mCFL_3 | M85: NonRes-sAll-mCFLDEER2014
A86: Res-sAll-mFrzrRec | B86: DEER2014 | C86: =IF(VLOOKUP($A86&$B86,NTG!$A$8:$W$106,18+C$3,FALSE),$A86&"_"&C$3,"") -> Res-sAll-mFrzrRec_1 | D86: =IF(VLOOKUP($A86&$B86,NTG!$A$8:$W$106,18+D$3,FALSE),$A86&"_"&D$3,"") ->  | E86: =IF(VLOOKUP($A86&$B86,NTG!$A$8:$W$106,18+E$3,FALSE),$A86&"_"&E$3,"") ->  | F86: =IF(VLOOKUP($A86&$B86,NTG!$A$8:$W$106,18+F$3,FALSE),$A86&"_"&F$3,"") ->  | G86: =IF(VLOOKUP($A86&$B86,NTG!$A$8:$W$106,18+G$3,FALSE),$A86&"_"&G$3,"") ->  | H86: 83 | I86: Res-sAll-mFrzrRec_1 | J86: Res-sAll-mFrzrRecDEER2014 | L86: NonRes-sAll-mCFL_4 | M86: NonRes-sAll-mCFLExAnte2017
A87: Res-sAll-mFrzrRec | B87: DEER2016 | C87: =IF(VLOOKUP($A87&$B87,NTG!$A$8:$W$106,18+C$3,FALSE),$A87&"_"&C$3,"") ->  | D87: =IF(VLOOKUP($A87&$B87,NTG!$A$8:$W$106,18+D$3,FALSE),$A87&"_"&D$3,"") -> Res-sAll-mFrzrRec_2 | E87: =IF(VLOOKUP($A87&$B87,NTG!$A$8:$W$106,18+E$3,FALSE),$A87&"_"&E$3,"") -> Res-sAll-mFrzrRec_3 | F87: =IF(VLOOKUP($A87&$B87,NTG!$A$8:$W$106,18+F$3,FALSE),$A87&"_"&F$3,"") -> Res-sAll-mFrzrRec_4 | G87: =IF(VLOOKUP($A87&$B87,NTG!$A$8:$W$106,18+G$3,FALSE),$A87&"_"&G$3,"") -> Res-sAll-mFrzrRec_5 | H87: 84 | J87: Res-sAll-mFrzrRecDEER2016 | L87: NonRes-sAll-mCFL_5 | M87: NonRes-sAll-mCFLExAnte2017
A88: Res-sAll-mHVAC-DX-up | B88: DEER2016 | C88: =IF(VLOOKUP($A88&$B88,NTG!$A$8:$W$106,18+C$3,FALSE),$A88&"_"&C$3,"") ->  | D88: =IF(VLOOKUP($A88&$B88,NTG!$A$8:$W$106,18+D$3,FALSE),$A88&"_"&D$3,"") -> Res-sAll-mHVAC-DX-up_2 | E88: =IF(VLOOKUP($A88&$B88,NTG!$A$8:$W$106,18+E$3,FALSE),$A88&"_"&E$3,"") -> Res-sAll-mHVAC-DX-up_3 | F88: =IF(VLOOKUP($A88&$B88,NTG!$A$8:$W$106,18+F$3,FALSE),$A88&"_"&F$3,"") -> Res-sAll-mHVAC-DX-up_4 | G88: =IF(VLOOKUP($A88&$B88,NTG!$A$8:$W$106,18+G$3,FALSE),$A88&"_"&G$3,"") -> Res-sAll-mHVAC-DX-up_5 | H88: 85 | J88: Res-sAll-mHVAC-DX-upDEER2016 | L88: NonRes-sAll-mCFL-All_1 | M88: NonRes-sAll-mCFL-AllDEER2016
A89: Res-sAll-mHVAC-Pkg-dn | B89: DEER2017 | C89: =IF(VLOOKUP($A89&$B89,NTG!$A$8:$W$106,18+C$3,FALSE),$A89&"_"&C$3,"") ->  | D89: =IF(VLOOKUP($A89&$B89,NTG!$A$8:$W$106,18+D$3,FALSE),$A89&"_"&D$3,"") ->  | E89: =IF(VLOOKUP($A89&$B89,NTG!$A$8:$W$106,18+E$3,FALSE),$A89&"_"&E$3,"") -> Res-sAll-mHVAC-Pkg-dn_3 | F89: =IF(VLOOKUP($A89&$B89,NTG!$A$8:$W$106,18+F$3,FALSE),$A89&"_"&F$3,"") -> Res-sAll-mHVAC-Pkg-dn_4 | G89: =IF(VLOOKUP($A89&$B89,NTG!$A$8:$W$106,18+G$3,FALSE),$A89&"_"&G$3,"") ->  | H89: 86 | J89: Res-sAll-mHVAC-Pkg-dnDEER2017 | L89: NonRes-sAll-mCFL-All_2 | M89: NonRes-sAll-mCFL-AllDEER2016
A90: Res-sAll-mHVAC-Pkg-dn | B90: DEER2019 | C90: =IF(VLOOKUP($A90&$B90,NTG!$A$8:$W$106,18+C$3,FALSE),$A90&"_"&C$3,"") ->  | D90: =IF(VLOOKUP($A90&$B90,NTG!$A$8:$W$106,18+D$3,FALSE),$A90&"_"&D$3,"") ->  | E90: =IF(VLOOKUP($A90&$B90,NTG!$A$8:$W$106,18+E$3,FALSE),$A90&"_"&E$3,"") ->  | F90: =IF(VLOOKUP($A90&$B90,NTG!$A$8:$W$106,18+F$3,FALSE),$A90&"_"&F$3,"") ->  | G90: =IF(VLOOKUP($A90&$B90,NTG!$A$8:$W$106,18+G$3,FALSE),$A90&"_"&G$3,"") -> Res-sAll-mHVAC-Pkg-dn_5 | H90: 87 | J90: Res-sAll-mHVAC-Pkg-dnDEER2019 | L90: NonRes-sAll-mCFL-All_3 | M90: NonRes-sAll-mCFL-AllDEER2016
A91: Res-sAll-mHVAC-RCA | B91: DEER2014 | C91: =IF(VLOOKUP($A91&$B91,NTG!$A$8:$W$106,18+C$3,FALSE),$A91&"_"&C$3,"") -> Res-sAll-mHVAC-RCA_1 | D91: =IF(VLOOKUP($A91&$B91,NTG!$A$8:$W$106,18+D$3,FALSE),$A91&"_"&D$3,"") -> Res-sAll-mHVAC-RCA_2 | E91: =IF(VLOOKUP($A91&$B91,NTG!$A$8:$W$106,18+E$3,FALSE),$A91&"_"&E$3,"") -> Res-sAll-mHVAC-RCA_3 | F91: =IF(VLOOKUP($A91&$B91,NTG!$A$8:$W$106,18+F$3,FALSE),$A91&"_"&F$3,"") -> Res-sAll-mHVAC-RCA_4 | G91: =IF(VLOOKUP($A91&$B91,NTG!$A$8:$W$106,18+G$3,FALSE),$A91&"_"&G$3,"") -> Res-sAll-mHVAC-RCA_5 | H91: 88 | I91: Res-sAll-mHVAC-RCA_1 | J91: Res-sAll-mHVAC-RCADEER2014 | L91: NonRes-sAll-mCFL-ci_1 | M91: NonRes-sAll-mCFL-ciDEER2014
A92: Res-sAll-mHVAC-RmAC-dn | B92: DEER2014 | C92: =IF(VLOOKUP($A92&$B92,NTG!$A$8:$W$106,18+C$3,FALSE),$A92&"_"&C$3,"") -> Res-sAll-mHVAC-RmAC-dn_1 | D92: =IF(VLOOKUP($A92&$B92,NTG!$A$8:$W$106,18+D$3,FALSE),$A92&"_"&D$3,"") -> Res-sAll-mHVAC-RmAC-dn_2 | E92: =IF(VLOOKUP($A92&$B92,NTG!$A$8:$W$106,18+E$3,FALSE),$A92&"_"&E$3,"") -> Res-sAll-mHVAC-RmAC-dn_3 | F92: =IF(VLOOKUP($A92&$B92,NTG!$A$8:$W$106,18+F$3,FALSE),$A92&"_"&F$3,"") -> Res-sAll-mHVAC-RmAC-dn_4 | G92: =IF(VLOOKUP($A92&$B92,NTG!$A$8:$W$106,18+G$3,FALSE),$A92&"_"&G$3,"") -> Res-sAll-mHVAC-RmAC-dn_5 | H92: 89 | I92: Res-sAll-mHVAC-RmAC-dn_1 | J92: Res-sAll-mHVAC-RmAC-dnDEER2014 | L92: NonRes-sAll-mCFL-dir_1 | M92: NonRes-sAll-mCFL-dirDEER2014
A93: Res-sAll-mLEDARefl | B93: ExAnte2017 | C93: =IF(VLOOKUP($A93&$B93,NTG!$A$8:$W$106,18+C$3,FALSE),$A93&"_"&C$3,"") ->  | D93: =IF(VLOOKUP($A93&$B93,NTG!$A$8:$W$106,18+D$3,FALSE),$A93&"_"&D$3,"") ->  | E93: =IF(VLOOKUP($A93&$B93,NTG!$A$8:$W$106,18+E$3,FALSE),$A93&"_"&E$3,"") ->  | F93: =IF(VLOOKUP($A93&$B93,NTG!$A$8:$W$106,18+F$3,FALSE),$A93&"_"&F$3,"") -> Res-sAll-mLEDARefl_4 | G93: =IF(VLOOKUP($A93&$B93,NTG!$A$8:$W$106,18+G$3,FALSE),$A93&"_"&G$3,"") -> Res-sAll-mLEDARefl_5 | H93: 90 | J93: Res-sAll-mLEDAReflExAnte2017 | L93: NonRes-sAll-mCFL-dn_1 | M93: NonRes-sAll-mCFL-dnDEER2014
A94: Res-sAll-mLEDSpcl | B94: ExAnte2017 | C94: =IF(VLOOKUP($A94&$B94,NTG!$A$8:$W$106,18+C$3,FALSE),$A94&"_"&C$3,"") ->  | D94: =IF(VLOOKUP($A94&$B94,NTG!$A$8:$W$106,18+D$3,FALSE),$A94&"_"&D$3,"") ->  | E94: =IF(VLOOKUP($A94&$B94,NTG!$A$8:$W$106,18+E$3,FALSE),$A94&"_"&E$3,"") ->  | F94: =IF(VLOOKUP($A94&$B94,NTG!$A$8:$W$106,18+F$3,FALSE),$A94&"_"&F$3,"") -> Res-sAll-mLEDSpcl_4 | G94: =IF(VLOOKUP($A94&$B94,NTG!$A$8:$W$106,18+G$3,FALSE),$A94&"_"&G$3,"") -> Res-sAll-mLEDSpcl_5 | H94: 91 | J94: Res-sAll-mLEDSpclExAnte2017 | L94: NonRes-sAll-mCust_1 | M94: NonRes-sAll-mCustDEER2014
A95: Res-sAll-MLtgLED-Deemed | B95: DEER2016 | C95: =IF(VLOOKUP($A95&$B95,NTG!$A$8:$W$106,18+C$3,FALSE),$A95&"_"&C$3,"") -> Res-sAll-MLtgLED-Deemed_1 | D95: =IF(VLOOKUP($A95&$B95,NTG!$A$8:$W$106,18+D$3,FALSE),$A95&"_"&D$3,"") -> Res-sAll-MLtgLED-Deemed_2 | E95: =IF(VLOOKUP($A95&$B95,NTG!$A$8:$W$106,18+E$3,FALSE),$A95&"_"&E$3,"") -> Res-sAll-MLtgLED-Deemed_3 | F95: =IF(VLOOKUP($A95&$B95,NTG!$A$8:$W$106,18+F$3,FALSE),$A95&"_"&F$3,"") ->  | G95: =IF(VLOOKUP($A95&$B95,NTG!$A$8:$W$106,18+G$3,FALSE),$A95&"_"&G$3,"") ->  | H95: 92 | I95: Res-sAll-MLtgLED-Deemed_1 | J95: Res-sAll-MLtgLED-DeemedDEER2016 | L95: NonRes-sAll-mCust_2 | M95: NonRes-sAll-mCustDEER2014
A96: Res-sAll-mRefgRec | B96: DEER2014 | C96: =IF(VLOOKUP($A96&$B96,NTG!$A$8:$W$106,18+C$3,FALSE),$A96&"_"&C$3,"") -> Res-sAll-mRefgRec_1 | D96: =IF(VLOOKUP($A96&$B96,NTG!$A$8:$W$106,18+D$3,FALSE),$A96&"_"&D$3,"") ->  | E96: =IF(VLOOKUP($A96&$B96,NTG!$A$8:$W$106,18+E$3,FALSE),$A96&"_"&E$3,"") ->  | F96: =IF(VLOOKUP($A96&$B96,NTG!$A$8:$W$106,18+F$3,FALSE),$A96&"_"&F$3,"") ->  | G96: =IF(VLOOKUP($A96&$B96,NTG!$A$8:$W$106,18+G$3,FALSE),$A96&"_"&G$3,"") ->  | H96: 93 | I96: Res-sAll-mRefgRec_1 | J96: Res-sAll-mRefgRecDEER2014 | L96: NonRes-sAll-mCust_3 | M96: NonRes-sAll-mCustDEER2014
A97: Res-sAll-mRefgRec | B97: DEER2016 | C97: =IF(VLOOKUP($A97&$B97,NTG!$A$8:$W$106,18+C$3,FALSE),$A97&"_"&C$3,"") ->  | D97: =IF(VLOOKUP($A97&$B97,NTG!$A$8:$W$106,18+D$3,FALSE),$A97&"_"&D$3,"") -> Res-sAll-mRefgRec_2 | E97: =IF(VLOOKUP($A97&$B97,NTG!$A$8:$W$106,18+E$3,FALSE),$A97&"_"&E$3,"") -> Res-sAll-mRefgRec_3 | F97: =IF(VLOOKUP($A97&$B97,NTG!$A$8:$W$106,18+F$3,FALSE),$A97&"_"&F$3,"") -> Res-sAll-mRefgRec_4 | G97: =IF(VLOOKUP($A97&$B97,NTG!$A$8:$W$106,18+G$3,FALSE),$A97&"_"&G$3,"") -> Res-sAll-mRefgRec_5 | H97: 94 | J97: Res-sAll-mRefgRecDEER2016 | L97: NonRes-sAll-mCust_4 | M97: NonRes-sAll-mCustDEER2014
A98: Res-sSF-mACgt14-dn | B98: DEER2014 | C98: =IF(VLOOKUP($A98&$B98,NTG!$A$8:$W$106,18+C$3,FALSE),$A98&"_"&C$3,"") -> Res-sSF-mACgt14-dn_1 | D98: =IF(VLOOKUP($A98&$B98,NTG!$A$8:$W$106,18+D$3,FALSE),$A98&"_"&D$3,"") ->  | E98: =IF(VLOOKUP($A98&$B98,NTG!$A$8:$W$106,18+E$3,FALSE),$A98&"_"&E$3,"") ->  | F98: =IF(VLOOKUP($A98&$B98,NTG!$A$8:$W$106,18+F$3,FALSE),$A98&"_"&F$3,"") ->  | G98: =IF(VLOOKUP($A98&$B98,NTG!$A$8:$W$106,18+G$3,FALSE),$A98&"_"&G$3,"") ->  | H98: 95 | I98: Res-sSF-mACgt14-dn_1 | J98: Res-sSF-mACgt14-dnDEER2014 | L98: NonRes-sAll-mCust_5 | M98: NonRes-sAll-mCustDEER2014
A99: Res-sSF-mACgt16-dn | B99: DEER2014 | C99: =IF(VLOOKUP($A99&$B99,NTG!$A$8:$W$106,18+C$3,FALSE),$A99&"_"&C$3,"") -> Res-sSF-mACgt16-dn_1 | D99: =IF(VLOOKUP($A99&$B99,NTG!$A$8:$W$106,18+D$3,FALSE),$A99&"_"&D$3,"") ->  | E99: =IF(VLOOKUP($A99&$B99,NTG!$A$8:$W$106,18+E$3,FALSE),$A99&"_"&E$3,"") ->  | F99: =IF(VLOOKUP($A99&$B99,NTG!$A$8:$W$106,18+F$3,FALSE),$A99&"_"&F$3,"") ->  | G99: =IF(VLOOKUP($A99&$B99,NTG!$A$8:$W$106,18+G$3,FALSE),$A99&"_"&G$3,"") ->  | H99: 96 | I99: Res-sSF-mACgt16-dn_1 | J99: Res-sSF-mACgt16-dnDEER2014 | L99: NonRes-sAll-mCust-Elec_1 | M99: NonRes-sAll-mCust-ElecDEER2014
A100: Res-sSF-mHPes | B100: DEER2014 | C100: =IF(VLOOKUP($A100&$B100,NTG!$A$8:$W$106,18+C$3,FALSE),$A100&"_"&C$3,"") -> Res-sSF-mHPes_1 | D100: =IF(VLOOKUP($A100&$B100,NTG!$A$8:$W$106,18+D$3,FALSE),$A100&"_"&D$3,"") ->  | E100: =IF(VLOOKUP($A100&$B100,NTG!$A$8:$W$106,18+E$3,FALSE),$A100&"_"&E$3,"") ->  | F100: =IF(VLOOKUP($A100&$B100,NTG!$A$8:$W$106,18+F$3,FALSE),$A100&"_"&F$3,"") ->  | G100: =IF(VLOOKUP($A100&$B100,NTG!$A$8:$W$106,18+G$3,FALSE),$A100&"_"&G$3,"") ->  | H100: 97 | I100: Res-sSF-mHPes_1 | J100: Res-sSF-mHPesDEER2014 | L100: NonRes-sAll-mCust-Elec_2 | M100: NonRes-sAll-mCust-ElecDEER2014
A101: Res-sSF-mShellIns | B101: DEER2014 | C101: =IF(VLOOKUP($A101&$B101,NTG!$A$8:$W$106,18+C$3,FALSE),$A101&"_"&C$3,"") -> Res-sSF-mShellIns_1 | D101: =IF(VLOOKUP($A101&$B101,NTG!$A$8:$W$106,18+D$3,FALSE),$A101&"_"&D$3,"") -> Res-sSF-mShellIns_2 | E101: =IF(VLOOKUP($A101&$B101,NTG!$A$8:$W$106,18+E$3,FALSE),$A101&"_"&E$3,"") -> Res-sSF-mShellIns_3 | F101: =IF(VLOOKUP($A101&$B101,NTG!$A$8:$W$106,18+F$3,FALSE),$A101&"_"&F$3,"") -> Res-sSF-mShellIns_4 | G101: =IF(VLOOKUP($A101&$B101,NTG!$A$8:$W$106,18+G$3,FALSE),$A101&"_"&G$3,"") -> Res-sSF-mShellIns_5 | H101: 98 | I101: Res-sSF-mShellIns_1 | J101: Res-sSF-mShellInsDEER2014 | L101: NonRes-sAll-mCust-Elec_3 | M101: NonRes-sAll-mCust-ElecDEER2014
A102: TV-UpStream | B102: DEER2015 | C102: =IF(VLOOKUP($A102&$B102,NTG!$A$8:$W$106,18+C$3,FALSE),$A102&"_"&C$3,"") -> TV-UpStream_1 | D102: =IF(VLOOKUP($A102&$B102,NTG!$A$8:$W$106,18+D$3,FALSE),$A102&"_"&D$3,"") -> TV-UpStream_2 | E102: =IF(VLOOKUP($A102&$B102,NTG!$A$8:$W$106,18+E$3,FALSE),$A102&"_"&E$3,"") -> TV-UpStream_3 | F102: =IF(VLOOKUP($A102&$B102,NTG!$A$8:$W$106,18+F$3,FALSE),$A102&"_"&F$3,"") -> TV-UpStream_4 | G102: =IF(VLOOKUP($A102&$B102,NTG!$A$8:$W$106,18+G$3,FALSE),$A102&"_"&G$3,"") -> TV-UpStream_5 | H102: 99 | I102: TV-UpStream_1 | J102: TV-UpStreamDEER2015 | L102: NonRes-sAll-mCust-Elec_4 | M102: NonRes-sAll-mCust-ElecDEER2014
L103: NonRes-sAll-mCust-Elec_5 | M103: NonRes-sAll-mCust-ElecDEER2014
H104: 1 | I104: =+D4 -> Agric-Default>2yrs_2 | J104: =+A4&B4 -> Agric-Default>2yrsDEER2014 | L104: NonRes-sAll-mCustElec-bd_1 | M104: NonRes-sAll-mCustElec-bdDEER2014
H105: =+H104+1 -> 2 | I105: =+D5 -> Agric-Sprklr-All_2 | J105: =+A5&B5 -> Agric-Sprklr-AllDEER2016 | L105: NonRes-sAll-mCust-Gas_1 | M105: NonRes-sAll-mCust-GasDEER2014
H106: =+H105+1 -> 3 | J106: Agric-Sprklr-AllDEER2019 | L106: NonRes-sAll-mCust-Gas_2 | M106: NonRes-sAll-mCust-GasDEER2014
H107: 4 | I107: Agricult-Default-HTR-di_2 | J107: Agricult-Default-HTR-diDEER2014 | L107: NonRes-sAll-mCust-Gas_3 | M107: NonRes-sAll-mCust-GasDEER2014
H108: 5 | I108: All-Default<=2yrs_2 | J108: All-Default<=2yrsDEER2014 | L108: NonRes-sAll-mCust-Gas_4 | M108: NonRes-sAll-mCust-GasDEER2014
H109: 6 | I109: Com-Default>2yrs_2 | J109: Com-Default>2yrsDEER2014 | L109: NonRes-sAll-mCust-Gas_5 | M109: NonRes-sAll-mCust-GasDEER2014
H110: 7 | I110: Com-Default-HTR-di_2 | J110: Com-Default-HTR-diDEER2014 | L110: NonRes-sAll-mELtg-DnStrmDeemed_5 | M110: NonRes-sAll-mELtg-DnStrmDeemedDEER2019
H111: 8 | I111: ConstrainedAreaProgram_2 | J111: ConstrainedAreaProgramDEER2015 | L111: NonRes-sAll-mHVAC-Chiller_1 | M111: NonRes-sAll-mHVAC-ChillerDEER2014
H112: 9 | I112: ET-Default_2 | J112: ET-DefaultDEER2014 | L112: NonRes-sAll-mHVAC-Chiller_2 | M112: NonRes-sAll-mHVAC-ChillerDEER2014
H113: 10 | J113: EUC-DefaultDEER2014 | L113: NonRes-sAll-mHVAC-Chiller_3 | M113: NonRes-sAll-mHVAC-ChillerDEER2014
H114: 11 | I114: EUC-Default_2 | J114: EUC-DefaultDEER2016 | L114: NonRes-sAll-mHVAC-Chiller_4 | M114: NonRes-sAll-mHVAC-ChillerDEER2014
H115: 12 | I115: Ind-Default>2yrs_2 | J115: Ind-Default>2yrsDEER2014 | L115: NonRes-sAll-mHVAC-Chiller_5 | M115: NonRes-sAll-mHVAC-ChillerDEER2014
H116: 13 | I116: Ind-Default-HTR-di_2 | J116: Ind-Default-HTR-diDEER2014 | L116: NonRes-sAll-mHVAC-DX-up_1 | M116: NonRes-sAll-mHVAC-DX-upDEER2014
H117: 14 | I117: K-12School-ComCollege_2 | J117: K-12School-ComCollegeDEER2015 | L117: NonRes-sAll-mHVAC-DX-up_2 | M117: NonRes-sAll-mHVAC-DX-upDEER2016
H118: 15 | I118: K-12School-ComCollege_2 | J118: K-12School-ComCollegeDEER2015 | L118: NonRes-sAll-mHVAC-DX-up_3 | M118: NonRes-sAll-mHVAC-DX-upDEER2016
H119: 16 | I119: K-12School-ComCollege_2 | J119: K-12School-ComCollegeDEER2015 | L119: NonRes-sAll-mHVAC-DX-up_4 | M119: NonRes-sAll-mHVAC-DX-upDEER2016
H120: 17 | I120: K-12School-ComCollege_2 | J120: K-12School-ComCollegeDEER2015 | L120: NonRes-sAll-mHVAC-DX-up_5 | M120: NonRes-sAll-mHVAC-DX-upDEER2016
H121: 18 | I121: NonRes-sAg-mCust-ci_2 | J121: NonRes-sAg-mCust-ciDEER2014 | L121: NonRes-sAll-mHVAC-Pkg_3 | M121: NonRes-sAll-mHVAC-PkgDEER2017
H122: 19 | I122: NonRes-sAll-mCFL_2 | J122: NonRes-sAll-mCFLDEER2014 | L122: NonRes-sAll-mHVAC-Pkg_4 | M122: NonRes-sAll-mHVAC-PkgDEER2017
H123: 20 | J123: NonRes-sAll-mCFLExAnte2017 | L123: NonRes-sAll-mHVAC-Pkg_5 | M123: NonRes-sAll-mHVAC-PkgDEER2019
H124: 21 | I124: NonRes-sAll-mCFL-All_2 | J124: NonRes-sAll-mCFL-AllDEER2016 | L124: NonRes-sAll-mHVAC-RCA_1 | M124: NonRes-sAll-mHVAC-RCADEER2014
H125: 22 | J125: NonRes-sAll-mCFL-ciDEER2014 | L125: NonRes-sAll-mHVAC-RCA_2 | M125: NonRes-sAll-mHVAC-RCADEER2014
H126: 23 | J126: NonRes-sAll-mCFL-dirDEER2014 | L126: NonRes-sAll-mHVAC-RCA_3 | M126: NonRes-sAll-mHVAC-RCADEER2014
H127: 24 | J127: NonRes-sAll-mCFL-dnDEER2014 | L127: NonRes-sAll-mHVAC-RCA_4 | M127: NonRes-sAll-mHVAC-RCADEER2014
H128: 25 | I128: NonRes-sAll-mCust_2 | J128: NonRes-sAll-mCustDEER2014 | L128: NonRes-sAll-mHVAC-RCA_5 | M128: NonRes-sAll-mHVAC-RCADEER2014
H129: 26 | I129: NonRes-sAll-mCust-Elec_2 | J129: NonRes-sAll-mCust-ElecDEER2014 | L129: NonRes-sAll-mLEDARefl_4 | M129: NonRes-sAll-mLEDAReflExAnte2017
H130: 27 | J130: NonRes-sAll-mCustElec-bdDEER2014 | L130: NonRes-sAll-mLEDARefl_5 | M130: NonRes-sAll-mLEDAReflExAnte2017
H131: 28 | I131: NonRes-sAll-mCust-Gas_2 | J131: NonRes-sAll-mCust-GasDEER2014 | L131: NonRes-sAll-mLEDSpcl_4 | M131: NonRes-sAll-mLEDSpclExAnte2017
H132: 29 | J132: NonRes-sAll-mELtg-DnStrmDeemedDEER2019 | L132: NonRes-sAll-mLEDSpcl_5 | M132: NonRes-sAll-mLEDSpclExAnte2017
H133: 30 | I133: NonRes-sAll-mHVAC-Chiller_2 | J133: NonRes-sAll-mHVAC-ChillerDEER2014 | L133: NonRes-sAll-mLFDL-Deemed_2 | M133: NonRes-sAll-mLFDL-DeemedDEER2016
H134: 31 | J134: NonRes-sAll-mHVAC-DX-upDEER2014 | L134: NonRes-sAll-mLFDL-Deemed_3 | M134: NonRes-sAll-mLFDL-DeemedDEER2016
H135: 32 | I135: NonRes-sAll-mHVAC-DX-up_2 | J135: NonRes-sAll-mHVAC-DX-upDEER2016 | L135: NonRes-sAll-mLFDL-Deemed_4 | M135: NonRes-sAll-mLFDL-DeemedDEER2016
H136: 33 | J136: NonRes-sAll-mHVAC-PkgDEER2017 | L136: NonRes-sAll-mLFDL-Deemed_5 | M136: NonRes-sAll-mLFDL-DeemedDEER2016
H137: 34 | J137: NonRes-sAll-mHVAC-PkgDEER2019 | L137: NonRes-sAll-mLFHB-Deemed_2 | M137: NonRes-sAll-mLFHB-DeemedDEER2016
H138: 35 | I138: NonRes-sAll-mHVAC-RCA_2 | J138: NonRes-sAll-mHVAC-RCADEER2014 | L138: NonRes-sAll-mLFHB-Deemed_3 | M138: NonRes-sAll-mLFHB-DeemedDEER2016
H139: 36 | J139: NonRes-sAll-mLEDAReflExAnte2017 | L139: NonRes-sAll-mLFHB-Deemed_4 | M139: NonRes-sAll-mLFHB-DeemedDEER2016
H140: 37 | J140: NonRes-sAll-mLEDSpclExAnte2017 | L140: NonRes-sAll-mLFHB-Deemed_5 | M140: NonRes-sAll-mLFHB-DeemedDEER2016
H141: 38 | I141: NonRes-sAll-mLFDL-Deemed_2 | J141: NonRes-sAll-mLFDL-DeemedDEER2016 | L141: NonRes-sAll-mLFHBT5-Deemed_2 | M141: NonRes-sAll-mLFHBT5-DeemedDEER2016
H142: 39 | I142: NonRes-sAll-mLFHB-Deemed_2 | J142: NonRes-sAll-mLFHB-DeemedDEER2016 | L142: NonRes-sAll-mLFHBT5-Deemed_3 | M142: NonRes-sAll-mLFHBT5-DeemedDEER2016
H143: 40 | I143: NonRes-sAll-mLFHBT5-Deemed_2 | J143: NonRes-sAll-mLFHBT5-DeemedDEER2016 | L143: NonRes-sAll-mLFHBT5-Deemed_4 | M143: NonRes-sAll-mLFHBT5-DeemedDEER2016
H144: 41 | I144: NonRes-sAll-mLFOth-Deemed_2 | J144: NonRes-sAll-mLFOth-DeemedDEER2016 | L144: NonRes-sAll-mLFHBT5-Deemed_5 | M144: NonRes-sAll-mLFHBT5-DeemedDEER2016
H145: 42 | I145: NonRes-sAll-mLtg-ci_2 | J145: NonRes-sAll-mLtg-ciDEER2016 | L145: NonRes-sAll-mLFOth-Deemed_2 | M145: NonRes-sAll-mLFOth-DeemedDEER2016
H146: 43 | J146: NonRes-sAll-mLtg-ciDEER2019 | L146: NonRes-sAll-mLFOth-Deemed_3 | M146: NonRes-sAll-mLFOth-DeemedDEER2016
H147: 44 | I147: NonRes-sAll-mLtgCtrl_2 | J147: NonRes-sAll-mLtgCtrlDEER2014 | L147: NonRes-sAll-mLFOth-Deemed_4 | M147: NonRes-sAll-mLFOth-DeemedDEER2016
H148: 45 | I148: NonRes-sAll-mLtgCtrl-htr_2 | J148: NonRes-sAll-mLtgCtrl-htrDEER2014 | L148: NonRes-sAll-mLFOth-Deemed_5 | M148: NonRes-sAll-mLFOth-DeemedDEER2016
H149: 46 | I149: NonRes-sAll-MLtgLED-Deemed_2 | J149: NonRes-sAll-MLtgLED-DeemedDEER2016 | L149: NonRes-sAll-mLtg-ci_2 | M149: NonRes-sAll-mLtg-ciDEER2016
H150: 47 | I150: NonRes-sAll-mOccSens_2 | J150: NonRes-sAll-mOccSensDEER2014 | L150: NonRes-sAll-mLtg-ci_3 | M150: NonRes-sAll-mLtg-ciDEER2016
H151: 48 | J151: NonRes-sAll-mPipeInsDEER2014 | L151: NonRes-sAll-mLtg-ci_4 | M151: NonRes-sAll-mLtg-ciDEER2016
H152: 49 | I152: NonRes-sAll-mPipeIns-ci_2 | J152: NonRes-sAll-mPipeIns-ciDEER2016 | L152: NonRes-sAll-mLtg-ci_5 | M152: NonRes-sAll-mLtg-ciDEER2019
H153: 50 | J153: NonRes-sAll-mPipeIns-ciDEER2019 | L153: NonRes-sAll-mLtgCtrl_1 | M153: NonRes-sAll-mLtgCtrlDEER2014
H154: 51 | I154: NonRes-sAll-mPipeIns-deemed_2 | J154: NonRes-sAll-mPipeIns-deemedDEER2016 | L154: NonRes-sAll-mLtgCtrl_2 | M154: NonRes-sAll-mLtgCtrlDEER2014
H155: 52 | J155: NonRes-sAll-mPipeIns-deemedDEER2019 | L155: NonRes-sAll-mLtgCtrl_3 | M155: NonRes-sAll-mLtgCtrlDEER2014
H156: 53 | J156: NonRes-sAll-mPmpTstDEER2014 | L156: NonRes-sAll-mLtgCtrl_4 | M156: NonRes-sAll-mLtgCtrlDEER2014
H157: 54 | I157: NonRes-sAll-mPOC_2 | J157: NonRes-sAll-mPOCDEER2014 | L157: NonRes-sAll-mLtgCtrl_5 | M157: NonRes-sAll-mLtgCtrlDEER2014
H158: 55 | J158: NonRes-sAll-mRCx-ciDEER2014 | L158: NonRes-sAll-mLtgCtrl-htr_1 | M158: NonRes-sAll-mLtgCtrl-htrDEER2014
H159: 56 | J159: NonRes-sAll-mRCx-dnDEER2014 | L159: NonRes-sAll-mLtgCtrl-htr_2 | M159: NonRes-sAll-mLtgCtrl-htrDEER2014
H160: 57 | I160: NonRes-sAll-mRfg-DG_2 | J160: NonRes-sAll-mRfg-DGDEER2014 | L160: NonRes-sAll-mLtgCtrl-htr_3 | M160: NonRes-sAll-mLtgCtrl-htrDEER2014
H161: 58 | I161: NonRes-sAll-mRfg-SC_2 | J161: NonRes-sAll-mRfg-SCDEER2014 | L161: NonRes-sAll-mLtgCtrl-htr_4 | M161: NonRes-sAll-mLtgCtrl-htrDEER2014
H162: 59 | I162: NonRes-sAll-mStmTrp-ci_2 | J162: NonRes-sAll-mStmTrp-ciDEER2014 | L162: NonRes-sAll-mLtgCtrl-htr_5 | M162: NonRes-sAll-mLtgCtrl-htrDEER2014
H163: 60 | I163: NonRes-sAll-mStmTrp-dn_2 | J163: NonRes-sAll-mStmTrp-dnDEER2014 | L163: NonRes-sAll-MLtgLED-Deemed_1 | M163: NonRes-sAll-MLtgLED-DeemedDEER2016
H164: 61 | J164: NonRes-sAll-mT5T8-ciDEER2014 | L164: NonRes-sAll-MLtgLED-Deemed_2 | M164: NonRes-sAll-MLtgLED-DeemedDEER2016
H165: 62 | J165: NonRes-sAll-mT5T8-dnDEER2014 | L165: NonRes-sAll-MLtgLED-Deemed_3 | M165: NonRes-sAll-MLtgLED-DeemedDEER2016
H166: 63 | J166: NonRes-sAll-mT8-dirDEER2014 | L166: NonRes-sAll-mOccSens_1 | M166: NonRes-sAll-mOccSensDEER2014
H167: 64 | I167: NonRes-sAll-NC_2 | J167: NonRes-sAll-NCDEER2016 | L167: NonRes-sAll-mOccSens_2 | M167: NonRes-sAll-mOccSensDEER2014
H168: 65 | I168: NonRes-sGHS-mHtCrtn-ci_2 | J168: NonRes-sGHS-mHtCrtn-ciDEER2014 | L168: NonRes-sAll-mOccSens_3 | M168: NonRes-sAll-mOccSensDEER2014
H169: 66 | I169: =+D69 -> NonRes-sGHS-mHtCrtn-dn_2 | J169: =+A69&B69 -> NonRes-sGHS-mHtCrtn-dnDEER2014 | L169: NonRes-sAll-mOccSens_4 | M169: NonRes-sAll-mOccSensDEER2014
H170: =+H169+1 -> 67 | I170: NonRes-sGHS-mIRF-ci_2 | J170: NonRes-sGHS-mIRF-ciDEER2014 | L170: NonRes-sAll-mOccSens_5 | M170: NonRes-sAll-mOccSensDEER2014
H171: 68 | I171: NonRes-sGHS-mIRF-dn_2 | J171: NonRes-sGHS-mIRF-dnDEER2014 | L171: NonRes-sAll-mPipeIns_1 | M171: NonRes-sAll-mPipeInsDEER2014
H172: 69 | I172: Res-Default>2_2 | J172: Res-Default>2DEER2014 | L172: NonRes-sAll-mPipeIns-ci_2 | M172: NonRes-sAll-mPipeIns-ciDEER2016
H173: 70 | I173: Res-Default-HTR-di_2 | J173: Res-Default-HTR-diDEER2014 | L173: NonRes-sAll-mPipeIns-ci_3 | M173: NonRes-sAll-mPipeIns-ciDEER2016
H174: 71 | I174: Res-mDHWaerator_2 | J174: Res-mDHWaeratorDEER2014 | L174: NonRes-sAll-mPipeIns-ci_4 | M174: NonRes-sAll-mPipeIns-ciDEER2016
H175: 72 | I175: Res-mDHWaerator_2 | J175: Res-mDHWaeratorDEER2014 | L175: NonRes-sAll-mPipeIns-ci_5 | M175: NonRes-sAll-mPipeIns-ciDEER2019
H176: 73 | J176: Res-sAll-mCFLExAnte2017 | L176: NonRes-sAll-mPipeIns-deemed_2 | M176: NonRes-sAll-mPipeIns-deemedDEER2016
H177: 74 | J177: Res-sAll-mCFLgt30w-upDEER2015 | L177: NonRes-sAll-mPipeIns-deemed_3 | M177: NonRes-sAll-mPipeIns-deemedDEER2016
H178: 75 | J178: Res-sAll-mCFLlte30w-upDEER2015 | L178: NonRes-sAll-mPipeIns-deemed_4 | M178: NonRes-sAll-mPipeIns-deemedDEER2016
H179: 76 | J179: Res-sAll-mCFL-upDEER2014 | L179: NonRes-sAll-mPipeIns-deemed_5 | M179: NonRes-sAll-mPipeIns-deemedDEER2019
H180: 77 | I180: Res-sAll-mCFL-up_2 | J180: Res-sAll-mCFL-upDEER2016 | L180: NonRes-sAll-mPmpTst_1 | M180: NonRes-sAll-mPmpTstDEER2014
H181: 78 | I181: Res-sAll-mCW_2 | J181: Res-sAll-mCWDEER2014 | L181: NonRes-sAll-mPOC_1 | M181: NonRes-sAll-mPOCDEER2014
H182: 79 | I182: Res-sAll-mDHWgt62_2 | J182: Res-sAll-mDHWgt62DEER2014 | L182: NonRes-sAll-mPOC_2 | M182: NonRes-sAll-mPOCDEER2014
H183: 80 | I183: Res-sAll-mDHWshwr_2 | J183: Res-sAll-mDHWshwrDEER2014 | L183: NonRes-sAll-mPOC_3 | M183: NonRes-sAll-mPOCDEER2014
H184: 81 | I184: Res-sAll-mDuctSeal_2 | J184: Res-sAll-mDuctSealDEER2014 | L184: NonRes-sAll-mPOC_4 | M184: NonRes-sAll-mPOCDEER2014
H185: 82 | J185: Res-sAll-mELtg-DnStrmDeemedDEER2019 | L185: NonRes-sAll-mPOC_5 | M185: NonRes-sAll-mPOCDEER2014
H186: 83 | J186: Res-sAll-mFrzrRecDEER2014 | L186: NonRes-sAll-mRCx-ci_1 | M186: NonRes-sAll-mRCx-ciDEER2014
H187: 84 | I187: Res-sAll-mFrzrRec_2 | J187: Res-sAll-mFrzrRecDEER2016 | L187: NonRes-sAll-mRCx-dn_1 | M187: NonRes-sAll-mRCx-dnDEER2014
H188: 85 | I188: Res-sAll-mHVAC-DX-up_2 | J188: Res-sAll-mHVAC-DX-upDEER2016 | L188: NonRes-sAll-mRfg-DG_1 | M188: NonRes-sAll-mRfg-DGDEER2014
H189: 86 | J189: Res-sAll-mHVAC-Pkg-dnDEER2017 | L189: NonRes-sAll-mRfg-DG_2 | M189: NonRes-sAll-mRfg-DGDEER2014
H190: 87 | J190: Res-sAll-mHVAC-Pkg-dnDEER2019 | L190: NonRes-sAll-mRfg-DG_3 | M190: NonRes-sAll-mRfg-DGDEER2014
H191: 88 | I191: Res-sAll-mHVAC-RCA_2 | J191: Res-sAll-mHVAC-RCADEER2014 | L191: NonRes-sAll-mRfg-DG_4 | M191: NonRes-sAll-mRfg-DGDEER2014
H192: 89 | I192: Res-sAll-mHVAC-RmAC-dn_2 | J192: Res-sAll-mHVAC-RmAC-dnDEER2014 | L192: NonRes-sAll-mRfg-DG_5 | M192: NonRes-sAll-mRfg-DGDEER2014
H193: 90 | J193: Res-sAll-mLEDAReflExAnte2017 | L193: NonRes-sAll-mRfg-SC_1 | M193: NonRes-sAll-mRfg-SCDEER2014
H194: 91 | J194: Res-sAll-mLEDSpclExAnte2017 | L194: NonRes-sAll-mRfg-SC_2 | M194: NonRes-sAll-mRfg-SCDEER2014
H195: 92 | I195: Res-sAll-MLtgLED-Deemed_2 | J195: Res-sAll-MLtgLED-DeemedDEER2016 | L195: NonRes-sAll-mRfg-SC_3 | M195: NonRes-sAll-mRfg-SCDEER2014
H196: 93 | J196: Res-sAll-mRefgRecDEER2014 | L196: NonRes-sAll-mRfg-SC_4 | M196: NonRes-sAll-mRfg-SCDEER2014
H197: 94 | I197: Res-sAll-mRefgRec_2 | J197: Res-sAll-mRefgRecDEER2016 | L197: NonRes-sAll-mRfg-SC_5 | M197: NonRes-sAll-mRfg-SCDEER2014
H198: 95 | J198: Res-sSF-mACgt14-dnDEER2014 | L198: NonRes-sAll-mStmTrp-ci_1 | M198: NonRes-sAll-mStmTrp-ciDEER2014
H199: 96 | J199: Res-sSF-mACgt16-dnDEER2014 | L199: NonRes-sAll-mStmTrp-ci_2 | M199: NonRes-sAll-mStmTrp-ciDEER2014
H200: 97 | J200: Res-sSF-mHPesDEER2014 | L200: NonRes-sAll-mStmTrp-ci_3 | M200: NonRes-sAll-mStmTrp-ciDEER2014
... 301 more rows

Sheet 2017 EE Programs List
D1: PA index: | E1: =MATCH('Project Components'!C5,'2017 EE Programs List'!F3:L3,0) -> 1
D2: Rows in PA list: | E2: =INDEX(F2:L2,PAind) -> 105 | F2: =COUNTA(F4:F108) -> 105 | G2: =COUNTA(G4:G108) -> 96 | H2: 94 | I2: 85 | J2: 4 | K2: 4 | L2: 17
A3: PA | B3: PrgID | C3: ProgramName | D3: PrimarySector | E3: Proglist | F3: PGE | G3: SCE | H3: SCG | I3: SDGE | J3: BAY | K3: MCE | L3: SCR | M3: Current
A4: PGE | B4: PGE21001 | C4: Residential Energy Advisor | D4: Residential | F4: PGE21001 | G4: SCE-13-L-001 | H4: SCG3701 | I4: SDGE3201 | J4: BAYREN01 | K4: MCE01 | L4: SCR-EUC-A1 | M4: =IF(ISBLANK(INDEX(F4:L4,$E$1)),"",INDEX(F4:L4,$E$1)) -> PGE21001
A5: PGE | B5: PGE210010 | C5: Pay for Performance Pilot | D5: Residential | F5: PGE210010 | G5: SCE-13-L-002A | H5: SCG3702 | I5: SDGE3203 | J5: BAYREN02 | K5: MCE02 | L5: SCR-EUC-A2 | M5: PGE210010
A6: PGE | B6: PGE210011 | C6: Residential Energy Fitness program | D6: Residential | F6: PGE210011 | G6: SCE-13-L-002B | H6: SCG3703 | I6: SDGE3204 | J6: BAYREN03 | K6: MCE03 | L6: SCR-EUC-A3 | M6: PGE210011
A7: PGE | B7: PGE21002 | C7: Plug Load and Appliances | D7: Residential | F7: PGE21002 | G7: SCE-13-L-002C | H7: SCG3704 | I7: SDGE3207 | J7: BAYREN04 | K7: MCE04 | L7: SCR-EUC-A4 | M7: PGE21002
A8: PGE | B8: PGE21003 | C8: Multifamily Energy Efficiency | D8: Residential | F8: PGE21003 | G8: SCE-13-L-002D | H8: SCG3705 | I8: SDGE3209 | L8: SCR-EUC-A5 | M8: PGE21003
A9: PGE | B9: PGE21004 | C9: Energy Upgrade California | D9: Residential | F9: PGE21004 | G9: SCE-13-L-002E | H9: SCG3706 | I9: SDGE3211 | L9: SCR-EUC-A6 | M9: PGE21004
A10: PGE | B10: PGE21005 | C10: Residential New Construction | D10: Residential | F10: PGE21005 | G10: SCE-13-L-002F | H10: SCG3707 | I10: SDGE3212 | L10: SCR-FIN-B1 | M10: PGE21005
A11: PGE | B11: PGE21006 | C11: Residential HVAC | D11: Residential | F11: PGE21006 | G11: SCE-13-L-002G | H11: SCG3708 | I11: SDGE3213 | L11: SCR-FIN-B2 | M11: PGE21006
A12: PGE | B12: PGE21007 | C12: California New Homes Multifamily | D12: Residential | F12: PGE21007 | G12: SCE-13-L-002H | H12: SCG3709 | I12: SDGE3215 | L12: SCR-FIN-B4 | M12: PGE21007
A13: PGE | B13: PGE21008 | C13: Enhance Time Delay Relay | D13: Residential | F13: PGE21008 | G13: SCE-13-L-002I | H13: SCG3710 | I13: SDGE3216 | L13: SCR-FIN-B5 | M13: PGE21008
A14: PGE | B14: PGE21009 | C14: Direct Install for Manufactured and Mobile Homes | D14: Residential | F14: PGE21009 | G14: SCE-13-L-002J | H14: SCG3711 | I14: SDGE3217 | L14: SCR-REC-C1 | M14: PGE21009
A15: PGE | B15: PGE21011 | C15: Commercial Calculated Incentives | D15: Commercial | F15: PGE21011 | G15: SCE-13-L-002K | H15: SCG3712 | I15: SDGE3220 | L15: SCR-REC-C2 | M15: PGE21011
A16: PGE | B16: PGE210112 | C16: School Energy Efficiency | D16: Commercial | F16: PGE210112 | G16: SCE-13-L-002L | H16: SCG3713 | I16: SDGE3222 | L16: SCR-REC-C3 | M16: PGE210112
A17: PGE | B17: PGE210113 | C17: Energy Fitness Program | D17: Commercial | F17: PGE210113 | G17: SCE-13-L-002M | H17: SCG3714 | I17: SDGE3223 | L17: SCR-REC-C4 | M17: PGE210113
A18: PGE | B18: PGE210118 | C18: Retail Energy Efficiency | D18: Commercial | F18: PGE210118 | G18: SCE-13-L-002N | H18: SCG3715 | I18: SDGE3224 | L18: SCR-REC-C5 | M18: PGE210118
A19: PGE | B19: PGE210119 | C19: LED Accelerator | D19: Commercial | F19: PGE210119 | G19: SCE-13-L-002O | H19: SCG3716 | I19: SDGE3225 | L19: SCR-REC-C6 | M19: PGE210119
A20: PGE | B20: PGE21012 | C20: Commercial Deemed Incentives | D20: Commercial | F20: PGE21012 | G20: SCE-13-L-002P | H20: SCG3717 | I20: SDGE3226 | L20: SCR-REC-C7 | M20: PGE21012
A21: PGE | B21: PGE210123 | C21: Healthcare Energy Efficiency Program | D21: Commercial | F21: PGE210123 | G21: SCE-13-L-002Q | H21: SCG3718 | I21: SDGE3227 | M21: PGE210123
A22: PGE | B22: PGE210126 | C22: K-12 Private Schools and Colleges Audit Retro | D22: Commercial | F22: PGE210126 | G22: SCE-13-L-002R | H22: SCG3719 | I22: SDGE3228 | M22: PGE210126
A23: PGE | B23: PGE210128 | C23: Enovity SMART | D23: Commercial | F23: PGE210128 | G23: SCE-13-L-002Rollup | H23: SCG3720 | I23: SDGE3229 | M23: PGE210128
A24: PGE | B24: PGE210129 | C24: Nexant AERCx | D24: Commercial | F24: PGE210129 | G24: SCE-13-L-002S | H24: SCG3721 | I24: SDGE3230 | M24: PGE210129
A25: PGE | B25: PGE21013 | C25: Commercial Continuous Energy Improvement | D25: Commercial | F25: PGE21013 | G25: SCE-13-L-002T | H25: SCG3722 | I25: SDGE3231 | M25: PGE21013
A26: PGE | B26: PGE210130 | C26: CLEAResult AERCx | D26: Commercial | F26: PGE210130 | G26: SCE-13-L-002U | H26: SCG3723 | I26: SDGE3233 | M26: PGE210130
A27: PGE | B27: PGE210131 | C27: PECI AERCx | D27: Commercial | F27: PGE210131 | G27: SCE-13-L-002V | H27: SCG3724 | I27: SDGE3234 | M27: PGE210131
A28: PGE | B28: PGE210135 | C28: Water Infrastructure and System Efficiency | D28: Industrial | F28: PGE210135 | G28: SCE-13-L-002W | H28: SCG3725 | I28: SDGE3235 | M28: PGE210135
A29: PGE | B29: PGE210137 | C29: Waypoint Commercial Outreach | D29: Commercial | F29: PGE210137 | G29: SCE-13-L-003A | H29: SCG3726 | I29: SDGE3236 | M29: PGE210137
A30: PGE | B30: PGE210138 | C30: Data Center Air Flow and Temp Optimization | D30: Commercial | F30: PGE210138 | G30: SCE-13-L-003B | H30: SCG3727 | I30: SDGE3237 | M30: PGE210138
A31: PGE | B31: PGE210139 | C31: SEI Energize Schools Program | D31: Commercial | F31: PGE210139 | G31: SCE-13-L-003C | H31: SCG3728 | I31: SDGE3239 | M31: PGE210139
A32: PGE | B32: PGE21014 | C32: Commercial Energy Advisor | D32: Commercial | F32: PGE21014 | G32: SCE-13-L-003D | H32: SCG3729 | I32: SDGE3240 | M32: PGE21014
A33: PGE | B33: PGE210143 | C33: Hospitality Program | D33: Commercial | F33: PGE210143 | G33: SCE-13-L-003E | H33: SCG3730 | I33: SDGE3241 | M33: PGE210143
A34: PGE | B34: PGE21015 | C34: Commercial HVAC | D34: Commercial | F34: PGE21015 | G34: SCE-13-L-003F | H34: SCG3731 | I34: SDGE3245 | M34: PGE21015
A35: PGE | B35: PGE21016 | C35: Air Care Plus | D35: Commercial | F35: PGE21016 | G35: SCE-13-L-003G | H35: SCG3734 | I35: SDGE3246 | M35: PGE21016
A36: PGE | B36: PGE21017 | C36: Boiler Energy Efficiency Program | D36: Commercial | F36: PGE21017 | G36: SCE-13-SW-001A | H36: SCG3735 | I36: SDGE3247 | M36: =IF(ISBLANK(INDEX(F36:L36,$E$1)),"",INDEX(F36:L36,$E$1)) -> PGE21017
A37: PGE | B37: PGE21018 | C37: EnergySmart Grocer | D37: Commercial | F37: PGE21018 | G37: SCE-13-SW-001B | H37: SCG3736 | I37: SDGE3248 | M37: PGE21018
A38: PGE | B38: PGE21021 | C38: Industrial Calculated Incentives | D38: Industrial | F38: PGE21021 | G38: SCE-13-SW-001C | H38: SCG3737 | I38: SDGE3249 | M38: PGE21021
A39: PGE | B39: PGE210210 | C39: Industrial Recommissioning Program | D39: Industrial | F39: PGE210210 | G39: SCE-13-SW-001D | H39: SCG3738 | I39: SDGE3250 | M39: PGE210210
A40: PGE | B40: PGE210211 | C40: Light Industrial Energy Efficiency | D40: Industrial | F40: PGE210211 | G40: SCE-13-SW-001E | H40: SCG3739 | I40: SDGE3251 | M40: PGE210211
A41: PGE | B41: PGE210212 | C41: Compressed Air and Vacuum Optimization Program | D41: Industrial | F41: PGE210212 | G41: SCE-13-SW-001F | H41: SCG3740 | I41: SDGE3252 | M41: PGE210212
A42: PGE | B42: PGE210213 | C42: Small Petrochemical Energy Efficiency | D42: Industrial | F42: PGE210213 | G42: SCE-13-SW-001G | H42: SCG3741 | I42: SDGE3253 | M42: PGE210213
A43: PGE | B43: PGE21022 | C43: Industrial Deemed Incentives | D43: Industrial | F43: PGE21022 | G43: SCE-13-SW-002A | H43: SCG3742 | I43: SDGE3254 | M43: PGE21022
A44: PGE | B44: PGE21023 | C44: Industrial Continuous Energy Improvement | D44: Industrial | F44: PGE21023 | G44: SCE-13-SW-002B | H44: SCG3743 | I44: SDGE3255 | M44: PGE21023
A45: PGE | B45: PGE21024 | C45: Industrial Energy Advisor | D45: Industrial | F45: PGE21024 | G45: SCE-13-SW-002C | H45: SCG3744 | I45: SDGE3257 | M45: PGE21024
A46: PGE | B46: PGE21025 | C46: California Wastewater Process Optimization | D46: Industrial | F46: PGE21025 | G46: SCE-13-SW-002D | H46: SCG3745 | I46: SDGE3260 | M46: PGE21025
A47: PGE | B47: PGE21026 | C47: Energy Efficiency Services for Oil Production | D47: Industrial | F47: PGE21026 | G47: SCE-13-SW-002E | H47: SCG3746 | I47: SDGE3261 | M47: PGE21026
A48: PGE | B48: PGE21027 | C48: Heavy Industry Energy Efficiency Program | D48: Industrial | F48: PGE21027 | G48: SCE-13-SW-002F | H48: SCG3747 | I48: SDGE3262 | M48: PGE21027
A49: PGE | B49: PGE21028 | C49: Industrial Compressed Air Program | D49: Industrial | F49: PGE21028 | G49: SCE-13-SW-002G | H49: SCG3748 | I49: SDGE3264 | M49: PGE21028
A50: PGE | B50: PGE21029 | C50: Refinery Energy Efficiency Program | D50: Industrial | F50: PGE21029 | G50: SCE-13-SW-002H | H50: SCG3749 | I50: SDGE3266 | M50: PGE21029
A51: PGE | B51: PGE21030 | C51: Industrial Strategic Energy Management | D51: Industrial | F51: PGE21030 | G51: SCE-13-SW-003A | H51: SCG3750 | I51: SDGE3267 | M51: PGE21030
A52: PGE | B52: PGE21031 | C52: Agricultural Calculated Incentives | D52: Agricultural | F52: PGE21031 | G52: SCE-13-SW-003B | H52: SCG3751 | I52: SDGE3268 | M52: PGE21031
A53: PGE | B53: PGE210311 | C53: Process Wastewater Treatment EM Pgm for Ag Food Processing | D53: Agricultural | F53: PGE210311 | G53: SCE-13-SW-003C | H53: SCG3752 | I53: SDGE3269 | M53: PGE210311
A54: PGE | B54: PGE210312 | C54: Dairy and Winery Industry Efficiency Solutions | D54: Agricultural | F54: PGE210312 | G54: SCE-13-SW-003D | H54: SCG3753 | I54: SDGE3270 | M54: PGE210312
A55: PGE | B55: PGE21032 | C55: Agricultural Deemed Incentives | D55: Agricultural | F55: PGE21032 | G55: SCE-13-SW-004A | H55: SCG3754 | I55: SDGE3271 | M55: PGE21032
A56: PGE | B56: PGE21033 | C56: Agricultural Continuous Energy Improvement | D56: Agricultural | F56: PGE21033 | G56: SCE-13-SW-004B | H56: SCG3755 | I56: SDGE3272 | M56: PGE21033
A57: PGE | B57: PGE21034 | C57: Agricultural Energy Advisor | D57: Agricultural | F57: PGE21034 | G57: SCE-13-SW-004C | H57: SCG3757 | I57: SDGE3273 | M57: PGE21034
A58: PGE | B58: PGE21036 | C58: Industrial Refrigeration Performance Plus | D58: Cross-Cutting | F58: PGE21036 | G58: SCE-13-SW-004D | H58: SCG3758 | I58: SDGE3274 | M58: PGE21036
A59: PGE | B59: PGE21039 | C59: Comprehensive Food Process Audit & Resource Efficiency Pgm | D59: Agricultural | F59: PGE21039 | G59: SCE-13-SW-005A | H59: SCG3759 | I59: SDGE3275 | M59: PGE21039
A60: PGE | B60: PGE21041 | C60: Primary Lighting | D60: Residential | F60: PGE21041 | G60: SCE-13-SW-005B | H60: SCG3760 | I60: SDGE3276 | M60: PGE21041
A61: PGE | B61: PGE21042 | C61: Lighting Innovation | D61: Cross-Cutting | F61: PGE21042 | G61: SCE-13-SW-005C | H61: SCG3761 | I61: SDGE3277 | M61: PGE21042
A62: PGE | B62: PGE21043 | C62: Lighting Market Transformation | D62: Cross-Cutting | F62: PGE21043 | G62: SCE-13-SW-006 | H62: SCG3762 | I62: SDGE3278 | M62: PGE21043
A63: PGE | B63: PGE21051 | C63: Building Codes Advocacy | D63: Cross-Cutting | F63: PGE21051 | G63: SCE-13-SW-007A | H63: SCG3763 | I63: SDGE3279 | M63: PGE21051
A64: PGE | B64: PGE21052 | C64: Appliance Standards Advocacy | D64: Cross-Cutting | F64: PGE21052 | G64: SCE-13-SW-007A1 | H64: SCG3764 | I64: SDGE3280 | M64: PGE21052
A65: PGE | B65: PGE21053 | C65: Compliance Improvement | D65: Cross-Cutting | F65: PGE21053 | G65: SCE-13-SW-007B | H65: SCG3765 | I65: SDGE3282 | M65: PGE21053
A66: PGE | B66: PGE21054 | C66: Reach Codes | D66: Cross-Cutting | F66: PGE21054 | G66: SCE-13-SW-007C | H66: SCG3768 | I66: SDGE3291 | M66: PGE21054
A67: PGE | B67: PGE21055 | C67: Planning and Coordination | D67: Cross-Cutting | F67: PGE21055 | G67: SCE-13-SW-008A | H67: SCG3769 | I67: SDGE3292 | M67: PGE21055
A68: PGE | B68: PGE21056 | C68: Code Readiness | D68: Cross-Cutting | F68: PGE21056 | G68: SCE-13-SW-008B | H68: SCG3770 | I68: SDGE3293 | M68: =IF(ISBLANK(INDEX(F68:L68,$E$1)),"",INDEX(F68:L68,$E$1)) -> PGE21056
A69: PGE | B69: PGE21061 | C69: Technology Development Support | D69: Cross-Cutting | F69: PGE21061 | G69: SCE-13-SW-008C | H69: SCG3771 | I69: SDGE3296 | M69: PGE21061
A70: PGE | B70: PGE21062 | C70: Technology Assessments | D70: Cross-Cutting | F70: PGE21062 | G70: SCE-13-SW-008D | H70: SCG3773 | I70: SDGE3297 | M70: PGE21062
A71: PGE | B71: PGE21063 | C71: Technology Introduction Support | D71: Cross-Cutting | F71: PGE21063 | G71: SCE-13-SW-008E | H71: SCG3774 | I71: SDGE3298 | M71: PGE21063
A72: PGE | B72: PGE21071 | C72: Centergies | D72: Cross-Cutting | F72: PGE21071 | G72: SCE-13-SW-009A | H72: SCG3776 | I72: SDGE3299 | M72: PGE21071
A73: PGE | B73: PGE21072 | C73: Connections | D73: Cross-Cutting | F73: PGE21072 | G73: SCE-13-SW-009B | H73: SCG3777 | I73: SDGE3300 | M73: PGE21072
A74: PGE | B74: PGE21073 | C74: Strategic Planning | D74: Cross-Cutting | F74: PGE21073 | G74: SCE-13-SW-009C | H74: SCG3778 | I74: SDGE3301 | M74: PGE21073
A75: PGE | B75: PGE21081 | C75: Statewide DSM Coordination & Integration | D75: Cross-Cutting | F75: PGE21081 | G75: SCE-13-SW-010A | H75: SCG3779 | I75: SDGE3302 | M75: PGE21081
A76: PGE | B76: PGE21091 | C76: On-Bill Financing (excludes Loan Pool) | D76: Cross-Cutting | F76: PGE21091 | G76: SCE-13-SW-010B | H76: SCG3780 | I76: SDGE3303 | M76: PGE21091
A77: PGE | B77: PGE210911 | C77: On-Bill Financing Alternative Pathway | D77: Cross-Cutting | F77: PGE210911 | G77: SCE-13-SW-010C | H77: SCG3781 | I77: SDGE3307 | M77: PGE210911
A78: PGE | B78: PGE21092 | C78: Third-Party Financing | D78: Cross-Cutting | F78: PGE21092 | G78: SCE-13-TP-001 | H78: SCG3782 | I78: SDGE3308 | M78: PGE21092
A79: PGE | B79: PGE21093 | C79: New Financing Offerings | D79: Cross-Cutting | F79: PGE21093 | G79: SCE-13-TP-002 | H79: SCG3783 | I79: SDGE3310 | M79: PGE21093
A80: PGE | B80: PGE2110011 | C80: California Community Colleges | D80: Public | F80: PGE2110011 | G80: SCE-13-TP-003 | H80: SCG3793 | I80: SDGE3311 | M80: PGE2110011
A81: PGE | B81: PGE2110012 | C81: University of California/California State University | D81: Public | F81: PGE2110012 | G81: SCE-13-TP-004 | H81: SCG3794 | I81: SDGE3312 | M81: PGE2110012
A82: PGE | B82: PGE2110013 | C82: State of California | D82: Public | F82: PGE2110013 | G82: SCE-13-TP-005 | H82: SCG3795 | I82: SDGE3313 | M82: PGE2110013
A83: PGE | B83: PGE2110014 | C83: Department of Corrections and Rehabilitation | D83: Public | F83: PGE2110014 | G83: SCE-13-TP-006 | H83: SCG3796 | I83: SDGE3317 | M83: PGE2110014
A84: PGE | B84: PGE2110051 | C84: Local Government Energy Action Resources (LGEAR) | D84: Public | F84: PGE2110051 | G84: SCE-13-TP-007 | H84: SCG3797 | I84: SDGE3318 | M84: PGE2110051
A85: PGE | B85: PGE2110052 | C85: Strategic Energy Resources | D85: Public | F85: PGE2110052 | G85: SCE-13-TP-008 | H85: SCG3798 | I85: SDGE3321 | M85: PGE2110052
A86: PGE | B86: PGE211007 | C86: Association of Monterey Bay Area Governments (AMBAG) | D86: Public | F86: PGE211007 | G86: SCE-13-TP-009 | H86: SCG3799 | I86: SDGE3322 | M86: PGE211007
A87: PGE | B87: PGE211009 | C87: East Bay | D87: Public | F87: PGE211009 | G87: SCE-13-TP-010 | H87: SCG3800 | I87: SDGE3323 | M87: PGE211009
A88: PGE | B88: PGE211010 | C88: Fresno | D88: Public | F88: PGE211010 | G88: SCE-13-TP-011 | H88: SCG3801 | I88: SDGE-ESAP | M88: PGE211010
A89: PGE | B89: PGE211011 | C89: Kern | D89: Public | F89: PGE211011 | G89: SCE-13-TP-012 | H89: SCG3802 | M89: PGE211011
A90: PGE | B90: PGE211012 | C90: Madera | D90: Public | F90: PGE211012 | G90: SCE-13-TP-013 | H90: SCG3803 | M90: PGE211012
A91: PGE | B91: PGE211013 | C91: Marin County | D91: Public | F91: PGE211013 | G91: SCE-13-TP-014 | H91: SCG3804 | M91: PGE211013
A92: PGE | B92: PGE211014 | C92: Mendocino/Lake County | D92: Public | F92: PGE211014 | G92: SCE-13-TP-017 | H92: SCG3805 | M92: PGE211014
A93: PGE | B93: PGE211015 | C93: Napa County | D93: Public | F93: PGE211015 | G93: SCE-13-TP-018 | H93: SCG3806 | M93: PGE211015
A94: PGE | B94: PGE211016 | C94: Redwood Coast | D94: Public | F94: PGE211016 | G94: SCE-13-TP-019 | H94: SCG3807 | M94: PGE211016
A95: PGE | B95: PGE211018 | C95: San Luis Obispo County | D95: Public | F95: PGE211018 | G95: SCE-13-TP-020 | H95: SCG3808 | M95: PGE211018
A96: PGE | B96: PGE211019 | C96: San Mateo County | D96: Public | F96: PGE211019 | G96: SCE-13-TP-021 | H96: SCG3809 | M96: PGE211019
A97: PGE | B97: PGE211020 | C97: Santa Barbara | D97: Public | F97: PGE211020 | G97: SCE-13-TP-022 | H97: SCG3810 | M97: PGE211020
A98: PGE | B98: PGE211021 | C98: Sierra Nevada | D98: Public | F98: PGE211021 | G98: SCE-13-TP-023 | M98: PGE211021
A99: PGE | B99: PGE211022 | C99: Sonoma County | D99: Public | F99: PGE211022 | G99: SCE-16-L-002X | M99: PGE211022
A100: PGE | B100: PGE211023 | C100: Silicon Valley | D100: Public | F100: PGE211023 | M100: =IF(ISBLANK(INDEX(F100:L100,$E$1)),"",INDEX(F100:L100,$E$1)) -> PGE211023
A101: PGE | B101: PGE211024 | C101: San Francisco | D101: Public | F101: PGE211024 | M101: PGE211024
A102: PGE | B102: PGE211025 | C102: Savings by Design (SBD) | D102: Commercial | F102: PGE211025 | M102: PGE211025
A103: PGE | B103: PGE211026 | C103: North Valley | D103: Public | F103: PGE211026 | M103: PGE211026
A104: PGE | B104: PGE211027 | C104: Sutter Buttes | D104: Public | F104: PGE211027 | M104: PGE211027
A105: PGE | B105: PGE211028 | C105: Yolo | D105: Public | F105: PGE211028 | M105: PGE211028
A106: PGE | B106: PGE211029 | C106: Solano | D106: Public | F106: PGE211029 | M106: PGE211029
A107: PGE | B107: PGE211030 | C107: Northern San Joaquin Valley | D107: Public | F107: PGE211030 | M107: PGE211030
A108: PGE | B108: PGE211031 | C108: Valley Innovative Energy Watch (VIEW) | D108: Public | F108: PGE211031 | M108: PGE211031
A109: SCE | B109: SCE-13-L-001 | C109: Integrated Demand Side Management Pilot for Food Processing | D109: Cross-Cutting
A110: SCE | B110: SCE-13-L-002A | C110: City of Beaumont Energy Leader Partnership | D110: Public
A111: SCE | B111: SCE-13-L-002B | C111: City of Long Beach Energy Leader Partnership | D111: Public
A112: SCE | B112: SCE-13-L-002C | C112: City of Redlands Energy Leader Partnership | D112: Public
A113: SCE | B113: SCE-13-L-002D | C113: City of Santa Ana Energy Leader Partnership | D113: Public
A114: SCE | B114: SCE-13-L-002E | C114: City of Simi Valley Energy Leader Partnership | D114: Public
A115: SCE | B115: SCE-13-L-002F | C115: Gateway Cities Energy Leader Partnership | D115: Public
A116: SCE | B116: SCE-13-L-002G | C116: Community Energy Leader Partnership | D116: Public
A117: SCE | B117: SCE-13-L-002H | C117: Eastern Sierra Energy Leader Partnership | D117: Public
A118: SCE | B118: SCE-13-L-002I | C118: Energy Leader Partnership Strategic Support | D118: Public
A119: SCE | B119: SCE-13-L-002J | C119: Desert Cities Energy Leader Partnership | D119: Public
A120: SCE | B120: SCE-13-L-002K | C120: Kern County Energy Leader Partnership | D120: Public
A121: SCE | B121: SCE-13-L-002L | C121: Orange County Cities Energy Leader Partnership | D121: Public
A122: SCE | B122: SCE-13-L-002M | C122: San Gabriel Valley Energy Leader Partnership | D122: Public
A123: SCE | B123: SCE-13-L-002N | C123: San Joaquin Valley Energy Leader Partnership | D123: Public
A124: SCE | B124: SCE-13-L-002O | C124: South Bay Energy Leader Partnership | D124: Public
A125: SCE | B125: SCE-13-L-002P | C125: South Santa Barbara County Energy Leader Partnership | D125: Public
A126: SCE | B126: SCE-13-L-002Q | C126: Ventura County Energy Leader Partnership | D126: Public
A127: SCE | B127: SCE-13-L-002R | C127: Western Riverside Energy Leader Partnership | D127: Public
A128: SCE | B128: SCE-13-L-002Rollup | C128: Energy Leader Partnership Program | D128: Public
A129: SCE | B129: SCE-13-L-002S | C129: High Desert Regional Energy Leader Partnership | D129: Public
A130: SCE | B130: SCE-13-L-002T | C130: West Side Community Energy Leader Partnership | D130: Public
A131: SCE | B131: SCE-13-L-002U | C131: Local Government Strategic Planning Pilot Program | D131: Public
A132: SCE | B132: SCE-13-L-002V | C132: North Orange County Cities | D132: Public
A133: SCE | B133: SCE-13-L-002W | C133: San Bernardino Association of Governments | D133: Public
A134: SCE | B134: SCE-13-L-003A | C134: California Community Colleges Energy Efficiency Partnership | D134: Public
A135: SCE | B135: SCE-13-L-003B | C135: California Dept. of Corrections and Rehabilitation EE Partnership | D135: Public
A136: SCE | B136: SCE-13-L-003C | C136: County of Los Angeles Energy Efficiency Partnership | D136: Public
A137: SCE | B137: SCE-13-L-003D | C137: County of Riverside Energy Efficiency Partnership | D137: Public
A138: SCE | B138: SCE-13-L-003E | C138: County of San Bernardino Energy Efficiency Partnership | D138: Public
A139: SCE | B139: SCE-13-L-003F | C139: State of California Energy Efficiency Partnership | D139: Public
A140: SCE | B140: SCE-13-L-003G | C140: UC/CSU Energy Efficiency Partnership | D140: Public
A141: SCE | B141: SCE-13-SW-001A | C141: Energy Advisor Program | D141: Residential
A142: SCE | B142: SCE-13-SW-001B | C142: Plug Load and Appliances Program | D142: Residential
A143: SCE | B143: SCE-13-SW-001C | C143: Multifamily Energy Efficiency Rebate Program | D143: Residential
A144: SCE | B144: SCE-13-SW-001D | C144: Energy Upgrade California | D144: Residential
A145: SCE | B145: SCE-13-SW-001E | C145: Residential HVAC Program | D145: Residential
A146: SCE | B146: SCE-13-SW-001F | C146: Residential New Construction Program | D146: Residential
A147: SCE | B147: SCE-13-SW-001G | C147: Residential Direct Install Program | D147: Residential
A148: SCE | B148: SCE-13-SW-002A | C148: Commercial Energy Advisor Program | D148: Commercial
A149: SCE | B149: SCE-13-SW-002B | C149: Commercial Calculated Program | D149: Commercial
A150: SCE | B150: SCE-13-SW-002C | C150: Commercial Deemed Incentives Program | D150: Commercial
A151: SCE | B151: SCE-13-SW-002D | C151: Commercial Direct Install Program | D151: Commercial
A152: SCE | B152: SCE-13-SW-002E | C152: Commercial Continuous Energy Improvement Program | D152: Commercial
A153: SCE | B153: SCE-13-SW-002F | C153: Nonresidential HVAC Program | D153: Commercial
A154: SCE | B154: SCE-13-SW-002G | C154: Savings By Design | D154: Commercial
A155: SCE | B155: SCE-13-SW-002H | C155: Midstream Point of Purchase Program | D155: Commercial
A156: SCE | B156: SCE-13-SW-003A | C156: Industrial Energy Advisor Program | D156: Industrial
A157: SCE | B157: SCE-13-SW-003B | C157: Industrial Calculated Energy Efficiency Program | D157: Industrial
A158: SCE | B158: SCE-13-SW-003C | C158: Industrial Deemed Energy Efficiency Program | D158: Industrial
A159: SCE | B159: SCE-13-SW-003D | C159: Strategic Energy Management Program | D159: Industrial
A160: SCE | B160: SCE-13-SW-004A | C160: Agriculture Energy Advisor Program | D160: Agricultural
A161: SCE | B161: SCE-13-SW-004B | C161: Agriculture Calculated Energy Efficiency Program | D161: Agricultural
A162: SCE | B162: SCE-13-SW-004C | C162: Agriculture Deemed Energy Efficiency Program | D162: Agricultural
A163: SCE | B163: SCE-13-SW-004D | C163: Agriculture Continuous Energy Improvement Program | D163: Agricultural
A164: SCE | B164: SCE-13-SW-005A | C164: Lighting Market Transformation Program | D164: Cross-Cutting
A165: SCE | B165: SCE-13-SW-005B | C165: Lighting Innovation Program | D165: Residential
A166: SCE | B166: SCE-13-SW-005C | C166: Primary Lighting Program | D166: Residential
A167: SCE | B167: SCE-13-SW-006 | C167: Integrated Demand Side Management Program | D167: Cross-Cutting
A168: SCE | B168: SCE-13-SW-007A | C168: On-Bill Financing | D168: Cross-Cutting
A169: SCE | B169: SCE-13-SW-007A1 | C169: On-Bill Financing Loan Pool | D169: Commercial
A170: SCE | B170: SCE-13-SW-007B | C170: ARRA-Originated Financing | D170: Cross-Cutting
A171: SCE | B171: SCE-13-SW-007C | C171: New Finance Offerings | D171: Cross-Cutting
A172: SCE | B172: SCE-13-SW-008A | C172: Building Codes and Compliance Advocacy | D172: Cross-Cutting
A173: SCE | B173: SCE-13-SW-008B | C173: Appliance Standards Advocacy | D173: Cross-Cutting
A174: SCE | B174: SCE-13-SW-008C | C174: Compliance Improvement | D174: Cross-Cutting
A175: SCE | B175: SCE-13-SW-008D | C175: Reach Codes | D175: Cross-Cutting
A176: SCE | B176: SCE-13-SW-008E | C176: Planning and Coordination | D176: Cross-Cutting
A177: SCE | B177: SCE-13-SW-009A | C177: Technology Development Support | D177: Cross-Cutting
A178: SCE | B178: SCE-13-SW-009B | C178: Technology Assessments | D178: Cross-Cutting
A179: SCE | B179: SCE-13-SW-009C | C179: Technology Introduction Support | D179: Cross-Cutting
A180: SCE | B180: SCE-13-SW-010A | C180: WE&T Centergies | D180: Cross-Cutting
A181: SCE | B181: SCE-13-SW-010B | C181: WE&T Connections | D181: Residential
A182: SCE | B182: SCE-13-SW-010C | C182: WE&T Planning | D182: Cross-Cutting
A183: SCE | B183: SCE-13-TP-001 | C183: Comprehensive Manufactured Homes | D183: Residential
A184: SCE | B184: SCE-13-TP-002 | C184: Cool Planet | D184: Commercial
A185: SCE | B185: SCE-13-TP-003 | C185: Healthcare EE Program | D185: Commercial
A186: SCE | B186: SCE-13-TP-004 | C186: Data Center Energy Efficiency | D186: Commercial
A187: SCE | B187: SCE-13-TP-005 | C187: Lodging EE Program | D187: Commercial
A188: SCE | B188: SCE-13-TP-006 | C188: Food & Kindred Products | D188: Industrial
A189: SCE | B189: SCE-13-TP-007 | C189: Primary and Fabricated Metals | D189: Industrial
A190: SCE | B190: SCE-13-TP-008 | C190: Nonmetallic Minerals and Products | D190: Industrial
A191: SCE | B191: SCE-13-TP-009 | C191: Comprehensive Chemical Products | D191: Industrial
A192: SCE | B192: SCE-13-TP-010 | C192: Comprehensive Petroleum Refining | D192: Industrial
A193: SCE | B193: SCE-13-TP-011 | C193: Oil Production | D193: Industrial
A194: SCE | B194: SCE-13-TP-012 | C194: Refinery Energy Efficiency Program | D194: Industrial
A195: SCE | B195: SCE-13-TP-013 | C195: Cool Schools | D195: Commercial
A196: SCE | B196: SCE-13-TP-014 | C196: Commercial Utility Building Efficiency | D196: Commercial
A197: SCE | B197: SCE-13-TP-017 | C197: Energy Efficiency for Entertainment Centers | D197: Commercial
A198: SCE | B198: SCE-13-TP-018 | C198: School Energy Efficiency Program | D198: Commercial
A199: SCE | B199: SCE-13-TP-019 | C199: Sustainable Communities | D199: Cross-Cutting
A200: SCE | B200: SCE-13-TP-020 | C200: IDEEA365 Program | D200: Industrial
... 208 more rows

Sheet lookup
U2: Calculation
B3: UseCategory | C3: UseSubCategory | D3: TechGroup | E3: TechType | H3: UseCategory | I3: UseSubCategory | J3: TechGroup | K3: TechType | O3: PA | Q3: Msr Type | R3: NTG | S3: index | U3: Type | V3: notes | W3: Discount rates | Z3: Project Type | AB3: Measure Type | AC3: notes | AE3: Date Range
B4: AppPlug | C4: Electronics | D4: Electronics | E4: AllEquip | H4: AppPlug | I4: Any | J4: AirComp | K4: AirEcono | O4: PGE | Q4: Nat'l Gas | R4: NTGR_therm | S4: 8 | U4: Deemed | W4: PGE | X4: 0.0775 | Z4: Process | AB4: ROB/NC/NR | AC4: Use EUL value associated with EUL_ID | AE4: before 2016
B5: AppPlug | C5: Electronics | D5: Electronics | E5: AllEquip | H5: BldgEnv | I5: Controls | J5: BldgShell | K5: AllEquip | O5: SCE | Q5: Electric | R5: NTGR_kWh | S5: 7 | U5: Custom | V5: allow EUL value | W5: SCE | X5: 0.0776 | Z5: Building | AB5: AOE | AC5: Use RUL value associated with EUL_ID | AE5: Jan2016 - Dec2016
B6: AppPlug | C6: Electronics | D6: Electronics | E6: AllEquip | H6: CompAir | I6: Cooking | J6: Chiller | K6: Any | O6: SCG | Q6: Both | R6: NTGR_kWh | S6: 7 | U6: NMEC | V6: allow EUL value | W6: SCG | X6: 0.0777 | AE6: Jan2017 - Jun2017
B7: AppPlug | C7: Electronics | D7: Electronics | E7: DesktopComp | H7: ComRefrig | I7: Diagnostic | J7: Clean_equip | K7: ASD | O7: SDGE | W7: SDGE | X7: 0.0778 | AE7: Jul2017 - Dec2018
B8: AppPlug | C8: Electronics | D8: Electronics | E8: OccSensPlug | H8: FoodServ | I8: Display | J8: Cook_Equip | K8: Boiler_Et | O8: BAY | W8: MCE | X8: 0.0779 | AE8: after 2018
B9: AppPlug | C9: Electronics | D9: Electronics | E9: TV | H9: HVAC | I9: Distribute | J9: dxAC_equip | K9: CentBstr | O9: MCE | W9: Bay | X9: 0.078
B10: AppPlug | C10: KitchenApp | D10: Clean_equip | E10: Dishwash | H10: Irrigate | I10: Electronics | J10: dxHP_equip | K10: CFL_fixt | O10: SCR | W10: SCR | X10: 0.0781
B11: AppPlug | C11: KitchenApp | D11: Clean_equip | E11: DishWash | H11: Lighting | I11: EnvCtrl | J11: Electronics | K11: CFL_lamp
B12: AppPlug | C12: KitchenApp | D12: Ref_Storage | E12: Freezer | H12: ProcDist | I12: Equipment | J12: EvapCool_eq | K12: CFLint_lamp
B13: AppPlug | C13: KitchenApp | D13: Ref_Storage | E13: Freezer | H13: Process | I13: EvapSepDehyd | J13: Fenest | K13: ClothesWash
B14: AppPlug | C14: KitchenApp | D14: Ref_Storage | E14: Refrig | H14: ProcHeat | I14: FarmIrrig | J14: FoodService | K14: ClothesWasher
B15: AppPlug | C15: KitchenApp | D15: Ref_Storage | E15: Refrig | H15: ProcRefrig | I15: Fenestration | J15: HeatReject | K15: ComEvap
B16: AppPlug | C16: Laundry | D16: Clean_equip | E16: ClothesWash | H16: Recreate | I16: HeatCool | J16: HV_AirDist | K16: CoolRoof
B17: AppPlug | C17: Laundry | D17: Clean_equip | E17: ClothesWash | H17: Service | I17: Heating | J17: HV_Tech | K17: CycAirDryr
B18: AppPlug | C18: Laundry | D18: Clean_equip | E18: ClothesWash | H18: Service | I18: HtRej | J18: Irrigation | K18: DCV
B19: AppPlug | C19: Laundry | D19: Clean_equip | E19: ClothesWasher | H19: SHW | I19: InCommon | J19: LiquidCirc | K19: DesktopComp
B20: AppPlug | C20: Office_eq | D20: Electronics | E20: AllEquip | H20: WhlBldg | I20: InExit | J20: Ltg_Controls | K20: Dishwash
B21: AppPlug | C21: Office_eq | D21: Electronics | E21: MoveSensor | I21: InGen | J21: Ltg_Fixture | K21: DuctInsC
B22: AppPlug | C22: Office_eq | D22: Electronics | I22: InTask | J22: Ltg_Lamp | K22: DuctInsul
B23: AppPlug | C23: Vending | D23: Electronics | E23: MoveSensor | I23: KitchenApp | J23: Ltg_Plugin | K23: DuctSysC
B24: BldgEnv | C24: Fenestration | D24: Fenest | E24: WinFilm | I24: Laundry | J24: Ltg_ScrewIn | K24: EMS
B25: BldgEnv | C25: Fenestration | D25: Fenest | E25: WinFilm | I25: Maintenance | J25: Motor | K25: EvapFan
B26: BldgEnv | C26: Fenestration | D26: Fenest | E26: WinFilm | I26: ManufDryAir | J26: Motor_Spd | K26: Exit_fixt
B27: BldgEnv | C27: Fenestration | D27: Fenest | I27: Office_eq | J27: PoolSpa_eq | K27: FaucetAer
B28: BldgEnv | C28: Fenestration | D28: Fenest | I28: Opaque | J28: PumpSystem | K28: FloorIns
B29: BldgEnv | C29: Fenestration | D29: Fenest | I29: OutCommon | J29: Ref_SelfCon | K29: FlowTempCtrl
B30: BldgEnv | C30: Opaque | D30: BldgShell | E30: CoolRoof | I30: OutDuskDawn | J30: Ref_Storage | K30: Freezer
B31: BldgEnv | C31: Opaque | D31: BldgShell | E31: CoolRoof | I31: OutGen | J31: SHW_Tech | K31: Fryer
B32: BldgEnv | C32: Opaque | D32: BldgShell | E32: FloorIns | I32: OutSign | J32: SpaceHtg_eq | K32: GasFurnace
B33: BldgEnv | C33: Opaque | D33: BldgShell | E33: FloorIns | I33: Packaging | J33: SteamCirc | K33: Gasket
B34: BldgEnv | C34: Opaque | D34: BldgShell | E34: WallBlowIns | I34: PointOfUse | J34: SteamHtg_eq | K34: Griddle
B35: BldgEnv | C35: Opaque | D35: BldgShell | I35: Pool | J35: WaterFixt | K35: HandWrap
B36: BldgEnv | C36: Opaque | D36: BldgShell | I36: ProdChill | J36: WaterHtg_eq | K36: HeatRecov
B37: BldgEnv | C37: Opaque | D37: BldgShell | I37: ProdStore | J37: WhlBldg | K37: HID_fixt
B38: BldgEnv | C38: Opaque | D38: BldgShell | I38: Pumping | K38: HoldBin
B39: BldgEnv | C39: Opaque | D39: BldgShell | I39: RefDisplay | K39: HP_EF
B40: CompAir | C40: ManufDryAir | D40: AirComp | E40: CycAirDryr | I40: Refrig | K40: IceMach
B41: CompAir | D41: Motor_Spd | E41: ASD | I41: RetroComm | K41: Incan_lamp
B42: CompAir | I42: Seasonal | K42: Ind_LmpBlst
B43: ComRefrig | C43: Display | D43: Ref_Storage | E43: Gasket | I43: SpaceCool | K43: LED_fixt
B44: ComRefrig | C44: Display | D44: Ref_Storage | I44: SpaceHeat | K44: LED_lamp
B45: ComRefrig | C45: Display | D45: Ref_Storage | I45: SteamDist | K45: LinFluor_fixt
B46: ComRefrig | C46: Display | D46: Ref_Storage | I46: Storage | K46: LtSensor
B47: ComRefrig | C47: Display | D47: Ref_Storage | I47: Vending | K47: LtString
B48: ComRefrig | C48: Equipment | D48: Ref_SelfCon | E48: IceMach | I48: VentAirDist | K48: MoveSensor
B49: ComRefrig | C49: Equipment | D49: Ref_Storage | E49: EvapFan | I49: WBUpgrade | K49: multiTech
B50: ComRefrig | C50: Equipment | D50: Ref_Storage | E50: ReachIn | K50: OccSensor
B51: ComRefrig | C51: Equipment | D51: Ref_Storage | E51: ReachIn | K51: OccSensPlug
B52: ComRefrig | C52: Equipment | D52: Ref_Storage | E52: Refrig_sys | K52: OvenComb
B53: ComRefrig | C53: Equipment | D53: Ref_Storage | E53: Refrig_sys | K53: OvenConv
B54: ComRefrig | C54: Equipment | D54: Ref_Storage | E54: Refrig_sys | K54: PipeIns
B55: ComRefrig | C55: Equipment | D55: Ref_Storage | E55: Refrig_sys | K55: pkgEER
B56: ComRefrig | C56: Equipment | D56: Ref_Storage | E56: Refrig_sys | K56: PlugIn_fixt
B57: ComRefrig | C57: Storage | D57: Ref_Storage | E57: Gasket | K57: PoolCover
B58: ComRefrig | C58: Storage | D58: Ref_Storage | E58: ReachIn | K58: PumpMtr
B59: ComRefrig | C59: Storage | D59: Ref_Storage | E59: StripCurt | K59: ReachIn
B60: ComRefrig | C60: Storage | D60: Ref_Storage | K60: Refrig
B61: ComRefrig | C61: Storage | D61: Ref_Storage | K61: Refrig_sys
B62: ComRefrig | C62: Storage | D62: Ref_Storage | K62: RefrigLtg
B63: FoodServ | C63: Cooking | D63: Cook_Equip | E63: Fryer | K63: RefWareCool
B64: FoodServ | C64: Cooking | D64: Cook_Equip | E64: Fryer | K64: ResEvap
B65: FoodServ | C65: Cooking | D65: Cook_Equip | E65: Fryer | K65: ShowerHd
B66: FoodServ | C66: Cooking | D66: Cook_Equip | E66: Griddle | K66: Steamer
B67: FoodServ | C67: Cooking | D67: Cook_Equip | E67: Griddle | K67: SteamTrap
B68: FoodServ | C68: Cooking | D68: Cook_Equip | E68: OvenComb | K68: StripCurt
B69: FoodServ | C69: Cooking | D69: Cook_Equip | E69: OvenComb | K69: SubBstr
B70: FoodServ | C70: Cooking | D70: Cook_Equip | E70: OvenConv | K70: SubWell
B71: FoodServ | C71: Cooking | D71: Cook_Equip | E71: OvenConv | K71: TankIns
B72: FoodServ | C72: Cooking | D72: Cook_Equip | E72: OvenConv | K72: TempReset
B73: FoodServ | C73: Cooking | D73: Cook_Equip | E73: Steamer | K73: Timer
B74: FoodServ | C74: Cooking | D74: Cook_Equip | E74: Steamer | K74: Tstat
B75: FoodServ | C75: Cooking | D75: Cook_equip | K75: TurbBstr
B76: FoodServ | C76: Cooking | D76: FoodService | E76: HoldBin | K76: TurbWell
B77: FoodServ | C77: Packaging | D77: FoodService | E77: HandWrap | K77: TV
B78: HVAC | C78: EnvCtrl | D78: HV_Tech | E78: EMS | K78: VentFanMtr
B79: HVAC | C79: EnvCtrl | D79: HV_Tech | E79: Timer | K79: WallBlowIns
B80: HVAC | C80: EnvCtrl | D80: HV_Tech | E80: Tstat | K80: WBRetPkg
B81: HVAC | C81: EnvCtrl | D81: HV_Tech | E81: Tstat | K81: WinFilm
B82: HVAC | C82: EnvCtrl | D82: LiquidCirc | E82: TempReset | K82: WSEcono
B83: HVAC | C83: HeatCool | D83: dxAC_equip | E83: refrig
B84: HVAC | C84: HeatCool | D84: dxAC_equip | E84: refrig
B85: HVAC | C85: HeatCool | D85: dxHP_equip
B86: HVAC | C86: HeatCool | D86: dxHP_equip
B87: HVAC | C87: HeatCool | D87: dxHP_equip
B88: HVAC | C88: HeatCool | D88: dxHP_equip
B89: HVAC | C89: HeatCool | D89: HV_AirDist | E89: HeatRecov
B90: HVAC | C90: HeatCool | D90: HV_AirDist | E90: HeatRecov
B91: HVAC | C91: HeatCool | D91: HV_Tech | E91: DCV
B92: HVAC | C92: HeatCool | D92: LiquidCirc | E92: FlowTempCtrl
B93: HVAC | C93: HeatCool | D93: Motor_Spd | E93: ASD
B94: HVAC | C94: HtRej | D94: HeatReject
B95: HVAC | C95: SpaceCool | D95: Chiller
B96: HVAC | C96: SpaceCool | D96: dxAC_equip
B97: HVAC | C97: SpaceCool | D97: dxAC_equip
B98: HVAC | C98: SpaceCool | D98: dxAC_equip
B99: HVAC | C99: SpaceCool | D99: dxAC_equip
B100: HVAC | C100: SpaceCool | D100: dxAC_equip
B101: HVAC | C101: SpaceCool | D101: dxAC_equip
B102: HVAC | C102: SpaceCool | D102: dxAC_equip
B103: HVAC | C103: SpaceCool | D103: dxHP_equip
B104: HVAC | C104: SpaceCool | D104: EvapCool_eq | E104: ComEvap
B105: HVAC | C105: SpaceCool | D105: EvapCool_eq | E105: ResEvap
B106: HVAC | C106: SpaceCool | D106: EvapCool_eq | E106: ResEvap
B107: HVAC | C107: SpaceCool | D107: HeatReject | E107: WSEcono
B108: HVAC | C108: SpaceCool | D108: HV_AirDist | E108: AirEcono
B109: HVAC | C109: SpaceCool | D109: HV_AirDist | E109: AirEcono
B110: HVAC | C110: SpaceCool | D110: HV_Tech | E110: pkgEER
B111: HVAC | C111: SpaceCool | D111: HV_Tech | E111: TStat
B112: HVAC | C112: SpaceCool | D112: HV_Tech | E112: TStat
B113: HVAC | C113: SpaceCool | D113: HV_Tech | E113: TStat
B114: HVAC | C114: SpaceHeat | D114: SpaceHtg_eq | E114: GasFurnace
B115: HVAC | C115: SpaceHeat | D115: SpaceHtg_eq | E115: GasFurnace
B116: HVAC | C116: SpaceHeat | D116: SpaceHtg_eq
B117: HVAC | C117: SpaceHeat | D117: SteamCirc | E117: SteamTrap
B118: HVAC | C118: SpaceHeat | D118: WaterHtg_eq
B119: HVAC | C119: VentAIrDist | D119: Electronics | E119: AllEquip
B120: HVAC | C120: VentAirDist | D120: HV_AirDist | E120: DuctInsC
B121: HVAC | C121: VentAirDist | D121: HV_AirDist | E121: DuctInsul
B122: HVAC | C122: VentAirDist | D122: HV_AirDist | E122: DuctSysC
B123: HVAC | C123: VentAirDist | D123: HV_AirDist | E123: VentFanMtr
B124: HVAC | C124: VentAirDist | D124: HV_AirDist | E124: VentFanMtr
B125: HVAC | C125: VentAirDist | D125: HV_AirDist | E125: VentFanMtr
B126: HVAC | C126: VentAirDist | D126: HV_AirDist | E126: VentFanMtr
B127: HVAC | C127: VentAirDist | D127: HV_AirDist | E127: VentFanMtr
B128: HVAC | C128: VentAirDist | D128: HV_AirDist | E128: VentFanMtr
B129: HVAC | C129: VentAirDist | D129: HV_AirDist | E129: VentFanMtr
B130: HVAC | C130: VentAirDist | D130: HV_AirDist | E130: VentFanMtr
B131: HVAC | C131: VentAirDist | D131: HV_AirDist | E131: VentFanMtr
B132: HVAC | C132: VentAirDist | D132: HV_AirDist | E132: VentFanMtr
B133: HVAC | C133: VentAirDist | D133: HV_AirDist | E133: VentFanMtr
B134: HVAC | C134: VentAirDist | D134: HV_AirDist | E134: VentFanMtr
B135: HVAC | C135: VentAirDist | D135: HV_AirDist | E135: VentFanMtr
B136: HVAC | C136: VentAirDist | D136: HV_AirDist
B137: HVAC | C137: VentAirDist | D137: HV_AirDist
B138: HVAC | C138: VentAirDist | D138: HV_AirDist
B139: HVAC | C139: VentAirDist | D139: HV_AirDist
B140: HVAC | C140: VentAirDist | D140: HV_AirDist
B141: HVAC | C141: VentAirDist | D141: Motor_Spd | E141: ASD
B142: HVAC | C142: VentAirDist | D142: Motor_Spd | E142: ASD
B143: HVAC | C143: VentAirDist | D143: Motor_Spd | E143: ASD
B144: HVAC | C144: VentAirDist
B145: Irrigate | C145: FarmIrrig | D145: Irrigation
B146: Irrigate | C146: FarmIrrig | D146: Irrigation
B147: Irrigate | C147: FarmIrrig | D147: Irrigation
B148: Irrigate | C148: FarmIrrig | D148: Motor_Spd | E148: ASD
B149: Lighting | C149: Any | D149: Ltg_Fixture | E149: Any
B150: Lighting | C150: Controls | D150: Ltg_Controls | E150: LtSensor
B151: Lighting | C151: Controls | D151: Ltg_Controls | E151: Timer
B152: Lighting | C152: Controls | D152: Ltg_Controls
B153: Lighting | C153: Controls | D153: Ltg_Fixture | E153: OccSensor
B154: Lighting | C154: Controls | D154: Ltg_Fixture | E154: Timer
B155: Lighting | C155: Controls | D155: Ltg_Fixture
B156: Lighting | C156: InCommon | D156: Ltg_Fixture | E156: CFL_fixt
B157: Lighting | C157: InCommon | D157: Ltg_Fixture | E157: HID_fixt
B158: Lighting | C158: InCommon | D158: Ltg_Fixture | E158: LED_fixt
B159: Lighting | C159: InCommon | D159: Ltg_Fixture | E159: LED_fixt
B160: Lighting | C160: InCommon | D160: Ltg_Fixture | E160: LinFluor_fixt
B161: Lighting | C161: InCommon | D161: Ltg_Lamp | E161: CFLint_lamp
B162: Lighting | C162: InCommon | D162: Ltg_Lamp | E162: CFLint_lamp
B163: Lighting | C163: InCommon | D163: Ltg_Lamp | E163: CFLint_lamp
B164: Lighting | C164: InCommon | D164: Ltg_Lamp | E164: CFLint_lamp
B165: Lighting | C165: InCommon | D165: Ltg_Lamp | E165: LED_lamp
B166: Lighting | C166: InCommon | D166: Ltg_Lamp | E166: LED_lamp
B167: Lighting | C167: InExit | D167: Ltg_Fixture | E167: Exit_fixt
B168: Lighting | C168: InGen | D168: Ltg_Fixture | E168: CFL_fixt
B169: Lighting | C169: InGen | D169: Ltg_Fixture | E169: CFL_fixt
B170: Lighting | C170: InGen | D170: Ltg_Fixture | E170: HID_fixt
B171: Lighting | C171: InGen | D171: Ltg_Fixture | E171: HID_fixt
B172: Lighting | C172: InGen | D172: Ltg_Fixture | E172: HID_fixt
B173: Lighting | C173: InGen | D173: Ltg_Fixture | E173: Ind_LmpBlst
B174: Lighting | C174: InGen | D174: Ltg_Fixture | E174: LED_fixt
B175: Lighting | C175: InGen | D175: Ltg_Fixture | E175: LED_fixt
B176: Lighting | C176: InGen | D176: Ltg_Fixture | E176: LED_fixt
B177: Lighting | C177: InGen | D177: Ltg_Fixture | E177: LinFluor_fixt
B178: Lighting | C178: InGen | D178: Ltg_Fixture | E178: LinFluor_fixt
B179: Lighting | C179: InGen | D179: Ltg_Fixture | E179: LinFluor_fixt
B180: Lighting | C180: InGen | D180: Ltg_Fixture | E180: LinFluor_fixt
B181: Lighting | C181: InGen | D181: Ltg_Fixture | E181: LinFluor_fixt
B182: Lighting | C182: InGen | D182: Ltg_Fixture | E182: LinFluor_fixt
B183: Lighting | C183: InGen | D183: Ltg_Lamp | E183: CFLint_lamp
B184: Lighting | C184: InGen | D184: Ltg_Lamp | E184: CFLint_lamp
B185: Lighting | C185: InGen | D185: Ltg_Lamp | E185: CFLint_lamp
B186: Lighting | C186: InGen | D186: Ltg_Lamp | E186: CFLint_lamp
B187: Lighting | C187: InGen | D187: Ltg_Lamp | E187: CFLint_lamp
B188: Lighting | C188: InGen | D188: Ltg_Lamp | E188: CFLint_lamp
B189: Lighting | C189: InGen | D189: Ltg_Lamp | E189: CFLint_lamp
B190: Lighting | C190: InGen | D190: Ltg_Lamp | E190: CFLint_lamp
B191: Lighting | C191: InGen | D191: Ltg_Lamp | E191: CFLint_lamp
B192: Lighting | C192: InGen | D192: Ltg_Lamp | E192: CFLint_lamp
B193: Lighting | C193: InGen | D193: Ltg_Lamp | E193: CFLint_lamp
B194: Lighting | C194: InGen | D194: Ltg_Lamp | E194: CFLint_lamp
B195: Lighting | C195: InGen | D195: Ltg_Lamp | E195: CFLint_lamp
B196: Lighting | C196: InGen | D196: Ltg_Lamp | E196: CFLint_lamp
B197: Lighting | C197: InGen | D197: Ltg_Lamp | E197: Incan_lamp
B198: Lighting | C198: InGen | D198: Ltg_Lamp | E198: Incan_lamp
B199: Lighting | C199: InGen | D199: Ltg_Lamp | E199: LED_lamp
B200: Lighting | C200: InGen | D200: Ltg_Lamp | E200: LED_lamp
B201: Lighting | C201: InGen | D201: Ltg_Lamp | E201: LED_lamp
... 209 more rows
